Workbook

Sheet Info
C7: File name | D7: Front end Program Operațional Regional
C8: Author | D8: Cambridge Econometrics
C9: Client | D9: Ministerul Investițiilor și Proiectelor Europene
C10: Project | D10: Evaluarea progresului în îndeplinirea indicatorilor din cadrul de performanță – Tema E
C12: Version | D12: 1
C13: Authorised for release by
C14: Last revised | D14: 2021-07-27
C15: Status | D15: Completed
C16: Source | D16: SMIS
C18: Purpose | D18: To provide forecasts on indicators relating to the Regional Operational Programme.
C22: Sheets in this file:
D24: Info | F24: This documentation sheet
D26: Projections | F26: Indicator projections
D28: Achievement_finalised | F28: Data underpinning the estimates of the achievement of finalised projects
D29: Achievement_to_date_ongoing | F29: Data underpinning the estimates of the achievement of ongoing projects
D30: Achievement_forecast_ongoing | F30: Estimates of the achievemnt of ongoing projects. Can be adjusted by the user.
D31: Project_characteristics | F31: Estimates of the average project characteristics and the number of projects starting in the future. Can be adjusted by the user.
D32: Achievement_forecasts_future | F32: Estimates of the achievement of projects starting in the future. Can be adjusted by the user.

Sheet Projections
H2: As percentage of target (%) | L2: Total | P2: Finalised | T2: Ongoing | X2: New
C3: PA | D3: PI | E3: Indicator | F3: Region | G3: Target | H3: 2020 | I3: =+H3+1 -> 2021 | J3: =+I3+1 -> 2022 | K3: =+J3+1 -> 2023 | L3: 2020 | M3: =+L3+1 -> 2021 | N3: =+M3+1 -> 2022 | O3: =+N3+1 -> 2023 | P3: 2020 | Q3: =+P3+1 -> 2021 | R3: =+Q3+1 -> 2022 | S3: =+R3+1 -> 2023 | T3: 2020 | U3: =+T3+1 -> 2021 | V3: =+U3+1 -> 2022 | W3: =+V3+1 -> 2023 | X3: 2020 | Y3: =+X3+1 -> 2021 | Z3: =+Y3+1 -> 2022 | AA3: =+Z3+1 -> 2023
C4: 1 | D4: All | E4: 1F | F4: All | G4: =156917619*G52 -> 759983412.3 | H4: =L4/$G4*100 -> 0.1070413661 | I4: =M4/$G4*100 -> 11.94801336 | J4: =N4/$G4*100 -> 13.57336898 | K4: =O4/$G4*100 -> 14.40058998 | L4: =P4+T4+X4 -> 813496.6266 | M4: =Q4+U4+Y4 -> 90802919.6 | N4: =R4+V4+Z4 -> 103155352.8 | O4: =S4+W4+AA4 -> 109442095.1 | P4: =SUMIFS(Achievement_finalised!$G$4:$G$71,Achievement_finalised!$B$4:$B$71,Projections!$C4,Achievement_finalised!$D$4:$D$71,Projections!$E4,Achievement_finalised!$E$4:$E$71,Projections!$F4) -> 0 | Q4: =SUMIFS(Achievement_finalised!$G$4:$G$71,Achievement_finalised!$B$4:$B$71,Projections!$C4,Achievement_finalised!$D$4:$D$71,Projections!$E4,Achievement_finalised!$E$4:$E$71,Projections!$F4) -> 0 | R4: =SUMIFS(Achievement_finalised!$G$4:$G$71,Achievement_finalised!$B$4:$B$71,Projections!$C4,Achievement_finalised!$D$4:$D$71,Projections!$E4,Achievement_finalised!$E$4:$E$71,Projections!$F4) -> 0 | S4: =SUMIFS(Achievement_finalised!$G$4:$G$71,Achievement_finalised!$B$4:$B$71,Projections!$C4,Achievement_finalised!$D$4:$D$71,Projections!$E4,Achievement_finalised!$E$4:$E$71,Projections!$F4) -> 0 | T4: =SUMIFS(Achievement_forecast_ongoing!G$6:G$49822,Achievement_forecast_ongoing!$C$6:$C$49822,Projections!$C4,Achievement_forecast_ongoing!$E$6:$E$49822,Projections!$E4,Achievement_forecast_ongoing!$F$6:$F$49822,Projections!$F4) -> 813496.6266 | U4: =SUMIFS(Achievement_forecast_ongoing!H$6:H$49822,Achievement_forecast_ongoing!$C$6:$C$49822,Projections!$C4,Achievement_forecast_ongoing!$E$6:$E$49822,Projections!$E4,Achievement_forecast_ongoing!$F$6:$F$49822,Projections!$F4) -> 90802919.6 | V4: =SUMIFS(Achievement_forecast_ongoing!I$6:I$49822,Achievement_forecast_ongoing!$C$6:$C$49822,Projections!$C4,Achievement_forecast_ongoing!$E$6:$E$49822,Projections!$E4,Achievement_forecast_ongoing!$F$6:$F$49822,Projections!$F4) -> 102562443.3 | W4: =SUMIFS(Achievement_forecast_ongoing!J$6:J$49822,Achievement_forecast_ongoing!$C$6:$C$49822,Projections!$C4,Achievement_forecast_ongoing!$E$6:$E$49822,Projections!$E4,Achievement_forecast_ongoing!$F$6:$F$49822,Projections!$F4) -> 108487057.9 | X4: =SUMIFS(Achievement_forecasts_future!G$4:G$71,Achievement_forecasts_future!$B$4:$B$71,Projections!$C4,Achievement_forecasts_future!$D$4:$D$71,Projections!$E4,Achievement_forecasts_future!$E$4:$E$71,Projections!$F4) -> 0 | Y4: =SUMIFS(Achievement_forecasts_future!H$4:H$71,Achievement_forecasts_future!$B$4:$B$71,Projections!$C4,Achievement_forecasts_future!$D$4:$D$71,Projections!$E4,Achievement_forecasts_future!$E$4:$E$71,Projections!$F4) -> 0 | Z4: =SUMIFS(Achievement_forecasts_future!I$4:I$71,Achievement_forecasts_future!$B$4:$B$71,Projections!$C4,Achievement_forecasts_future!$D$4:$D$71,Projections!$E4,Achievement_forecasts_future!$E$4:$E$71,Projections!$F4) -> 592909.4628 | AA4: =SUMIFS(Achievement_forecasts_future!J$4:J$71,Achievement_forecasts_future!$B$4:$B$71,Projections!$C4,Achievement_forecasts_future!$D$4:$D$71,Projections!$E4,Achievement_forecasts_future!$E$4:$E$71,Projections!$F4) -> 955037.2128
C5: 1 | D5: All | E5: 1S2 | F5: All | G5: 17 | H5: =L5/$G5*100 -> 0 | I5: =M5/$G5*100 -> 11.76470588 | J5: =N5/$G5*100 -> 35.29411765 | K5: =O5/$G5*100 -> 52.94117647 | L5: 0 | M5: 2 | N5: =ROUND(R5+V5+Z5, 0) -> 6 | O5: =ROUND(S5+W5+AA5, 0) -> 9 | P5: =SUMIFS(Achievement_finalised!$G$4:$G$71,Achievement_finalised!$B$4:$B$71,Projections!$C5,Achievement_finalised!$D$4:$D$71,Projections!$E5,Achievement_finalised!$E$4:$E$71,Projections!$F5) -> 0 | Q5: =SUMIFS(Achievement_finalised!$G$4:$G$71,Achievement_finalised!$B$4:$B$71,Projections!$C5,Achievement_finalised!$D$4:$D$71,Projections!$E5,Achievement_finalised!$E$4:$E$71,Projections!$F5) -> 0 | R5: =SUMIFS(Achievement_finalised!$G$4:$G$71,Achievement_finalised!$B$4:$B$71,Projections!$C5,Achievement_finalised!$D$4:$D$71,Projections!$E5,Achievement_finalised!$E$4:$E$71,Projections!$F5) -> 0 | S5: =SUMIFS(Achievement_finalised!$G$4:$G$71,Achievement_finalised!$B$4:$B$71,Projections!$C5,Achievement_finalised!$D$4:$D$71,Projections!$E5,Achievement_finalised!$E$4:$E$71,Projections!$F5) -> 0 | T5: =SUMIFS(Achievement_forecast_ongoing!G$6:G$49822,Achievement_forecast_ongoing!$C$6:$C$49822,Projections!$C5,Achievement_forecast_ongoing!$E$6:$E$49822,Projections!$E5,Achievement_forecast_ongoing!$F$6:$F$49822,Projections!$F5) -> 0 | U5: =SUMIFS(Achievement_forecast_ongoing!H$6:H$49822,Achievement_forecast_ongoing!$C$6:$C$49822,Projections!$C5,Achievement_forecast_ongoing!$E$6:$E$49822,Projections!$E5,Achievement_forecast_ongoing!$F$6:$F$49822,Projections!$F5) -> 2 | V5: =SUMIFS(Achievement_forecast_ongoing!I$6:I$49822,Achievement_forecast_ongoing!$C$6:$C$49822,Projections!$C5,Achievement_forecast_ongoing!$E$6:$E$49822,Projections!$E5,Achievement_forecast_ongoing!$F$6:$F$49822,Projections!$F5) -> 6 | W5: =SUMIFS(Achievement_forecast_ongoing!J$6:J$49822,Achievement_forecast_ongoing!$C$6:$C$49822,Projections!$C5,Achievement_forecast_ongoing!$E$6:$E$49822,Projections!$E5,Achievement_forecast_ongoing!$F$6:$F$49822,Projections!$F5) -> 9 | X5: =SUMIFS(Achievement_forecasts_future!G$4:G$71,Achievement_forecasts_future!$B$4:$B$71,Projections!$C5,Achievement_forecasts_future!$D$4:$D$71,Projections!$E5,Achievement_forecasts_future!$E$4:$E$71,Projections!$F5) -> 0 | Y5: =SUMIFS(Achievement_forecasts_future!H$4:H$71,Achievement_forecasts_future!$B$4:$B$71,Projections!$C5,Achievement_forecasts_future!$D$4:$D$71,Projections!$E5,Achievement_forecasts_future!$E$4:$E$71,Projections!$F5) -> 0 | Z5: =SUMIFS(Achievement_forecasts_future!I$4:I$71,Achievement_forecasts_future!$B$4:$B$71,Projections!$C5,Achievement_forecasts_future!$D$4:$D$71,Projections!$E5,Achievement_forecasts_future!$E$4:$E$71,Projections!$F5) -> 0 | AA5: =SUMIFS(Achievement_forecasts_future!J$4:J$71,Achievement_forecasts_future!$B$4:$B$71,Projections!$C5,Achievement_forecasts_future!$D$4:$D$71,Projections!$E5,Achievement_forecasts_future!$E$4:$E$71,Projections!$F5) -> 0
C6: 1 | D6: All | E6: 1K8 | F6: All | G6: 17 | H6: =H5 -> 0 | I6: 11.76470588 | J6: 35.29411765 | K6: 52.94117647 | L6: 0 | M6: 2 | N6: 6 | O6: 9 | P6: 0 | Q6: 0 | R6: 0 | S6: 0 | T6: 0 | U6: 2 | V6: 6 | W6: 9 | X6: 0 | Y6: 0 | Z6: 0 | AA6: 0
C7: 1 | D7: All | E7: CO02 | F7: All | G7: 270 | H7: =L7/$G7*100 -> 0 | I7: =M7/$G7*100 -> 0.7407407407 | J7: =N7/$G7*100 -> 2.222222222 | K7: 2.962962963 | L7: =P7+T7+X7 -> 0 | M7: =Q7+U7+Y7 -> 2 | N7: =ROUND(R7+V7+Z7, 0) -> 6 | O7: =ROUND(S7+W7+AA7, 0) -> 8 | P7: =SUMIFS(Achievement_finalised!$G$4:$G$71,Achievement_finalised!$B$4:$B$71,Projections!$C7,Achievement_finalised!$D$4:$D$71,Projections!$E7,Achievement_finalised!$E$4:$E$71,Projections!$F7) -> 0 | Q7: =SUMIFS(Achievement_finalised!$G$4:$G$71,Achievement_finalised!$B$4:$B$71,Projections!$C7,Achievement_finalised!$D$4:$D$71,Projections!$E7,Achievement_finalised!$E$4:$E$71,Projections!$F7) -> 0 | R7: =SUMIFS(Achievement_finalised!$G$4:$G$71,Achievement_finalised!$B$4:$B$71,Projections!$C7,Achievement_finalised!$D$4:$D$71,Projections!$E7,Achievement_finalised!$E$4:$E$71,Projections!$F7) -> 0 | S7: =SUMIFS(Achievement_finalised!$G$4:$G$71,Achievement_finalised!$B$4:$B$71,Projections!$C7,Achievement_finalised!$D$4:$D$71,Projections!$E7,Achievement_finalised!$E$4:$E$71,Projections!$F7) -> 0 | T7: =SUMIFS(Achievement_forecast_ongoing!G$6:G$49822,Achievement_forecast_ongoing!$C$6:$C$49822,Projections!$C7,Achievement_forecast_ongoing!$E$6:$E$49822,Projections!$E7,Achievement_forecast_ongoing!$F$6:$F$49822,Projections!$F7) -> 0 | U7: =SUMIFS(Achievement_forecast_ongoing!H$6:H$49822,Achievement_forecast_ongoing!$C$6:$C$49822,Projections!$C7,Achievement_forecast_ongoing!$E$6:$E$49822,Projections!$E7,Achievement_forecast_ongoing!$F$6:$F$49822,Projections!$F7) -> 2 | V7: =SUMIFS(Achievement_forecast_ongoing!I$6:I$49822,Achievement_forecast_ongoing!$C$6:$C$49822,Projections!$C7,Achievement_forecast_ongoing!$E$6:$E$49822,Projections!$E7,Achievement_forecast_ongoing!$F$6:$F$49822,Projections!$F7) -> 6 | W7: =SUMIFS(Achievement_forecast_ongoing!J$6:J$49822,Achievement_forecast_ongoing!$C$6:$C$49822,Projections!$C7,Achievement_forecast_ongoing!$E$6:$E$49822,Projections!$E7,Achievement_forecast_ongoing!$F$6:$F$49822,Projections!$F7) -> 8 | X7: =SUMIFS(Achievement_forecasts_future!G$4:G$71,Achievement_forecasts_future!$B$4:$B$71,Projections!$C7,Achievement_forecasts_future!$D$4:$D$71,Projections!$E7,Achievement_forecasts_future!$E$4:$E$71,Projections!$F7) -> 0 | Y7: =SUMIFS(Achievement_forecasts_future!H$4:H$71,Achievement_forecasts_future!$B$4:$B$71,Projections!$C7,Achievement_forecasts_future!$D$4:$D$71,Projections!$E7,Achievement_forecasts_future!$E$4:$E$71,Projections!$F7) -> 0 | Z7: =SUMIFS(Achievement_forecasts_future!I$4:I$71,Achievement_forecasts_future!$B$4:$B$71,Projections!$C7,Achievement_forecasts_future!$D$4:$D$71,Projections!$E7,Achievement_forecasts_future!$E$4:$E$71,Projections!$F7) -> 0 | AA7: =SUMIFS(Achievement_forecasts_future!J$4:J$71,Achievement_forecasts_future!$B$4:$B$71,Projections!$C7,Achievement_forecasts_future!$D$4:$D$71,Projections!$E7,Achievement_forecasts_future!$E$4:$E$71,Projections!$F7) -> 0
C8: 1 | D8: All | E8: 1K9 | F8: All | G8: 144 | H8: =H7 -> 0 | I8: 0.7407407407 | J8: 2.222222222 | K8: 2.962962963 | L8: 0 | M8: 2 | N8: 6 | O8: 8 | P8: 0 | Q8: 0 | R8: 0 | S8: 0 | T8: 0 | U8: 2 | V8: 6 | W8: 8 | X8: 0 | Y8: 0 | Z8: 0 | AA8: 0
C9: 2 | D9: All | E9: 1F | F9: All | G9: =1391563827*G52 -> 6739621927 | H9: 51.10561055 | I9: 77.91891325 | J9: 79.14801035 | K9: 91.93937896 | L9: 3444324935 | M9: 5251440162 | N9: =R9+V9+Z9 -> 5334276660 | O9: 6196366544 | P9: =SUMIFS(Achievement_finalised!$G$4:$G$71,Achievement_finalised!$B$4:$B$71,Projections!$C9,Achievement_finalised!$D$4:$D$71,Projections!$E9,Achievement_finalised!$E$4:$E$71,Projections!$F9) -> 2685613509 | Q9: =SUMIFS(Achievement_finalised!$G$4:$G$71,Achievement_finalised!$B$4:$B$71,Projections!$C9,Achievement_finalised!$D$4:$D$71,Projections!$E9,Achievement_finalised!$E$4:$E$71,Projections!$F9) -> 2685613509 | R9: =SUMIFS(Achievement_finalised!$G$4:$G$71,Achievement_finalised!$B$4:$B$71,Projections!$C9,Achievement_finalised!$D$4:$D$71,Projections!$E9,Achievement_finalised!$E$4:$E$71,Projections!$F9) -> 2685613509 | S9: =SUMIFS(Achievement_finalised!$G$4:$G$71,Achievement_finalised!$B$4:$B$71,Projections!$C9,Achievement_finalised!$D$4:$D$71,Projections!$E9,Achievement_finalised!$E$4:$E$71,Projections!$F9) -> 2685613509 | T9: =SUMIFS(Achievement_forecast_ongoing!G$6:G$49822,Achievement_forecast_ongoing!$C$6:$C$49822,Projections!$C9,Achievement_forecast_ongoing!$E$6:$E$49822,Projections!$E9,Achievement_forecast_ongoing!$F$6:$F$49822,Projections!$F9) -> 758711425.1 | U9: =SUMIFS(Achievement_forecast_ongoing!H$6:H$49822,Achievement_forecast_ongoing!$C$6:$C$49822,Projections!$C9,Achievement_forecast_ongoing!$E$6:$E$49822,Projections!$E9,Achievement_forecast_ongoing!$F$6:$F$49822,Projections!$F9) -> 2565826653 | V9: =SUMIFS(Achievement_forecast_ongoing!I$6:I$49822,Achievement_forecast_ongoing!$C$6:$C$49822,Projections!$C9,Achievement_forecast_ongoing!$E$6:$E$49822,Projections!$E9,Achievement_forecast_ongoing!$F$6:$F$49822,Projections!$F9) -> 2648663151 | W9: =SUMIFS(Achievement_forecast_ongoing!J$6:J$49822,Achievement_forecast_ongoing!$C$6:$C$49822,Projections!$C9,Achievement_forecast_ongoing!$E$6:$E$49822,Projections!$E9,Achievement_forecast_ongoing!$F$6:$F$49822,Projections!$F9) -> 2663665357 | X9: =SUMIFS(Achievement_forecasts_future!G$4:G$71,Achievement_forecasts_future!$B$4:$B$71,Projections!$C9,Achievement_forecasts_future!$D$4:$D$71,Projections!$E9,Achievement_forecasts_future!$E$4:$E$71,Projections!$F9) -> 0 | Y9: =SUMIFS(Achievement_forecasts_future!H$4:H$71,Achievement_forecasts_future!$B$4:$B$71,Projections!$C9,Achievement_forecasts_future!$D$4:$D$71,Projections!$E9,Achievement_forecasts_future!$E$4:$E$71,Projections!$F9) -> 0 | Z9: =SUMIFS(Achievement_forecasts_future!I$4:I$71,Achievement_forecasts_future!$B$4:$B$71,Projections!$C9,Achievement_forecasts_future!$D$4:$D$71,Projections!$E9,Achievement_forecasts_future!$E$4:$E$71,Projections!$F9) -> 0 | AA9: =SUMIFS(Achievement_forecasts_future!J$4:J$71,Achievement_forecasts_future!$B$4:$B$71,Projections!$C9,Achievement_forecasts_future!$D$4:$D$71,Projections!$E9,Achievement_forecasts_future!$E$4:$E$71,Projections!$F9) -> 847087676.8
C10: 2 | D10: All | E10: CO01 | F10: All | G10: 4574 | H10: 72.80279843 | I10: 82.89830706 | J10: 87.53825973 | K10: 108.7232182 | L10: 3330 | M10: 3791.768565 | N10: =ROUND(R10+V10+Z10, 0) -> 4004 | O10: =ROUND(S10+W10+AA10, 0) -> 4973 | P10: =SUMIFS(Achievement_finalised!$G$4:$G$71,Achievement_finalised!$B$4:$B$71,Projections!$C10,Achievement_finalised!$D$4:$D$71,Projections!$E10,Achievement_finalised!$E$4:$E$71,Projections!$F10) -> 3330 | Q10: =SUMIFS(Achievement_finalised!$G$4:$G$71,Achievement_finalised!$B$4:$B$71,Projections!$C10,Achievement_finalised!$D$4:$D$71,Projections!$E10,Achievement_finalised!$E$4:$E$71,Projections!$F10) -> 3330 | R10: =SUMIFS(Achievement_finalised!$G$4:$G$71,Achievement_finalised!$B$4:$B$71,Projections!$C10,Achievement_finalised!$D$4:$D$71,Projections!$E10,Achievement_finalised!$E$4:$E$71,Projections!$F10) -> 3330 | S10: =SUMIFS(Achievement_finalised!$G$4:$G$71,Achievement_finalised!$B$4:$B$71,Projections!$C10,Achievement_finalised!$D$4:$D$71,Projections!$E10,Achievement_finalised!$E$4:$E$71,Projections!$F10) -> 3330 | T10: =SUMIFS(Achievement_forecast_ongoing!G$6:G$49822,Achievement_forecast_ongoing!$C$6:$C$49822,Projections!$C10,Achievement_forecast_ongoing!$E$6:$E$49822,Projections!$E10,Achievement_forecast_ongoing!$F$6:$F$49822,Projections!$F10) -> 0 | U10: =SUMIFS(Achievement_forecast_ongoing!H$6:H$49822,Achievement_forecast_ongoing!$C$6:$C$49822,Projections!$C10,Achievement_forecast_ongoing!$E$6:$E$49822,Projections!$E10,Achievement_forecast_ongoing!$F$6:$F$49822,Projections!$F10) -> 461.7685649 | V10: =SUMIFS(Achievement_forecast_ongoing!I$6:I$49822,Achievement_forecast_ongoing!$C$6:$C$49822,Projections!$C10,Achievement_forecast_ongoing!$E$6:$E$49822,Projections!$E10,Achievement_forecast_ongoing!$F$6:$F$49822,Projections!$F10) -> 674.2966971 | W10: =SUMIFS(Achievement_forecast_ongoing!J$6:J$49822,Achievement_forecast_ongoing!$C$6:$C$49822,Projections!$C10,Achievement_forecast_ongoing!$E$6:$E$49822,Projections!$E10,Achievement_forecast_ongoing!$F$6:$F$49822,Projections!$F10) -> 718.8885747 | X10: =SUMIFS(Achievement_forecasts_future!G$4:G$71,Achievement_forecasts_future!$B$4:$B$71,Projections!$C10,Achievement_forecasts_future!$D$4:$D$71,Projections!$E10,Achievement_forecasts_future!$E$4:$E$71,Projections!$F10) -> 0 | Y10: =SUMIFS(Achievement_forecasts_future!H$4:H$71,Achievement_forecasts_future!$B$4:$B$71,Projections!$C10,Achievement_forecasts_future!$D$4:$D$71,Projections!$E10,Achievement_forecasts_future!$E$4:$E$71,Projections!$F10) -> 0 | Z10: =SUMIFS(Achievement_forecasts_future!I$4:I$71,Achievement_forecasts_future!$B$4:$B$71,Projections!$C10,Achievement_forecasts_future!$D$4:$D$71,Projections!$E10,Achievement_forecasts_future!$E$4:$E$71,Projections!$F10) -> 0 | AA10: =SUMIFS(Achievement_forecasts_future!J$4:J$71,Achievement_forecasts_future!$B$4:$B$71,Projections!$C10,Achievement_forecasts_future!$D$4:$D$71,Projections!$E10,Achievement_forecasts_future!$E$4:$E$71,Projections!$F10) -> 923.9390365
C11: 3 | D11: All | E11: 1F | F11: Less developed | G11: =1292174852*G52 -> 6258261243 | H11: 12.74553586 | I11: 116.7078833 | J11: 121.7477663 | K11: 125.44317 | L11: 797648931 | M11: 7303884225 | N11: 7619293270 | O11: 7850561288 | P11: =SUMIFS(Achievement_finalised!$G$4:$G$71,Achievement_finalised!$B$4:$B$71,Projections!$C11,Achievement_finalised!$D$4:$D$71,Projections!$E11,Achievement_finalised!$E$4:$E$71,Projections!$F11) -> 214668431.1 | Q11: =SUMIFS(Achievement_finalised!$G$4:$G$71,Achievement_finalised!$B$4:$B$71,Projections!$C11,Achievement_finalised!$D$4:$D$71,Projections!$E11,Achievement_finalised!$E$4:$E$71,Projections!$F11) -> 214668431.1 | R11: =SUMIFS(Achievement_finalised!$G$4:$G$71,Achievement_finalised!$B$4:$B$71,Projections!$C11,Achievement_finalised!$D$4:$D$71,Projections!$E11,Achievement_finalised!$E$4:$E$71,Projections!$F11) -> 214668431.1 | S11: =SUMIFS(Achievement_finalised!$G$4:$G$71,Achievement_finalised!$B$4:$B$71,Projections!$C11,Achievement_finalised!$D$4:$D$71,Projections!$E11,Achievement_finalised!$E$4:$E$71,Projections!$F11) -> 214668431.1 | T11: =SUMIFS(Achievement_forecast_ongoing!G$6:G$49822,Achievement_forecast_ongoing!$C$6:$C$49822,Projections!$C11,Achievement_forecast_ongoing!$E$6:$E$49822,Projections!$E11,Achievement_forecast_ongoing!$F$6:$F$49822,Projections!$F11) -> 582980499.9 | U11: =SUMIFS(Achievement_forecast_ongoing!H$6:H$49822,Achievement_forecast_ongoing!$C$6:$C$49822,Projections!$C11,Achievement_forecast_ongoing!$E$6:$E$49822,Projections!$E11,Achievement_forecast_ongoing!$F$6:$F$49822,Projections!$F11) -> 7089215794 | V11: =SUMIFS(Achievement_forecast_ongoing!I$6:I$49822,Achievement_forecast_ongoing!$C$6:$C$49822,Projections!$C11,Achievement_forecast_ongoing!$E$6:$E$49822,Projections!$E11,Achievement_forecast_ongoing!$F$6:$F$49822,Projections!$F11) -> 7372752819 | W11: =SUMIFS(Achievement_forecast_ongoing!J$6:J$49822,Achievement_forecast_ongoing!$C$6:$C$49822,Projections!$C11,Achievement_forecast_ongoing!$E$6:$E$49822,Projections!$E11,Achievement_forecast_ongoing!$F$6:$F$49822,Projections!$F11) -> 7444468959 | X11: =SUMIFS(Achievement_forecasts_future!G$4:G$71,Achievement_forecasts_future!$B$4:$B$71,Projections!$C11,Achievement_forecasts_future!$D$4:$D$71,Projections!$E11,Achievement_forecasts_future!$E$4:$E$71,Projections!$F11) -> 0 | Y11: =SUMIFS(Achievement_forecasts_future!H$4:H$71,Achievement_forecasts_future!$B$4:$B$71,Projections!$C11,Achievement_forecasts_future!$D$4:$D$71,Projections!$E11,Achievement_forecasts_future!$E$4:$E$71,Projections!$F11) -> 0 | Z11: =SUMIFS(Achievement_forecasts_future!I$4:I$71,Achievement_forecasts_future!$B$4:$B$71,Projections!$C11,Achievement_forecasts_future!$D$4:$D$71,Projections!$E11,Achievement_forecasts_future!$E$4:$E$71,Projections!$F11) -> 31872019.33 | AA11: =SUMIFS(Achievement_forecasts_future!J$4:J$71,Achievement_forecasts_future!$B$4:$B$71,Projections!$C11,Achievement_forecasts_future!$D$4:$D$71,Projections!$E11,Achievement_forecasts_future!$E$4:$E$71,Projections!$F11) -> 191423898.4
C12: 3 | D12: All | E12: 1F | F12: More developed | G12: =304773409*G52 -> 1476078574 | H12: 38.75427363 | I12: 59.86428714 | J12: 62.71230124 | K12: 84.18138233 | L12: 572043529.7 | M12: 883643916.2 | N12: 925682842.1 | O12: 1242583348 | P12: =SUMIFS(Achievement_finalised!$G$4:$G$71,Achievement_finalised!$B$4:$B$71,Projections!$C12,Achievement_finalised!$D$4:$D$71,Projections!$E12,Achievement_finalised!$E$4:$E$71,Projections!$F12) -> 451547135.1 | Q12: =SUMIFS(Achievement_finalised!$G$4:$G$71,Achievement_finalised!$B$4:$B$71,Projections!$C12,Achievement_finalised!$D$4:$D$71,Projections!$E12,Achievement_finalised!$E$4:$E$71,Projections!$F12) -> 451547135.1 | R12: =SUMIFS(Achievement_finalised!$G$4:$G$71,Achievement_finalised!$B$4:$B$71,Projections!$C12,Achievement_finalised!$D$4:$D$71,Projections!$E12,Achievement_finalised!$E$4:$E$71,Projections!$F12) -> 451547135.1 | S12: =SUMIFS(Achievement_finalised!$G$4:$G$71,Achievement_finalised!$B$4:$B$71,Projections!$C12,Achievement_finalised!$D$4:$D$71,Projections!$E12,Achievement_finalised!$E$4:$E$71,Projections!$F12) -> 451547135.1 | T12: =SUMIFS(Achievement_forecast_ongoing!G$6:G$49822,Achievement_forecast_ongoing!$C$6:$C$49822,Projections!$C12,Achievement_forecast_ongoing!$E$6:$E$49822,Projections!$E12,Achievement_forecast_ongoing!$F$6:$F$49822,Projections!$F12) -> 120496394.6 | U12: =SUMIFS(Achievement_forecast_ongoing!H$6:H$49822,Achievement_forecast_ongoing!$C$6:$C$49822,Projections!$C12,Achievement_forecast_ongoing!$E$6:$E$49822,Projections!$E12,Achievement_forecast_ongoing!$F$6:$F$49822,Projections!$F12) -> 432096781.1 | V12: =SUMIFS(Achievement_forecast_ongoing!I$6:I$49822,Achievement_forecast_ongoing!$C$6:$C$49822,Projections!$C12,Achievement_forecast_ongoing!$E$6:$E$49822,Projections!$E12,Achievement_forecast_ongoing!$F$6:$F$49822,Projections!$F12) -> 437806035.4 | W12: =SUMIFS(Achievement_forecast_ongoing!J$6:J$49822,Achievement_forecast_ongoing!$C$6:$C$49822,Projections!$C12,Achievement_forecast_ongoing!$E$6:$E$49822,Projections!$E12,Achievement_forecast_ongoing!$F$6:$F$49822,Projections!$F12) -> 437806035.4 | X12: =SUMIFS(Achievement_forecasts_future!G$4:G$71,Achievement_forecasts_future!$B$4:$B$71,Projections!$C12,Achievement_forecasts_future!$D$4:$D$71,Projections!$E12,Achievement_forecasts_future!$E$4:$E$71,Projections!$F12) -> 0 | Y12: =SUMIFS(Achievement_forecasts_future!H$4:H$71,Achievement_forecasts_future!$B$4:$B$71,Projections!$C12,Achievement_forecasts_future!$D$4:$D$71,Projections!$E12,Achievement_forecasts_future!$E$4:$E$71,Projections!$F12) -> 0 | Z12: =SUMIFS(Achievement_forecasts_future!I$4:I$71,Achievement_forecasts_future!$B$4:$B$71,Projections!$C12,Achievement_forecasts_future!$D$4:$D$71,Projections!$E12,Achievement_forecasts_future!$E$4:$E$71,Projections!$F12) -> 36329671.58 | AA12: =SUMIFS(Achievement_forecasts_future!J$4:J$71,Achievement_forecasts_future!$B$4:$B$71,Projections!$C12,Achievement_forecasts_future!$D$4:$D$71,Projections!$E12,Achievement_forecasts_future!$E$4:$E$71,Projections!$F12) -> 353230177.7
C13: 3 | D13: All | E13: 1S11 | F13: Less developed | G13: 157 | H13: 0.6369426752 | I13: 15.07512377 | J13: 64.33121019 | K13: 122.2929936 | L13: 1 | M13: 23.66794432 | N13: =ROUND(R13+V13+Z13, 0) -> 101 | O13: =ROUND(S13+W13+AA13, 0) -> 192 | P13: =SUMIFS(Achievement_finalised!$G$4:$G$71,Achievement_finalised!$B$4:$B$71,Projections!$C13,Achievement_finalised!$D$4:$D$71,Projections!$E13,Achievement_finalised!$E$4:$E$71,Projections!$F13) -> 1 | Q13: =SUMIFS(Achievement_finalised!$G$4:$G$71,Achievement_finalised!$B$4:$B$71,Projections!$C13,Achievement_finalised!$D$4:$D$71,Projections!$E13,Achievement_finalised!$E$4:$E$71,Projections!$F13) -> 1 | R13: =SUMIFS(Achievement_finalised!$G$4:$G$71,Achievement_finalised!$B$4:$B$71,Projections!$C13,Achievement_finalised!$D$4:$D$71,Projections!$E13,Achievement_finalised!$E$4:$E$71,Projections!$F13) -> 1 | S13: =SUMIFS(Achievement_finalised!$G$4:$G$71,Achievement_finalised!$B$4:$B$71,Projections!$C13,Achievement_finalised!$D$4:$D$71,Projections!$E13,Achievement_finalised!$E$4:$E$71,Projections!$F13) -> 1 | T13: =SUMIFS(Achievement_forecast_ongoing!G$6:G$49822,Achievement_forecast_ongoing!$C$6:$C$49822,Projections!$C13,Achievement_forecast_ongoing!$E$6:$E$49822,Projections!$E13,Achievement_forecast_ongoing!$F$6:$F$49822,Projections!$F13) -> 0 | U13: =SUMIFS(Achievement_forecast_ongoing!H$6:H$49822,Achievement_forecast_ongoing!$C$6:$C$49822,Projections!$C13,Achievement_forecast_ongoing!$E$6:$E$49822,Projections!$E13,Achievement_forecast_ongoing!$F$6:$F$49822,Projections!$F13) -> 22.66794432 | V13: =SUMIFS(Achievement_forecast_ongoing!I$6:I$49822,Achievement_forecast_ongoing!$C$6:$C$49822,Projections!$C13,Achievement_forecast_ongoing!$E$6:$E$49822,Projections!$E13,Achievement_forecast_ongoing!$F$6:$F$49822,Projections!$F13) -> 100.3023956 | W13: =SUMIFS(Achievement_forecast_ongoing!J$6:J$49822,Achievement_forecast_ongoing!$C$6:$C$49822,Projections!$C13,Achievement_forecast_ongoing!$E$6:$E$49822,Projections!$E13,Achievement_forecast_ongoing!$F$6:$F$49822,Projections!$F13) -> 191 | X13: =SUMIFS(Achievement_forecasts_future!G$4:G$71,Achievement_forecasts_future!$B$4:$B$71,Projections!$C13,Achievement_forecasts_future!$D$4:$D$71,Projections!$E13,Achievement_forecasts_future!$E$4:$E$71,Projections!$F13) -> 0 | Y13: =SUMIFS(Achievement_forecasts_future!H$4:H$71,Achievement_forecasts_future!$B$4:$B$71,Projections!$C13,Achievement_forecasts_future!$D$4:$D$71,Projections!$E13,Achievement_forecasts_future!$E$4:$E$71,Projections!$F13) -> 0 | Z13: =SUMIFS(Achievement_forecasts_future!I$4:I$71,Achievement_forecasts_future!$B$4:$B$71,Projections!$C13,Achievement_forecasts_future!$D$4:$D$71,Projections!$E13,Achievement_forecasts_future!$E$4:$E$71,Projections!$F13) -> 0 | AA13: =SUMIFS(Achievement_forecasts_future!J$4:J$71,Achievement_forecasts_future!$B$4:$B$71,Projections!$C13,Achievement_forecasts_future!$D$4:$D$71,Projections!$E13,Achievement_forecasts_future!$E$4:$E$71,Projections!$F13) -> 0
C14: 3 | D14: All | E14: 1S11 | F14: More developed | G14: 7 | H14: 0 | I14: 17.86056514 | J14: 42.85714286 | K14: =O14/$G14*100 -> 157.1428571 | L14: 0 | M14: 1.25023956 | N14: =ROUND(R14+V14+Z14, 0) -> 3 | O14: =ROUND(S14+W14+AA14, 0) -> 11 | P14: =SUMIFS(Achievement_finalised!$G$4:$G$71,Achievement_finalised!$B$4:$B$71,Projections!$C14,Achievement_finalised!$D$4:$D$71,Projections!$E14,Achievement_finalised!$E$4:$E$71,Projections!$F14) -> 0 | Q14: =SUMIFS(Achievement_finalised!$G$4:$G$71,Achievement_finalised!$B$4:$B$71,Projections!$C14,Achievement_finalised!$D$4:$D$71,Projections!$E14,Achievement_finalised!$E$4:$E$71,Projections!$F14) -> 0 | R14: =SUMIFS(Achievement_finalised!$G$4:$G$71,Achievement_finalised!$B$4:$B$71,Projections!$C14,Achievement_finalised!$D$4:$D$71,Projections!$E14,Achievement_finalised!$E$4:$E$71,Projections!$F14) -> 0 | S14: =SUMIFS(Achievement_finalised!$G$4:$G$71,Achievement_finalised!$B$4:$B$71,Projections!$C14,Achievement_finalised!$D$4:$D$71,Projections!$E14,Achievement_finalised!$E$4:$E$71,Projections!$F14) -> 0 | T14: =SUMIFS(Achievement_forecast_ongoing!G$6:G$49822,Achievement_forecast_ongoing!$C$6:$C$49822,Projections!$C14,Achievement_forecast_ongoing!$E$6:$E$49822,Projections!$E14,Achievement_forecast_ongoing!$F$6:$F$49822,Projections!$F14) -> 0 | U14: =SUMIFS(Achievement_forecast_ongoing!H$6:H$49822,Achievement_forecast_ongoing!$C$6:$C$49822,Projections!$C14,Achievement_forecast_ongoing!$E$6:$E$49822,Projections!$E14,Achievement_forecast_ongoing!$F$6:$F$49822,Projections!$F14) -> 1.25023956 | V14: =SUMIFS(Achievement_forecast_ongoing!I$6:I$49822,Achievement_forecast_ongoing!$C$6:$C$49822,Projections!$C14,Achievement_forecast_ongoing!$E$6:$E$49822,Projections!$E14,Achievement_forecast_ongoing!$F$6:$F$49822,Projections!$F14) -> 3.33397216 | W14: =SUMIFS(Achievement_forecast_ongoing!J$6:J$49822,Achievement_forecast_ongoing!$C$6:$C$49822,Projections!$C14,Achievement_forecast_ongoing!$E$6:$E$49822,Projections!$E14,Achievement_forecast_ongoing!$F$6:$F$49822,Projections!$F14) -> 11 | X14: =SUMIFS(Achievement_forecasts_future!G$4:G$71,Achievement_forecasts_future!$B$4:$B$71,Projections!$C14,Achievement_forecasts_future!$D$4:$D$71,Projections!$E14,Achievement_forecasts_future!$E$4:$E$71,Projections!$F14) -> 0 | Y14: =SUMIFS(Achievement_forecasts_future!H$4:H$71,Achievement_forecasts_future!$B$4:$B$71,Projections!$C14,Achievement_forecasts_future!$D$4:$D$71,Projections!$E14,Achievement_forecasts_future!$E$4:$E$71,Projections!$F14) -> 0 | Z14: =SUMIFS(Achievement_forecasts_future!I$4:I$71,Achievement_forecasts_future!$B$4:$B$71,Projections!$C14,Achievement_forecasts_future!$D$4:$D$71,Projections!$E14,Achievement_forecasts_future!$E$4:$E$71,Projections!$F14) -> 0 | AA14: =SUMIFS(Achievement_forecasts_future!J$4:J$71,Achievement_forecasts_future!$B$4:$B$71,Projections!$C14,Achievement_forecasts_future!$D$4:$D$71,Projections!$E14,Achievement_forecasts_future!$E$4:$E$71,Projections!$F14) -> 0
C15: 3 | D15: All | E15: CO31 | F15: Less developed | G15: 33385 | H15: 21.20113824 | I15: 49.2056056 | J15: 61.94455494 | K15: 63.01435205 | L15: 7078 | M15: 16427.29143 | N15: 20680.18967 | O15: 21037.34143 | P15: =SUMIFS(Achievement_finalised!$G$4:$G$71,Achievement_finalised!$B$4:$B$71,Projections!$C15,Achievement_finalised!$D$4:$D$71,Projections!$E15,Achievement_finalised!$E$4:$E$71,Projections!$F15) -> 7078 | Q15: =SUMIFS(Achievement_finalised!$G$4:$G$71,Achievement_finalised!$B$4:$B$71,Projections!$C15,Achievement_finalised!$D$4:$D$71,Projections!$E15,Achievement_finalised!$E$4:$E$71,Projections!$F15) -> 7078 | R15: =SUMIFS(Achievement_finalised!$G$4:$G$71,Achievement_finalised!$B$4:$B$71,Projections!$C15,Achievement_finalised!$D$4:$D$71,Projections!$E15,Achievement_finalised!$E$4:$E$71,Projections!$F15) -> 7078 | S15: =SUMIFS(Achievement_finalised!$G$4:$G$71,Achievement_finalised!$B$4:$B$71,Projections!$C15,Achievement_finalised!$D$4:$D$71,Projections!$E15,Achievement_finalised!$E$4:$E$71,Projections!$F15) -> 7078 | T15: =SUMIFS(Achievement_forecast_ongoing!G$6:G$49822,Achievement_forecast_ongoing!$C$6:$C$49822,Projections!$C15,Achievement_forecast_ongoing!$E$6:$E$49822,Projections!$E15,Achievement_forecast_ongoing!$F$6:$F$49822,Projections!$F15) -> 0 | U15: =SUMIFS(Achievement_forecast_ongoing!H$6:H$49822,Achievement_forecast_ongoing!$C$6:$C$49822,Projections!$C15,Achievement_forecast_ongoing!$E$6:$E$49822,Projections!$E15,Achievement_forecast_ongoing!$F$6:$F$49822,Projections!$F15) -> 9349.291429 | V15: =SUMIFS(Achievement_forecast_ongoing!I$6:I$49822,Achievement_forecast_ongoing!$C$6:$C$49822,Projections!$C15,Achievement_forecast_ongoing!$E$6:$E$49822,Projections!$E15,Achievement_forecast_ongoing!$F$6:$F$49822,Projections!$F15) -> 13602.18967 | W15: =SUMIFS(Achievement_forecast_ongoing!J$6:J$49822,Achievement_forecast_ongoing!$C$6:$C$49822,Projections!$C15,Achievement_forecast_ongoing!$E$6:$E$49822,Projections!$E15,Achievement_forecast_ongoing!$F$6:$F$49822,Projections!$F15) -> 13959.34143 | X15: =SUMIFS(Achievement_forecasts_future!G$4:G$71,Achievement_forecasts_future!$B$4:$B$71,Projections!$C15,Achievement_forecasts_future!$D$4:$D$71,Projections!$E15,Achievement_forecasts_future!$E$4:$E$71,Projections!$F15) -> 0 | Y15: =SUMIFS(Achievement_forecasts_future!H$4:H$71,Achievement_forecasts_future!$B$4:$B$71,Projections!$C15,Achievement_forecasts_future!$D$4:$D$71,Projections!$E15,Achievement_forecasts_future!$E$4:$E$71,Projections!$F15) -> 0 | Z15: =SUMIFS(Achievement_forecasts_future!I$4:I$71,Achievement_forecasts_future!$B$4:$B$71,Projections!$C15,Achievement_forecasts_future!$D$4:$D$71,Projections!$E15,Achievement_forecasts_future!$E$4:$E$71,Projections!$F15) -> 0 | AA15: =SUMIFS(Achievement_forecasts_future!J$4:J$71,Achievement_forecasts_future!$B$4:$B$71,Projections!$C15,Achievement_forecasts_future!$D$4:$D$71,Projections!$E15,Achievement_forecasts_future!$E$4:$E$71,Projections!$F15) -> 0
C16: 3 | D16: All | E16: CO31 | F16: More developed | G16: 17621 | H16: 261.1770047 | I16: 300.6644662 | J16: 300.6644662 | K16: 300.6644662 | L16: 46022 | M16: 52980.08558 | N16: 52980.08558 | O16: 52980.08558 | P16: =SUMIFS(Achievement_finalised!$G$4:$G$71,Achievement_finalised!$B$4:$B$71,Projections!$C16,Achievement_finalised!$D$4:$D$71,Projections!$E16,Achievement_finalised!$E$4:$E$71,Projections!$F16) -> 46022 | Q16: =SUMIFS(Achievement_finalised!$G$4:$G$71,Achievement_finalised!$B$4:$B$71,Projections!$C16,Achievement_finalised!$D$4:$D$71,Projections!$E16,Achievement_finalised!$E$4:$E$71,Projections!$F16) -> 46022 | R16: =SUMIFS(Achievement_finalised!$G$4:$G$71,Achievement_finalised!$B$4:$B$71,Projections!$C16,Achievement_finalised!$D$4:$D$71,Projections!$E16,Achievement_finalised!$E$4:$E$71,Projections!$F16) -> 46022 | S16: =SUMIFS(Achievement_finalised!$G$4:$G$71,Achievement_finalised!$B$4:$B$71,Projections!$C16,Achievement_finalised!$D$4:$D$71,Projections!$E16,Achievement_finalised!$E$4:$E$71,Projections!$F16) -> 46022 | T16: =SUMIFS(Achievement_forecast_ongoing!G$6:G$49822,Achievement_forecast_ongoing!$C$6:$C$49822,Projections!$C16,Achievement_forecast_ongoing!$E$6:$E$49822,Projections!$E16,Achievement_forecast_ongoing!$F$6:$F$49822,Projections!$F16) -> 0 | U16: =SUMIFS(Achievement_forecast_ongoing!H$6:H$49822,Achievement_forecast_ongoing!$C$6:$C$49822,Projections!$C16,Achievement_forecast_ongoing!$E$6:$E$49822,Projections!$E16,Achievement_forecast_ongoing!$F$6:$F$49822,Projections!$F16) -> 6958.085584 | V16: =SUMIFS(Achievement_forecast_ongoing!I$6:I$49822,Achievement_forecast_ongoing!$C$6:$C$49822,Projections!$C16,Achievement_forecast_ongoing!$E$6:$E$49822,Projections!$E16,Achievement_forecast_ongoing!$F$6:$F$49822,Projections!$F16) -> 6958.085584 | W16: =SUMIFS(Achievement_forecast_ongoing!J$6:J$49822,Achievement_forecast_ongoing!$C$6:$C$49822,Projections!$C16,Achievement_forecast_ongoing!$E$6:$E$49822,Projections!$E16,Achievement_forecast_ongoing!$F$6:$F$49822,Projections!$F16) -> 6958.085584 | X16: =SUMIFS(Achievement_forecasts_future!G$4:G$71,Achievement_forecasts_future!$B$4:$B$71,Projections!$C16,Achievement_forecasts_future!$D$4:$D$71,Projections!$E16,Achievement_forecasts_future!$E$4:$E$71,Projections!$F16) -> 0 | Y16: =SUMIFS(Achievement_forecasts_future!H$4:H$71,Achievement_forecasts_future!$B$4:$B$71,Projections!$C16,Achievement_forecasts_future!$D$4:$D$71,Projections!$E16,Achievement_forecasts_future!$E$4:$E$71,Projections!$F16) -> 0 | Z16: =SUMIFS(Achievement_forecasts_future!I$4:I$71,Achievement_forecasts_future!$B$4:$B$71,Projections!$C16,Achievement_forecasts_future!$D$4:$D$71,Projections!$E16,Achievement_forecasts_future!$E$4:$E$71,Projections!$F16) -> 0 | AA16: =SUMIFS(Achievement_forecasts_future!J$4:J$71,Achievement_forecasts_future!$B$4:$B$71,Projections!$C16,Achievement_forecasts_future!$D$4:$D$71,Projections!$E16,Achievement_forecasts_future!$E$4:$E$71,Projections!$F16) -> 0
C17: 4 | D17: All | E17: 1F | F17: All | G17: =1303647061*G52 -> 6313823446 | H17: 15.14840425 | I17: 127.2666359 | J17: 141.3563977 | K17: 146.1572429 | L17: 956443499.1 | M17: 8035390697 | N17: 8924993378 | O17: 9228110272 | P17: =SUMIFS(Achievement_finalised!$G$4:$G$71,Achievement_finalised!$B$4:$B$71,Projections!$C17,Achievement_finalised!$D$4:$D$71,Projections!$E17,Achievement_finalised!$E$4:$E$71,Projections!$F17) -> 118254069.2 | Q17: =SUMIFS(Achievement_finalised!$G$4:$G$71,Achievement_finalised!$B$4:$B$71,Projections!$C17,Achievement_finalised!$D$4:$D$71,Projections!$E17,Achievement_finalised!$E$4:$E$71,Projections!$F17) -> 118254069.2 | R17: =SUMIFS(Achievement_finalised!$G$4:$G$71,Achievement_finalised!$B$4:$B$71,Projections!$C17,Achievement_finalised!$D$4:$D$71,Projections!$E17,Achievement_finalised!$E$4:$E$71,Projections!$F17) -> 118254069.2 | S17: =SUMIFS(Achievement_finalised!$G$4:$G$71,Achievement_finalised!$B$4:$B$71,Projections!$C17,Achievement_finalised!$D$4:$D$71,Projections!$E17,Achievement_finalised!$E$4:$E$71,Projections!$F17) -> 118254069.2 | T17: =SUMIFS(Achievement_forecast_ongoing!G$6:G$49822,Achievement_forecast_ongoing!$C$6:$C$49822,Projections!$C17,Achievement_forecast_ongoing!$E$6:$E$49822,Projections!$E17,Achievement_forecast_ongoing!$F$6:$F$49822,Projections!$F17) -> 838189429.9 | U17: =SUMIFS(Achievement_forecast_ongoing!H$6:H$49822,Achievement_forecast_ongoing!$C$6:$C$49822,Projections!$C17,Achievement_forecast_ongoing!$E$6:$E$49822,Projections!$E17,Achievement_forecast_ongoing!$F$6:$F$49822,Projections!$F17) -> 7917136628 | V17: =SUMIFS(Achievement_forecast_ongoing!I$6:I$49822,Achievement_forecast_ongoing!$C$6:$C$49822,Projections!$C17,Achievement_forecast_ongoing!$E$6:$E$49822,Projections!$E17,Achievement_forecast_ongoing!$F$6:$F$49822,Projections!$F17) -> 8503770070 | W17: =SUMIFS(Achievement_forecast_ongoing!J$6:J$49822,Achievement_forecast_ongoing!$C$6:$C$49822,Projections!$C17,Achievement_forecast_ongoing!$E$6:$E$49822,Projections!$E17,Achievement_forecast_ongoing!$F$6:$F$49822,Projections!$F17) -> 8624726463 | X17: =SUMIFS(Achievement_forecasts_future!G$4:G$71,Achievement_forecasts_future!$B$4:$B$71,Projections!$C17,Achievement_forecasts_future!$D$4:$D$71,Projections!$E17,Achievement_forecasts_future!$E$4:$E$71,Projections!$F17) -> 0 | Y17: =SUMIFS(Achievement_forecasts_future!H$4:H$71,Achievement_forecasts_future!$B$4:$B$71,Projections!$C17,Achievement_forecasts_future!$D$4:$D$71,Projections!$E17,Achievement_forecasts_future!$E$4:$E$71,Projections!$F17) -> 0 | Z17: =SUMIFS(Achievement_forecasts_future!I$4:I$71,Achievement_forecasts_future!$B$4:$B$71,Projections!$C17,Achievement_forecasts_future!$D$4:$D$71,Projections!$E17,Achievement_forecasts_future!$E$4:$E$71,Projections!$F17) -> 302969238.7 | AA17: =SUMIFS(Achievement_forecasts_future!J$4:J$71,Achievement_forecasts_future!$B$4:$B$71,Projections!$C17,Achievement_forecasts_future!$D$4:$D$71,Projections!$E17,Achievement_forecasts_future!$E$4:$E$71,Projections!$F17) -> 485129740
C18: 4 | D18: All | E18: 1S11 | F18: All | G18: 50 | H18: 14 | I18: 45.39447862 | J18: 154 | K18: 234 | L18: 7 | M18: 22.69723931 | N18: =ROUND(R18+V18+Z18, 0) -> 77 | O18: =ROUND(S18+W18+AA18, 0) -> 117 | P18: =SUMIFS(Achievement_finalised!$G$4:$G$71,Achievement_finalised!$B$4:$B$71,Projections!$C18,Achievement_finalised!$D$4:$D$71,Projections!$E18,Achievement_finalised!$E$4:$E$71,Projections!$F18) -> 7 | Q18: =SUMIFS(Achievement_finalised!$G$4:$G$71,Achievement_finalised!$B$4:$B$71,Projections!$C18,Achievement_finalised!$D$4:$D$71,Projections!$E18,Achievement_finalised!$E$4:$E$71,Projections!$F18) -> 7 | R18: =SUMIFS(Achievement_finalised!$G$4:$G$71,Achievement_finalised!$B$4:$B$71,Projections!$C18,Achievement_finalised!$D$4:$D$71,Projections!$E18,Achievement_finalised!$E$4:$E$71,Projections!$F18) -> 7 | S18: =SUMIFS(Achievement_finalised!$G$4:$G$71,Achievement_finalised!$B$4:$B$71,Projections!$C18,Achievement_finalised!$D$4:$D$71,Projections!$E18,Achievement_finalised!$E$4:$E$71,Projections!$F18) -> 7 | T18: =SUMIFS(Achievement_forecast_ongoing!G$6:G$49822,Achievement_forecast_ongoing!$C$6:$C$49822,Projections!$C18,Achievement_forecast_ongoing!$E$6:$E$49822,Projections!$E18,Achievement_forecast_ongoing!$F$6:$F$49822,Projections!$F18) -> 0 | U18: =SUMIFS(Achievement_forecast_ongoing!H$6:H$49822,Achievement_forecast_ongoing!$C$6:$C$49822,Projections!$C18,Achievement_forecast_ongoing!$E$6:$E$49822,Projections!$E18,Achievement_forecast_ongoing!$F$6:$F$49822,Projections!$F18) -> 15.69723931 | V18: =SUMIFS(Achievement_forecast_ongoing!I$6:I$49822,Achievement_forecast_ongoing!$C$6:$C$49822,Projections!$C18,Achievement_forecast_ongoing!$E$6:$E$49822,Projections!$E18,Achievement_forecast_ongoing!$F$6:$F$49822,Projections!$F18) -> 70.16852855 | W18: =SUMIFS(Achievement_forecast_ongoing!J$6:J$49822,Achievement_forecast_ongoing!$C$6:$C$49822,Projections!$C18,Achievement_forecast_ongoing!$E$6:$E$49822,Projections!$E18,Achievement_forecast_ongoing!$F$6:$F$49822,Projections!$F18) -> 110.2228983 | X18: =SUMIFS(Achievement_forecasts_future!G$4:G$71,Achievement_forecasts_future!$B$4:$B$71,Projections!$C18,Achievement_forecasts_future!$D$4:$D$71,Projections!$E18,Achievement_forecasts_future!$E$4:$E$71,Projections!$F18) -> 0 | Y18: =SUMIFS(Achievement_forecasts_future!H$4:H$71,Achievement_forecasts_future!$B$4:$B$71,Projections!$C18,Achievement_forecasts_future!$D$4:$D$71,Projections!$E18,Achievement_forecasts_future!$E$4:$E$71,Projections!$F18) -> 0 | Z18: =SUMIFS(Achievement_forecasts_future!I$4:I$71,Achievement_forecasts_future!$B$4:$B$71,Projections!$C18,Achievement_forecasts_future!$D$4:$D$71,Projections!$E18,Achievement_forecasts_future!$E$4:$E$71,Projections!$F18) -> 0 | AA18: =SUMIFS(Achievement_forecasts_future!J$4:J$71,Achievement_forecasts_future!$B$4:$B$71,Projections!$C18,Achievement_forecasts_future!$D$4:$D$71,Projections!$E18,Achievement_forecasts_future!$E$4:$E$71,Projections!$F18) -> 0
C19: 4 | D19: All | E19: CO15 | F19: All | G19: 50 | H19: 8.64 | I19: 26.79597889 | J19: 4812 | K19: 7432 | L19: =P19+T19+X19 -> 4.32 | M19: =Q19+U19+Y19 -> 13.39798944 | N19: =ROUND(R19+V19+Z19, 0) -> 2406 | O19: =ROUND(S19+W19+AA19, 0) -> 3716 | P19: =SUMIFS(Achievement_finalised!$G$4:$G$71,Achievement_finalised!$B$4:$B$71,Projections!$C19,Achievement_finalised!$D$4:$D$71,Projections!$E19,Achievement_finalised!$E$4:$E$71,Projections!$F19) -> 4.32 | Q19: =SUMIFS(Achievement_finalised!$G$4:$G$71,Achievement_finalised!$B$4:$B$71,Projections!$C19,Achievement_finalised!$D$4:$D$71,Projections!$E19,Achievement_finalised!$E$4:$E$71,Projections!$F19) -> 4.32 | R19: =SUMIFS(Achievement_finalised!$G$4:$G$71,Achievement_finalised!$B$4:$B$71,Projections!$C19,Achievement_finalised!$D$4:$D$71,Projections!$E19,Achievement_finalised!$E$4:$E$71,Projections!$F19) -> 4.32 | S19: =SUMIFS(Achievement_finalised!$G$4:$G$71,Achievement_finalised!$B$4:$B$71,Projections!$C19,Achievement_finalised!$D$4:$D$71,Projections!$E19,Achievement_finalised!$E$4:$E$71,Projections!$F19) -> 4.32 | T19: =SUMIFS(Achievement_forecast_ongoing!G$6:G$49822,Achievement_forecast_ongoing!$C$6:$C$49822,Projections!$C19,Achievement_forecast_ongoing!$E$6:$E$49822,Projections!$E19,Achievement_forecast_ongoing!$F$6:$F$49822,Projections!$F19) -> 0 | U19: =SUMIFS(Achievement_forecast_ongoing!H$6:H$49822,Achievement_forecast_ongoing!$C$6:$C$49822,Projections!$C19,Achievement_forecast_ongoing!$E$6:$E$49822,Projections!$E19,Achievement_forecast_ongoing!$F$6:$F$49822,Projections!$F19) -> 9.077989445 | V19: =SUMIFS(Achievement_forecast_ongoing!I$6:I$49822,Achievement_forecast_ongoing!$C$6:$C$49822,Projections!$C19,Achievement_forecast_ongoing!$E$6:$E$49822,Projections!$E19,Achievement_forecast_ongoing!$F$6:$F$49822,Projections!$F19) -> 2401.833968 | W19: =SUMIFS(Achievement_forecast_ongoing!J$6:J$49822,Achievement_forecast_ongoing!$C$6:$C$49822,Projections!$C19,Achievement_forecast_ongoing!$E$6:$E$49822,Projections!$E19,Achievement_forecast_ongoing!$F$6:$F$49822,Projections!$F19) -> 3712.143072 | X19: =SUMIFS(Achievement_forecasts_future!G$4:G$71,Achievement_forecasts_future!$B$4:$B$71,Projections!$C19,Achievement_forecasts_future!$D$4:$D$71,Projections!$E19,Achievement_forecasts_future!$E$4:$E$71,Projections!$F19) -> 0 | Y19: =SUMIFS(Achievement_forecasts_future!H$4:H$71,Achievement_forecasts_future!$B$4:$B$71,Projections!$C19,Achievement_forecasts_future!$D$4:$D$71,Projections!$E19,Achievement_forecasts_future!$E$4:$E$71,Projections!$F19) -> 0 | Z19: =SUMIFS(Achievement_forecasts_future!I$4:I$71,Achievement_forecasts_future!$B$4:$B$71,Projections!$C19,Achievement_forecasts_future!$D$4:$D$71,Projections!$E19,Achievement_forecasts_future!$E$4:$E$71,Projections!$F19) -> 0 | AA19: =SUMIFS(Achievement_forecasts_future!J$4:J$71,Achievement_forecasts_future!$B$4:$B$71,Projections!$C19,Achievement_forecasts_future!$D$4:$D$71,Projections!$E19,Achievement_forecasts_future!$E$4:$E$71,Projections!$F19) -> 0
C20: 5 | D20: All | E20: 1F | F20: Less developed | G20: =422291397*G52 -> 2045241694 | H20: 43.89324648 | I20: 102.6202425 | J20: 104.737137 | K20: 105.3239834 | L20: 897722977.8 | M20: 2098831986 | N20: =R20+V20+Z20 -> 2142127594 | O20: =S20+W20+AA20 -> 2154130022 | P20: =SUMIFS(Achievement_finalised!$G$4:$G$71,Achievement_finalised!$B$4:$B$71,Projections!$C20,Achievement_finalised!$D$4:$D$71,Projections!$E20,Achievement_finalised!$E$4:$E$71,Projections!$F20) -> 243666907.6 | Q20: =SUMIFS(Achievement_finalised!$G$4:$G$71,Achievement_finalised!$B$4:$B$71,Projections!$C20,Achievement_finalised!$D$4:$D$71,Projections!$E20,Achievement_finalised!$E$4:$E$71,Projections!$F20) -> 243666907.6 | R20: =SUMIFS(Achievement_finalised!$G$4:$G$71,Achievement_finalised!$B$4:$B$71,Projections!$C20,Achievement_finalised!$D$4:$D$71,Projections!$E20,Achievement_finalised!$E$4:$E$71,Projections!$F20) -> 243666907.6 | S20: =SUMIFS(Achievement_finalised!$G$4:$G$71,Achievement_finalised!$B$4:$B$71,Projections!$C20,Achievement_finalised!$D$4:$D$71,Projections!$E20,Achievement_finalised!$E$4:$E$71,Projections!$F20) -> 243666907.6 | T20: =SUMIFS(Achievement_forecast_ongoing!G$6:G$49822,Achievement_forecast_ongoing!$C$6:$C$49822,Projections!$C20,Achievement_forecast_ongoing!$E$6:$E$49822,Projections!$E20,Achievement_forecast_ongoing!$F$6:$F$49822,Projections!$F20) -> 654056070.2 | U20: =SUMIFS(Achievement_forecast_ongoing!H$6:H$49822,Achievement_forecast_ongoing!$C$6:$C$49822,Projections!$C20,Achievement_forecast_ongoing!$E$6:$E$49822,Projections!$E20,Achievement_forecast_ongoing!$F$6:$F$49822,Projections!$F20) -> 1855165078 | V20: =SUMIFS(Achievement_forecast_ongoing!I$6:I$49822,Achievement_forecast_ongoing!$C$6:$C$49822,Projections!$C20,Achievement_forecast_ongoing!$E$6:$E$49822,Projections!$E20,Achievement_forecast_ongoing!$F$6:$F$49822,Projections!$F20) -> 1898460686 | W20: =SUMIFS(Achievement_forecast_ongoing!J$6:J$49822,Achievement_forecast_ongoing!$C$6:$C$49822,Projections!$C20,Achievement_forecast_ongoing!$E$6:$E$49822,Projections!$E20,Achievement_forecast_ongoing!$F$6:$F$49822,Projections!$F20) -> 1910463115 | X20: =SUMIFS(Achievement_forecasts_future!G$4:G$71,Achievement_forecasts_future!$B$4:$B$71,Projections!$C20,Achievement_forecasts_future!$D$4:$D$71,Projections!$E20,Achievement_forecasts_future!$E$4:$E$71,Projections!$F20) -> 0 | Y20: =SUMIFS(Achievement_forecasts_future!H$4:H$71,Achievement_forecasts_future!$B$4:$B$71,Projections!$C20,Achievement_forecasts_future!$D$4:$D$71,Projections!$E20,Achievement_forecasts_future!$E$4:$E$71,Projections!$F20) -> 0 | Z20: =SUMIFS(Achievement_forecasts_future!I$4:I$71,Achievement_forecasts_future!$B$4:$B$71,Projections!$C20,Achievement_forecasts_future!$D$4:$D$71,Projections!$E20,Achievement_forecasts_future!$E$4:$E$71,Projections!$F20) -> 0 | AA20: =SUMIFS(Achievement_forecasts_future!J$4:J$71,Achievement_forecasts_future!$B$4:$B$71,Projections!$C20,Achievement_forecasts_future!$D$4:$D$71,Projections!$E20,Achievement_forecasts_future!$E$4:$E$71,Projections!$F20) -> 0
C21: 5 | D21: All | E21: 1F | F21: More developed | G21: =40771278*G52 -> 197463453.6 | H21: 15.55337988 | I21: 75.37867672 | J21: 77.63943806 | K21: 78.36077999 | L21: 30712241.06 | M21: 148845338.3 | N21: 153309515.8 | O21: 154733902.4 | P21: =SUMIFS(Achievement_finalised!$G$4:$G$71,Achievement_finalised!$B$4:$B$71,Projections!$C21,Achievement_finalised!$D$4:$D$71,Projections!$E21,Achievement_finalised!$E$4:$E$71,Projections!$F21) -> 7551848.17 | Q21: =SUMIFS(Achievement_finalised!$G$4:$G$71,Achievement_finalised!$B$4:$B$71,Projections!$C21,Achievement_finalised!$D$4:$D$71,Projections!$E21,Achievement_finalised!$E$4:$E$71,Projections!$F21) -> 7551848.17 | R21: =SUMIFS(Achievement_finalised!$G$4:$G$71,Achievement_finalised!$B$4:$B$71,Projections!$C21,Achievement_finalised!$D$4:$D$71,Projections!$E21,Achievement_finalised!$E$4:$E$71,Projections!$F21) -> 7551848.17 | S21: =SUMIFS(Achievement_finalised!$G$4:$G$71,Achievement_finalised!$B$4:$B$71,Projections!$C21,Achievement_finalised!$D$4:$D$71,Projections!$E21,Achievement_finalised!$E$4:$E$71,Projections!$F21) -> 7551848.17 | T21: =SUMIFS(Achievement_forecast_ongoing!G$6:G$49822,Achievement_forecast_ongoing!$C$6:$C$49822,Projections!$C21,Achievement_forecast_ongoing!$E$6:$E$49822,Projections!$E21,Achievement_forecast_ongoing!$F$6:$F$49822,Projections!$F21) -> 23160392.89 | U21: =SUMIFS(Achievement_forecast_ongoing!H$6:H$49822,Achievement_forecast_ongoing!$C$6:$C$49822,Projections!$C21,Achievement_forecast_ongoing!$E$6:$E$49822,Projections!$E21,Achievement_forecast_ongoing!$F$6:$F$49822,Projections!$F21) -> 141293490.2 | V21: =SUMIFS(Achievement_forecast_ongoing!I$6:I$49822,Achievement_forecast_ongoing!$C$6:$C$49822,Projections!$C21,Achievement_forecast_ongoing!$E$6:$E$49822,Projections!$E21,Achievement_forecast_ongoing!$F$6:$F$49822,Projections!$F21) -> 145757667.6 | W21: =SUMIFS(Achievement_forecast_ongoing!J$6:J$49822,Achievement_forecast_ongoing!$C$6:$C$49822,Projections!$C21,Achievement_forecast_ongoing!$E$6:$E$49822,Projections!$E21,Achievement_forecast_ongoing!$F$6:$F$49822,Projections!$F21) -> 147182054.3 | X21: =SUMIFS(Achievement_forecasts_future!G$4:G$71,Achievement_forecasts_future!$B$4:$B$71,Projections!$C21,Achievement_forecasts_future!$D$4:$D$71,Projections!$E21,Achievement_forecasts_future!$E$4:$E$71,Projections!$F21) -> 0 | Y21: =SUMIFS(Achievement_forecasts_future!H$4:H$71,Achievement_forecasts_future!$B$4:$B$71,Projections!$C21,Achievement_forecasts_future!$D$4:$D$71,Projections!$E21,Achievement_forecasts_future!$E$4:$E$71,Projections!$F21) -> 0 | Z21: =SUMIFS(Achievement_forecasts_future!I$4:I$71,Achievement_forecasts_future!$B$4:$B$71,Projections!$C21,Achievement_forecasts_future!$D$4:$D$71,Projections!$E21,Achievement_forecasts_future!$E$4:$E$71,Projections!$F21) -> 0 | AA21: =SUMIFS(Achievement_forecasts_future!J$4:J$71,Achievement_forecasts_future!$B$4:$B$71,Projections!$C21,Achievement_forecasts_future!$D$4:$D$71,Projections!$E21,Achievement_forecasts_future!$E$4:$E$71,Projections!$F21) -> 0
C22: 5 | D22: All | E22: 1S23 | F22: Less developed | G22: 157 | H22: 19.10828025 | I22: 39.0165535 | J22: 52.86624204 | K22: 117.1974522 | L22: 30 | M22: 61.255989 | N22: =ROUND(R22+V22+Z22, 0) -> 83 | O22: =ROUND(S22+W22+AA22, 0) -> 184 | P22: =SUMIFS(Achievement_finalised!$G$4:$G$71,Achievement_finalised!$B$4:$B$71,Projections!$C22,Achievement_finalised!$D$4:$D$71,Projections!$E22,Achievement_finalised!$E$4:$E$71,Projections!$F22) -> 30 | Q22: =SUMIFS(Achievement_finalised!$G$4:$G$71,Achievement_finalised!$B$4:$B$71,Projections!$C22,Achievement_finalised!$D$4:$D$71,Projections!$E22,Achievement_finalised!$E$4:$E$71,Projections!$F22) -> 30 | R22: =SUMIFS(Achievement_finalised!$G$4:$G$71,Achievement_finalised!$B$4:$B$71,Projections!$C22,Achievement_finalised!$D$4:$D$71,Projections!$E22,Achievement_finalised!$E$4:$E$71,Projections!$F22) -> 30 | S22: =SUMIFS(Achievement_finalised!$G$4:$G$71,Achievement_finalised!$B$4:$B$71,Projections!$C22,Achievement_finalised!$D$4:$D$71,Projections!$E22,Achievement_finalised!$E$4:$E$71,Projections!$F22) -> 30 | T22: =SUMIFS(Achievement_forecast_ongoing!G$6:G$49822,Achievement_forecast_ongoing!$C$6:$C$49822,Projections!$C22,Achievement_forecast_ongoing!$E$6:$E$49822,Projections!$E22,Achievement_forecast_ongoing!$F$6:$F$49822,Projections!$F22) -> 0 | U22: =SUMIFS(Achievement_forecast_ongoing!H$6:H$49822,Achievement_forecast_ongoing!$C$6:$C$49822,Projections!$C22,Achievement_forecast_ongoing!$E$6:$E$49822,Projections!$E22,Achievement_forecast_ongoing!$F$6:$F$49822,Projections!$F22) -> 31.255989 | V22: =SUMIFS(Achievement_forecast_ongoing!I$6:I$49822,Achievement_forecast_ongoing!$C$6:$C$49822,Projections!$C22,Achievement_forecast_ongoing!$E$6:$E$49822,Projections!$E22,Achievement_forecast_ongoing!$F$6:$F$49822,Projections!$F22) -> 52.51006152 | W22: =SUMIFS(Achievement_forecast_ongoing!J$6:J$49822,Achievement_forecast_ongoing!$C$6:$C$49822,Projections!$C22,Achievement_forecast_ongoing!$E$6:$E$49822,Projections!$E22,Achievement_forecast_ongoing!$F$6:$F$49822,Projections!$F22) -> 154.3349304 | X22: =SUMIFS(Achievement_forecasts_future!G$4:G$71,Achievement_forecasts_future!$B$4:$B$71,Projections!$C22,Achievement_forecasts_future!$D$4:$D$71,Projections!$E22,Achievement_forecasts_future!$E$4:$E$71,Projections!$F22) -> 0 | Y22: =SUMIFS(Achievement_forecasts_future!H$4:H$71,Achievement_forecasts_future!$B$4:$B$71,Projections!$C22,Achievement_forecasts_future!$D$4:$D$71,Projections!$E22,Achievement_forecasts_future!$E$4:$E$71,Projections!$F22) -> 0 | Z22: =SUMIFS(Achievement_forecasts_future!I$4:I$71,Achievement_forecasts_future!$B$4:$B$71,Projections!$C22,Achievement_forecasts_future!$D$4:$D$71,Projections!$E22,Achievement_forecasts_future!$E$4:$E$71,Projections!$F22) -> 0 | AA22: =SUMIFS(Achievement_forecasts_future!J$4:J$71,Achievement_forecasts_future!$B$4:$B$71,Projections!$C22,Achievement_forecasts_future!$D$4:$D$71,Projections!$E22,Achievement_forecasts_future!$E$4:$E$71,Projections!$F22) -> 0
C23: 5 | D23: All | E23: 1S23 | F23: More developed | G23: 7 | H23: 0 | I23: 5.953521714 | J23: 14.28571429 | K23: 142.8571429 | L23: 0 | M23: 0.41674652 | N23: =ROUND(R23+V23+Z23, 0) -> 1 | O23: =ROUND(S23+W23+AA23, 0) -> 10 | P23: =SUMIFS(Achievement_finalised!$G$4:$G$71,Achievement_finalised!$B$4:$B$71,Projections!$C23,Achievement_finalised!$D$4:$D$71,Projections!$E23,Achievement_finalised!$E$4:$E$71,Projections!$F23) -> 0 | Q23: =SUMIFS(Achievement_finalised!$G$4:$G$71,Achievement_finalised!$B$4:$B$71,Projections!$C23,Achievement_finalised!$D$4:$D$71,Projections!$E23,Achievement_finalised!$E$4:$E$71,Projections!$F23) -> 0 | R23: =SUMIFS(Achievement_finalised!$G$4:$G$71,Achievement_finalised!$B$4:$B$71,Projections!$C23,Achievement_finalised!$D$4:$D$71,Projections!$E23,Achievement_finalised!$E$4:$E$71,Projections!$F23) -> 0 | S23: =SUMIFS(Achievement_finalised!$G$4:$G$71,Achievement_finalised!$B$4:$B$71,Projections!$C23,Achievement_finalised!$D$4:$D$71,Projections!$E23,Achievement_finalised!$E$4:$E$71,Projections!$F23) -> 0 | T23: =SUMIFS(Achievement_forecast_ongoing!G$6:G$49822,Achievement_forecast_ongoing!$C$6:$C$49822,Projections!$C23,Achievement_forecast_ongoing!$E$6:$E$49822,Projections!$E23,Achievement_forecast_ongoing!$F$6:$F$49822,Projections!$F23) -> 0 | U23: =SUMIFS(Achievement_forecast_ongoing!H$6:H$49822,Achievement_forecast_ongoing!$C$6:$C$49822,Projections!$C23,Achievement_forecast_ongoing!$E$6:$E$49822,Projections!$E23,Achievement_forecast_ongoing!$F$6:$F$49822,Projections!$F23) -> 0.41674652 | V23: =SUMIFS(Achievement_forecast_ongoing!I$6:I$49822,Achievement_forecast_ongoing!$C$6:$C$49822,Projections!$C23,Achievement_forecast_ongoing!$E$6:$E$49822,Projections!$E23,Achievement_forecast_ongoing!$F$6:$F$49822,Projections!$F23) -> 0.83349304 | W23: =SUMIFS(Achievement_forecast_ongoing!J$6:J$49822,Achievement_forecast_ongoing!$C$6:$C$49822,Projections!$C23,Achievement_forecast_ongoing!$E$6:$E$49822,Projections!$E23,Achievement_forecast_ongoing!$F$6:$F$49822,Projections!$F23) -> 9.66698608 | X23: =SUMIFS(Achievement_forecasts_future!G$4:G$71,Achievement_forecasts_future!$B$4:$B$71,Projections!$C23,Achievement_forecasts_future!$D$4:$D$71,Projections!$E23,Achievement_forecasts_future!$E$4:$E$71,Projections!$F23) -> 0 | Y23: =SUMIFS(Achievement_forecasts_future!H$4:H$71,Achievement_forecasts_future!$B$4:$B$71,Projections!$C23,Achievement_forecasts_future!$D$4:$D$71,Projections!$E23,Achievement_forecasts_future!$E$4:$E$71,Projections!$F23) -> 0 | Z23: =SUMIFS(Achievement_forecasts_future!I$4:I$71,Achievement_forecasts_future!$B$4:$B$71,Projections!$C23,Achievement_forecasts_future!$D$4:$D$71,Projections!$E23,Achievement_forecasts_future!$E$4:$E$71,Projections!$F23) -> 0 | AA23: =SUMIFS(Achievement_forecasts_future!J$4:J$71,Achievement_forecasts_future!$B$4:$B$71,Projections!$C23,Achievement_forecasts_future!$D$4:$D$71,Projections!$E23,Achievement_forecasts_future!$E$4:$E$71,Projections!$F23) -> 0
C24: 6 | D24: All | E24: 1F | F24: Less developed | G24: =961350678*G52 -> 4656013604 | H24: 30.77102745 | I24: 123.2131989 | J24: 126.4507547 | K24: 127.1025463 | L24: 1432703224 | M24: 5736823302 | N24: 5887564340 | O24: 5917911846 | P24: =SUMIFS(Achievement_finalised!$G$4:$G$71,Achievement_finalised!$B$4:$B$71,Projections!$C24,Achievement_finalised!$D$4:$D$71,Projections!$E24,Achievement_finalised!$E$4:$E$71,Projections!$F24) -> 415222018.1 | Q24: =SUMIFS(Achievement_finalised!$G$4:$G$71,Achievement_finalised!$B$4:$B$71,Projections!$C24,Achievement_finalised!$D$4:$D$71,Projections!$E24,Achievement_finalised!$E$4:$E$71,Projections!$F24) -> 415222018.1 | R24: =SUMIFS(Achievement_finalised!$G$4:$G$71,Achievement_finalised!$B$4:$B$71,Projections!$C24,Achievement_finalised!$D$4:$D$71,Projections!$E24,Achievement_finalised!$E$4:$E$71,Projections!$F24) -> 415222018.1 | S24: =SUMIFS(Achievement_finalised!$G$4:$G$71,Achievement_finalised!$B$4:$B$71,Projections!$C24,Achievement_finalised!$D$4:$D$71,Projections!$E24,Achievement_finalised!$E$4:$E$71,Projections!$F24) -> 415222018.1 | T24: =SUMIFS(Achievement_forecast_ongoing!G$6:G$49822,Achievement_forecast_ongoing!$C$6:$C$49822,Projections!$C24,Achievement_forecast_ongoing!$E$6:$E$49822,Projections!$E24,Achievement_forecast_ongoing!$F$6:$F$49822,Projections!$F24) -> 1017481206 | U24: =SUMIFS(Achievement_forecast_ongoing!H$6:H$49822,Achievement_forecast_ongoing!$C$6:$C$49822,Projections!$C24,Achievement_forecast_ongoing!$E$6:$E$49822,Projections!$E24,Achievement_forecast_ongoing!$F$6:$F$49822,Projections!$F24) -> 5321601284 | V24: =SUMIFS(Achievement_forecast_ongoing!I$6:I$49822,Achievement_forecast_ongoing!$C$6:$C$49822,Projections!$C24,Achievement_forecast_ongoing!$E$6:$E$49822,Projections!$E24,Achievement_forecast_ongoing!$F$6:$F$49822,Projections!$F24) -> 5472342321 | W24: =SUMIFS(Achievement_forecast_ongoing!J$6:J$49822,Achievement_forecast_ongoing!$C$6:$C$49822,Projections!$C24,Achievement_forecast_ongoing!$E$6:$E$49822,Projections!$E24,Achievement_forecast_ongoing!$F$6:$F$49822,Projections!$F24) -> 5502689828 | X24: =SUMIFS(Achievement_forecasts_future!G$4:G$71,Achievement_forecasts_future!$B$4:$B$71,Projections!$C24,Achievement_forecasts_future!$D$4:$D$71,Projections!$E24,Achievement_forecasts_future!$E$4:$E$71,Projections!$F24) -> 0 | Y24: =SUMIFS(Achievement_forecasts_future!H$4:H$71,Achievement_forecasts_future!$B$4:$B$71,Projections!$C24,Achievement_forecasts_future!$D$4:$D$71,Projections!$E24,Achievement_forecasts_future!$E$4:$E$71,Projections!$F24) -> 0 | Z24: =SUMIFS(Achievement_forecasts_future!I$4:I$71,Achievement_forecasts_future!$B$4:$B$71,Projections!$C24,Achievement_forecasts_future!$D$4:$D$71,Projections!$E24,Achievement_forecasts_future!$E$4:$E$71,Projections!$F24) -> 0 | AA24: =SUMIFS(Achievement_forecasts_future!J$4:J$71,Achievement_forecasts_future!$B$4:$B$71,Projections!$C24,Achievement_forecasts_future!$D$4:$D$71,Projections!$E24,Achievement_forecasts_future!$E$4:$E$71,Projections!$F24) -> 0
C25: 6 | D25: All | E25: 1F | F25: More developed | G25: =12500000*G52 -> 60540000 | H25: 0 | I25: 62.12818911 | J25: 70.49984081 | K25: 76.12324811 | L25: 0 | M25: 37612405.69 | N25: 42680603.62 | O25: 46085014.41 | P25: =SUMIFS(Achievement_finalised!$G$4:$G$71,Achievement_finalised!$B$4:$B$71,Projections!$C25,Achievement_finalised!$D$4:$D$71,Projections!$E25,Achievement_finalised!$E$4:$E$71,Projections!$F25) -> 0 | Q25: =SUMIFS(Achievement_finalised!$G$4:$G$71,Achievement_finalised!$B$4:$B$71,Projections!$C25,Achievement_finalised!$D$4:$D$71,Projections!$E25,Achievement_finalised!$E$4:$E$71,Projections!$F25) -> 0 | R25: =SUMIFS(Achievement_finalised!$G$4:$G$71,Achievement_finalised!$B$4:$B$71,Projections!$C25,Achievement_finalised!$D$4:$D$71,Projections!$E25,Achievement_finalised!$E$4:$E$71,Projections!$F25) -> 0 | S25: =SUMIFS(Achievement_finalised!$G$4:$G$71,Achievement_finalised!$B$4:$B$71,Projections!$C25,Achievement_finalised!$D$4:$D$71,Projections!$E25,Achievement_finalised!$E$4:$E$71,Projections!$F25) -> 0 | T25: =SUMIFS(Achievement_forecast_ongoing!G$6:G$49822,Achievement_forecast_ongoing!$C$6:$C$49822,Projections!$C25,Achievement_forecast_ongoing!$E$6:$E$49822,Projections!$E25,Achievement_forecast_ongoing!$F$6:$F$49822,Projections!$F25) -> 0 | U25: =SUMIFS(Achievement_forecast_ongoing!H$6:H$49822,Achievement_forecast_ongoing!$C$6:$C$49822,Projections!$C25,Achievement_forecast_ongoing!$E$6:$E$49822,Projections!$E25,Achievement_forecast_ongoing!$F$6:$F$49822,Projections!$F25) -> 37612405.69 | V25: =SUMIFS(Achievement_forecast_ongoing!I$6:I$49822,Achievement_forecast_ongoing!$C$6:$C$49822,Projections!$C25,Achievement_forecast_ongoing!$E$6:$E$49822,Projections!$E25,Achievement_forecast_ongoing!$F$6:$F$49822,Projections!$F25) -> 42680603.62 | W25: =SUMIFS(Achievement_forecast_ongoing!J$6:J$49822,Achievement_forecast_ongoing!$C$6:$C$49822,Projections!$C25,Achievement_forecast_ongoing!$E$6:$E$49822,Projections!$E25,Achievement_forecast_ongoing!$F$6:$F$49822,Projections!$F25) -> 46085014.41 | X25: =SUMIFS(Achievement_forecasts_future!G$4:G$71,Achievement_forecasts_future!$B$4:$B$71,Projections!$C25,Achievement_forecasts_future!$D$4:$D$71,Projections!$E25,Achievement_forecasts_future!$E$4:$E$71,Projections!$F25) -> 0 | Y25: =SUMIFS(Achievement_forecasts_future!H$4:H$71,Achievement_forecasts_future!$B$4:$B$71,Projections!$C25,Achievement_forecasts_future!$D$4:$D$71,Projections!$E25,Achievement_forecasts_future!$E$4:$E$71,Projections!$F25) -> 0 | Z25: =SUMIFS(Achievement_forecasts_future!I$4:I$71,Achievement_forecasts_future!$B$4:$B$71,Projections!$C25,Achievement_forecasts_future!$D$4:$D$71,Projections!$E25,Achievement_forecasts_future!$E$4:$E$71,Projections!$F25) -> 0 | AA25: =SUMIFS(Achievement_forecasts_future!J$4:J$71,Achievement_forecasts_future!$B$4:$B$71,Projections!$C25,Achievement_forecasts_future!$D$4:$D$71,Projections!$E25,Achievement_forecasts_future!$E$4:$E$71,Projections!$F25) -> 0
C26: 6 | D26: All | E26: CO14 | F26: Less developed | G26: 1932 | H26: 10.18240166 | I26: 36.62903256 | J26: 72.56728778 | K26: 91.92546584 | L26: 196.724 | M26: 707.672909 | N26: =ROUND(R26+V26+Z26, 0) -> 1402 | O26: =ROUND(S26+W26+AA26, 0) -> 1776 | P26: =SUMIFS(Achievement_finalised!$G$4:$G$71,Achievement_finalised!$B$4:$B$71,Projections!$C26,Achievement_finalised!$D$4:$D$71,Projections!$E26,Achievement_finalised!$E$4:$E$71,Projections!$F26) -> 196.724 | Q26: =SUMIFS(Achievement_finalised!$G$4:$G$71,Achievement_finalised!$B$4:$B$71,Projections!$C26,Achievement_finalised!$D$4:$D$71,Projections!$E26,Achievement_finalised!$E$4:$E$71,Projections!$F26) -> 196.724 | R26: =SUMIFS(Achievement_finalised!$G$4:$G$71,Achievement_finalised!$B$4:$B$71,Projections!$C26,Achievement_finalised!$D$4:$D$71,Projections!$E26,Achievement_finalised!$E$4:$E$71,Projections!$F26) -> 196.724 | S26: =SUMIFS(Achievement_finalised!$G$4:$G$71,Achievement_finalised!$B$4:$B$71,Projections!$C26,Achievement_finalised!$D$4:$D$71,Projections!$E26,Achievement_finalised!$E$4:$E$71,Projections!$F26) -> 196.724 | T26: =SUMIFS(Achievement_forecast_ongoing!G$6:G$49822,Achievement_forecast_ongoing!$C$6:$C$49822,Projections!$C26,Achievement_forecast_ongoing!$E$6:$E$49822,Projections!$E26,Achievement_forecast_ongoing!$F$6:$F$49822,Projections!$F26) -> 0 | U26: =SUMIFS(Achievement_forecast_ongoing!H$6:H$49822,Achievement_forecast_ongoing!$C$6:$C$49822,Projections!$C26,Achievement_forecast_ongoing!$E$6:$E$49822,Projections!$E26,Achievement_forecast_ongoing!$F$6:$F$49822,Projections!$F26) -> 510.948909 | V26: =SUMIFS(Achievement_forecast_ongoing!I$6:I$49822,Achievement_forecast_ongoing!$C$6:$C$49822,Projections!$C26,Achievement_forecast_ongoing!$E$6:$E$49822,Projections!$E26,Achievement_forecast_ongoing!$F$6:$F$49822,Projections!$F26) -> 1205.138967 | W26: =SUMIFS(Achievement_forecast_ongoing!J$6:J$49822,Achievement_forecast_ongoing!$C$6:$C$49822,Projections!$C26,Achievement_forecast_ongoing!$E$6:$E$49822,Projections!$E26,Achievement_forecast_ongoing!$F$6:$F$49822,Projections!$F26) -> 1579.149367 | X26: =SUMIFS(Achievement_forecasts_future!G$4:G$71,Achievement_forecasts_future!$B$4:$B$71,Projections!$C26,Achievement_forecasts_future!$D$4:$D$71,Projections!$E26,Achievement_forecasts_future!$E$4:$E$71,Projections!$F26) -> 0 | Y26: =SUMIFS(Achievement_forecasts_future!H$4:H$71,Achievement_forecasts_future!$B$4:$B$71,Projections!$C26,Achievement_forecasts_future!$D$4:$D$71,Projections!$E26,Achievement_forecasts_future!$E$4:$E$71,Projections!$F26) -> 0 | Z26: =SUMIFS(Achievement_forecasts_future!I$4:I$71,Achievement_forecasts_future!$B$4:$B$71,Projections!$C26,Achievement_forecasts_future!$D$4:$D$71,Projections!$E26,Achievement_forecasts_future!$E$4:$E$71,Projections!$F26) -> 0 | AA26: =SUMIFS(Achievement_forecasts_future!J$4:J$71,Achievement_forecasts_future!$B$4:$B$71,Projections!$C26,Achievement_forecasts_future!$D$4:$D$71,Projections!$E26,Achievement_forecasts_future!$E$4:$E$71,Projections!$F26) -> 0
C27: 6 | D27: All | E27: CO14 | F27: More developed | G27: 23 | H27: 0 | I27: 0 | J27: 0 | K27: 43.47826087 | L27: 0 | M27: 0 | N27: =ROUND(R27+V27+Z27, 0) -> 0 | O27: =ROUND(S27+W27+AA27, 0) -> 10 | P27: =SUMIFS(Achievement_finalised!$G$4:$G$71,Achievement_finalised!$B$4:$B$71,Projections!$C27,Achievement_finalised!$D$4:$D$71,Projections!$E27,Achievement_finalised!$E$4:$E$71,Projections!$F27) -> 0 | Q27: =SUMIFS(Achievement_finalised!$G$4:$G$71,Achievement_finalised!$B$4:$B$71,Projections!$C27,Achievement_finalised!$D$4:$D$71,Projections!$E27,Achievement_finalised!$E$4:$E$71,Projections!$F27) -> 0 | R27: =SUMIFS(Achievement_finalised!$G$4:$G$71,Achievement_finalised!$B$4:$B$71,Projections!$C27,Achievement_finalised!$D$4:$D$71,Projections!$E27,Achievement_finalised!$E$4:$E$71,Projections!$F27) -> 0 | S27: =SUMIFS(Achievement_finalised!$G$4:$G$71,Achievement_finalised!$B$4:$B$71,Projections!$C27,Achievement_finalised!$D$4:$D$71,Projections!$E27,Achievement_finalised!$E$4:$E$71,Projections!$F27) -> 0 | T27: =SUMIFS(Achievement_forecast_ongoing!G$6:G$49822,Achievement_forecast_ongoing!$C$6:$C$49822,Projections!$C27,Achievement_forecast_ongoing!$E$6:$E$49822,Projections!$E27,Achievement_forecast_ongoing!$F$6:$F$49822,Projections!$F27) -> 0 | U27: =SUMIFS(Achievement_forecast_ongoing!H$6:H$49822,Achievement_forecast_ongoing!$C$6:$C$49822,Projections!$C27,Achievement_forecast_ongoing!$E$6:$E$49822,Projections!$E27,Achievement_forecast_ongoing!$F$6:$F$49822,Projections!$F27) -> 0 | V27: =SUMIFS(Achievement_forecast_ongoing!I$6:I$49822,Achievement_forecast_ongoing!$C$6:$C$49822,Projections!$C27,Achievement_forecast_ongoing!$E$6:$E$49822,Projections!$E27,Achievement_forecast_ongoing!$F$6:$F$49822,Projections!$F27) -> 0 | W27: =SUMIFS(Achievement_forecast_ongoing!J$6:J$49822,Achievement_forecast_ongoing!$C$6:$C$49822,Projections!$C27,Achievement_forecast_ongoing!$E$6:$E$49822,Projections!$E27,Achievement_forecast_ongoing!$F$6:$F$49822,Projections!$F27) -> 9.883143721 | X27: =SUMIFS(Achievement_forecasts_future!G$4:G$71,Achievement_forecasts_future!$B$4:$B$71,Projections!$C27,Achievement_forecasts_future!$D$4:$D$71,Projections!$E27,Achievement_forecasts_future!$E$4:$E$71,Projections!$F27) -> 0 | Y27: =SUMIFS(Achievement_forecasts_future!H$4:H$71,Achievement_forecasts_future!$B$4:$B$71,Projections!$C27,Achievement_forecasts_future!$D$4:$D$71,Projections!$E27,Achievement_forecasts_future!$E$4:$E$71,Projections!$F27) -> 0 | Z27: =SUMIFS(Achievement_forecasts_future!I$4:I$71,Achievement_forecasts_future!$B$4:$B$71,Projections!$C27,Achievement_forecasts_future!$D$4:$D$71,Projections!$E27,Achievement_forecasts_future!$E$4:$E$71,Projections!$F27) -> 0 | AA27: =SUMIFS(Achievement_forecasts_future!J$4:J$71,Achievement_forecasts_future!$B$4:$B$71,Projections!$C27,Achievement_forecasts_future!$D$4:$D$71,Projections!$E27,Achievement_forecasts_future!$E$4:$E$71,Projections!$F27) -> 0
C28: 7 | D28: All | E28: 1F | F28: All | G28: =109029663*G52 -> 528052463.8 | H28: 29.61716411 | I28: 116.2513101 | J28: 121.1622084 | K28: 122.8793687 | L28: 156394164.8 | M28: 613867907.4 | N28: 639800026.9 | O28: 648867534.1 | P28: =SUMIFS(Achievement_finalised!$G$4:$G$71,Achievement_finalised!$B$4:$B$71,Projections!$C28,Achievement_finalised!$D$4:$D$71,Projections!$E28,Achievement_finalised!$E$4:$E$71,Projections!$F28) -> 50603965.04 | Q28: =SUMIFS(Achievement_finalised!$G$4:$G$71,Achievement_finalised!$B$4:$B$71,Projections!$C28,Achievement_finalised!$D$4:$D$71,Projections!$E28,Achievement_finalised!$E$4:$E$71,Projections!$F28) -> 50603965.04 | R28: =SUMIFS(Achievement_finalised!$G$4:$G$71,Achievement_finalised!$B$4:$B$71,Projections!$C28,Achievement_finalised!$D$4:$D$71,Projections!$E28,Achievement_finalised!$E$4:$E$71,Projections!$F28) -> 50603965.04 | S28: =SUMIFS(Achievement_finalised!$G$4:$G$71,Achievement_finalised!$B$4:$B$71,Projections!$C28,Achievement_finalised!$D$4:$D$71,Projections!$E28,Achievement_finalised!$E$4:$E$71,Projections!$F28) -> 50603965.04 | T28: =SUMIFS(Achievement_forecast_ongoing!G$6:G$49822,Achievement_forecast_ongoing!$C$6:$C$49822,Projections!$C28,Achievement_forecast_ongoing!$E$6:$E$49822,Projections!$E28,Achievement_forecast_ongoing!$F$6:$F$49822,Projections!$F28) -> 105790199.8 | U28: =SUMIFS(Achievement_forecast_ongoing!H$6:H$49822,Achievement_forecast_ongoing!$C$6:$C$49822,Projections!$C28,Achievement_forecast_ongoing!$E$6:$E$49822,Projections!$E28,Achievement_forecast_ongoing!$F$6:$F$49822,Projections!$F28) -> 563263942.3 | V28: =SUMIFS(Achievement_forecast_ongoing!I$6:I$49822,Achievement_forecast_ongoing!$C$6:$C$49822,Projections!$C28,Achievement_forecast_ongoing!$E$6:$E$49822,Projections!$E28,Achievement_forecast_ongoing!$F$6:$F$49822,Projections!$F28) -> 583953084.1 | W28: =SUMIFS(Achievement_forecast_ongoing!J$6:J$49822,Achievement_forecast_ongoing!$C$6:$C$49822,Projections!$C28,Achievement_forecast_ongoing!$E$6:$E$49822,Projections!$E28,Achievement_forecast_ongoing!$F$6:$F$49822,Projections!$F28) -> 589705584.6 | X28: =SUMIFS(Achievement_forecasts_future!G$4:G$71,Achievement_forecasts_future!$B$4:$B$71,Projections!$C28,Achievement_forecasts_future!$D$4:$D$71,Projections!$E28,Achievement_forecasts_future!$E$4:$E$71,Projections!$F28) -> 0 | Y28: =SUMIFS(Achievement_forecasts_future!H$4:H$71,Achievement_forecasts_future!$B$4:$B$71,Projections!$C28,Achievement_forecasts_future!$D$4:$D$71,Projections!$E28,Achievement_forecasts_future!$E$4:$E$71,Projections!$F28) -> 0 | Z28: =SUMIFS(Achievement_forecasts_future!I$4:I$71,Achievement_forecasts_future!$B$4:$B$71,Projections!$C28,Achievement_forecasts_future!$D$4:$D$71,Projections!$E28,Achievement_forecasts_future!$E$4:$E$71,Projections!$F28) -> 5242977.818 | AA28: =SUMIFS(Achievement_forecasts_future!J$4:J$71,Achievement_forecasts_future!$B$4:$B$71,Projections!$C28,Achievement_forecasts_future!$D$4:$D$71,Projections!$E28,Achievement_forecasts_future!$E$4:$E$71,Projections!$F28) -> 8557984.446
C29: 7 | D29: All | E29: 1S27 | F29: All | G29: 1421324 | H29: 0.7053986283 | I29: 30.43094332 | J29: 41.86436036 | K29: 48.83170439 | L29: 10026 | M29: 432522.3008 | N29: 595028.2013 | O29: 694056.7342 | P29: =SUMIFS(Achievement_finalised!$G$4:$G$71,Achievement_finalised!$B$4:$B$71,Projections!$C29,Achievement_finalised!$D$4:$D$71,Projections!$E29,Achievement_finalised!$E$4:$E$71,Projections!$F29) -> 10026 | Q29: =SUMIFS(Achievement_finalised!$G$4:$G$71,Achievement_finalised!$B$4:$B$71,Projections!$C29,Achievement_finalised!$D$4:$D$71,Projections!$E29,Achievement_finalised!$E$4:$E$71,Projections!$F29) -> 10026 | R29: =SUMIFS(Achievement_finalised!$G$4:$G$71,Achievement_finalised!$B$4:$B$71,Projections!$C29,Achievement_finalised!$D$4:$D$71,Projections!$E29,Achievement_finalised!$E$4:$E$71,Projections!$F29) -> 10026 | S29: =SUMIFS(Achievement_finalised!$G$4:$G$71,Achievement_finalised!$B$4:$B$71,Projections!$C29,Achievement_finalised!$D$4:$D$71,Projections!$E29,Achievement_finalised!$E$4:$E$71,Projections!$F29) -> 10026 | T29: =SUMIFS(Achievement_forecast_ongoing!G$6:G$49822,Achievement_forecast_ongoing!$C$6:$C$49822,Projections!$C29,Achievement_forecast_ongoing!$E$6:$E$49822,Projections!$E29,Achievement_forecast_ongoing!$F$6:$F$49822,Projections!$F29) -> 0 | U29: =SUMIFS(Achievement_forecast_ongoing!H$6:H$49822,Achievement_forecast_ongoing!$C$6:$C$49822,Projections!$C29,Achievement_forecast_ongoing!$E$6:$E$49822,Projections!$E29,Achievement_forecast_ongoing!$F$6:$F$49822,Projections!$F29) -> 422496.3008 | V29: =SUMIFS(Achievement_forecast_ongoing!I$6:I$49822,Achievement_forecast_ongoing!$C$6:$C$49822,Projections!$C29,Achievement_forecast_ongoing!$E$6:$E$49822,Projections!$E29,Achievement_forecast_ongoing!$F$6:$F$49822,Projections!$F29) -> 585002.2013 | W29: =SUMIFS(Achievement_forecast_ongoing!J$6:J$49822,Achievement_forecast_ongoing!$C$6:$C$49822,Projections!$C29,Achievement_forecast_ongoing!$E$6:$E$49822,Projections!$E29,Achievement_forecast_ongoing!$F$6:$F$49822,Projections!$F29) -> 684030.7342 | X29: =SUMIFS(Achievement_forecasts_future!G$4:G$71,Achievement_forecasts_future!$B$4:$B$71,Projections!$C29,Achievement_forecasts_future!$D$4:$D$71,Projections!$E29,Achievement_forecasts_future!$E$4:$E$71,Projections!$F29) -> 0 | Y29: =SUMIFS(Achievement_forecasts_future!H$4:H$71,Achievement_forecasts_future!$B$4:$B$71,Projections!$C29,Achievement_forecasts_future!$D$4:$D$71,Projections!$E29,Achievement_forecasts_future!$E$4:$E$71,Projections!$F29) -> 0 | Z29: =SUMIFS(Achievement_forecasts_future!I$4:I$71,Achievement_forecasts_future!$B$4:$B$71,Projections!$C29,Achievement_forecasts_future!$D$4:$D$71,Projections!$E29,Achievement_forecasts_future!$E$4:$E$71,Projections!$F29) -> 0 | AA29: =SUMIFS(Achievement_forecasts_future!J$4:J$71,Achievement_forecasts_future!$B$4:$B$71,Projections!$C29,Achievement_forecasts_future!$D$4:$D$71,Projections!$E29,Achievement_forecasts_future!$E$4:$E$71,Projections!$F29) -> 0
C30: 8 | D30: All | E30: 1F | F30: All | G30: =574163632*G52 -> 2780789303 | H30: 40.54648696 | I30: 99.14223903 | J30: 111.8922099 | K30: 117.8287357 | L30: 1127512372 | M30: 2756936777 | N30: 3111486604 | O30: 3276568878 | P30: =SUMIFS(Achievement_finalised!$G$4:$G$71,Achievement_finalised!$B$4:$B$71,Projections!$C30,Achievement_finalised!$D$4:$D$71,Projections!$E30,Achievement_finalised!$E$4:$E$71,Projections!$F30) -> 566297761.9 | Q30: =SUMIFS(Achievement_finalised!$G$4:$G$71,Achievement_finalised!$B$4:$B$71,Projections!$C30,Achievement_finalised!$D$4:$D$71,Projections!$E30,Achievement_finalised!$E$4:$E$71,Projections!$F30) -> 566297761.9 | R30: =SUMIFS(Achievement_finalised!$G$4:$G$71,Achievement_finalised!$B$4:$B$71,Projections!$C30,Achievement_finalised!$D$4:$D$71,Projections!$E30,Achievement_finalised!$E$4:$E$71,Projections!$F30) -> 566297761.9 | S30: =SUMIFS(Achievement_finalised!$G$4:$G$71,Achievement_finalised!$B$4:$B$71,Projections!$C30,Achievement_finalised!$D$4:$D$71,Projections!$E30,Achievement_finalised!$E$4:$E$71,Projections!$F30) -> 566297761.9 | T30: =SUMIFS(Achievement_forecast_ongoing!G$6:G$49822,Achievement_forecast_ongoing!$C$6:$C$49822,Projections!$C30,Achievement_forecast_ongoing!$E$6:$E$49822,Projections!$E30,Achievement_forecast_ongoing!$F$6:$F$49822,Projections!$F30) -> 561214609.9 | U30: =SUMIFS(Achievement_forecast_ongoing!H$6:H$49822,Achievement_forecast_ongoing!$C$6:$C$49822,Projections!$C30,Achievement_forecast_ongoing!$E$6:$E$49822,Projections!$E30,Achievement_forecast_ongoing!$F$6:$F$49822,Projections!$F30) -> 2190639015 | V30: =SUMIFS(Achievement_forecast_ongoing!I$6:I$49822,Achievement_forecast_ongoing!$C$6:$C$49822,Projections!$C30,Achievement_forecast_ongoing!$E$6:$E$49822,Projections!$E30,Achievement_forecast_ongoing!$F$6:$F$49822,Projections!$F30) -> 2343730728 | W30: =SUMIFS(Achievement_forecast_ongoing!J$6:J$49822,Achievement_forecast_ongoing!$C$6:$C$49822,Projections!$C30,Achievement_forecast_ongoing!$E$6:$E$49822,Projections!$E30,Achievement_forecast_ongoing!$F$6:$F$49822,Projections!$F30) -> 2377324150 | X30: =SUMIFS(Achievement_forecasts_future!G$4:G$71,Achievement_forecasts_future!$B$4:$B$71,Projections!$C30,Achievement_forecasts_future!$D$4:$D$71,Projections!$E30,Achievement_forecasts_future!$E$4:$E$71,Projections!$F30) -> 0 | Y30: =SUMIFS(Achievement_forecasts_future!H$4:H$71,Achievement_forecasts_future!$B$4:$B$71,Projections!$C30,Achievement_forecasts_future!$D$4:$D$71,Projections!$E30,Achievement_forecasts_future!$E$4:$E$71,Projections!$F30) -> 0 | Z30: =SUMIFS(Achievement_forecasts_future!I$4:I$71,Achievement_forecasts_future!$B$4:$B$71,Projections!$C30,Achievement_forecasts_future!$D$4:$D$71,Projections!$E30,Achievement_forecasts_future!$E$4:$E$71,Projections!$F30) -> 201458113.2 | AA30: =SUMIFS(Achievement_forecasts_future!J$4:J$71,Achievement_forecasts_future!$B$4:$B$71,Projections!$C30,Achievement_forecasts_future!$D$4:$D$71,Projections!$E30,Achievement_forecasts_future!$E$4:$E$71,Projections!$F30) -> 332946965.5
C31: 8 | D31: All | E31: 1S35 | F31: All | G31: 5188914 | H31: 68.65405748 | I31: 78.66787372 | J31: 92.28832717 | K31: 98.48148871 | L31: 3562400 | M31: 4082008.313 | N31: 4788761.929 | O31: 5110119.755 | P31: =SUMIFS(Achievement_finalised!$G$4:$G$71,Achievement_finalised!$B$4:$B$71,Projections!$C31,Achievement_finalised!$D$4:$D$71,Projections!$E31,Achievement_finalised!$E$4:$E$71,Projections!$F31) -> 3562400 | Q31: =SUMIFS(Achievement_finalised!$G$4:$G$71,Achievement_finalised!$B$4:$B$71,Projections!$C31,Achievement_finalised!$D$4:$D$71,Projections!$E31,Achievement_finalised!$E$4:$E$71,Projections!$F31) -> 3562400 | R31: =SUMIFS(Achievement_finalised!$G$4:$G$71,Achievement_finalised!$B$4:$B$71,Projections!$C31,Achievement_finalised!$D$4:$D$71,Projections!$E31,Achievement_finalised!$E$4:$E$71,Projections!$F31) -> 3562400 | S31: =SUMIFS(Achievement_finalised!$G$4:$G$71,Achievement_finalised!$B$4:$B$71,Projections!$C31,Achievement_finalised!$D$4:$D$71,Projections!$E31,Achievement_finalised!$E$4:$E$71,Projections!$F31) -> 3562400 | T31: =SUMIFS(Achievement_forecast_ongoing!G$6:G$49822,Achievement_forecast_ongoing!$C$6:$C$49822,Projections!$C31,Achievement_forecast_ongoing!$E$6:$E$49822,Projections!$E31,Achievement_forecast_ongoing!$F$6:$F$49822,Projections!$F31) -> 0 | U31: =SUMIFS(Achievement_forecast_ongoing!H$6:H$49822,Achievement_forecast_ongoing!$C$6:$C$49822,Projections!$C31,Achievement_forecast_ongoing!$E$6:$E$49822,Projections!$E31,Achievement_forecast_ongoing!$F$6:$F$49822,Projections!$F31) -> 519608.3128 | V31: =SUMIFS(Achievement_forecast_ongoing!I$6:I$49822,Achievement_forecast_ongoing!$C$6:$C$49822,Projections!$C31,Achievement_forecast_ongoing!$E$6:$E$49822,Projections!$E31,Achievement_forecast_ongoing!$F$6:$F$49822,Projections!$F31) -> 1226361.929 | W31: =SUMIFS(Achievement_forecast_ongoing!J$6:J$49822,Achievement_forecast_ongoing!$C$6:$C$49822,Projections!$C31,Achievement_forecast_ongoing!$E$6:$E$49822,Projections!$E31,Achievement_forecast_ongoing!$F$6:$F$49822,Projections!$F31) -> 1547719.755 | X31: =SUMIFS(Achievement_forecasts_future!G$4:G$71,Achievement_forecasts_future!$B$4:$B$71,Projections!$C31,Achievement_forecasts_future!$D$4:$D$71,Projections!$E31,Achievement_forecasts_future!$E$4:$E$71,Projections!$F31) -> 0 | Y31: =SUMIFS(Achievement_forecasts_future!H$4:H$71,Achievement_forecasts_future!$B$4:$B$71,Projections!$C31,Achievement_forecasts_future!$D$4:$D$71,Projections!$E31,Achievement_forecasts_future!$E$4:$E$71,Projections!$F31) -> 0 | Z31: =SUMIFS(Achievement_forecasts_future!I$4:I$71,Achievement_forecasts_future!$B$4:$B$71,Projections!$C31,Achievement_forecasts_future!$D$4:$D$71,Projections!$E31,Achievement_forecasts_future!$E$4:$E$71,Projections!$F31) -> 0 | AA31: =SUMIFS(Achievement_forecasts_future!J$4:J$71,Achievement_forecasts_future!$B$4:$B$71,Projections!$C31,Achievement_forecasts_future!$D$4:$D$71,Projections!$E31,Achievement_forecasts_future!$E$4:$E$71,Projections!$F31) -> 0
C32: 8 | D32: All | E32: 1S40 | F32: All | G32: 1140 | H32: 0 | I32: 11.6250345 | J32: 52.45614035 | K32: 56.31578947 | L32: 0 | M32: 132.5253934 | N32: =ROUND(R32+V32+Z32, 0) -> 598 | O32: =ROUND(S32+W32+AA32, 0) -> 642 | P32: =SUMIFS(Achievement_finalised!$G$4:$G$71,Achievement_finalised!$B$4:$B$71,Projections!$C32,Achievement_finalised!$D$4:$D$71,Projections!$E32,Achievement_finalised!$E$4:$E$71,Projections!$F32) -> 0 | Q32: =SUMIFS(Achievement_finalised!$G$4:$G$71,Achievement_finalised!$B$4:$B$71,Projections!$C32,Achievement_finalised!$D$4:$D$71,Projections!$E32,Achievement_finalised!$E$4:$E$71,Projections!$F32) -> 0 | R32: =SUMIFS(Achievement_finalised!$G$4:$G$71,Achievement_finalised!$B$4:$B$71,Projections!$C32,Achievement_finalised!$D$4:$D$71,Projections!$E32,Achievement_finalised!$E$4:$E$71,Projections!$F32) -> 0 | S32: =SUMIFS(Achievement_finalised!$G$4:$G$71,Achievement_finalised!$B$4:$B$71,Projections!$C32,Achievement_finalised!$D$4:$D$71,Projections!$E32,Achievement_finalised!$E$4:$E$71,Projections!$F32) -> 0 | T32: =SUMIFS(Achievement_forecast_ongoing!G$6:G$49822,Achievement_forecast_ongoing!$C$6:$C$49822,Projections!$C32,Achievement_forecast_ongoing!$E$6:$E$49822,Projections!$E32,Achievement_forecast_ongoing!$F$6:$F$49822,Projections!$F32) -> 0 | U32: =SUMIFS(Achievement_forecast_ongoing!H$6:H$49822,Achievement_forecast_ongoing!$C$6:$C$49822,Projections!$C32,Achievement_forecast_ongoing!$E$6:$E$49822,Projections!$E32,Achievement_forecast_ongoing!$F$6:$F$49822,Projections!$F32) -> 132.5253934 | V32: =SUMIFS(Achievement_forecast_ongoing!I$6:I$49822,Achievement_forecast_ongoing!$C$6:$C$49822,Projections!$C32,Achievement_forecast_ongoing!$E$6:$E$49822,Projections!$E32,Achievement_forecast_ongoing!$F$6:$F$49822,Projections!$F32) -> 598.0312562 | W32: =SUMIFS(Achievement_forecast_ongoing!J$6:J$49822,Achievement_forecast_ongoing!$C$6:$C$49822,Projections!$C32,Achievement_forecast_ongoing!$E$6:$E$49822,Projections!$E32,Achievement_forecast_ongoing!$F$6:$F$49822,Projections!$F32) -> 641.7896408 | X32: =SUMIFS(Achievement_forecasts_future!G$4:G$71,Achievement_forecasts_future!$B$4:$B$71,Projections!$C32,Achievement_forecasts_future!$D$4:$D$71,Projections!$E32,Achievement_forecasts_future!$E$4:$E$71,Projections!$F32) -> 0 | Y32: =SUMIFS(Achievement_forecasts_future!H$4:H$71,Achievement_forecasts_future!$B$4:$B$71,Projections!$C32,Achievement_forecasts_future!$D$4:$D$71,Projections!$E32,Achievement_forecasts_future!$E$4:$E$71,Projections!$F32) -> 0 | Z32: =SUMIFS(Achievement_forecasts_future!I$4:I$71,Achievement_forecasts_future!$B$4:$B$71,Projections!$C32,Achievement_forecasts_future!$D$4:$D$71,Projections!$E32,Achievement_forecasts_future!$E$4:$E$71,Projections!$F32) -> 0 | AA32: =SUMIFS(Achievement_forecasts_future!J$4:J$71,Achievement_forecasts_future!$B$4:$B$71,Projections!$C32,Achievement_forecasts_future!$D$4:$D$71,Projections!$E32,Achievement_forecasts_future!$E$4:$E$71,Projections!$F32) -> 0
C33: 9 | D33: All | E33: 1F | F33: Less developed | G33: =74315790*G52 -> 359926234.1 | H33: 0 | I33: 12.35311042 | J33: 13.43407181 | K33: 13.80867007 | L33: 0 | M33: 44462085.12 | N33: 48352748.74 | O33: 49701026.16 | P33: =SUMIFS(Achievement_finalised!$G$4:$G$71,Achievement_finalised!$B$4:$B$71,Projections!$C33,Achievement_finalised!$D$4:$D$71,Projections!$E33,Achievement_finalised!$E$4:$E$71,Projections!$F33) -> 0 | Q33: =SUMIFS(Achievement_finalised!$G$4:$G$71,Achievement_finalised!$B$4:$B$71,Projections!$C33,Achievement_finalised!$D$4:$D$71,Projections!$E33,Achievement_finalised!$E$4:$E$71,Projections!$F33) -> 0 | R33: =SUMIFS(Achievement_finalised!$G$4:$G$71,Achievement_finalised!$B$4:$B$71,Projections!$C33,Achievement_finalised!$D$4:$D$71,Projections!$E33,Achievement_finalised!$E$4:$E$71,Projections!$F33) -> 0 | S33: =SUMIFS(Achievement_finalised!$G$4:$G$71,Achievement_finalised!$B$4:$B$71,Projections!$C33,Achievement_finalised!$D$4:$D$71,Projections!$E33,Achievement_finalised!$E$4:$E$71,Projections!$F33) -> 0 | T33: =SUMIFS(Achievement_forecast_ongoing!G$6:G$49822,Achievement_forecast_ongoing!$C$6:$C$49822,Projections!$C33,Achievement_forecast_ongoing!$E$6:$E$49822,Projections!$E33,Achievement_forecast_ongoing!$F$6:$F$49822,Projections!$F33) -> 0 | U33: =SUMIFS(Achievement_forecast_ongoing!H$6:H$49822,Achievement_forecast_ongoing!$C$6:$C$49822,Projections!$C33,Achievement_forecast_ongoing!$E$6:$E$49822,Projections!$E33,Achievement_forecast_ongoing!$F$6:$F$49822,Projections!$F33) -> 44462085.12 | V33: =SUMIFS(Achievement_forecast_ongoing!I$6:I$49822,Achievement_forecast_ongoing!$C$6:$C$49822,Projections!$C33,Achievement_forecast_ongoing!$E$6:$E$49822,Projections!$E33,Achievement_forecast_ongoing!$F$6:$F$49822,Projections!$F33) -> 48352748.74 | W33: =SUMIFS(Achievement_forecast_ongoing!J$6:J$49822,Achievement_forecast_ongoing!$C$6:$C$49822,Projections!$C33,Achievement_forecast_ongoing!$E$6:$E$49822,Projections!$E33,Achievement_forecast_ongoing!$F$6:$F$49822,Projections!$F33) -> 49701026.16 | X33: =SUMIFS(Achievement_forecasts_future!G$4:G$71,Achievement_forecasts_future!$B$4:$B$71,Projections!$C33,Achievement_forecasts_future!$D$4:$D$71,Projections!$E33,Achievement_forecasts_future!$E$4:$E$71,Projections!$F33) -> 0 | Y33: =SUMIFS(Achievement_forecasts_future!H$4:H$71,Achievement_forecasts_future!$B$4:$B$71,Projections!$C33,Achievement_forecasts_future!$D$4:$D$71,Projections!$E33,Achievement_forecasts_future!$E$4:$E$71,Projections!$F33) -> 0 | Z33: =SUMIFS(Achievement_forecasts_future!I$4:I$71,Achievement_forecasts_future!$B$4:$B$71,Projections!$C33,Achievement_forecasts_future!$D$4:$D$71,Projections!$E33,Achievement_forecasts_future!$E$4:$E$71,Projections!$F33) -> 0 | AA33: =SUMIFS(Achievement_forecasts_future!J$4:J$71,Achievement_forecasts_future!$B$4:$B$71,Projections!$C33,Achievement_forecasts_future!$D$4:$D$71,Projections!$E33,Achievement_forecasts_future!$E$4:$E$71,Projections!$F33) -> 0
C34: 9 | D34: All | E34: 1F | F34: More developed | G34: =9022223*G52 -> 43696430.43 | H34: 0 | I34: 0 | J34: 0 | K34: 0 | L34: 0 | M34: 0 | N34: 0 | O34: 0 | P34: =SUMIFS(Achievement_finalised!$G$4:$G$71,Achievement_finalised!$B$4:$B$71,Projections!$C34,Achievement_finalised!$D$4:$D$71,Projections!$E34,Achievement_finalised!$E$4:$E$71,Projections!$F34) -> 0 | Q34: =SUMIFS(Achievement_finalised!$G$4:$G$71,Achievement_finalised!$B$4:$B$71,Projections!$C34,Achievement_finalised!$D$4:$D$71,Projections!$E34,Achievement_finalised!$E$4:$E$71,Projections!$F34) -> 0 | R34: =SUMIFS(Achievement_finalised!$G$4:$G$71,Achievement_finalised!$B$4:$B$71,Projections!$C34,Achievement_finalised!$D$4:$D$71,Projections!$E34,Achievement_finalised!$E$4:$E$71,Projections!$F34) -> 0 | S34: =SUMIFS(Achievement_finalised!$G$4:$G$71,Achievement_finalised!$B$4:$B$71,Projections!$C34,Achievement_finalised!$D$4:$D$71,Projections!$E34,Achievement_finalised!$E$4:$E$71,Projections!$F34) -> 0 | T34: =SUMIFS(Achievement_forecast_ongoing!G$6:G$49822,Achievement_forecast_ongoing!$C$6:$C$49822,Projections!$C34,Achievement_forecast_ongoing!$E$6:$E$49822,Projections!$E34,Achievement_forecast_ongoing!$F$6:$F$49822,Projections!$F34) -> 0 | U34: =SUMIFS(Achievement_forecast_ongoing!H$6:H$49822,Achievement_forecast_ongoing!$C$6:$C$49822,Projections!$C34,Achievement_forecast_ongoing!$E$6:$E$49822,Projections!$E34,Achievement_forecast_ongoing!$F$6:$F$49822,Projections!$F34) -> 0 | V34: =SUMIFS(Achievement_forecast_ongoing!I$6:I$49822,Achievement_forecast_ongoing!$C$6:$C$49822,Projections!$C34,Achievement_forecast_ongoing!$E$6:$E$49822,Projections!$E34,Achievement_forecast_ongoing!$F$6:$F$49822,Projections!$F34) -> 0 | W34: =SUMIFS(Achievement_forecast_ongoing!J$6:J$49822,Achievement_forecast_ongoing!$C$6:$C$49822,Projections!$C34,Achievement_forecast_ongoing!$E$6:$E$49822,Projections!$E34,Achievement_forecast_ongoing!$F$6:$F$49822,Projections!$F34) -> 0 | X34: =SUMIFS(Achievement_forecasts_future!G$4:G$71,Achievement_forecasts_future!$B$4:$B$71,Projections!$C34,Achievement_forecasts_future!$D$4:$D$71,Projections!$E34,Achievement_forecasts_future!$E$4:$E$71,Projections!$F34) -> 0 | Y34: =SUMIFS(Achievement_forecasts_future!H$4:H$71,Achievement_forecasts_future!$B$4:$B$71,Projections!$C34,Achievement_forecasts_future!$D$4:$D$71,Projections!$E34,Achievement_forecasts_future!$E$4:$E$71,Projections!$F34) -> 0 | Z34: =SUMIFS(Achievement_forecasts_future!I$4:I$71,Achievement_forecasts_future!$B$4:$B$71,Projections!$C34,Achievement_forecasts_future!$D$4:$D$71,Projections!$E34,Achievement_forecasts_future!$E$4:$E$71,Projections!$F34) -> 0 | AA34: =SUMIFS(Achievement_forecasts_future!J$4:J$71,Achievement_forecasts_future!$B$4:$B$71,Projections!$C34,Achievement_forecasts_future!$D$4:$D$71,Projections!$E34,Achievement_forecasts_future!$E$4:$E$71,Projections!$F34) -> 0
C35: 9 | D35: All | E35: CO39 | F35: Less developed | G35: 42356 | H35: 0 | I35: 0.2686478181 | J35: 1.284351686 | K35: 9.762489376 | L35: 0 | M35: 113.7884698 | N35: =ROUND(R35+V35+Z35, 0) -> 544 | O35: =ROUND(S35+W35+AA35, 0) -> 4135 | P35: =SUMIFS(Achievement_finalised!$G$4:$G$71,Achievement_finalised!$B$4:$B$71,Projections!$C35,Achievement_finalised!$D$4:$D$71,Projections!$E35,Achievement_finalised!$E$4:$E$71,Projections!$F35) -> 0 | Q35: =SUMIFS(Achievement_finalised!$G$4:$G$71,Achievement_finalised!$B$4:$B$71,Projections!$C35,Achievement_finalised!$D$4:$D$71,Projections!$E35,Achievement_finalised!$E$4:$E$71,Projections!$F35) -> 0 | R35: =SUMIFS(Achievement_finalised!$G$4:$G$71,Achievement_finalised!$B$4:$B$71,Projections!$C35,Achievement_finalised!$D$4:$D$71,Projections!$E35,Achievement_finalised!$E$4:$E$71,Projections!$F35) -> 0 | S35: =SUMIFS(Achievement_finalised!$G$4:$G$71,Achievement_finalised!$B$4:$B$71,Projections!$C35,Achievement_finalised!$D$4:$D$71,Projections!$E35,Achievement_finalised!$E$4:$E$71,Projections!$F35) -> 0 | T35: =SUMIFS(Achievement_forecast_ongoing!G$6:G$49822,Achievement_forecast_ongoing!$C$6:$C$49822,Projections!$C35,Achievement_forecast_ongoing!$E$6:$E$49822,Projections!$E35,Achievement_forecast_ongoing!$F$6:$F$49822,Projections!$F35) -> 0 | U35: =SUMIFS(Achievement_forecast_ongoing!H$6:H$49822,Achievement_forecast_ongoing!$C$6:$C$49822,Projections!$C35,Achievement_forecast_ongoing!$E$6:$E$49822,Projections!$E35,Achievement_forecast_ongoing!$F$6:$F$49822,Projections!$F35) -> 113.7884698 | V35: =SUMIFS(Achievement_forecast_ongoing!I$6:I$49822,Achievement_forecast_ongoing!$C$6:$C$49822,Projections!$C35,Achievement_forecast_ongoing!$E$6:$E$49822,Projections!$E35,Achievement_forecast_ongoing!$F$6:$F$49822,Projections!$F35) -> 543.8708784 | W35: =SUMIFS(Achievement_forecast_ongoing!J$6:J$49822,Achievement_forecast_ongoing!$C$6:$C$49822,Projections!$C35,Achievement_forecast_ongoing!$E$6:$E$49822,Projections!$E35,Achievement_forecast_ongoing!$F$6:$F$49822,Projections!$F35) -> 4134.696421 | X35: =SUMIFS(Achievement_forecasts_future!G$4:G$71,Achievement_forecasts_future!$B$4:$B$71,Projections!$C35,Achievement_forecasts_future!$D$4:$D$71,Projections!$E35,Achievement_forecasts_future!$E$4:$E$71,Projections!$F35) -> 0 | Y35: =SUMIFS(Achievement_forecasts_future!H$4:H$71,Achievement_forecasts_future!$B$4:$B$71,Projections!$C35,Achievement_forecasts_future!$D$4:$D$71,Projections!$E35,Achievement_forecasts_future!$E$4:$E$71,Projections!$F35) -> 0 | Z35: =SUMIFS(Achievement_forecasts_future!I$4:I$71,Achievement_forecasts_future!$B$4:$B$71,Projections!$C35,Achievement_forecasts_future!$D$4:$D$71,Projections!$E35,Achievement_forecasts_future!$E$4:$E$71,Projections!$F35) -> 0 | AA35: =SUMIFS(Achievement_forecasts_future!J$4:J$71,Achievement_forecasts_future!$B$4:$B$71,Projections!$C35,Achievement_forecasts_future!$D$4:$D$71,Projections!$E35,Achievement_forecasts_future!$E$4:$E$71,Projections!$F35) -> 0
C36: 9 | D36: All | E36: CO39 | F36: More developed | G36: 4869 | H36: 0 | I36: 0 | J36: 0 | K36: 0 | L36: 0 | M36: 0 | N36: =ROUND(R36+V36+Z36, 0) -> 0 | O36: =ROUND(S36+W36+AA36, 0) -> 0 | P36: =SUMIFS(Achievement_finalised!$G$4:$G$71,Achievement_finalised!$B$4:$B$71,Projections!$C36,Achievement_finalised!$D$4:$D$71,Projections!$E36,Achievement_finalised!$E$4:$E$71,Projections!$F36) -> 0 | Q36: =SUMIFS(Achievement_finalised!$G$4:$G$71,Achievement_finalised!$B$4:$B$71,Projections!$C36,Achievement_finalised!$D$4:$D$71,Projections!$E36,Achievement_finalised!$E$4:$E$71,Projections!$F36) -> 0 | R36: =SUMIFS(Achievement_finalised!$G$4:$G$71,Achievement_finalised!$B$4:$B$71,Projections!$C36,Achievement_finalised!$D$4:$D$71,Projections!$E36,Achievement_finalised!$E$4:$E$71,Projections!$F36) -> 0 | S36: =SUMIFS(Achievement_finalised!$G$4:$G$71,Achievement_finalised!$B$4:$B$71,Projections!$C36,Achievement_finalised!$D$4:$D$71,Projections!$E36,Achievement_finalised!$E$4:$E$71,Projections!$F36) -> 0 | T36: =SUMIFS(Achievement_forecast_ongoing!G$6:G$49822,Achievement_forecast_ongoing!$C$6:$C$49822,Projections!$C36,Achievement_forecast_ongoing!$E$6:$E$49822,Projections!$E36,Achievement_forecast_ongoing!$F$6:$F$49822,Projections!$F36) -> 0 | U36: =SUMIFS(Achievement_forecast_ongoing!H$6:H$49822,Achievement_forecast_ongoing!$C$6:$C$49822,Projections!$C36,Achievement_forecast_ongoing!$E$6:$E$49822,Projections!$E36,Achievement_forecast_ongoing!$F$6:$F$49822,Projections!$F36) -> 0 | V36: =SUMIFS(Achievement_forecast_ongoing!I$6:I$49822,Achievement_forecast_ongoing!$C$6:$C$49822,Projections!$C36,Achievement_forecast_ongoing!$E$6:$E$49822,Projections!$E36,Achievement_forecast_ongoing!$F$6:$F$49822,Projections!$F36) -> 0 | W36: =SUMIFS(Achievement_forecast_ongoing!J$6:J$49822,Achievement_forecast_ongoing!$C$6:$C$49822,Projections!$C36,Achievement_forecast_ongoing!$E$6:$E$49822,Projections!$E36,Achievement_forecast_ongoing!$F$6:$F$49822,Projections!$F36) -> 0 | X36: =SUMIFS(Achievement_forecasts_future!G$4:G$71,Achievement_forecasts_future!$B$4:$B$71,Projections!$C36,Achievement_forecasts_future!$D$4:$D$71,Projections!$E36,Achievement_forecasts_future!$E$4:$E$71,Projections!$F36) -> 0 | Y36: =SUMIFS(Achievement_forecasts_future!H$4:H$71,Achievement_forecasts_future!$B$4:$B$71,Projections!$C36,Achievement_forecasts_future!$D$4:$D$71,Projections!$E36,Achievement_forecasts_future!$E$4:$E$71,Projections!$F36) -> 0 | Z36: =SUMIFS(Achievement_forecasts_future!I$4:I$71,Achievement_forecasts_future!$B$4:$B$71,Projections!$C36,Achievement_forecasts_future!$D$4:$D$71,Projections!$E36,Achievement_forecasts_future!$E$4:$E$71,Projections!$F36) -> 0 | AA36: =SUMIFS(Achievement_forecasts_future!J$4:J$71,Achievement_forecasts_future!$B$4:$B$71,Projections!$C36,Achievement_forecasts_future!$D$4:$D$71,Projections!$E36,Achievement_forecasts_future!$E$4:$E$71,Projections!$F36) -> 0
C37: 10 | D37: All | E37: 1F | F37: Less developed | G37: =267969904*G52 -> 1297831839 | H37: 24.79298295 | I37: 211.2272669 | J37: 237.4290845 | K37: 249.5768503 | L37: 321771226.5 | M37: 2741374723 | N37: 3081430254 | O37: 3239087826 | P37: =SUMIFS(Achievement_finalised!$G$4:$G$71,Achievement_finalised!$B$4:$B$71,Projections!$C37,Achievement_finalised!$D$4:$D$71,Projections!$E37,Achievement_finalised!$E$4:$E$71,Projections!$F37) -> 47545558.52 | Q37: =SUMIFS(Achievement_finalised!$G$4:$G$71,Achievement_finalised!$B$4:$B$71,Projections!$C37,Achievement_finalised!$D$4:$D$71,Projections!$E37,Achievement_finalised!$E$4:$E$71,Projections!$F37) -> 47545558.52 | R37: =SUMIFS(Achievement_finalised!$G$4:$G$71,Achievement_finalised!$B$4:$B$71,Projections!$C37,Achievement_finalised!$D$4:$D$71,Projections!$E37,Achievement_finalised!$E$4:$E$71,Projections!$F37) -> 47545558.52 | S37: =SUMIFS(Achievement_finalised!$G$4:$G$71,Achievement_finalised!$B$4:$B$71,Projections!$C37,Achievement_finalised!$D$4:$D$71,Projections!$E37,Achievement_finalised!$E$4:$E$71,Projections!$F37) -> 47545558.52 | T37: =SUMIFS(Achievement_forecast_ongoing!G$6:G$49822,Achievement_forecast_ongoing!$C$6:$C$49822,Projections!$C37,Achievement_forecast_ongoing!$E$6:$E$49822,Projections!$E37,Achievement_forecast_ongoing!$F$6:$F$49822,Projections!$F37) -> 274225668 | U37: =SUMIFS(Achievement_forecast_ongoing!H$6:H$49822,Achievement_forecast_ongoing!$C$6:$C$49822,Projections!$C37,Achievement_forecast_ongoing!$E$6:$E$49822,Projections!$E37,Achievement_forecast_ongoing!$F$6:$F$49822,Projections!$F37) -> 2693829164 | V37: =SUMIFS(Achievement_forecast_ongoing!I$6:I$49822,Achievement_forecast_ongoing!$C$6:$C$49822,Projections!$C37,Achievement_forecast_ongoing!$E$6:$E$49822,Projections!$E37,Achievement_forecast_ongoing!$F$6:$F$49822,Projections!$F37) -> 2919664993 | W37: =SUMIFS(Achievement_forecast_ongoing!J$6:J$49822,Achievement_forecast_ongoing!$C$6:$C$49822,Projections!$C37,Achievement_forecast_ongoing!$E$6:$E$49822,Projections!$E37,Achievement_forecast_ongoing!$F$6:$F$49822,Projections!$F37) -> 2994619488 | X37: =SUMIFS(Achievement_forecasts_future!G$4:G$71,Achievement_forecasts_future!$B$4:$B$71,Projections!$C37,Achievement_forecasts_future!$D$4:$D$71,Projections!$E37,Achievement_forecasts_future!$E$4:$E$71,Projections!$F37) -> 0 | Y37: =SUMIFS(Achievement_forecasts_future!H$4:H$71,Achievement_forecasts_future!$B$4:$B$71,Projections!$C37,Achievement_forecasts_future!$D$4:$D$71,Projections!$E37,Achievement_forecasts_future!$E$4:$E$71,Projections!$F37) -> 0 | Z37: =SUMIFS(Achievement_forecasts_future!I$4:I$71,Achievement_forecasts_future!$B$4:$B$71,Projections!$C37,Achievement_forecasts_future!$D$4:$D$71,Projections!$E37,Achievement_forecasts_future!$E$4:$E$71,Projections!$F37) -> 114219702.9 | AA37: =SUMIFS(Achievement_forecasts_future!J$4:J$71,Achievement_forecasts_future!$B$4:$B$71,Projections!$C37,Achievement_forecasts_future!$D$4:$D$71,Projections!$E37,Achievement_forecasts_future!$E$4:$E$71,Projections!$F37) -> 196922779.3
C38: 10 | D38: All | E38: 1F | F38: More developed | G38: =49999999*G52 -> 242159995.2 | H38: 14.37017912 | I38: 107.136011 | J38: 125.4819776 | K38: 137.3492528 | L38: 34798825.05 | M38: 259440559 | N38: 303867150.9 | O38: 332604943.9 | P38: =SUMIFS(Achievement_finalised!$G$4:$G$71,Achievement_finalised!$B$4:$B$71,Projections!$C38,Achievement_finalised!$D$4:$D$71,Projections!$E38,Achievement_finalised!$E$4:$E$71,Projections!$F38) -> 16096007.43 | Q38: =SUMIFS(Achievement_finalised!$G$4:$G$71,Achievement_finalised!$B$4:$B$71,Projections!$C38,Achievement_finalised!$D$4:$D$71,Projections!$E38,Achievement_finalised!$E$4:$E$71,Projections!$F38) -> 16096007.43 | R38: =SUMIFS(Achievement_finalised!$G$4:$G$71,Achievement_finalised!$B$4:$B$71,Projections!$C38,Achievement_finalised!$D$4:$D$71,Projections!$E38,Achievement_finalised!$E$4:$E$71,Projections!$F38) -> 16096007.43 | S38: =SUMIFS(Achievement_finalised!$G$4:$G$71,Achievement_finalised!$B$4:$B$71,Projections!$C38,Achievement_finalised!$D$4:$D$71,Projections!$E38,Achievement_finalised!$E$4:$E$71,Projections!$F38) -> 16096007.43 | T38: =SUMIFS(Achievement_forecast_ongoing!G$6:G$49822,Achievement_forecast_ongoing!$C$6:$C$49822,Projections!$C38,Achievement_forecast_ongoing!$E$6:$E$49822,Projections!$E38,Achievement_forecast_ongoing!$F$6:$F$49822,Projections!$F38) -> 18702817.62 | U38: =SUMIFS(Achievement_forecast_ongoing!H$6:H$49822,Achievement_forecast_ongoing!$C$6:$C$49822,Projections!$C38,Achievement_forecast_ongoing!$E$6:$E$49822,Projections!$E38,Achievement_forecast_ongoing!$F$6:$F$49822,Projections!$F38) -> 243344551.5 | V38: =SUMIFS(Achievement_forecast_ongoing!I$6:I$49822,Achievement_forecast_ongoing!$C$6:$C$49822,Projections!$C38,Achievement_forecast_ongoing!$E$6:$E$49822,Projections!$E38,Achievement_forecast_ongoing!$F$6:$F$49822,Projections!$F38) -> 249103363.7 | W38: =SUMIFS(Achievement_forecast_ongoing!J$6:J$49822,Achievement_forecast_ongoing!$C$6:$C$49822,Projections!$C38,Achievement_forecast_ongoing!$E$6:$E$49822,Projections!$E38,Achievement_forecast_ongoing!$F$6:$F$49822,Projections!$F38) -> 249842971.9 | X38: =SUMIFS(Achievement_forecasts_future!G$4:G$71,Achievement_forecasts_future!$B$4:$B$71,Projections!$C38,Achievement_forecasts_future!$D$4:$D$71,Projections!$E38,Achievement_forecasts_future!$E$4:$E$71,Projections!$F38) -> 0 | Y38: =SUMIFS(Achievement_forecasts_future!H$4:H$71,Achievement_forecasts_future!$B$4:$B$71,Projections!$C38,Achievement_forecasts_future!$D$4:$D$71,Projections!$E38,Achievement_forecasts_future!$E$4:$E$71,Projections!$F38) -> 0 | Z38: =SUMIFS(Achievement_forecasts_future!I$4:I$71,Achievement_forecasts_future!$B$4:$B$71,Projections!$C38,Achievement_forecasts_future!$D$4:$D$71,Projections!$E38,Achievement_forecasts_future!$E$4:$E$71,Projections!$F38) -> 38667779.79 | AA38: =SUMIFS(Achievement_forecasts_future!J$4:J$71,Achievement_forecasts_future!$B$4:$B$71,Projections!$C38,Achievement_forecasts_future!$D$4:$D$71,Projections!$E38,Achievement_forecasts_future!$E$4:$E$71,Projections!$F38) -> 66665964.55
C39: 10 | D39: All | E39: 1S55 | F39: Less developed | G39: 42912 | H39: 5.753635347 | I39: 31.92751552 | J39: 58.31469053 | K39: 78.47455257 | L39: 2469 | M39: 13700.73546 | N39: =ROUND(R39+V39+Z39, 0) -> 25024 | O39: 33675 | P39: =SUMIFS(Achievement_finalised!$G$4:$G$71,Achievement_finalised!$B$4:$B$71,Projections!$C39,Achievement_finalised!$D$4:$D$71,Projections!$E39,Achievement_finalised!$E$4:$E$71,Projections!$F39) -> 2469 | Q39: =SUMIFS(Achievement_finalised!$G$4:$G$71,Achievement_finalised!$B$4:$B$71,Projections!$C39,Achievement_finalised!$D$4:$D$71,Projections!$E39,Achievement_finalised!$E$4:$E$71,Projections!$F39) -> 2469 | R39: =SUMIFS(Achievement_finalised!$G$4:$G$71,Achievement_finalised!$B$4:$B$71,Projections!$C39,Achievement_finalised!$D$4:$D$71,Projections!$E39,Achievement_finalised!$E$4:$E$71,Projections!$F39) -> 2469 | S39: =SUMIFS(Achievement_finalised!$G$4:$G$71,Achievement_finalised!$B$4:$B$71,Projections!$C39,Achievement_finalised!$D$4:$D$71,Projections!$E39,Achievement_finalised!$E$4:$E$71,Projections!$F39) -> 2469 | T39: =SUMIFS(Achievement_forecast_ongoing!G$6:G$49822,Achievement_forecast_ongoing!$C$6:$C$49822,Projections!$C39,Achievement_forecast_ongoing!$E$6:$E$49822,Projections!$E39,Achievement_forecast_ongoing!$F$6:$F$49822,Projections!$F39) -> 0 | U39: =SUMIFS(Achievement_forecast_ongoing!H$6:H$49822,Achievement_forecast_ongoing!$C$6:$C$49822,Projections!$C39,Achievement_forecast_ongoing!$E$6:$E$49822,Projections!$E39,Achievement_forecast_ongoing!$F$6:$F$49822,Projections!$F39) -> 11231.73546 | V39: =SUMIFS(Achievement_forecast_ongoing!I$6:I$49822,Achievement_forecast_ongoing!$C$6:$C$49822,Projections!$C39,Achievement_forecast_ongoing!$E$6:$E$49822,Projections!$E39,Achievement_forecast_ongoing!$F$6:$F$49822,Projections!$F39) -> 22554.73841 | W39: =SUMIFS(Achievement_forecast_ongoing!J$6:J$49822,Achievement_forecast_ongoing!$C$6:$C$49822,Projections!$C39,Achievement_forecast_ongoing!$E$6:$E$49822,Projections!$E39,Achievement_forecast_ongoing!$F$6:$F$49822,Projections!$F39) -> 31205.97942 | X39: =SUMIFS(Achievement_forecasts_future!G$4:G$71,Achievement_forecasts_future!$B$4:$B$71,Projections!$C39,Achievement_forecasts_future!$D$4:$D$71,Projections!$E39,Achievement_forecasts_future!$E$4:$E$71,Projections!$F39) -> 0 | Y39: =SUMIFS(Achievement_forecasts_future!H$4:H$71,Achievement_forecasts_future!$B$4:$B$71,Projections!$C39,Achievement_forecasts_future!$D$4:$D$71,Projections!$E39,Achievement_forecasts_future!$E$4:$E$71,Projections!$F39) -> 0 | Z39: =SUMIFS(Achievement_forecasts_future!I$4:I$71,Achievement_forecasts_future!$B$4:$B$71,Projections!$C39,Achievement_forecasts_future!$D$4:$D$71,Projections!$E39,Achievement_forecasts_future!$E$4:$E$71,Projections!$F39) -> 0 | AA39: =SUMIFS(Achievement_forecasts_future!J$4:J$71,Achievement_forecasts_future!$B$4:$B$71,Projections!$C39,Achievement_forecasts_future!$D$4:$D$71,Projections!$E39,Achievement_forecasts_future!$E$4:$E$71,Projections!$F39) -> 0
C40: 10 | D40: All | E40: 1S55 | F40: More developed | G40: 7648 | H40: 0 | I40: 1.03532739 | J40: 22.14958159 | K40: 176.582113 | L40: 0 | M40: 79.1818388 | N40: 1694 | O40: 13505 | P40: =SUMIFS(Achievement_finalised!$G$4:$G$71,Achievement_finalised!$B$4:$B$71,Projections!$C40,Achievement_finalised!$D$4:$D$71,Projections!$E40,Achievement_finalised!$E$4:$E$71,Projections!$F40) -> 0 | Q40: =SUMIFS(Achievement_finalised!$G$4:$G$71,Achievement_finalised!$B$4:$B$71,Projections!$C40,Achievement_finalised!$D$4:$D$71,Projections!$E40,Achievement_finalised!$E$4:$E$71,Projections!$F40) -> 0 | R40: =SUMIFS(Achievement_finalised!$G$4:$G$71,Achievement_finalised!$B$4:$B$71,Projections!$C40,Achievement_finalised!$D$4:$D$71,Projections!$E40,Achievement_finalised!$E$4:$E$71,Projections!$F40) -> 0 | S40: =SUMIFS(Achievement_finalised!$G$4:$G$71,Achievement_finalised!$B$4:$B$71,Projections!$C40,Achievement_finalised!$D$4:$D$71,Projections!$E40,Achievement_finalised!$E$4:$E$71,Projections!$F40) -> 0 | T40: =SUMIFS(Achievement_forecast_ongoing!G$6:G$49822,Achievement_forecast_ongoing!$C$6:$C$49822,Projections!$C40,Achievement_forecast_ongoing!$E$6:$E$49822,Projections!$E40,Achievement_forecast_ongoing!$F$6:$F$49822,Projections!$F40) -> 0 | U40: =SUMIFS(Achievement_forecast_ongoing!H$6:H$49822,Achievement_forecast_ongoing!$C$6:$C$49822,Projections!$C40,Achievement_forecast_ongoing!$E$6:$E$49822,Projections!$E40,Achievement_forecast_ongoing!$F$6:$F$49822,Projections!$F40) -> 79.1818388 | V40: =SUMIFS(Achievement_forecast_ongoing!I$6:I$49822,Achievement_forecast_ongoing!$C$6:$C$49822,Projections!$C40,Achievement_forecast_ongoing!$E$6:$E$49822,Projections!$E40,Achievement_forecast_ongoing!$F$6:$F$49822,Projections!$F40) -> 1693.657857 | W40: =SUMIFS(Achievement_forecast_ongoing!J$6:J$49822,Achievement_forecast_ongoing!$C$6:$C$49822,Projections!$C40,Achievement_forecast_ongoing!$E$6:$E$49822,Projections!$E40,Achievement_forecast_ongoing!$F$6:$F$49822,Projections!$F40) -> 13505.08773 | X40: =SUMIFS(Achievement_forecasts_future!G$4:G$71,Achievement_forecasts_future!$B$4:$B$71,Projections!$C40,Achievement_forecasts_future!$D$4:$D$71,Projections!$E40,Achievement_forecasts_future!$E$4:$E$71,Projections!$F40) -> 0 | Y40: =SUMIFS(Achievement_forecasts_future!H$4:H$71,Achievement_forecasts_future!$B$4:$B$71,Projections!$C40,Achievement_forecasts_future!$D$4:$D$71,Projections!$E40,Achievement_forecasts_future!$E$4:$E$71,Projections!$F40) -> 0 | Z40: =SUMIFS(Achievement_forecasts_future!I$4:I$71,Achievement_forecasts_future!$B$4:$B$71,Projections!$C40,Achievement_forecasts_future!$D$4:$D$71,Projections!$E40,Achievement_forecasts_future!$E$4:$E$71,Projections!$F40) -> 0 | AA40: =SUMIFS(Achievement_forecasts_future!J$4:J$71,Achievement_forecasts_future!$B$4:$B$71,Projections!$C40,Achievement_forecasts_future!$D$4:$D$71,Projections!$E40,Achievement_forecasts_future!$E$4:$E$71,Projections!$F40) -> 0
C41: 10 | D41: All | E41: 1S66 | F41: Less developed | G41: 32077 | H41: 0.2743398697 | I41: 23.60939067 | J41: 104.4050254 | K41: 145.7025283 | L41: =P41+T41+X41 -> 88 | M41: =Q41+U41+Y41 -> 7573.184245 | N41: 33490 | O41: 46737 | P41: =SUMIFS(Achievement_finalised!$G$4:$G$71,Achievement_finalised!$B$4:$B$71,Projections!$C41,Achievement_finalised!$D$4:$D$71,Projections!$E41,Achievement_finalised!$E$4:$E$71,Projections!$F41) -> 88 | Q41: =SUMIFS(Achievement_finalised!$G$4:$G$71,Achievement_finalised!$B$4:$B$71,Projections!$C41,Achievement_finalised!$D$4:$D$71,Projections!$E41,Achievement_finalised!$E$4:$E$71,Projections!$F41) -> 88 | R41: =SUMIFS(Achievement_finalised!$G$4:$G$71,Achievement_finalised!$B$4:$B$71,Projections!$C41,Achievement_finalised!$D$4:$D$71,Projections!$E41,Achievement_finalised!$E$4:$E$71,Projections!$F41) -> 88 | S41: =SUMIFS(Achievement_finalised!$G$4:$G$71,Achievement_finalised!$B$4:$B$71,Projections!$C41,Achievement_finalised!$D$4:$D$71,Projections!$E41,Achievement_finalised!$E$4:$E$71,Projections!$F41) -> 88 | T41: =SUMIFS(Achievement_forecast_ongoing!G$6:G$49822,Achievement_forecast_ongoing!$C$6:$C$49822,Projections!$C41,Achievement_forecast_ongoing!$E$6:$E$49822,Projections!$E41,Achievement_forecast_ongoing!$F$6:$F$49822,Projections!$F41) -> 0 | U41: =SUMIFS(Achievement_forecast_ongoing!H$6:H$49822,Achievement_forecast_ongoing!$C$6:$C$49822,Projections!$C41,Achievement_forecast_ongoing!$E$6:$E$49822,Projections!$E41,Achievement_forecast_ongoing!$F$6:$F$49822,Projections!$F41) -> 7485.184245 | V41: =SUMIFS(Achievement_forecast_ongoing!I$6:I$49822,Achievement_forecast_ongoing!$C$6:$C$49822,Projections!$C41,Achievement_forecast_ongoing!$E$6:$E$49822,Projections!$E41,Achievement_forecast_ongoing!$F$6:$F$49822,Projections!$F41) -> 33402.23358 | W41: =SUMIFS(Achievement_forecast_ongoing!J$6:J$49822,Achievement_forecast_ongoing!$C$6:$C$49822,Projections!$C41,Achievement_forecast_ongoing!$E$6:$E$49822,Projections!$E41,Achievement_forecast_ongoing!$F$6:$F$49822,Projections!$F41) -> 46649.35521 | X41: =SUMIFS(Achievement_forecasts_future!G$4:G$71,Achievement_forecasts_future!$B$4:$B$71,Projections!$C41,Achievement_forecasts_future!$D$4:$D$71,Projections!$E41,Achievement_forecasts_future!$E$4:$E$71,Projections!$F41) -> 0 | Y41: =SUMIFS(Achievement_forecasts_future!H$4:H$71,Achievement_forecasts_future!$B$4:$B$71,Projections!$C41,Achievement_forecasts_future!$D$4:$D$71,Projections!$E41,Achievement_forecasts_future!$E$4:$E$71,Projections!$F41) -> 0 | Z41: =SUMIFS(Achievement_forecasts_future!I$4:I$71,Achievement_forecasts_future!$B$4:$B$71,Projections!$C41,Achievement_forecasts_future!$D$4:$D$71,Projections!$E41,Achievement_forecasts_future!$E$4:$E$71,Projections!$F41) -> 0 | AA41: =SUMIFS(Achievement_forecasts_future!J$4:J$71,Achievement_forecasts_future!$B$4:$B$71,Projections!$C41,Achievement_forecasts_future!$D$4:$D$71,Projections!$E41,Achievement_forecasts_future!$E$4:$E$71,Projections!$F41) -> 0
C42: 10 | D42: All | E42: 1S66 | F42: More developed | G42: 5238 | H42: 85.33791523 | I42: 112.3333513 | J42: 112.3329515 | K42: 126.2504773 | L42: 4470 | M42: 5884.020942 | N42: 5884 | O42: 6613 | P42: =SUMIFS(Achievement_finalised!$G$4:$G$71,Achievement_finalised!$B$4:$B$71,Projections!$C42,Achievement_finalised!$D$4:$D$71,Projections!$E42,Achievement_finalised!$E$4:$E$71,Projections!$F42) -> 4470 | Q42: =SUMIFS(Achievement_finalised!$G$4:$G$71,Achievement_finalised!$B$4:$B$71,Projections!$C42,Achievement_finalised!$D$4:$D$71,Projections!$E42,Achievement_finalised!$E$4:$E$71,Projections!$F42) -> 4470 | R42: =SUMIFS(Achievement_finalised!$G$4:$G$71,Achievement_finalised!$B$4:$B$71,Projections!$C42,Achievement_finalised!$D$4:$D$71,Projections!$E42,Achievement_finalised!$E$4:$E$71,Projections!$F42) -> 4470 | S42: =SUMIFS(Achievement_finalised!$G$4:$G$71,Achievement_finalised!$B$4:$B$71,Projections!$C42,Achievement_finalised!$D$4:$D$71,Projections!$E42,Achievement_finalised!$E$4:$E$71,Projections!$F42) -> 4470 | T42: =SUMIFS(Achievement_forecast_ongoing!G$6:G$49822,Achievement_forecast_ongoing!$C$6:$C$49822,Projections!$C42,Achievement_forecast_ongoing!$E$6:$E$49822,Projections!$E42,Achievement_forecast_ongoing!$F$6:$F$49822,Projections!$F42) -> 0 | U42: =SUMIFS(Achievement_forecast_ongoing!H$6:H$49822,Achievement_forecast_ongoing!$C$6:$C$49822,Projections!$C42,Achievement_forecast_ongoing!$E$6:$E$49822,Projections!$E42,Achievement_forecast_ongoing!$F$6:$F$49822,Projections!$F42) -> 1414.020942 | V42: =SUMIFS(Achievement_forecast_ongoing!I$6:I$49822,Achievement_forecast_ongoing!$C$6:$C$49822,Projections!$C42,Achievement_forecast_ongoing!$E$6:$E$49822,Projections!$E42,Achievement_forecast_ongoing!$F$6:$F$49822,Projections!$F42) -> 1414.020942 | W42: =SUMIFS(Achievement_forecast_ongoing!J$6:J$49822,Achievement_forecast_ongoing!$C$6:$C$49822,Projections!$C42,Achievement_forecast_ongoing!$E$6:$E$49822,Projections!$E42,Achievement_forecast_ongoing!$F$6:$F$49822,Projections!$F42) -> 2143.327352 | X42: =SUMIFS(Achievement_forecasts_future!G$4:G$71,Achievement_forecasts_future!$B$4:$B$71,Projections!$C42,Achievement_forecasts_future!$D$4:$D$71,Projections!$E42,Achievement_forecasts_future!$E$4:$E$71,Projections!$F42) -> 0 | Y42: =SUMIFS(Achievement_forecasts_future!H$4:H$71,Achievement_forecasts_future!$B$4:$B$71,Projections!$C42,Achievement_forecasts_future!$D$4:$D$71,Projections!$E42,Achievement_forecasts_future!$E$4:$E$71,Projections!$F42) -> 0 | Z42: =SUMIFS(Achievement_forecasts_future!I$4:I$71,Achievement_forecasts_future!$B$4:$B$71,Projections!$C42,Achievement_forecasts_future!$D$4:$D$71,Projections!$E42,Achievement_forecasts_future!$E$4:$E$71,Projections!$F42) -> 0 | AA42: =SUMIFS(Achievement_forecasts_future!J$4:J$71,Achievement_forecasts_future!$B$4:$B$71,Projections!$C42,Achievement_forecasts_future!$D$4:$D$71,Projections!$E42,Achievement_forecasts_future!$E$4:$E$71,Projections!$F42) -> 0
C43: 11 | D43: All | E43: 1F | F43: All | G43: =280264744*G52 -> 1357378208 | H43: 6.260812899 | I43: 89.7278257 | J43: 93.445047 | K43: 96.43326262 | L43: 84982909.95 | M43: 1217945953 | N43: =R43+V43+Z43 -> 1268402705 | O43: =S43+W43+AA43 -> 1308964092 | P43: =SUMIFS(Achievement_finalised!$G$4:$G$71,Achievement_finalised!$B$4:$B$71,Projections!$C43,Achievement_finalised!$D$4:$D$71,Projections!$E43,Achievement_finalised!$E$4:$E$71,Projections!$F43) -> 0 | Q43: =SUMIFS(Achievement_finalised!$G$4:$G$71,Achievement_finalised!$B$4:$B$71,Projections!$C43,Achievement_finalised!$D$4:$D$71,Projections!$E43,Achievement_finalised!$E$4:$E$71,Projections!$F43) -> 0 | R43: =SUMIFS(Achievement_finalised!$G$4:$G$71,Achievement_finalised!$B$4:$B$71,Projections!$C43,Achievement_finalised!$D$4:$D$71,Projections!$E43,Achievement_finalised!$E$4:$E$71,Projections!$F43) -> 0 | S43: =SUMIFS(Achievement_finalised!$G$4:$G$71,Achievement_finalised!$B$4:$B$71,Projections!$C43,Achievement_finalised!$D$4:$D$71,Projections!$E43,Achievement_finalised!$E$4:$E$71,Projections!$F43) -> 0 | T43: =SUMIFS(Achievement_forecast_ongoing!G$6:G$49822,Achievement_forecast_ongoing!$C$6:$C$49822,Projections!$C43,Achievement_forecast_ongoing!$E$6:$E$49822,Projections!$E43,Achievement_forecast_ongoing!$F$6:$F$49822,Projections!$F43) -> 84982909.95 | U43: =SUMIFS(Achievement_forecast_ongoing!H$6:H$49822,Achievement_forecast_ongoing!$C$6:$C$49822,Projections!$C43,Achievement_forecast_ongoing!$E$6:$E$49822,Projections!$E43,Achievement_forecast_ongoing!$F$6:$F$49822,Projections!$F43) -> 1217945953 | V43: =SUMIFS(Achievement_forecast_ongoing!I$6:I$49822,Achievement_forecast_ongoing!$C$6:$C$49822,Projections!$C43,Achievement_forecast_ongoing!$E$6:$E$49822,Projections!$E43,Achievement_forecast_ongoing!$F$6:$F$49822,Projections!$F43) -> 1268402705 | W43: =SUMIFS(Achievement_forecast_ongoing!J$6:J$49822,Achievement_forecast_ongoing!$C$6:$C$49822,Projections!$C43,Achievement_forecast_ongoing!$E$6:$E$49822,Projections!$E43,Achievement_forecast_ongoing!$F$6:$F$49822,Projections!$F43) -> 1308964092 | X43: =SUMIFS(Achievement_forecasts_future!G$4:G$71,Achievement_forecasts_future!$B$4:$B$71,Projections!$C43,Achievement_forecasts_future!$D$4:$D$71,Projections!$E43,Achievement_forecasts_future!$E$4:$E$71,Projections!$F43) -> 0 | Y43: =SUMIFS(Achievement_forecasts_future!H$4:H$71,Achievement_forecasts_future!$B$4:$B$71,Projections!$C43,Achievement_forecasts_future!$D$4:$D$71,Projections!$E43,Achievement_forecasts_future!$E$4:$E$71,Projections!$F43) -> 0 | Z43: =SUMIFS(Achievement_forecasts_future!I$4:I$71,Achievement_forecasts_future!$B$4:$B$71,Projections!$C43,Achievement_forecasts_future!$D$4:$D$71,Projections!$E43,Achievement_forecasts_future!$E$4:$E$71,Projections!$F43) -> 0 | AA43: =SUMIFS(Achievement_forecasts_future!J$4:J$71,Achievement_forecasts_future!$B$4:$B$71,Projections!$C43,Achievement_forecasts_future!$D$4:$D$71,Projections!$E43,Achievement_forecasts_future!$E$4:$E$71,Projections!$F43) -> 0
C44: 11 | D44: All | E44: 1S57 | F44: All | G44: 5756387 | H44: 0 | I44: 0 | J44: 0 | K44: 0.119971086 | L44: 0 | M44: 0 | N44: =ROUND(R44+V44+Z44, 0) -> 0 | O44: =ROUND(S44+W44+AA44, 0) -> 6906 | P44: =SUMIFS(Achievement_finalised!$G$4:$G$71,Achievement_finalised!$B$4:$B$71,Projections!$C44,Achievement_finalised!$D$4:$D$71,Projections!$E44,Achievement_finalised!$E$4:$E$71,Projections!$F44) -> 0 | Q44: =SUMIFS(Achievement_finalised!$G$4:$G$71,Achievement_finalised!$B$4:$B$71,Projections!$C44,Achievement_finalised!$D$4:$D$71,Projections!$E44,Achievement_finalised!$E$4:$E$71,Projections!$F44) -> 0 | R44: =SUMIFS(Achievement_finalised!$G$4:$G$71,Achievement_finalised!$B$4:$B$71,Projections!$C44,Achievement_finalised!$D$4:$D$71,Projections!$E44,Achievement_finalised!$E$4:$E$71,Projections!$F44) -> 0 | S44: =SUMIFS(Achievement_finalised!$G$4:$G$71,Achievement_finalised!$B$4:$B$71,Projections!$C44,Achievement_finalised!$D$4:$D$71,Projections!$E44,Achievement_finalised!$E$4:$E$71,Projections!$F44) -> 0 | T44: =SUMIFS(Achievement_forecast_ongoing!G$6:G$49822,Achievement_forecast_ongoing!$C$6:$C$49822,Projections!$C44,Achievement_forecast_ongoing!$E$6:$E$49822,Projections!$E44,Achievement_forecast_ongoing!$F$6:$F$49822,Projections!$F44) -> 0 | U44: =SUMIFS(Achievement_forecast_ongoing!H$6:H$49822,Achievement_forecast_ongoing!$C$6:$C$49822,Projections!$C44,Achievement_forecast_ongoing!$E$6:$E$49822,Projections!$E44,Achievement_forecast_ongoing!$F$6:$F$49822,Projections!$F44) -> 0 | V44: =SUMIFS(Achievement_forecast_ongoing!I$6:I$49822,Achievement_forecast_ongoing!$C$6:$C$49822,Projections!$C44,Achievement_forecast_ongoing!$E$6:$E$49822,Projections!$E44,Achievement_forecast_ongoing!$F$6:$F$49822,Projections!$F44) -> 0 | W44: =SUMIFS(Achievement_forecast_ongoing!J$6:J$49822,Achievement_forecast_ongoing!$C$6:$C$49822,Projections!$C44,Achievement_forecast_ongoing!$E$6:$E$49822,Projections!$E44,Achievement_forecast_ongoing!$F$6:$F$49822,Projections!$F44) -> 6905.555556 | X44: =SUMIFS(Achievement_forecasts_future!G$4:G$71,Achievement_forecasts_future!$B$4:$B$71,Projections!$C44,Achievement_forecasts_future!$D$4:$D$71,Projections!$E44,Achievement_forecasts_future!$E$4:$E$71,Projections!$F44) -> 0 | Y44: =SUMIFS(Achievement_forecasts_future!H$4:H$71,Achievement_forecasts_future!$B$4:$B$71,Projections!$C44,Achievement_forecasts_future!$D$4:$D$71,Projections!$E44,Achievement_forecasts_future!$E$4:$E$71,Projections!$F44) -> 0 | Z44: =SUMIFS(Achievement_forecasts_future!I$4:I$71,Achievement_forecasts_future!$B$4:$B$71,Projections!$C44,Achievement_forecasts_future!$D$4:$D$71,Projections!$E44,Achievement_forecasts_future!$E$4:$E$71,Projections!$F44) -> 0 | AA44: =SUMIFS(Achievement_forecasts_future!J$4:J$71,Achievement_forecasts_future!$B$4:$B$71,Projections!$C44,Achievement_forecasts_future!$D$4:$D$71,Projections!$E44,Achievement_forecasts_future!$E$4:$E$71,Projections!$F44) -> 0
C45: 13 | D45: All | E45: 1F | F45: All | G45: =287036048*G52 -> 1390172988 | H45: 0.8904127264 | I45: 8.290381247 | J45: 26.00448718 | K45: 46.71306187 | L45: 12378277.2 | M45: 115250640.7 | N45: 361507356.3 | O45: 649392367.9 | P45: =SUMIFS(Achievement_finalised!$G$4:$G$71,Achievement_finalised!$B$4:$B$71,Projections!$C45,Achievement_finalised!$D$4:$D$71,Projections!$E45,Achievement_finalised!$E$4:$E$71,Projections!$F45) -> 188570.27 | Q45: =SUMIFS(Achievement_finalised!$G$4:$G$71,Achievement_finalised!$B$4:$B$71,Projections!$C45,Achievement_finalised!$D$4:$D$71,Projections!$E45,Achievement_finalised!$E$4:$E$71,Projections!$F45) -> 188570.27 | R45: =SUMIFS(Achievement_finalised!$G$4:$G$71,Achievement_finalised!$B$4:$B$71,Projections!$C45,Achievement_finalised!$D$4:$D$71,Projections!$E45,Achievement_finalised!$E$4:$E$71,Projections!$F45) -> 188570.27 | S45: =SUMIFS(Achievement_finalised!$G$4:$G$71,Achievement_finalised!$B$4:$B$71,Projections!$C45,Achievement_finalised!$D$4:$D$71,Projections!$E45,Achievement_finalised!$E$4:$E$71,Projections!$F45) -> 188570.27 | T45: =SUMIFS(Achievement_forecast_ongoing!G$6:G$49822,Achievement_forecast_ongoing!$C$6:$C$49822,Projections!$C45,Achievement_forecast_ongoing!$E$6:$E$49822,Projections!$E45,Achievement_forecast_ongoing!$F$6:$F$49822,Projections!$F45) -> 12189706.93 | U45: =SUMIFS(Achievement_forecast_ongoing!H$6:H$49822,Achievement_forecast_ongoing!$C$6:$C$49822,Projections!$C45,Achievement_forecast_ongoing!$E$6:$E$49822,Projections!$E45,Achievement_forecast_ongoing!$F$6:$F$49822,Projections!$F45) -> 115062070.4 | V45: =SUMIFS(Achievement_forecast_ongoing!I$6:I$49822,Achievement_forecast_ongoing!$C$6:$C$49822,Projections!$C45,Achievement_forecast_ongoing!$E$6:$E$49822,Projections!$E45,Achievement_forecast_ongoing!$F$6:$F$49822,Projections!$F45) -> 123573728.2 | W45: =SUMIFS(Achievement_forecast_ongoing!J$6:J$49822,Achievement_forecast_ongoing!$C$6:$C$49822,Projections!$C45,Achievement_forecast_ongoing!$E$6:$E$49822,Projections!$E45,Achievement_forecast_ongoing!$F$6:$F$49822,Projections!$F45) -> 126160420 | X45: =SUMIFS(Achievement_forecasts_future!G$4:G$71,Achievement_forecasts_future!$B$4:$B$71,Projections!$C45,Achievement_forecasts_future!$D$4:$D$71,Projections!$E45,Achievement_forecasts_future!$E$4:$E$71,Projections!$F45) -> 0 | Y45: =SUMIFS(Achievement_forecasts_future!H$4:H$71,Achievement_forecasts_future!$B$4:$B$71,Projections!$C45,Achievement_forecasts_future!$D$4:$D$71,Projections!$E45,Achievement_forecasts_future!$E$4:$E$71,Projections!$F45) -> 0 | Z45: =SUMIFS(Achievement_forecasts_future!I$4:I$71,Achievement_forecasts_future!$B$4:$B$71,Projections!$C45,Achievement_forecasts_future!$D$4:$D$71,Projections!$E45,Achievement_forecasts_future!$E$4:$E$71,Projections!$F45) -> 237745057.8 | AA45: =SUMIFS(Achievement_forecasts_future!J$4:J$71,Achievement_forecasts_future!$B$4:$B$71,Projections!$C45,Achievement_forecasts_future!$D$4:$D$71,Projections!$E45,Achievement_forecasts_future!$E$4:$E$71,Projections!$F45) -> 523043377.6
C46: 13 | D46: All | E46: CO39 | F46: All | G46: 84654 | H46: 0 | I46: 0 | J46: 0 | K46: 0 | L46: 0 | M46: 0 | N46: =ROUND(R46+V46+Z46, 0) -> 0 | O46: =ROUND(S46+W46+AA46, 0) -> 0 | P46: =SUMIFS(Achievement_finalised!$G$4:$G$71,Achievement_finalised!$B$4:$B$71,Projections!$C46,Achievement_finalised!$D$4:$D$71,Projections!$E46,Achievement_finalised!$E$4:$E$71,Projections!$F46) -> 0 | Q46: =SUMIFS(Achievement_finalised!$G$4:$G$71,Achievement_finalised!$B$4:$B$71,Projections!$C46,Achievement_finalised!$D$4:$D$71,Projections!$E46,Achievement_finalised!$E$4:$E$71,Projections!$F46) -> 0 | R46: =SUMIFS(Achievement_finalised!$G$4:$G$71,Achievement_finalised!$B$4:$B$71,Projections!$C46,Achievement_finalised!$D$4:$D$71,Projections!$E46,Achievement_finalised!$E$4:$E$71,Projections!$F46) -> 0 | S46: =SUMIFS(Achievement_finalised!$G$4:$G$71,Achievement_finalised!$B$4:$B$71,Projections!$C46,Achievement_finalised!$D$4:$D$71,Projections!$E46,Achievement_finalised!$E$4:$E$71,Projections!$F46) -> 0 | T46: =SUMIFS(Achievement_forecast_ongoing!G$6:G$49822,Achievement_forecast_ongoing!$C$6:$C$49822,Projections!$C46,Achievement_forecast_ongoing!$E$6:$E$49822,Projections!$E46,Achievement_forecast_ongoing!$F$6:$F$49822,Projections!$F46) -> 0 | U46: =SUMIFS(Achievement_forecast_ongoing!H$6:H$49822,Achievement_forecast_ongoing!$C$6:$C$49822,Projections!$C46,Achievement_forecast_ongoing!$E$6:$E$49822,Projections!$E46,Achievement_forecast_ongoing!$F$6:$F$49822,Projections!$F46) -> 0 | V46: =SUMIFS(Achievement_forecast_ongoing!I$6:I$49822,Achievement_forecast_ongoing!$C$6:$C$49822,Projections!$C46,Achievement_forecast_ongoing!$E$6:$E$49822,Projections!$E46,Achievement_forecast_ongoing!$F$6:$F$49822,Projections!$F46) -> 0 | W46: =SUMIFS(Achievement_forecast_ongoing!J$6:J$49822,Achievement_forecast_ongoing!$C$6:$C$49822,Projections!$C46,Achievement_forecast_ongoing!$E$6:$E$49822,Projections!$E46,Achievement_forecast_ongoing!$F$6:$F$49822,Projections!$F46) -> 0 | X46: =SUMIFS(Achievement_forecasts_future!G$4:G$71,Achievement_forecasts_future!$B$4:$B$71,Projections!$C46,Achievement_forecasts_future!$D$4:$D$71,Projections!$E46,Achievement_forecasts_future!$E$4:$E$71,Projections!$F46) -> 0 | Y46: =SUMIFS(Achievement_forecasts_future!H$4:H$71,Achievement_forecasts_future!$B$4:$B$71,Projections!$C46,Achievement_forecasts_future!$D$4:$D$71,Projections!$E46,Achievement_forecasts_future!$E$4:$E$71,Projections!$F46) -> 0 | Z46: =SUMIFS(Achievement_forecasts_future!I$4:I$71,Achievement_forecasts_future!$B$4:$B$71,Projections!$C46,Achievement_forecasts_future!$D$4:$D$71,Projections!$E46,Achievement_forecasts_future!$E$4:$E$71,Projections!$F46) -> 0 | AA46: =SUMIFS(Achievement_forecasts_future!J$4:J$71,Achievement_forecasts_future!$B$4:$B$71,Projections!$C46,Achievement_forecasts_future!$D$4:$D$71,Projections!$E46,Achievement_forecasts_future!$E$4:$E$71,Projections!$F46) -> 0
C47: 13 | D47: All | E47: 1K7 | F47: All | G47: 90 | H47: 171.1111111 | I47: 0 | J47: 246.6666667 | K47: 308.8888889 | L47: =Project_characteristics!I402 -> 154 | M47: =Project_characteristics!J404 -> 0 | N47: =Project_characteristics!L404 -> 222 | O47: =Project_characteristics!M404 -> 278 | P47: 0 | Q47: 0 | R47: 0 | S47: 0 | T47: 0 | U47: 0 | V47: 0 | W47: 0 | X47: 0 | Y47: 0 | Z47: 0 | AA47: 0
C48: 14 | D48: All | E48: 1F | F48: All | G48: =G52*282000000 -> 1365782400 | H48: 0 | I48: 0 | J48: 0 | K48: 0 | L48: 0 | M48: 0 | N48: 0 | O48: 0 | P48: =SUMIFS(Achievement_finalised!$G$4:$G$71,Achievement_finalised!$B$4:$B$71,Projections!$C48,Achievement_finalised!$D$4:$D$71,Projections!$E48,Achievement_finalised!$E$4:$E$71,Projections!$F48) -> 0 | Q48: =SUMIFS(Achievement_finalised!$G$4:$G$71,Achievement_finalised!$B$4:$B$71,Projections!$C48,Achievement_finalised!$D$4:$D$71,Projections!$E48,Achievement_finalised!$E$4:$E$71,Projections!$F48) -> 0 | R48: =SUMIFS(Achievement_finalised!$G$4:$G$71,Achievement_finalised!$B$4:$B$71,Projections!$C48,Achievement_finalised!$D$4:$D$71,Projections!$E48,Achievement_finalised!$E$4:$E$71,Projections!$F48) -> 0 | S48: =SUMIFS(Achievement_finalised!$G$4:$G$71,Achievement_finalised!$B$4:$B$71,Projections!$C48,Achievement_finalised!$D$4:$D$71,Projections!$E48,Achievement_finalised!$E$4:$E$71,Projections!$F48) -> 0 | T48: =SUMIFS(Achievement_forecast_ongoing!G$6:G$49822,Achievement_forecast_ongoing!$C$6:$C$49822,Projections!$C48,Achievement_forecast_ongoing!$E$6:$E$49822,Projections!$E48,Achievement_forecast_ongoing!$F$6:$F$49822,Projections!$F48) -> 0 | U48: =SUMIFS(Achievement_forecast_ongoing!H$6:H$49822,Achievement_forecast_ongoing!$C$6:$C$49822,Projections!$C48,Achievement_forecast_ongoing!$E$6:$E$49822,Projections!$E48,Achievement_forecast_ongoing!$F$6:$F$49822,Projections!$F48) -> 0 | V48: =SUMIFS(Achievement_forecast_ongoing!I$6:I$49822,Achievement_forecast_ongoing!$C$6:$C$49822,Projections!$C48,Achievement_forecast_ongoing!$E$6:$E$49822,Projections!$E48,Achievement_forecast_ongoing!$F$6:$F$49822,Projections!$F48) -> 0 | W48: =SUMIFS(Achievement_forecast_ongoing!J$6:J$49822,Achievement_forecast_ongoing!$C$6:$C$49822,Projections!$C48,Achievement_forecast_ongoing!$E$6:$E$49822,Projections!$E48,Achievement_forecast_ongoing!$F$6:$F$49822,Projections!$F48) -> 0 | X48: =SUMIFS(Achievement_forecasts_future!G$4:G$71,Achievement_forecasts_future!$B$4:$B$71,Projections!$C48,Achievement_forecasts_future!$D$4:$D$71,Projections!$E48,Achievement_forecasts_future!$E$4:$E$71,Projections!$F48) -> 0 | Y48: =SUMIFS(Achievement_forecasts_future!H$4:H$71,Achievement_forecasts_future!$B$4:$B$71,Projections!$C48,Achievement_forecasts_future!$D$4:$D$71,Projections!$E48,Achievement_forecasts_future!$E$4:$E$71,Projections!$F48) -> 0 | Z48: =SUMIFS(Achievement_forecasts_future!I$4:I$71,Achievement_forecasts_future!$B$4:$B$71,Projections!$C48,Achievement_forecasts_future!$D$4:$D$71,Projections!$E48,Achievement_forecasts_future!$E$4:$E$71,Projections!$F48) -> 0 | AA48: =SUMIFS(Achievement_forecasts_future!J$4:J$71,Achievement_forecasts_future!$B$4:$B$71,Projections!$C48,Achievement_forecasts_future!$D$4:$D$71,Projections!$E48,Achievement_forecasts_future!$E$4:$E$71,Projections!$F48) -> 0
C49: 14 | D49: All | E49: 1K17 | F49: All | G49: 3 | H49: =H50 -> 0 | I49: =I50 -> 0 | J49: 0 | K49: 0 | L49: 0 | M49: 0 | N49: 0 | O49: 0 | P49: 0 | Q49: 0 | R49: 0 | S49: 0 | T49: 0 | U49: 0 | V49: 0 | W49: 0 | X49: 0 | Y49: 0 | Z49: 0 | AA49: 0
C50: 14 | D50: All | E50: 1S39 | F50: All | G50: 3 | H50: 0 | I50: 0 | J50: 0 | K50: 0 | L50: 0 | M50: 0 | N50: =ROUND(R50+V50+Z50, 0) -> 0 | O50: =ROUND(S50+W50+AA50, 0) -> 0 | P50: =SUMIFS(Achievement_finalised!$G$4:$G$71,Achievement_finalised!$B$4:$B$71,Projections!$C50,Achievement_finalised!$D$4:$D$71,Projections!$E50,Achievement_finalised!$E$4:$E$71,Projections!$F50) -> 0 | Q50: =SUMIFS(Achievement_finalised!$G$4:$G$71,Achievement_finalised!$B$4:$B$71,Projections!$C50,Achievement_finalised!$D$4:$D$71,Projections!$E50,Achievement_finalised!$E$4:$E$71,Projections!$F50) -> 0 | R50: =SUMIFS(Achievement_finalised!$G$4:$G$71,Achievement_finalised!$B$4:$B$71,Projections!$C50,Achievement_finalised!$D$4:$D$71,Projections!$E50,Achievement_finalised!$E$4:$E$71,Projections!$F50) -> 0 | S50: =SUMIFS(Achievement_finalised!$G$4:$G$71,Achievement_finalised!$B$4:$B$71,Projections!$C50,Achievement_finalised!$D$4:$D$71,Projections!$E50,Achievement_finalised!$E$4:$E$71,Projections!$F50) -> 0 | T50: =SUMIFS(Achievement_forecast_ongoing!G$6:G$49822,Achievement_forecast_ongoing!$C$6:$C$49822,Projections!$C50,Achievement_forecast_ongoing!$E$6:$E$49822,Projections!$E50,Achievement_forecast_ongoing!$F$6:$F$49822,Projections!$F50) -> 0 | U50: =SUMIFS(Achievement_forecast_ongoing!H$6:H$49822,Achievement_forecast_ongoing!$C$6:$C$49822,Projections!$C50,Achievement_forecast_ongoing!$E$6:$E$49822,Projections!$E50,Achievement_forecast_ongoing!$F$6:$F$49822,Projections!$F50) -> 0 | V50: =SUMIFS(Achievement_forecast_ongoing!I$6:I$49822,Achievement_forecast_ongoing!$C$6:$C$49822,Projections!$C50,Achievement_forecast_ongoing!$E$6:$E$49822,Projections!$E50,Achievement_forecast_ongoing!$F$6:$F$49822,Projections!$F50) -> 0 | W50: =SUMIFS(Achievement_forecast_ongoing!J$6:J$49822,Achievement_forecast_ongoing!$C$6:$C$49822,Projections!$C50,Achievement_forecast_ongoing!$E$6:$E$49822,Projections!$E50,Achievement_forecast_ongoing!$F$6:$F$49822,Projections!$F50) -> 0 | X50: =SUMIFS(Achievement_forecasts_future!G$4:G$71,Achievement_forecasts_future!$B$4:$B$71,Projections!$C50,Achievement_forecasts_future!$D$4:$D$71,Projections!$E50,Achievement_forecasts_future!$E$4:$E$71,Projections!$F50) -> 0 | Y50: =SUMIFS(Achievement_forecasts_future!H$4:H$71,Achievement_forecasts_future!$B$4:$B$71,Projections!$C50,Achievement_forecasts_future!$D$4:$D$71,Projections!$E50,Achievement_forecasts_future!$E$4:$E$71,Projections!$F50) -> 0 | Z50: =SUMIFS(Achievement_forecasts_future!I$4:I$71,Achievement_forecasts_future!$B$4:$B$71,Projections!$C50,Achievement_forecasts_future!$D$4:$D$71,Projections!$E50,Achievement_forecasts_future!$E$4:$E$71,Projections!$F50) -> 0 | AA50: =SUMIFS(Achievement_forecasts_future!J$4:J$71,Achievement_forecasts_future!$B$4:$B$71,Projections!$C50,Achievement_forecasts_future!$D$4:$D$71,Projections!$E50,Achievement_forecasts_future!$E$4:$E$71,Projections!$F50) -> 0
G52: 4.8432
M54: =G15-21037 -> 12348
H55: Annual growth (%)
C56: PA | D56: PI | E56: Indicator | F56: Region | G56: Target | H56: 2020 | I56: =+H56+1 -> 2021 | J56: =+I56+1 -> 2022 | K56: =+J56+1 -> 2023
C57: 1 | D57: All | E57: 1F | F57: All | G57: 759983412.3 | H57: =L57/$G57*100 -> 0 | I57: =(M4-L4)/M4 -> 0.9910410741 | J57: =(N4-M4)/N4 -> 0.1197459253 | K57: =(O4-N4)/O4 -> 0.057443549
C58: 1 | D58: All | E58: 1S2 | F58: All | G58: 17 | H58: =L58/$G58*100 -> 0 | I58: =(M5-L5)/M5 -> 1 | J58: =(N5-M5)/N5 -> 0.6666666667 | K58: =(O5-N5)/O5 -> 0.3333333333
C59: 1 | D59: All | E59: 1K8 | F59: All | G59: 17 | H59: =H58 -> 0 | I59: 1 | J59: 0.6666666667 | K59: 0.3333333333
C60: 1 | D60: All | E60: CO02 | F60: All | G60: 270 | H60: =L60/$G60*100 -> 0 | I60: 1 | J60: 0.6666666667 | K60: 0.25
C61: 1 | D61: All | E61: 1K9 | F61: All | G61: 144 | H61: =H60 -> 0 | I61: 1 | J61: 0.6666666667 | K61: 0.25
C62: 2 | D62: All | E62: 1F | F62: All | G62: 6739621927 | H62: =L62/$G62*100 -> 0 | I62: 0.344118027 | J62: 0.01552909661 | K62: 0.1391282904
C63: 2 | D63: All | E63: CO01 | F63: All | G63: 4574 | H63: 0 | I63: 0.1217818432 | J63: 0.05300485391 | K63: 0.1948522019
C64: 3 | D64: All | E64: 1F | F64: Less developed | G64: 6258261243 | H64: 0 | I64: 0.8907911316 | J64: 0.04139610241 | K64: 0.02945878773
C65: 3 | D65: All | E65: 1F | F65: More developed | G65: 1476078574 | H65: 0 | I65: 0.3526311683 | J65: 0.04541396255 | K65: 0.2550336012
C66: 3 | D66: All | E66: 1S11 | F66: Less developed | G66: 7 | H66: 0 | I66: 0.9577487598 | J66: 0.7656639176 | K66: 0.4739583333
C67: 3 | D67: All | E67: 1S11 | F67: More developed | G67: 7 | H67: 0 | I67: 1 | J67: 0.58325348 | K67: 0.7272727273
C68: 3 | D68: All | E68: CO31 | F68: Less developed | G68: 33385 | H68: 0 | I68: 0.5691316471 | J68: 0.2056508332 | K68: 0.01697703908
C69: 3 | D69: All | E69: CO31 | F69: More developed | G69: 17621 | H69: 0 | I69: 0.1313339816 | J69: 0 | K69: 0
C70: 4 | D70: All | E70: 1F | F70: All | G70: 6313823446 | H70: 0 | I70: 0.880971127 | J70: 0.09967544435 | K70: 0.03284712527
C71: 4 | D71: All | E71: 1S11 | F71: All | G71: 50 | H71: 0 | I71: 0.6915924486 | J71: 0.7052306583 | K71: 0.3418803419
C72: 4 | D72: All | E72: CO15 | F72: All | G72: 50 | H72: 0 | I72: 0.6775635615 | J72: 0.9944314258 | K72: 0.3525296017
C73: 5 | D73: All | E73: 1F | F73: Less developed | G73: 2045241694 | H73: 0 | I73: 0.5722749682 | J73: 0.02021149838 | K73: 0.005571821581
C74: 5 | D74: All | E74: 1F | F74: More developed | G74: 197463453.6 | H74: 0 | I74: 0.7936633999 | J74: 0.02911872358 | K74: 0.009205395031
C75: 5 | D75: All | E75: 1S23 | F75: Less developed | G75: 157 | H75: 0 | I75: 0.510251969 | J75: 0.2619760362 | K75: 0.5489130435
C76: 5 | D76: All | E76: 1S23 | F76: More developed | G76: 7 | H76: 0 | I76: =M76/$G76*100 -> 0 | J76: =N76/$G76*100 -> 0 | K76: =O76/$G76*100 -> 0
C77: 6 | D77: All | E77: 1F | F77: Less developed | G77: 4656013604 | H77: 0 | I77: 0.7502619222 | J77: 0.02560329345 | K77: 0.005128076822
C78: 6 | D78: All | E78: 1F | F78: More developed | G78: 60540000 | H78: 0 | I78: 1 | J78: 0.1187471007 | K78: 0.0738724036
C79: 6 | D79: All | E79: CO14 | F79: Less developed | G79: 1932 | H79: 0 | I79: 0.7220128148 | J79: 0.4952404358 | K79: 0.2105855856
C80: 6 | D80: All | E80: CO14 | F80: More developed | G80: 23 | H80: 0 | I80: =M80/$G80*100 -> 0 | J80: =N80/$G80*100 -> 0 | K80: =O80/$G80*100 -> 0
C81: 7 | D81: All | E81: 1F | F81: All | G81: 528052463.8 | H81: 0 | I81: 0.7452315671 | J81: 0.04053160119 | K81: 0.01397435796
C82: 7 | D82: All | E82: 1S27 | F82: All | G82: 1421324 | H82: 0 | I82: 0.9768196923 | J82: 0.273106216 | K82: 0.1426807464
C83: 8 | D83: All | E83: 1F | F83: All | G83: 2780789303 | H83: 0 | I83: 0.5910271207 | J83: 0.1139486912 | K83: 0.05038266556
C84: 8 | D84: All | E84: 1S35 | F84: All | G84: 5188914 | H84: 0 | I84: 0.1272923211 | J84: 0.1475858743 | K84: 0.06288655475
C85: 8 | D85: All | E85: 1S40 | F85: All | G85: 1140 | H85: 0 | I85: 1 | J85: 0.7783856298 | K85: 0.06853582555
C86: 9 | D86: All | E86: 1F | F86: Less developed | G86: 359926234.1 | H86: 0 | I86: =M86/$G86*100 -> 0 | J86: 0 | K86: 0
C87: 9 | D87: All | E87: 1F | F87: More developed | G87: 43696430.43 | H87: 0 | I87: 0 | J87: 0 | K87: 0
C88: 9 | D88: All | E88: CO39 | F88: Less developed | G88: 42356 | H88: 0 | I88: 0 | J88: 0 | K88: 0
C89: 9 | D89: All | E89: CO39 | F89: More developed | G89: 4869 | H89: 0 | I89: 0 | J89: 0 | K89: 0
C90: 10 | D90: All | E90: 1F | F90: Less developed | G90: 1297831839 | H90: 0 | I90: 0.882624136 | J90: 0.1103563941 | K90: 0.04867344761
C91: 10 | D91: All | E91: 1F | F91: More developed | G91: 242159995.2 | H91: 0 | I91: 0.8658697576 | J91: 0.1462039968 | K91: 0.08640218212
C92: 10 | D92: All | E92: 1S55 | F92: Less developed | G92: 42912 | H92: 0 | I92: 0.8197906961 | J92: 0.4524961853 | K92: 0.2568968077
C93: 10 | D93: All | E93: 1S55 | F93: More developed | G93: 7648 | H93: 0 | I93: 1 | J93: 0.9532574741 | K93: 0.8745649759
C94: 10 | D94: All | E94: 1S66 | F94: Less developed | G94: 32077 | H94: 0 | I94: 0.9883800529 | J94: 0.7738672963 | K94: 0.2834371055
C95: 10 | D95: All | E95: 1S66 | F95: More developed | G95: 5238 | H95: 0 | I95: 0.2403154163 | J95: -3.559195662e-06 | K95: 0.1102374112
C96: 11 | D96: All | E96: 1F | F96: All | G96: 1357378208 | H96: 0 | I96: 0.9302243997 | J96: 0.03977975739 | K96: 0.03098739521
C97: 11 | D97: All | E97: 1S57 | F97: All | G97: 5756387 | H97: 0 | I97: =M97/$G97*100 -> 0 | J97: =N97/$G97*100 -> 0 | K97: =O97/$G97*100 -> 0
C98: 13 | D98: All | E98: 1F | F98: All | G98: 1390172988 | H98: 0 | I98: 0.8925968903 | J98: 0.6811942035 | K98: 0.4433144364
C99: 13 | D99: All | E99: CO39 | F99: All | G99: 84654 | H99: 0 | I99: =M99/$G99*100 -> 0 | J99: 0 | K99: 0
C100: 13 | D100: All | E100: 1K7 | F100: All | G100: 90 | H100: 0 | I100: 0 | J100: 0 | K100: 0
C101: 14 | D101: All | E101: 1F | F101: All | G101: 1365782400 | H101: 0
C102: 14 | D102: All | E102: 1K17 | F102: All | G102: 3 | H102: =H103 -> 0 | I102: =I103 -> 0 | J102: 0 | K102: 0
C103: 14 | D103: All | E103: 1S39 | F103: All | G103: 3 | H103: =H104 -> 0 | I103: 0 | J103: 0 | K103: 0

Sheet Achievement_finalised
B1: Date of extraction | D1: 2020-06-23
B2: Characteristics
B3: PA | C3: PI | D3: Indicator | E3: Region | F3: Type | G3: Cumulative achievement
B4: 1 | C4: 1 | D4: 1F | E4: All | F4: Financial | G4: 0
B5: 1 | C5: 1 | D5: 1S2 | E5: All | F5: Physical | G5: 0
B6: 1 | C6: 1 | D6: CO02 | E6: All | F6: Physical | G6: 0
B7: 2 | C7: 1 | D7: 1F | E7: All | F7: Financial | G7: 1172189193
B8: 2 | C8: 2 | D8: 1F | E8: All | F8: Financial | G8: 1513424316
B9: 2 | C9: 1 | D9: CO01 | E9: All | F9: Physical | G9: 2646
B10: 2 | C10: 2 | D10: CO01 | E10: All | F10: Physical | G10: 684
B11: 3 | C11: 1 | D11: 1F | E11: Less developed | F11: Financial | G11: 195930004.9
B12: 3 | C12: 2 | D12: 1F | E12: Less developed | F12: Financial | G12: 18738426.16
B13: 3 | C13: 1 | D13: 1F | E13: More developed | F13: Financial | G13: 451547135.1
B14: 3 | C14: 2 | D14: 1F | E14: More developed | F14: Financial | G14: 0
B15: 3 | C15: 1 | D15: 1S11 | E15: Less developed | F15: Physical | G15: 0
B16: 3 | C16: 2 | D16: 1S11 | E16: Less developed | F16: Physical | G16: 1
B17: 3 | C17: 1 | D17: 1S11 | E17: More developed | F17: Physical | G17: 0
B18: 3 | C18: 2 | D18: 1S11 | E18: More developed | F18: Physical | G18: 0
B19: 3 | C19: 1 | D19: CO31 | E19: Less developed | F19: Physical | G19: 7078
B20: 3 | C20: 2 | D20: CO31 | E20: Less developed | F20: Physical | G20: 0
B21: 3 | C21: 1 | D21: CO31 | E21: More developed | F21: Physical | G21: 46022
B22: 3 | C22: 2 | D22: CO31 | E22: More developed | F22: Physical | G22: 0
B23: 4 | C23: 1 | D23: 1F | E23: All | F23: Financial | G23: 4030471.45
B24: 4 | C24: 2 | D24: 1F | E24: All | F24: Financial | G24: 99486387.02
B25: 4 | C25: 3 | D25: 1F | E25: All | F25: Financial | G25: 10779944.12
B26: 4 | C26: 4 | D26: 1F | E26: All | F26: Financial | G26: 3957266.604
B27: 4 | C27: 1 | D27: 1S11 | E27: All | F27: Physical | G27: 0
B28: 4 | C28: 2 | D28: 1S11 | E28: All | F28: Physical | G28: 7
B29: 4 | C29: 3 | D29: 1S11 | E29: All | F29: Physical | G29: 0
B30: 4 | C30: 4 | D30: 1S11 | E30: All | F30: Physical | G30: 0
B31: 4 | C31: 1 | D31: CO15 | E31: All | F31: Physical | G31: 0
B32: 4 | C32: 2 | D32: CO15 | E32: All | F32: Physical | G32: 4.32
B33: 4 | C33: 3 | D33: CO15 | E33: All | F33: Physical | G33: 0
B34: 4 | C34: 4 | D34: CO15 | E34: All | F34: Physical | G34: 0
B35: 5 | C35: 1 | D35: 1F | E35: Less developed | F35: Financial | G35: 163242686.9
B36: 5 | C36: 2 | D36: 1F | E36: Less developed | F36: Financial | G36: 80424220.66
B37: 5 | C37: 1 | D37: 1F | E37: More developed | F37: Financial | G37: 7551848.17
B38: 5 | C38: 2 | D38: 1F | E38: More developed | F38: Financial | G38: 0
B39: 5 | C39: 1 | D39: 1S23 | E39: Less developed | F39: Physical | G39: 30
B40: 5 | C40: 2 | D40: 1S23 | E40: Less developed | F40: Physical | G40: 0
B41: 5 | C41: 1 | D41: 1S23 | E41: More developed | F41: Physical | G41: 0
B42: 5 | C42: 2 | D42: 1S23 | E42: More developed | F42: Physical | G42: 0
B43: 6 | C43: 1 | D43: 1F | E43: Less developed | F43: Financial | G43: 415222018.1
B44: 6 | C44: 2 | D44: 1F | E44: Less developed | F44: Financial | G44: 0
B45: 6 | C45: 1 | D45: 1F | E45: More developed | F45: Financial | G45: 0
B46: 6 | C46: 2 | D46: 1F | E46: More developed | F46: Financial | G46: 0
B47: 6 | C47: 1 | D47: CO14 | E47: Less developed | F47: Physical | G47: 196.724
B48: 6 | C48: 2 | D48: CO14 | E48: Less developed | F48: Physical | G48: 0
B49: 6 | C49: 1 | D49: CO14 | E49: More developed | F49: Physical | G49: 0
B50: 6 | C50: 2 | D50: CO14 | E50: More developed | F50: Physical | G50: 0
B51: 7 | C51: 1 | D51: 1F | E51: All | F51: Financial | G51: 50603965.04
B52: 7 | C52: 1 | D52: 1S27 | E52: All | F52: Physical | G52: 10026
B53: 8 | C53: 1 | D53: 1F | E53: All | F53: Financial | G53: 566297761.9
B54: 8 | C54: 1 | D54: 1S35 | E54: All | F54: Physical | G54: 3562400
B55: 8 | C55: 1 | D55: 1S40 | E55: All | F55: Physical | G55: 0
B56: 9 | C56: 1 | D56: 1F | E56: Less developed | F56: Financial | G56: 0
B57: 9 | C57: 1 | D57: 1F | E57: More developed | F57: Financial | G57: 0
B58: 9 | C58: 1 | D58: CO39 | E58: Less developed | F58: Physical | G58: 0
B59: 9 | C59: 1 | D59: CO39 | E59: More developed | F59: Physical | G59: 0
B60: 10 | C60: 1 | D60: 1F | E60: Less developed | F60: Financial | G60: 47545558.52
B61: 10 | C61: 1 | D61: 1F | E61: More developed | F61: Financial | G61: 16096007.43
B62: 10 | C62: 1 | D62: 1S55 | E62: Less developed | F62: Physical | G62: 2469
B63: 10 | C63: 1 | D63: 1S55 | E63: More developed | F63: Physical | G63: 0
B64: 10 | C64: 1 | D64: 1S66 | E64: Less developed | F64: Physical | G64: 88
B65: 10 | C65: 1 | D65: 1S66 | E65: More developed | F65: Physical | G65: 4470
B66: 11 | C66: 1 | D66: 1F | E66: All | F66: Financial | G66: 0
B67: 11 | C67: 1 | D67: 1S57 | E67: All | F67: Physical | G67: 0
B68: 13 | C68: 1 | D68: 1F | E68: All | F68: Financial | G68: 188570.27
B69: 13 | C69: 1 | D69: CO39 | E69: All | F69: Physical | G69: 0
B70: 14 | C70: 1 | D70: 1F | E70: All | F70: Financial | G70: 0
B71: 14 | C71: 1 | D71: 1S39 | E71: All | F71: Physical | G71: 0
I77: Indicator | J77: PI | K77: REG | L77: Old value | M77: New value
I78: 1F | J78: 1 | K78: Less developed | L78: 645021.896 | M78: 0
I79: CO01 | J79: 1 | K79: Less developed | L79: 1526 | M79: 686157.08
I80: CO01 | J80: 2 | K80: Less developed | L80: 438 | M80: 2108044.7
I81: CO31 | J81: 1 | K81: Less developed | L81: 4694 | M81: 0
I82: CO31 | J82: 1 | K82: More developed | L82: 35442 | M82: 0
M83: 0

Sheet Achievement_to_date_ongoing
C2: Characteristics | K2: Expected achievement | M2: % complete by the end of year
B3: SMIS CODE | C3: PA | D3: PI | E3: Indicator | F3: Region | G3: Type | H3: Value | I3: Start date | J3: End date | K3: Expected | M3: 2020 | N3: 2021 | O3: 2022 | P3: 2023
B4: 125978 | C4: 1 | D4: 1 | E4: 1F | F4: All | G4: Financial | H4: 666051.296 | I4: 2018-06-01 | J4: 2021-06-30 | K4: 666051.296 | M4: 0.8834462933 | N4: 1 | O4: 1 | P4: 1
B5: 128947 | C5: 1 | D5: 1 | E5: 1F | F5: All | G5: Financial | H5: 464103 | I5: 2017-03-01 | J5: 2021-11-30 | K5: 762531.1236 | M5: 0.1901403916 | N5: 1 | O5: 1 | P5: 1
B6: 128789 | C6: 1 | D6: 1 | E6: 1F | F6: All | G6: Financial | H6: 12796.50097 | I6: 2020-06-01 | J6: 2022-05-31 | K6: 3135686.555 | M6: 0 | N6: 0.9261275964 | O6: 1 | P6: 1
B7: 136062 | C7: 1 | D7: 1 | E7: 1F | F7: All | G7: Financial | H7: 0 | I7: 2020-01-01 | J7: 2023-12-31 | K7: 42738357.62 | M7: 0 | N7: 0.7486640761 | O7: 0.9077971644 | P7: 1
B8: 140830 | C8: 1 | D8: 1 | E8: 1F | F8: All | G8: Financial | H8: 0 | I8: 2019-02-01 | J8: 2023-12-31 | K8: 13213834.14 | M8: 0 | N8: 0.8161526294 | O8: 0.9304655185 | P8: 1
B9: 128862 | C9: 1 | D9: 1 | E9: 1F | F9: All | G9: Financial | H9: 88068.33 | I9: 2018-12-01 | J9: 2022-12-31 | K9: 2759576.54 | M9: 0.0290218845 | N9: 0.9125309037 | O9: 1 | P9: 1
B10: 128730 | C10: 1 | D10: 1 | E10: 1F | F10: All | G10: Financial | H10: 103877.1 | I10: 2018-06-01 | J10: 2023-12-31 | K10: 8287643.084 | M10: 0 | N10: 0.8482974025 | O10: 0.9388623732 | P10: 1
B11: 128309 | C11: 1 | D11: 1 | E11: 1F | F11: All | G11: Financial | H11: 201809.7 | I11: 2018-10-01 | J11: 2021-08-31 | K11: 830475.903 | M11: 0 | N11: 1 | O11: 1 | P11: 1
B12: 127057 | C12: 1 | D12: 1 | E12: 1F | F12: All | G12: Financial | H12: 110324.205 | I12: 2017-10-01 | J12: 2022-09-30 | K12: 10825727 | M12: 0 | N12: 0.9507898722 | O12: 1 | P12: 1
B13: 128043 | C13: 1 | D13: 1 | E13: 1F | F13: All | G13: Financial | H13: 30150 | I13: 2018-08-01 | J13: 2023-07-31 | K13: 14682742.51 | M13: 0 | N13: 0.8716029782 | O13: 0.9619612681 | P13: 1
B14: 128795 | C14: 1 | D14: 1 | E14: 1F | F14: All | G14: Financial | H14: 540 | I14: 2018-10-01 | J14: 2022-05-31 | K14: 10584432.14 | M14: 0 | N14: 0.9655254176 | O14: 1 | P14: 1
B15: 125978 | C15: 1 | D15: 1 | E15: 1S2 | F15: All | G15: Physical | I15: 2018-06-01 | J15: 2021-06-30 | K15: 0 | M15: 0 | N15: 1 | O15: 1 | P15: 1
B16: 128947 | C16: 1 | D16: 1 | E16: 1S2 | F16: All | G16: Physical | I16: 2017-03-01 | J16: 2021-11-30 | K16: 1 | M16: 0 | N16: 1 | O16: 1 | P16: 1
B17: 128789 | C17: 1 | D17: 1 | E17: 1S2 | F17: All | G17: Physical | I17: 2020-06-01 | J17: 2022-05-31 | K17: 1 | M17: 0 | N17: 0 | O17: 1 | P17: 1
B18: 140830 | C18: 1 | D18: 1 | E18: 1S2 | F18: All | G18: Physical | I18: 2019-02-01 | J18: 2023-12-31 | K18: 1 | M18: 0 | N18: 0 | O18: 0 | P18: 1
B19: 128862 | C19: 1 | D19: 1 | E19: 1S2 | F19: All | G19: Physical | I19: 2018-12-01 | J19: 2022-12-31 | K19: 1 | M19: 0 | N19: 0 | O19: 1 | P19: 1
B20: 128730 | C20: 1 | D20: 1 | E20: 1S2 | F20: All | G20: Physical | I20: 2018-06-01 | J20: 2023-12-31 | K20: 1 | M20: 0 | N20: 0 | O20: 0 | P20: 1
B21: 128309 | C21: 1 | D21: 1 | E21: 1S2 | F21: All | G21: Physical | I21: 2018-10-01 | J21: 2021-08-31 | K21: 1 | M21: 0 | N21: 1 | O21: 1 | P21: 1
B22: 127057 | C22: 1 | D22: 1 | E22: 1S2 | F22: All | G22: Physical | I22: 2017-10-01 | J22: 2022-09-30 | K22: 1 | M22: 0 | N22: 0 | O22: 1 | P22: 1
B23: 128043 | C23: 1 | D23: 1 | E23: 1S2 | F23: All | G23: Physical | I23: 2018-08-01 | J23: 2023-07-31 | K23: 1 | M23: 0 | N23: 0 | O23: 0 | P23: 1
B24: 128795 | C24: 1 | D24: 1 | E24: 1S2 | F24: All | G24: Physical | I24: 2018-10-01 | J24: 2022-05-31 | K24: 1 | M24: 0 | N24: 0 | O24: 1 | P24: 1
B25: 125978 | C25: 1 | D25: 1 | E25: CO02 | F25: All | G25: Physical | I25: 2018-06-01 | J25: 2021-06-30 | K25: 1 | M25: 0 | N25: 1 | O25: 1 | P25: 1
B26: 128789 | C26: 1 | D26: 1 | E26: CO02 | F26: All | G26: Physical | I26: 2020-06-01 | J26: 2022-05-31 | K26: 1 | M26: 0 | N26: 0 | O26: 1 | P26: 1
B27: 140830 | C27: 1 | D27: 1 | E27: CO02 | F27: All | G27: Physical | I27: 2019-02-01 | J27: 2023-12-31 | K27: 1 | M27: 0 | N27: 0 | O27: 0 | P27: 1
B28: 128862 | C28: 1 | D28: 1 | E28: CO02 | F28: All | G28: Physical | I28: 2018-12-01 | J28: 2022-12-31 | K28: 1 | M28: 0 | N28: 0 | O28: 1 | P28: 1
B29: 128309 | C29: 1 | D29: 1 | E29: CO02 | F29: All | G29: Physical | I29: 2018-10-01 | J29: 2021-08-31 | K29: 1 | M29: 0 | N29: 1 | O29: 1 | P29: 1
B30: 127057 | C30: 1 | D30: 1 | E30: CO02 | F30: All | G30: Physical | I30: 2017-10-01 | J30: 2022-09-30 | K30: 1 | M30: 0 | N30: 0 | O30: 1 | P30: 1
B31: 128043 | C31: 1 | D31: 1 | E31: CO02 | F31: All | G31: Physical | I31: 2018-08-01 | J31: 2023-07-31 | K31: 1 | M31: 0 | N31: 0 | O31: 0 | P31: 1
B32: 128795 | C32: 1 | D32: 1 | E32: CO02 | F32: All | G32: Physical | I32: 2018-10-01 | J32: 2022-05-31 | K32: 1 | M32: 0 | N32: 0 | O32: 1 | P32: 1
B33: 110110 | C33: 2 | D33: 2 | E33: 1F | F33: All | G33: Financial | H33: 2225988.53 | I33: 2016-08-01 | J33: 2021-08-31 | K33: 3703045.67 | M33: 0.4845557561 | N33: 1 | O33: 1 | P33: 1
B34: 111087 | C34: 2 | D34: 2 | E34: 1F | F34: All | G34: Financial | H34: 3240914.95 | I34: 2018-09-14 | J34: 2022-03-31 | K34: 4267280.129 | M34: 0.7222165987 | N34: 0.9790288328 | O34: 1 | P34: 1
B35: 115112 | C35: 2 | D35: 2 | E35: 1F | F35: All | G35: Financial | H35: 3134955.06 | I35: 2019-09-27 | J35: 2021-09-01 | K35: 3134955.06 | M35: 0.9953766521 | N35: 1 | O35: 1 | P35: 1
B36: 110217 | C36: 2 | D36: 2 | E36: 1F | F36: All | G36: Financial | H36: 139309.2 | I36: 2018-03-01 | J36: 2023-12-31 | K36: 3585535.453 | M36: 0.03699713724 | N36: 0.8602045303 | O36: 0.9429253075 | P36: 1
B37: 113386 | C37: 2 | D37: 2 | E37: 1F | F37: All | G37: Financial | H37: 608734.53 | I37: 2016-11-01 | J37: 2022-04-30 | K37: 1400595.235 | M37: 0.2734346367 | N37: 0.9822244347 | O37: 1 | P37: 1
B38: 116851 | C38: 2 | D38: 2 | E38: 1F | F38: All | G38: Financial | H38: 1400136.38 | I38: 2017-05-01 | J38: 2021-09-30 | K38: 1449335.334 | M38: 0.919906745 | N38: 1 | O38: 1 | P38: 1
B39: 115416 | C39: 2 | D39: 2 | E39: 1F | F39: All | G39: Financial | H39: 0 | I39: 2017-05-01 | J39: 2021-09-30 | K39: 2272382.777 | M39: 0 | N39: 1 | O39: 1 | P39: 1
B40: 110567 | C40: 2 | D40: 2 | E40: 1F | F40: All | G40: Financial | H40: 934354.11 | I40: 2018-06-14 | J40: 2021-09-30 | K40: 991589.7124 | M40: 0.8972672807 | N40: 1 | O40: 1 | P40: 1
B41: 110753 | C41: 2 | D41: 2 | E41: 1F | F41: All | G41: Financial | H41: 1883118.21 | I41: 2017-02-27 | J41: 2021-11-30 | K41: 3482190.758 | M41: 0.4193460722 | N41: 1 | O41: 1 | P41: 1
B42: 114807 | C42: 2 | D42: 2 | E42: 1F | F42: All | G42: Financial | H42: 2067426.42 | I42: 2016-08-01 | J42: 2021-12-31 | K42: 2154572.569 | M42: 0.9137161031 | N42: 1 | O42: 1 | P42: 1
B43: 111416 | C43: 2 | D43: 2 | E43: 1F | F43: All | G43: Financial | H43: 552143.95 | I43: 2017-02-01 | J43: 2021-12-31 | K43: 3966650.28 | M43: 0.1325472582 | N43: 1 | O43: 1 | P43: 1
B44: 113070 | C44: 2 | D44: 2 | E44: 1F | F44: All | G44: Financial | H44: 2147856.06 | I44: 2017-04-01 | J44: 2022-04-30 | K44: 4291153.466 | M44: 0.3053512835 | N44: 0.9822244347 | O44: 1 | P44: 1
B45: 114570 | C45: 2 | D45: 2 | E45: 1F | F45: All | G45: Financial | H45: 909776.73 | I45: 2019-04-01 | J45: 2021-06-30 | K45: 993100.2175 | M45: 0.872336593 | N45: 1 | O45: 1 | P45: 1
B46: 114535 | C46: 2 | D46: 2 | E46: 1F | F46: All | G46: Financial | H46: 4413992.05 | I46: 2017-02-01 | J46: 2021-12-31 | K46: 4413992.05 | M46: 0.9535084335 | N46: 1 | O46: 1 | P46: 1
B47: 114887 | C47: 2 | D47: 2 | E47: 1F | F47: All | G47: Financial | H47: 1004097.37 | I47: 2017-06-16 | J47: 2023-12-31 | K47: 3657702.521 | M47: 0.2614025328 | N47: 0.8771182749 | O47: 0.9507898722 | P47: 1
B48: 111960 | C48: 2 | D48: 2 | E48: 1F | F48: All | G48: Financial | H48: 42660 | I48: 2018-09-01 | J48: 2021-08-31 | K48: 4156711.8 | M48: 0.00977267104 | N48: 1 | O48: 1 | P48: 1
B49: 117084 | C49: 2 | D49: 2 | E49: 1F | F49: All | G49: Financial | H49: 3374857.66 | I49: 2017-06-12 | J49: 2021-08-31 | K49: 4290016.683 | M49: 0.6574737158 | N49: 1 | O49: 1 | P49: 1
B50: 115669 | C50: 2 | D50: 2 | E50: 1F | F50: All | G50: Financial | H50: 1755516.89 | I50: 2018-07-24 | J50: 2021-07-31 | K50: 2544373.943 | M50: 0.4175579591 | N50: 1 | O50: 1 | P50: 1
B51: 115036 | C51: 2 | D51: 2 | E51: 1F | F51: All | G51: Financial | H51: 4385251.39 | I51: 2017-01-10 | J51: 2021-12-31 | K51: 4385251.39 | M51: 0.9710923918 | N51: 1 | O51: 1 | P51: 1
B52: 111922 | C52: 2 | D52: 2 | E52: 1F | F52: All | G52: Financial | H52: 1538419.17 | I52: 2016-12-20 | J52: 2021-07-31 | K52: 1538419.17 | M52: 0.9215692954 | N52: 1 | O52: 1 | P52: 1
B53: 116091 | C53: 2 | D53: 2 | E53: 1F | F53: All | G53: Financial | H53: 1162510.2 | I53: 2017-06-20 | J53: 2022-12-31 | K53: 2117870.404 | M53: 0.3744458293 | N53: 0.9388623732 | O53: 1 | P53: 1
B54: 114620 | C54: 2 | D54: 2 | E54: 1F | F54: All | G54: Financial | H54: 2500927.83 | I54: 2017-03-01 | J54: 2021-09-30 | K54: 3973467.959 | M54: 0.524361646 | N54: 1 | O54: 1 | P54: 1
B55: 114744 | C55: 2 | D55: 2 | E55: 1F | F55: All | G55: Financial | H55: 866686.26 | I55: 2017-04-01 | J55: 2021-08-30 | K55: 1809787.842 | M55: 0.2836331712 | N55: 1 | O55: 1 | P55: 1
B56: 110996 | C56: 2 | D56: 2 | E56: 1F | F56: All | G56: Financial | H56: 2165453.18 | I56: 2017-02-23 | J56: 2021-12-31 | K56: 2188985.705 | M56: 0.7391870162 | N56: 1 | O56: 1 | P56: 1
B57: 111704 | C57: 2 | D57: 2 | E57: 1F | F57: All | G57: Financial | H57: 3871675.32 | I57: 2018-04-01 | J57: 2021-06-30 | K57: 4278913.431 | M57: 0.7875259738 | N57: 1 | O57: 1 | P57: 1
B58: 112245 | C58: 2 | D58: 2 | E58: 1F | F58: All | G58: Financial | H58: 4270657.06 | I58: 2016-12-21 | J58: 2022-05-31 | K58: 4301187.458 | M58: 0.9049696732 | N58: 0.9757627039 | O58: 1 | P58: 1
B59: 113390 | C59: 2 | D59: 2 | E59: 1F | F59: All | G59: Financial | H59: 1001190.67 | I59: 2017-01-01 | J59: 2023-02-28 | K59: 4301418.146 | M59: 0.2216396595 | N59: 0.9347097698 | O59: 0.9914031438 | P59: 1
B60: 111670 | C60: 2 | D60: 2 | E60: 1F | F60: All | G60: Financial | H60: 4407618.41 | I60: 2017-01-10 | J60: 2021-10-31 | K60: 4407618.41 | M60: 0.9758593344 | N60: 1 | O60: 1 | P60: 1
B61: 115687 | C61: 2 | D61: 2 | E61: 1F | F61: All | G61: Financial | H61: 1112455.03 | I61: 2017-05-25 | J61: 2021-06-30 | K61: 1330748.62 | M61: 0.7960288042 | N61: 1 | O61: 1 | P61: 1
B62: 115318 | C62: 2 | D62: 2 | E62: 1F | F62: All | G62: Financial | H62: 809373.02 | I62: 2017-04-04 | J62: 2021-10-31 | K62: 1087078.148 | M62: 0.7089739872 | N62: 1 | O62: 1 | P62: 1
B63: 111415 | C63: 2 | D63: 2 | E63: 1F | F63: All | G63: Financial | H63: 3432631.4 | I63: 2018-04-13 | J63: 2021-06-30 | K63: 4175428.149 | M63: 0.7744992275 | N63: 1 | O63: 1 | P63: 1
B64: 112212 | C64: 2 | D64: 2 | E64: 1F | F64: All | G64: Financial | H64: 2277320.39 | I64: 2017-01-01 | J64: 2021-07-31 | K64: 4277314.092 | M64: 0.377009286 | N64: 1 | O64: 1 | P64: 1
B65: 114557 | C65: 2 | D65: 2 | E65: 1F | F65: All | G65: Financial | H65: 1093980.11 | I65: 2018-09-05 | J65: 2021-09-30 | K65: 1201613.957 | M65: 0.8669355362 | N65: 1 | O65: 1 | P65: 1
B66: 117020 | C66: 2 | D66: 2 | E66: 1F | F66: All | G66: Financial | H66: 73976.6 | I66: 2018-10-01 | J66: 2022-12-31 | K66: 4255976.441 | M66: 0.01655150521 | N66: 0.9125309037 | O66: 1 | P66: 1
B67: 111891 | C67: 2 | D67: 2 | E67: 1F | F67: All | G67: Financial | H67: 698741.3 | I67: 2018-05-01 | J67: 2022-05-30 | K67: 2031461.501 | M67: 0.235764504 | N67: 0.9690126048 | O67: 1 | P67: 1
B68: 113378 | C68: 2 | D68: 2 | E68: 1F | F68: All | G68: Financial | H68: 1462528.43 | I68: 2018-08-01 | J68: 2021-07-31 | K68: 1462528.43 | M68: 0.9779469264 | N68: 1 | O68: 1 | P68: 1
B69: 114197 | C69: 2 | D69: 2 | E69: 1F | F69: All | G69: Financial | H69: 2434904.86 | I69: 2018-04-13 | J69: 2022-12-31 | K69: 4287255.756 | M69: 0.5408102919 | N69: 0.9261275964 | O69: 1 | P69: 1
B70: 116329 | C70: 2 | D70: 2 | E70: 1F | F70: All | G70: Financial | H70: 4485696.24 | I70: 2018-07-01 | J70: 2021-07-05 | K70: 4485696.24 | M70: 0.997736302 | N70: 1 | O70: 1 | P70: 1
B71: 113047 | C71: 2 | D71: 2 | E71: 1F | F71: All | G71: Financial | H71: 3413958.58 | I71: 2018-07-06 | J71: 2021-12-31 | K71: 3413958.58 | M71: 0.7570808898 | N71: 1 | O71: 1 | P71: 1
B72: 116373 | C72: 2 | D72: 2 | E72: 1F | F72: All | G72: Financial | H72: 4001096.46 | I72: 2017-07-03 | J72: 2021-09-30 | K72: 4001096.46 | M72: 0.9567667088 | N72: 1 | O72: 1 | P72: 1
B73: 113741 | C73: 2 | D73: 2 | E73: 1F | F73: All | G73: Financial | H73: 3072414.37 | I73: 2016-11-01 | J73: 2021-09-30 | K73: 3325755.536 | M73: 0.8584600467 | N73: 1 | O73: 1 | P73: 1
B74: 114843 | C74: 2 | D74: 2 | E74: 1F | F74: All | G74: Financial | H74: 2281111.75 | I74: 2017-02-01 | J74: 2021-09-30 | K74: 4299231.061 | M74: 0.3835522033 | N74: 1 | O74: 1 | P74: 1
B75: 111549 | C75: 2 | D75: 2 | E75: 1F | F75: All | G75: Financial | H75: 2027026.65 | I75: 2017-01-01 | J75: 2021-12-31 | K75: 2414196.416 | M75: 0.6038779291 | N75: 1 | O75: 1 | P75: 1
B76: 112298 | C76: 2 | D76: 2 | E76: 1F | F76: All | G76: Financial | H76: 4445319.55 | I76: 2015-08-19 | J76: 2021-07-31 | K76: 4445319.55 | M76: 0.8988565424 | N76: 1 | O76: 1 | P76: 1
B77: 116876 | C77: 2 | D77: 2 | E77: 1F | F77: All | G77: Financial | H77: 911918.62 | I77: 2016-05-01 | J77: 2021-10-31 | K77: 1728234.442 | M77: 0.2812587322 | N77: 1 | O77: 1 | P77: 1
B78: 114891 | C78: 2 | D78: 2 | E78: 1F | F78: All | G78: Financial | H78: 621791.05 | I78: 2016-05-01 | J78: 2022-08-31 | K78: 4301022.608 | M78: 0.1376623201 | N78: 0.9655254176 | O78: 1 | P78: 1
B79: 116765 | C79: 2 | D79: 2 | E79: 1F | F79: All | G79: Financial | H79: 4005963 | I79: 2019-03-01 | J79: 2021-10-31 | K79: 4005963 | M79: 0.7415882276 | N79: 1 | O79: 1 | P79: 1
B80: 116769 | C80: 2 | D80: 2 | E80: 1F | F80: All | G80: Financial | H80: 3228668.91 | I80: 2018-12-03 | J80: 2021-07-30 | K80: 3572071.772 | M80: 0.8606878629 | N80: 1 | O80: 1 | P80: 1
B81: 110465 | C81: 2 | D81: 2 | E81: 1F | F81: All | G81: Financial | H81: 2875445.64 | I81: 2019-01-30 | J81: 2021-10-31 | K81: 2953173.251 | M81: 0.9137180367 | N81: 1 | O81: 1 | P81: 1
B82: 110848 | C82: 2 | D82: 2 | E82: 1F | F82: All | G82: Financial | H82: 4238645.87 | I82: 2016-12-31 | J82: 2021-12-31 | K82: 4300858.815 | M82: 0.9384568118 | N82: 1 | O82: 1 | P82: 1
B83: 111587 | C83: 2 | D83: 2 | E83: 1F | F83: All | G83: Financial | H83: 1080 | I83: 2018-02-14 | J83: 2022-02-14 | K83: 4298131.758 | M83: 0.0002392689668 | N83: 0.9914031438 | O83: 1 | P83: 1
B84: 116893 | C84: 2 | D84: 2 | E84: 1F | F84: All | G84: Financial | H84: 2997582.48 | I84: 2017-08-01 | J84: 2021-10-31 | K84: 2997582.48 | M84: 0.9766345401 | N84: 1 | O84: 1 | P84: 1
B85: 114206 | C85: 2 | D85: 2 | E85: 1F | F85: All | G85: Financial | H85: 1143351.5 | I85: 2018-05-08 | J85: 2021-07-31 | K85: 1253101.681 | M85: 0.8688319774 | N85: 1 | O85: 1 | P85: 1
B86: 122500 | C86: 2 | D86: 2 | E86: 1F | F86: All | G86: Financial | H86: 2527494.42 | I86: 2018-04-01 | J86: 2021-12-31 | K86: 3943577.112 | M86: 0.5064905188 | N86: 1 | O86: 1 | P86: 1
B87: 114761 | C87: 2 | D87: 2 | E87: 1F | F87: All | G87: Financial | H87: 89278.2 | I87: 2018-04-13 | J87: 2021-10-31 | K87: 3797491.898 | M87: 0.02238674297 | N87: 1 | O87: 1 | P87: 1
B88: 122905 | C88: 2 | D88: 2 | E88: 1F | F88: All | G88: Financial | H88: 4522277.48 | I88: 2018-04-01 | J88: 2021-11-30 | K88: 4522277.48 | M88: 0.8824135636 | N88: 1 | O88: 1 | P88: 1
B89: 122912 | C89: 2 | D89: 2 | E89: 1F | F89: All | G89: Financial | H89: 4001721 | I89: 2018-04-01 | J89: 2021-07-31 | K89: 4001721 | M89: 0.9560606214 | N89: 1 | O89: 1 | P89: 1
B90: 122924 | C90: 2 | D90: 2 | E90: 1F | F90: All | G90: Financial | H90: 0 | I90: 2016-03-28 | J90: 2022-05-31 | K90: 4425962.598 | M90: 0 | N90: 0.9790288328 | O90: 1 | P90: 1
B91: 123829 | C91: 2 | D91: 2 | E91: 1F | F91: All | G91: Financial | H91: 112500 | I91: 2020-07-24 | J91: 2022-03-31 | K91: 4393689.145 | M91: 0.02438178732 | N91: 0.9507898722 | O91: 1 | P91: 1
B92: 117112 | C92: 2 | D92: 2 | E92: 1F | F92: All | G92: Financial | H92: 3825255.74 | I92: 2017-03-20 | J92: 2021-12-31 | K92: 4258996.08 | M92: 0.7478908197 | N92: 1 | O92: 1 | P92: 1
B93: 124148 | C93: 2 | D93: 2 | E93: 1F | F93: All | G93: Financial | H93: 4323119.854 | I93: 2020-07-27 | J93: 2021-12-31 | K93: 4366205.49 | M93: 0 | N93: 1 | O93: 1 | P93: 1
B94: 125669 | C94: 2 | D94: 2 | E94: 1F | F94: All | G94: Financial | H94: 0 | I94: 2018-07-10 | J94: 2022-08-31 | K94: 4428837.603 | M94: 0 | N94: 0.946900509 | O94: 1 | P94: 1
B95: 125809 | C95: 2 | D95: 2 | E95: 1F | F95: All | G95: Financial | H95: 971684.2023 | I95: 2018-06-19 | J95: 2023-01-31 | K95: 1682132.975 | M95: 0.02904018536 | N95: 0.9171624253 | O95: 0.9943315416 | P95: 1
B96: 125969 | C96: 2 | D96: 2 | E96: 1F | F96: All | G96: Financial | H96: 0 | I96: 2018-05-10 | J96: 2022-05-31 | K96: 3896624.722 | M96: 0 | N96: 0.9690126048 | O96: 1 | P96: 1
B97: 111143 | C97: 2 | D97: 2 | E97: 1F | F97: All | G97: Financial | H97: 4276610.61 | I97: 2018-09-17 | J97: 2021-09-11 | K97: 4293994.781 | M97: 0.9483759677 | N97: 1 | O97: 1 | P97: 1
B98: 112440 | C98: 2 | D98: 2 | E98: 1F | F98: All | G98: Financial | H98: 1546687.22 | I98: 2017-05-02 | J98: 2021-12-31 | K98: 1557162.104 | M98: 0.8754819717 | N98: 1 | O98: 1 | P98: 1
B99: 122921 | C99: 2 | D99: 2 | E99: 1F | F99: All | G99: Financial | H99: 0 | I99: 2018-04-01 | J99: 2022-12-31 | K99: 4422470.748 | M99: 0 | N99: 0.9261275964 | O99: 1 | P99: 1
B100: 123355 | C100: 2 | D100: 2 | E100: 1F | F100: All | G100: Financial | H100: 4599863.04 | I100: 2018-04-04 | J100: 2021-06-30 | K100: 4599863.04 | M100: 0.9899892954 | N100: 1 | O100: 1 | P100: 1
B101: 113928 | C101: 2 | D101: 2 | E101: 1F | F101: All | G101: Financial | H101: 3261647.68 | I101: 2018-07-01 | J101: 2021-12-31 | K101: 3261647.68 | M101: 0.8678217631 | N101: 1 | O101: 1 | P101: 1
B102: 114191 | C102: 2 | D102: 2 | E102: 1F | F102: All | G102: Financial | H102: 3932272.2 | I102: 2017-02-04 | J102: 2021-12-31 | K102: 4197932.873 | M102: 0.8919703671 | N102: 1 | O102: 1 | P102: 1
B103: 123779 | C103: 2 | D103: 2 | E103: 1F | F103: All | G103: Financial | H103: 0 | I103: 2020-06-01 | J103: 2022-01-31 | K103: 1525062.595 | M103: 0 | N103: 0.9853510325 | O103: 1 | P103: 1
B104: 125343 | C104: 2 | D104: 2 | E104: 1F | F104: All | G104: Financial | H104: 336001.505 | I104: 2020-06-25 | J104: 2021-11-30 | K104: 1063468.017 | M104: 0.0450476635 | N104: 1 | O104: 1 | P104: 1
B105: 116402 | C105: 2 | D105: 2 | E105: 1F | F105: All | G105: Financial | H105: 1015146.65 | I105: 2018-10-01 | J105: 2021-09-30 | K105: 4216339.843 | M105: 0.1328229041 | N105: 1 | O105: 1 | P105: 1
B106: 114128 | C106: 2 | D106: 2 | E106: 1F | F106: All | G106: Financial | H106: 3524753.41 | I106: 2018-07-01 | J106: 2021-06-30 | K106: 3524753.41 | M106: 0.9974129797 | N106: 1 | O106: 1 | P106: 1
B107: 114413 | C107: 2 | D107: 2 | E107: 1F | F107: All | G107: Financial | H107: 1993138.38 | I107: 2018-09-01 | J107: 2021-12-31 | K107: 1993138.38 | M107: 0.9642048165 | N107: 1 | O107: 1 | P107: 1
B108: 125494 | C108: 2 | D108: 2 | E108: 1F | F108: All | G108: Financial | H108: 188114.976 | I108: 2018-06-04 | J108: 2021-09-30 | K108: 4134903.357 | M108: 0 | N108: 1 | O108: 1 | P108: 1
B109: 115129 | C109: 2 | D109: 2 | E109: 1F | F109: All | G109: Financial | H109: 1060665.568 | I109: 2018-10-01 | J109: 2021-09-01 | K109: 4301227.699 | M109: 0.1408701324 | N109: 1 | O109: 1 | P109: 1
B110: 110727 | C110: 2 | D110: 2 | E110: 1F | F110: All | G110: Financial | H110: 2297540.78 | I110: 2017-01-01 | J110: 2021-10-31 | K110: 3211429.341 | M110: 0.5111131472 | N110: 1 | O110: 1 | P110: 1
B111: 114738 | C111: 2 | D111: 2 | E111: 1F | F111: All | G111: Financial | H111: 1458469.16 | I111: 2016-05-01 | J111: 2021-08-31 | K111: 1505517.948 | M111: 0.9224729847 | N111: 1 | O111: 1 | P111: 1
B112: 114632 | C112: 2 | D112: 2 | E112: 1F | F112: All | G112: Financial | H112: 1207300.78 | I112: 2017-03-01 | J112: 2021-07-31 | K112: 1215441.923 | M112: 0.934927993 | N112: 1 | O112: 1 | P112: 1
B113: 114903 | C113: 2 | D113: 2 | E113: 1F | F113: All | G113: Financial | H113: 1623187.86 | I113: 2018-07-10 | J113: 2022-10-31 | K113: 4281494.958 | M113: 0.3610070576 | N113: 0.9347097698 | O113: 1 | P113: 1
B114: 115313 | C114: 2 | D114: 2 | E114: 1F | F114: All | G114: Financial | H114: 813045 | I114: 2018-05-07 | J114: 2021-10-31 | K114: 1810621.064 | M114: 0.2301373596 | N114: 1 | O114: 1 | P114: 1
B115: 116832 | C115: 2 | D115: 2 | E115: 1F | F115: All | G115: Financial | H115: 2046839.75 | I115: 2018-09-01 | J115: 2022-06-30 | K115: 4142798.438 | M115: 0.4658056348 | N115: 0.9583184578 | O115: 1 | P115: 1
B116: 116430 | C116: 2 | D116: 2 | E116: 1F | F116: All | G116: Financial | H116: 3470588.24 | I116: 2017-07-03 | J116: 2021-12-31 | K116: 4285402.229 | M116: 0.6684314796 | N116: 1 | O116: 1 | P116: 1
B117: 112294 | C117: 2 | D117: 2 | E117: 1F | F117: All | G117: Financial | H117: 3795088.52 | I117: 2016-12-02 | J117: 2021-09-30 | K117: 4296752.775 | M117: 0.8341838127 | N117: 1 | O117: 1 | P117: 1
B118: 109508 | C118: 2 | D118: 1 | E118: 1F | F118: All | G118: Financial | H118: 0 | I118: 2016-11-01 | J118: 2021-10-31 | K118: 806045.7953 | M118: 0 | N118: 1 | O118: 1 | P118: 1
B119: 111211 | C119: 2 | D119: 2 | E119: 1F | F119: All | G119: Financial | H119: 955971.42 | I119: 2017-03-30 | J119: 2021-09-30 | K119: 955971.42 | M119: 0.9767009702 | N119: 1 | O119: 1 | P119: 1
B120: 110023 | C120: 2 | D120: 1 | E120: 1F | F120: All | G120: Financial | H120: 679812.94 | I120: 2016-11-02 | J120: 2021-10-31 | K120: 731674.9879 | M120: 0.6876747273 | N120: 1 | O120: 1 | P120: 1
B121: 114046 | C121: 2 | D121: 2 | E121: 1F | F121: All | G121: Financial | H121: 869167.2 | I121: 2016-11-04 | J121: 2021-07-31 | K121: 990030.6911 | M121: 0.5069869183 | N121: 1 | O121: 1 | P121: 1
B122: 111540 | C122: 2 | D122: 1 | E122: 1F | F122: All | G122: Financial | H122: 306482.03 | I122: 2016-06-30 | J122: 2021-12-31 | K122: 848099.5565 | M122: 0.006603474914 | N122: 1 | O122: 1 | P122: 1
B123: 112346 | C123: 2 | D123: 1 | E123: 1F | F123: All | G123: Financial | H123: 555578.15 | I123: 2017-02-01 | J123: 2022-01-31 | K123: 779662.377 | M123: 0.6785485442 | N123: 0.9943315416 | O123: 1 | P123: 1
B124: 111518 | C124: 2 | D124: 2 | E124: 1F | F124: All | G124: Financial | H124: 228376.04 | I124: 2017-07-10 | J124: 2021-11-30 | K124: 4291321.83 | M124: 0.05067593793 | N124: 1 | O124: 1 | P124: 1
B125: 114048 | C125: 2 | D125: 2 | E125: 1F | F125: All | G125: Financial | H125: 893018.7 | I125: 2016-12-01 | J125: 2021-12-31 | K125: 893018.7 | M125: 0.9681694662 | N125: 1 | O125: 1 | P125: 1
B126: 114107 | C126: 2 | D126: 2 | E126: 1F | F126: All | G126: Financial | H126: 4172980.87 | I126: 2017-05-30 | J126: 2021-11-30 | K126: 4172980.87 | M126: 0.928547999 | N126: 1 | O126: 1 | P126: 1
B127: 114819 | C127: 2 | D127: 2 | E127: 1F | F127: All | G127: Financial | H127: 1308633.2 | I127: 2018-03-01 | J127: 2021-11-30 | K127: 1308633.2 | M127: 0.9879229073 | N127: 1 | O127: 1 | P127: 1
B128: 113062 | C128: 2 | D128: 2 | E128: 1F | F128: All | G128: Financial | H128: 2221420.95 | I128: 2018-07-01 | J128: 2022-01-31 | K128: 2278542.027 | M128: 0.9283594517 | N128: 0.9943315416 | O128: 1 | P128: 1
B129: 115215 | C129: 2 | D129: 2 | E129: 1F | F129: All | G129: Financial | H129: 871521.73 | I129: 2017-03-01 | J129: 2022-02-28 | K129: 884057.8963 | M129: 0.9387281812 | N129: 0.9914031438 | O129: 1 | P129: 1
B130: 102666 | C130: 2 | D130: 1 | E130: 1F | F130: All | G130: Financial | H130: 774863.89 | I130: 2017-04-02 | J130: 2021-07-31 | K130: 814052.773 | M130: 0.8791773505 | N130: 1 | O130: 1 | P130: 1
B131: 105305 | C131: 2 | D131: 1 | E131: 1F | F131: All | G131: Financial | H131: 241327.18 | I131: 2018-02-02 | J131: 2022-01-31 | K131: 790097.6296 | M131: 0.2908491658 | N131: 0.9943315416 | O131: 1 | P131: 1
B132: 114624 | C132: 2 | D132: 2 | E132: 1F | F132: All | G132: Financial | H132: 2698950.36 | I132: 2017-06-01 | J132: 2021-08-31 | K132: 3026217.029 | M132: 0.8492531561 | N132: 1 | O132: 1 | P132: 1
B133: 115360 | C133: 2 | D133: 2 | E133: 1F | F133: All | G133: Financial | H133: 1773784.67 | I133: 2017-02-24 | J133: 2021-12-31 | K133: 4281422.293 | M133: 0.2490357076 | N133: 1 | O133: 1 | P133: 1
B134: 102793 | C134: 2 | D134: 1 | E134: 1F | F134: All | G134: Financial | H134: 623351.28 | I134: 2016-06-01 | J134: 2021-10-31 | K134: 851710.112 | M134: 0.4809562478 | N134: 1 | O134: 1 | P134: 1
B135: 114106 | C135: 2 | D135: 2 | E135: 1F | F135: All | G135: Financial | H135: 1562475.6 | I135: 2018-05-04 | J135: 2022-02-28 | K135: 2853510.996 | M135: 0.1045765553 | N135: 0.9884101162 | O135: 1 | P135: 1
B136: 109523 | C136: 2 | D136: 1 | E136: 1F | F136: All | G136: Financial | H136: 762387.74 | I136: 2016-02-01 | J136: 2021-12-31 | K136: 851294.5679 | M136: 0.8527827069 | N136: 1 | O136: 1 | P136: 1
B137: 119374 | C137: 2 | D137: 1 | E137: 1F | F137: All | G137: Financial | H137: 0 | I137: 2019-10-13 | J137: 2021-09-30 | K137: 835216.9749 | M137: 0 | N137: 1 | O137: 1 | P137: 1
B138: 123278 | C138: 2 | D138: 1 | E138: 1F | F138: All | G138: Financial | H138: 4398357.04 | I138: 2018-03-01 | J138: 2022-04-30 | K138: 14708867.1 | M138: 0.1620517971 | N138: 0.9757627039 | O138: 1 | P138: 1
B139: 117165 | C139: 2 | D139: 2 | E139: 1F | F139: All | G139: Financial | H139: 3587968.92 | I139: 2018-09-03 | J139: 2021-08-31 | K139: 4271080.816 | M139: 0.7999322879 | N139: 1 | O139: 1 | P139: 1
B140: 125843 | C140: 2 | D140: 2 | E140: 1F | F140: All | G140: Financial | H140: 0 | I140: 2018-08-01 | J140: 2022-05-31 | K140: 3815630.738 | M140: 0 | N140: 0.9655254176 | O140: 1 | P140: 1
B141: 125852 | C141: 2 | D141: 2 | E141: 1F | F141: All | G141: Financial | H141: 1854814.854 | I141: 2020-05-20 | J141: 2022-04-30 | K141: 4428201.855 | M141: 0.1305516043 | N141: 0.9429253075 | O141: 1 | P141: 1
B142: 110915 | C142: 2 | D142: 2 | E142: 1F | F142: All | G142: Financial | H142: 4192440.81 | I142: 2018-05-01 | J142: 2021-08-31 | K142: 4192440.81 | M142: 0.9768087746 | N142: 1 | O142: 1 | P142: 1
B143: 116022 | C143: 2 | D143: 2 | E143: 1F | F143: All | G143: Financial | H143: 4108864.07 | I143: 2018-08-30 | J143: 2021-12-31 | K143: 4272494.556 | M143: 0.8851794914 | N143: 1 | O143: 1 | P143: 1
B144: 110303 | C144: 2 | D144: 2 | E144: 1F | F144: All | G144: Financial | H144: 3474683.96 | I144: 2014-01-01 | J144: 2021-09-30 | K144: 3650966.553 | M144: 0.8875711196 | N144: 1 | O144: 1 | P144: 1
B145: 110671 | C145: 2 | D145: 2 | E145: 1F | F145: All | G145: Financial | H145: 4445815.32 | I145: 2017-01-05 | J145: 2021-06-30 | K145: 4445815.32 | M145: 0.9842873495 | N145: 1 | O145: 1 | P145: 1
B146: 114905 | C146: 2 | D146: 2 | E146: 1F | F146: All | G146: Financial | H146: 3239360.09 | I146: 2016-12-01 | J146: 2021-12-31 | K146: 3976560.891 | M146: 0.4405043925 | N146: 1 | O146: 1 | P146: 1
B147: 114453 | C147: 2 | D147: 2 | E147: 1F | F147: All | G147: Financial | H147: 1338223.2 | I147: 2017-02-01 | J147: 2021-08-31 | K147: 1842256.103 | M147: 0.2033147765 | N147: 1 | O147: 1 | P147: 1
B148: 115984 | C148: 2 | D148: 2 | E148: 1F | F148: All | G148: Financial | H148: 1200167.972 | I148: 2018-07-01 | J148: 2022-05-31 | K148: 4285417.34 | M148: 0 | N148: 0.9655254176 | O148: 1 | P148: 1
B149: 115437 | C149: 2 | D149: 2 | E149: 1F | F149: All | G149: Financial | H149: 1486810.54 | I149: 2018-12-17 | J149: 2021-08-31 | K149: 2743327.464 | M149: 0.39866239 | N149: 1 | O149: 1 | P149: 1
B150: 115814 | C150: 2 | D150: 2 | E150: 1F | F150: All | G150: Financial | H150: 194484 | I150: 2017-02-01 | J150: 2021-12-31 | K150: 4300345.238 | M150: 0.04306484602 | N150: 1 | O150: 1 | P150: 1
B151: 116379 | C151: 2 | D151: 2 | E151: 1F | F151: All | G151: Financial | H151: 2470324.54 | I151: 2017-01-01 | J151: 2022-02-27 | K151: 2739591.709 | M151: 0.8586388067 | N151: 0.9914031438 | O151: 1 | P151: 1
B152: 116797 | C152: 2 | D152: 2 | E152: 1F | F152: All | G152: Financial | H152: 1085380.9 | I152: 2018-05-21 | J152: 2021-10-31 | K152: 1895076.341 | M152: 0.545378243 | N152: 1 | O152: 1 | P152: 1
B153: 122911 | C153: 2 | D153: 2 | E153: 1F | F153: All | G153: Financial | H153: 2674470.26 | I153: 2018-04-01 | J153: 2021-12-31 | K153: 2674470.26 | M153: 0.9426229265 | N153: 1 | O153: 1 | P153: 1
B154: 123719 | C154: 2 | D154: 2 | E154: 1F | F154: All | G154: Financial | H154: 4495447.54 | I154: 2018-05-01 | J154: 2021-12-31 | K154: 4495447.54 | M154: 0.9663472786 | N154: 1 | O154: 1 | P154: 1
B155: 124460 | C155: 2 | D155: 2 | E155: 1F | F155: All | G155: Financial | H155: 1150636.772 | I155: 2018-03-01 | J155: 2021-09-30 | K155: 4408297.502 | M155: 0 | N155: 1 | O155: 1 | P155: 1
B156: 125304 | C156: 2 | D156: 2 | E156: 1F | F156: All | G156: Financial | H156: 2551927.647 | I156: 2018-07-25 | J156: 2022-05-31 | K156: 4429778.892 | M156: 0.4150611952 | N156: 0.9655254176 | O156: 1 | P156: 1
B157: 125872 | C157: 2 | D157: 2 | E157: 1F | F157: All | G157: Financial | H157: 0 | I157: 2020-08-01 | J157: 2023-07-31 | K157: 4429753.982 | M157: 0 | N157: 0.7230562867 | O157: 0.9347097698 | P157: 1
B158: 113465 | C158: 2 | D158: 2 | E158: 1F | F158: All | G158: Financial | H158: 1007377.1 | I158: 2018-03-01 | J158: 2021-06-30 | K158: 2088543.877 | M158: 0.4592940443 | N158: 1 | O158: 1 | P158: 1
B159: 112342 | C159: 2 | D159: 2 | E159: 1F | F159: All | G159: Financial | H159: 125835.69 | I159: 2016-09-01 | J159: 2021-12-30 | K159: 2460302.263 | M159: 0.04870322412 | N159: 1 | O159: 1 | P159: 1
B160: 114396 | C160: 2 | D160: 2 | E160: 1F | F160: All | G160: Financial | H160: 35678.7 | I160: 2016-11-01 | J160: 2021-11-30 | K160: 1981494.242 | M160: 0.01714583147 | N160: 1 | O160: 1 | P160: 1
B161: 115981 | C161: 2 | D161: 2 | E161: 1F | F161: All | G161: Financial | H161: 3473434.3 | I161: 2017-02-01 | J161: 2021-08-31 | K161: 4237256.36 | M161: 0.5951049246 | N161: 1 | O161: 1 | P161: 1
B162: 115041 | C162: 2 | D162: 2 | E162: 1F | F162: All | G162: Financial | H162: 2377965.49 | I162: 2017-04-03 | J162: 2021-08-31 | K162: 2759097.467 | M162: 0.5428839262 | N162: 1 | O162: 1 | P162: 1
B163: 117236 | C163: 2 | D163: 2 | E163: 1F | F163: All | G163: Financial | H163: 4064199.61 | I163: 2018-10-01 | J163: 2021-06-30 | K163: 4077764.57 | M163: 0.9490633991 | N163: 1 | O163: 1 | P163: 1
B164: 113180 | C164: 2 | D164: 2 | E164: 1F | F164: All | G164: Financial | H164: 2979233.21 | I164: 2018-04-01 | J164: 2022-05-31 | K164: 4200677.337 | M164: 0.6753478478 | N164: 0.9690126048 | O164: 1 | P164: 1
B165: 116325 | C165: 2 | D165: 2 | E165: 1F | F165: All | G165: Financial | H165: 3535666.38 | I165: 2017-08-29 | J165: 2021-12-31 | K165: 3594944.619 | M165: 0.9365294052 | N165: 1 | O165: 1 | P165: 1
B166: 116837 | C166: 2 | D166: 2 | E166: 1F | F166: All | G166: Financial | H166: 27901.13 | I166: 2019-04-08 | J166: 2021-12-31 | K166: 3154055.001 | M166: 0.008423544482 | N166: 1 | O166: 1 | P166: 1
B167: 114306 | C167: 2 | D167: 2 | E167: 1F | F167: All | G167: Financial | H167: 2146131.35 | I167: 2018-10-03 | J167: 2021-10-31 | K167: 4242398.35 | M167: 0.3249831132 | N167: 1 | O167: 1 | P167: 1
B168: 115927 | C168: 2 | D168: 2 | E168: 1F | F168: All | G168: Financial | H168: 1854014.55 | I168: 2017-06-07 | J168: 2021-08-31 | K168: 2065740.543 | M168: 0.8546330984 | N168: 1 | O168: 1 | P168: 1
B169: 115158 | C169: 2 | D169: 2 | E169: 1F | F169: All | G169: Financial | H169: 2434407.73 | I169: 2017-01-10 | J169: 2021-08-31 | K169: 4018680.528 | M169: 0.4488141621 | N169: 1 | O169: 1 | P169: 1
B170: 116250 | C170: 2 | D170: 2 | E170: 1F | F170: All | G170: Financial | H170: 1813517.59 | I170: 2019-07-16 | J170: 2022-05-31 | K170: 4285801.556 | M170: 0.3085624422 | N170: 0.9545952506 | O170: 1 | P170: 1
B171: 116281 | C171: 2 | D171: 2 | E171: 1F | F171: All | G171: Financial | H171: 1269777.1 | I171: 2018-07-01 | J171: 2022-05-31 | K171: 4284177.326 | M171: 0.2822294929 | N171: 0.9655254176 | O171: 1 | P171: 1
B172: 116041 | C172: 2 | D172: 2 | E172: 1F | F172: All | G172: Financial | H172: 4470849.51 | I172: 2018-10-01 | J172: 2021-11-30 | K172: 4470849.51 | M172: 0.9899181338 | N172: 1 | O172: 1 | P172: 1
B173: 116072 | C173: 2 | D173: 2 | E173: 1F | F173: All | G173: Financial | H173: 1589691.66 | I173: 2019-02-05 | J173: 2021-10-31 | K173: 4296932.442 | M173: 0.3522870781 | N173: 1 | O173: 1 | P173: 1
B174: 111945 | C174: 2 | D174: 2 | E174: 1F | F174: All | G174: Financial | H174: 785558.43 | I174: 2017-03-01 | J174: 2021-07-31 | K174: 1426478.684 | M174: 0.4684594899 | N174: 1 | O174: 1 | P174: 1
B175: 115248 | C175: 2 | D175: 2 | E175: 1F | F175: All | G175: Financial | H175: 1840451.14 | I175: 2018-08-01 | J175: 2021-12-31 | K175: 1972936.932 | M175: 0.8882872593 | N175: 1 | O175: 1 | P175: 1
B176: 115470 | C176: 2 | D176: 2 | E176: 1F | F176: All | G176: Financial | H176: 2010592.37 | I176: 2017-04-27 | J176: 2022-06-30 | K176: 4285780.388 | M176: 0.4467210942 | N176: 0.9690126048 | O176: 1 | P176: 1
B177: 125805 | C177: 2 | D177: 2 | E177: 1F | F177: All | G177: Financial | H177: 4499039 | I177: 2018-07-30 | J177: 2022-03-31 | K177: 4499039 | M177: 0.0250739671 | N177: 0.9790288328 | O177: 1 | P177: 1
B178: 116313 | C178: 2 | D178: 2 | E178: 1F | F178: All | G178: Financial | H178: 1896961.39 | I178: 2017-02-01 | J178: 2021-12-31 | K178: 1896961.39 | M178: 0.9963496671 | N178: 1 | O178: 1 | P178: 1
B179: 125893 | C179: 2 | D179: 2 | E179: 1F | F179: All | G179: Financial | H179: 0 | I179: 2018-07-20 | J179: 2022-04-30 | K179: 4224968.561 | M179: 0 | N179: 0.9724244916 | O179: 1 | P179: 1
B180: 125957 | C180: 2 | D180: 2 | E180: 1F | F180: All | G180: Financial | H180: 0 | I180: 2018-07-01 | J180: 2022-07-31 | K180: 2710576.181 | M180: 0 | N180: 0.9545952506 | O180: 1 | P180: 1
B181: 110743 | C181: 2 | D181: 2 | E181: 1F | F181: All | G181: Financial | H181: 2662622.5 | I181: 2018-09-07 | J181: 2022-06-30 | K181: 4300879.745 | M181: 0.425189951 | N181: 0.9583184578 | O181: 1 | P181: 1
B182: 114833 | C182: 2 | D182: 2 | E182: 1F | F182: All | G182: Financial | H182: 2869689.72 | I182: 2017-04-12 | J182: 2021-06-30 | K182: 3013903.32 | M182: 0.7263868971 | N182: 1 | O182: 1 | P182: 1
B183: 112499 | C183: 2 | D183: 2 | E183: 1F | F183: All | G183: Financial | H183: 2208000 | I183: 2017-01-01 | J183: 2022-06-30 | K183: 3690550.065 | M183: 0.5697053675 | N183: 0.9724244916 | O183: 1 | P183: 1
B184: 113733 | C184: 2 | D184: 2 | E184: 1F | F184: All | G184: Financial | H184: 2522390.19 | I184: 2017-01-16 | J184: 2021-07-31 | K184: 2522390.19 | M184: 0.9484046945 | N184: 1 | O184: 1 | P184: 1
B185: 114854 | C185: 2 | D185: 2 | E185: 1F | F185: All | G185: Financial | H185: 4293937.57 | I185: 2016-05-01 | J185: 2021-07-30 | K185: 4300861.566 | M185: 0.9506980548 | N185: 1 | O185: 1 | P185: 1
B186: 111513 | C186: 2 | D186: 2 | E186: 1F | F186: All | G186: Financial | H186: 1281437.86 | I186: 2018-07-09 | J186: 2021-10-31 | K186: 1401433.789 | M186: 0.8488558123 | N186: 1 | O186: 1 | P186: 1
B187: 116341 | C187: 2 | D187: 2 | E187: 1F | F187: All | G187: Financial | H187: 3293907.62 | I187: 2017-06-28 | J187: 2021-12-31 | K187: 4244468.024 | M187: 0.7389762692 | N187: 1 | O187: 1 | P187: 1
B188: 114111 | C188: 2 | D188: 2 | E188: 1F | F188: All | G188: Financial | H188: 2072359.37 | I188: 2017-02-09 | J188: 2021-11-30 | K188: 2672971.196 | M188: 0.7382664516 | N188: 1 | O188: 1 | P188: 1
B189: 116362 | C189: 2 | D189: 2 | E189: 1F | F189: All | G189: Financial | H189: 0 | I189: 2018-10-01 | J189: 2021-09-30 | K189: 3117961.169 | M189: 0 | N189: 1 | O189: 1 | P189: 1
B190: 114961 | C190: 2 | D190: 2 | E190: 1F | F190: All | G190: Financial | H190: 1803642.2 | I190: 2017-02-01 | J190: 2021-07-31 | K190: 4281301.674 | M190: 0.3820567466 | N190: 1 | O190: 1 | P190: 1
B191: 116254 | C191: 2 | D191: 2 | E191: 1F | F191: All | G191: Financial | H191: 1984722.68 | I191: 2017-08-17 | J191: 2022-08-31 | K191: 1984722.68 | M191: 0.9831887835 | N191: 0.9831887835 | O191: 1 | P191: 1
B192: 115785 | C192: 2 | D192: 2 | E192: 1F | F192: All | G192: Financial | H192: 2785961.03 | I192: 2018-07-01 | J192: 2022-04-30 | K192: 3203019.77 | M192: 0.8282429757 | N192: 0.9724244916 | O192: 1 | P192: 1
B193: 116617 | C193: 2 | D193: 2 | E193: 1F | F193: All | G193: Financial | H193: 1740619.23 | I193: 2018-06-04 | J193: 2021-09-30 | K193: 1892211.897 | M193: 0.6974373118 | N193: 1 | O193: 1 | P193: 1
B194: 112751 | C194: 2 | D194: 2 | E194: 1F | F194: All | G194: Financial | H194: 2251399.79 | I194: 2016-12-01 | J194: 2021-12-30 | K194: 2404554.048 | M194: 0.8915802125 | N194: 1 | O194: 1 | P194: 1
B195: 112814 | C195: 2 | D195: 2 | E195: 1F | F195: All | G195: Financial | H195: 4158889.38 | I195: 2018-08-13 | J195: 2022-04-30 | K195: 4299216.911 | M195: 0.9126174602 | N195: 0.9724244916 | O195: 1 | P195: 1
B196: 116662 | C196: 2 | D196: 2 | E196: 1F | F196: All | G196: Financial | H196: 0 | I196: 2018-11-01 | J196: 2022-11-30 | K196: 4053542.307 | M196: 0 | N196: 0.9216939363 | O196: 1 | P196: 1
B197: 113127 | C197: 2 | D197: 2 | E197: 1F | F197: All | G197: Financial | H197: 67500 | I197: 2017-04-06 | J197: 2021-12-31 | K197: 2118090.303 | M197: 0.03034601334 | N197: 1 | O197: 1 | P197: 1
B198: 115493 | C198: 2 | D198: 2 | E198: 1F | F198: All | G198: Financial | H198: 846632.63 | I198: 2018-08-01 | J198: 2021-06-30 | K198: 881530.0275 | M198: 0.9145347994 | N198: 1 | O198: 1 | P198: 1
B199: 113163 | C199: 2 | D199: 1 | E199: 1F | F199: All | G199: Financial | H199: 230690.81 | I199: 2017-03-28 | J199: 2022-01-31 | K199: 847305.7291 | M199: 0.2592581958 | N199: 0.9943315416 | O199: 1 | P199: 1
B200: 116892 | C200: 2 | D200: 2 | E200: 1F | F200: All | G200: Financial | H200: 1655519.81 | I200: 2018-10-01 | J200: 2021-06-30 | K200: 2462946.237 | M200: 0.414214181 | N200: 1 | O200: 1 | P200: 1
B201: 111911 | C201: 2 | D201: 2 | E201: 1F | F201: All | G201: Financial | H201: 426197.03 | I201: 2017-01-09 | J201: 2022-11-30 | K201: 1563356.967 | M201: 0.2595939753 | N201: 0.946900509 | O201: 1 | P201: 1
... 4299 more rows

Sheet Achievement_forecast_ongoing
C1: 2 | D1: 3 | E1: 4 | F1: 5 | G1: 6 | H1: 7 | I1: 8 | J1: 9 | K1: 10 | L1: 11 | M1: 12 | N1: 13 | O1: 14
G2: User calibrations | L2: Statistical projections
C4: Characteristics | G4: Year | L4: Year
B5: SMIS CODE | C5: PA | D5: PI | E5: Indicator | F5: Region | G5: 2020 | H5: 2021 | I5: 2022 | J5: 2024 | L5: 2020 | M5: 2021 | N5: 2022 | O5: 2023
B6: =Achievement_to_date_ongoing!B4 -> 125978 | C6: =IF($B6>0, Achievement_to_date_ongoing!C4, "") -> 1 | D6: =IF($B6>0, Achievement_to_date_ongoing!D4, "") -> 1 | E6: =IF($B6>0, Achievement_to_date_ongoing!E4, "") -> 1F | F6: =IF($B6>0, Achievement_to_date_ongoing!F4, "") -> All | G6: 588420.5486 | H6: 666051.296 | I6: 666051.296 | J6: 666051.296 | L6: =IF($B6>0,Achievement_to_date_ongoing!$K4*Achievement_to_date_ongoing!M4,"") -> 588420.5486 | M6: =IF($B6>0,Achievement_to_date_ongoing!$K4*Achievement_to_date_ongoing!N4,"") -> 666051.296 | N6: =IF($B6>0,Achievement_to_date_ongoing!$K4*Achievement_to_date_ongoing!O4,"") -> 666051.296 | O6: =IF($B6>0,Achievement_to_date_ongoing!$K4*Achievement_to_date_ongoing!P4,"") -> 666051.296
B7: =Achievement_to_date_ongoing!B5 -> 128947 | C7: =IF($B7>0, Achievement_to_date_ongoing!C5, "") -> 1 | D7: =IF($B7>0, Achievement_to_date_ongoing!D5, "") -> 1 | E7: =IF($B7>0, Achievement_to_date_ongoing!E5, "") -> 1F | F7: =IF($B7>0, Achievement_to_date_ongoing!F5, "") -> All | G7: 144987.9664 | H7: 762531.1236 | I7: 762531.1236 | J7: 762531.1236 | L7: =IF($B7>0,Achievement_to_date_ongoing!$K5*Achievement_to_date_ongoing!M5,"") -> 144987.9664 | M7: =IF($B7>0,Achievement_to_date_ongoing!$K5*Achievement_to_date_ongoing!N5,"") -> 762531.1236 | N7: =IF($B7>0,Achievement_to_date_ongoing!$K5*Achievement_to_date_ongoing!O5,"") -> 762531.1236 | O7: =IF($B7>0,Achievement_to_date_ongoing!$K5*Achievement_to_date_ongoing!P5,"") -> 762531.1236
B8: =Achievement_to_date_ongoing!B6 -> 128789 | C8: =IF($B8>0, Achievement_to_date_ongoing!C6, "") -> 1 | D8: =IF($B8>0, Achievement_to_date_ongoing!D6, "") -> 1 | E8: =IF($B8>0, Achievement_to_date_ongoing!E6, "") -> 1F | F8: =IF($B8>0, Achievement_to_date_ongoing!F6, "") -> All | G8: 0 | H8: 2904045.853 | I8: 3135686.555 | J8: 3135686.555 | L8: =IF($B8>0,Achievement_to_date_ongoing!$K6*Achievement_to_date_ongoing!M6,"") -> 0 | M8: =IF($B8>0,Achievement_to_date_ongoing!$K6*Achievement_to_date_ongoing!N6,"") -> 2904045.853 | N8: =IF($B8>0,Achievement_to_date_ongoing!$K6*Achievement_to_date_ongoing!O6,"") -> 3135686.555 | O8: =IF($B8>0,Achievement_to_date_ongoing!$K6*Achievement_to_date_ongoing!P6,"") -> 3135686.555
B9: =Achievement_to_date_ongoing!B7 -> 136062 | C9: =IF($B9>0, Achievement_to_date_ongoing!C7, "") -> 1 | D9: =IF($B9>0, Achievement_to_date_ongoing!D7, "") -> 1 | E9: =IF($B9>0, Achievement_to_date_ongoing!E7, "") -> 1F | F9: =IF($B9>0, Achievement_to_date_ongoing!F7, "") -> All | G9: 0 | H9: 31996673.03 | I9: 38797759.86 | J9: 42738357.62 | L9: =IF($B9>0,Achievement_to_date_ongoing!$K7*Achievement_to_date_ongoing!M7,"") -> 0 | M9: =IF($B9>0,Achievement_to_date_ongoing!$K7*Achievement_to_date_ongoing!N7,"") -> 31996673.03 | N9: =IF($B9>0,Achievement_to_date_ongoing!$K7*Achievement_to_date_ongoing!O7,"") -> 38797759.86 | O9: =IF($B9>0,Achievement_to_date_ongoing!$K7*Achievement_to_date_ongoing!P7,"") -> 42738357.62
B10: =Achievement_to_date_ongoing!B8 -> 140830 | C10: =IF($B10>0, Achievement_to_date_ongoing!C8, "") -> 1 | D10: =IF($B10>0, Achievement_to_date_ongoing!D8, "") -> 1 | E10: =IF($B10>0, Achievement_to_date_ongoing!E8, "") -> 1F | F10: =IF($B10>0, Achievement_to_date_ongoing!F8, "") -> All | G10: 0 | H10: 10784505.48 | I10: 12295017.03 | J10: 13213834.14 | L10: =IF($B10>0,Achievement_to_date_ongoing!$K8*Achievement_to_date_ongoing!M8,"") -> 0 | M10: =IF($B10>0,Achievement_to_date_ongoing!$K8*Achievement_to_date_ongoing!N8,"") -> 10784505.48 | N10: =IF($B10>0,Achievement_to_date_ongoing!$K8*Achievement_to_date_ongoing!O8,"") -> 12295017.03 | O10: =IF($B10>0,Achievement_to_date_ongoing!$K8*Achievement_to_date_ongoing!P8,"") -> 13213834.14
B11: =Achievement_to_date_ongoing!B9 -> 128862 | C11: =IF($B11>0, Achievement_to_date_ongoing!C9, "") -> 1 | D11: =IF($B11>0, Achievement_to_date_ongoing!D9, "") -> 1 | E11: =IF($B11>0, Achievement_to_date_ongoing!E9, "") -> 1F | F11: =IF($B11>0, Achievement_to_date_ongoing!F9, "") -> All | G11: 80088.11159 | H11: 2518198.874 | I11: 2759576.54 | J11: 2759576.54 | L11: =IF($B11>0,Achievement_to_date_ongoing!$K9*Achievement_to_date_ongoing!M9,"") -> 80088.11159 | M11: =IF($B11>0,Achievement_to_date_ongoing!$K9*Achievement_to_date_ongoing!N9,"") -> 2518198.874 | N11: =IF($B11>0,Achievement_to_date_ongoing!$K9*Achievement_to_date_ongoing!O9,"") -> 2759576.54 | O11: =IF($B11>0,Achievement_to_date_ongoing!$K9*Achievement_to_date_ongoing!P9,"") -> 2759576.54
B12: =Achievement_to_date_ongoing!B10 -> 128730 | C12: =IF($B12>0, Achievement_to_date_ongoing!C10, "") -> 1 | D12: =IF($B12>0, Achievement_to_date_ongoing!D10, "") -> 1 | E12: =IF($B12>0, Achievement_to_date_ongoing!E10, "") -> 1F | F12: =IF($B12>0, Achievement_to_date_ongoing!F10, "") -> All | G12: 0 | H12: 7030386.102 | I12: 7780956.254 | J12: 8287643.084 | L12: =IF($B12>0,Achievement_to_date_ongoing!$K10*Achievement_to_date_ongoing!M10,"") -> 0 | M12: =IF($B12>0,Achievement_to_date_ongoing!$K10*Achievement_to_date_ongoing!N10,"") -> 7030386.102 | N12: =IF($B12>0,Achievement_to_date_ongoing!$K10*Achievement_to_date_ongoing!O10,"") -> 7780956.254 | O12: =IF($B12>0,Achievement_to_date_ongoing!$K10*Achievement_to_date_ongoing!P10,"") -> 8287643.084
B13: =Achievement_to_date_ongoing!B11 -> 128309 | C13: =IF($B13>0, Achievement_to_date_ongoing!C11, "") -> 1 | D13: =IF($B13>0, Achievement_to_date_ongoing!D11, "") -> 1 | E13: =IF($B13>0, Achievement_to_date_ongoing!E11, "") -> 1F | F13: =IF($B13>0, Achievement_to_date_ongoing!F11, "") -> All | G13: 0 | H13: 830475.903 | I13: 830475.903 | J13: 830475.903 | L13: =IF($B13>0,Achievement_to_date_ongoing!$K11*Achievement_to_date_ongoing!M11,"") -> 0 | M13: =IF($B13>0,Achievement_to_date_ongoing!$K11*Achievement_to_date_ongoing!N11,"") -> 830475.903 | N13: =IF($B13>0,Achievement_to_date_ongoing!$K11*Achievement_to_date_ongoing!O11,"") -> 830475.903 | O13: =IF($B13>0,Achievement_to_date_ongoing!$K11*Achievement_to_date_ongoing!P11,"") -> 830475.903
B14: =Achievement_to_date_ongoing!B12 -> 127057 | C14: =IF($B14>0, Achievement_to_date_ongoing!C12, "") -> 1 | D14: =IF($B14>0, Achievement_to_date_ongoing!D12, "") -> 1 | E14: =IF($B14>0, Achievement_to_date_ongoing!E12, "") -> 1F | F14: =IF($B14>0, Achievement_to_date_ongoing!F12, "") -> All | G14: 0 | H14: 10292991.59 | I14: 10825727 | J14: 10825727 | L14: =IF($B14>0,Achievement_to_date_ongoing!$K12*Achievement_to_date_ongoing!M12,"") -> 0 | M14: =IF($B14>0,Achievement_to_date_ongoing!$K12*Achievement_to_date_ongoing!N12,"") -> 10292991.59 | N14: =IF($B14>0,Achievement_to_date_ongoing!$K12*Achievement_to_date_ongoing!O12,"") -> 10825727 | O14: =IF($B14>0,Achievement_to_date_ongoing!$K12*Achievement_to_date_ongoing!P12,"") -> 10825727
B15: =Achievement_to_date_ongoing!B13 -> 128043 | C15: =IF($B15>0, Achievement_to_date_ongoing!C13, "") -> 1 | D15: =IF($B15>0, Achievement_to_date_ongoing!D13, "") -> 1 | E15: =IF($B15>0, Achievement_to_date_ongoing!E13, "") -> 1F | F15: =IF($B15>0, Achievement_to_date_ongoing!F13, "") -> All | G15: 0 | H15: 12797522.1 | I15: 14124229.6 | J15: 14682742.51 | L15: =IF($B15>0,Achievement_to_date_ongoing!$K13*Achievement_to_date_ongoing!M13,"") -> 0 | M15: =IF($B15>0,Achievement_to_date_ongoing!$K13*Achievement_to_date_ongoing!N13,"") -> 12797522.1 | N15: =IF($B15>0,Achievement_to_date_ongoing!$K13*Achievement_to_date_ongoing!O13,"") -> 14124229.6 | O15: =IF($B15>0,Achievement_to_date_ongoing!$K13*Achievement_to_date_ongoing!P13,"") -> 14682742.51
B16: =Achievement_to_date_ongoing!B14 -> 128795 | C16: =IF($B16>0, Achievement_to_date_ongoing!C14, "") -> 1 | D16: =IF($B16>0, Achievement_to_date_ongoing!D14, "") -> 1 | E16: =IF($B16>0, Achievement_to_date_ongoing!E14, "") -> 1F | F16: =IF($B16>0, Achievement_to_date_ongoing!F14, "") -> All | G16: 0 | H16: 10219538.26 | I16: 10584432.14 | J16: 10584432.14 | L16: =IF($B16>0,Achievement_to_date_ongoing!$K14*Achievement_to_date_ongoing!M14,"") -> 0 | M16: =IF($B16>0,Achievement_to_date_ongoing!$K14*Achievement_to_date_ongoing!N14,"") -> 10219538.26 | N16: =IF($B16>0,Achievement_to_date_ongoing!$K14*Achievement_to_date_ongoing!O14,"") -> 10584432.14 | O16: =IF($B16>0,Achievement_to_date_ongoing!$K14*Achievement_to_date_ongoing!P14,"") -> 10584432.14
B17: =Achievement_to_date_ongoing!B15 -> 125978 | C17: =IF($B17>0, Achievement_to_date_ongoing!C15, "") -> 1 | D17: =IF($B17>0, Achievement_to_date_ongoing!D15, "") -> 1 | E17: =IF($B17>0, Achievement_to_date_ongoing!E15, "") -> 1S2 | F17: =IF($B17>0, Achievement_to_date_ongoing!F15, "") -> All | G17: 0 | H17: 0 | I17: 0 | J17: 0 | L17: =IF($B17>0,Achievement_to_date_ongoing!$K15*Achievement_to_date_ongoing!M15,"") -> 0 | M17: =IF($B17>0,Achievement_to_date_ongoing!$K15*Achievement_to_date_ongoing!N15,"") -> 0 | N17: =IF($B17>0,Achievement_to_date_ongoing!$K15*Achievement_to_date_ongoing!O15,"") -> 0 | O17: =IF($B17>0,Achievement_to_date_ongoing!$K15*Achievement_to_date_ongoing!P15,"") -> 0
B18: =Achievement_to_date_ongoing!B16 -> 128947 | C18: =IF($B18>0, Achievement_to_date_ongoing!C16, "") -> 1 | D18: =IF($B18>0, Achievement_to_date_ongoing!D16, "") -> 1 | E18: =IF($B18>0, Achievement_to_date_ongoing!E16, "") -> 1S2 | F18: =IF($B18>0, Achievement_to_date_ongoing!F16, "") -> All | G18: 0 | H18: 1 | I18: 1 | J18: 1 | L18: =IF($B18>0,Achievement_to_date_ongoing!$K16*Achievement_to_date_ongoing!M16,"") -> 0 | M18: =IF($B18>0,Achievement_to_date_ongoing!$K16*Achievement_to_date_ongoing!N16,"") -> 1 | N18: =IF($B18>0,Achievement_to_date_ongoing!$K16*Achievement_to_date_ongoing!O16,"") -> 1 | O18: =IF($B18>0,Achievement_to_date_ongoing!$K16*Achievement_to_date_ongoing!P16,"") -> 1
B19: =Achievement_to_date_ongoing!B17 -> 128789 | C19: =IF($B19>0, Achievement_to_date_ongoing!C17, "") -> 1 | D19: =IF($B19>0, Achievement_to_date_ongoing!D17, "") -> 1 | E19: =IF($B19>0, Achievement_to_date_ongoing!E17, "") -> 1S2 | F19: =IF($B19>0, Achievement_to_date_ongoing!F17, "") -> All | G19: 0 | H19: 0 | I19: 1 | J19: 1 | L19: =IF($B19>0,Achievement_to_date_ongoing!$K17*Achievement_to_date_ongoing!M17,"") -> 0 | M19: =IF($B19>0,Achievement_to_date_ongoing!$K17*Achievement_to_date_ongoing!N17,"") -> 0 | N19: =IF($B19>0,Achievement_to_date_ongoing!$K17*Achievement_to_date_ongoing!O17,"") -> 1 | O19: =IF($B19>0,Achievement_to_date_ongoing!$K17*Achievement_to_date_ongoing!P17,"") -> 1
B20: =Achievement_to_date_ongoing!B18 -> 140830 | C20: =IF($B20>0, Achievement_to_date_ongoing!C18, "") -> 1 | D20: =IF($B20>0, Achievement_to_date_ongoing!D18, "") -> 1 | E20: =IF($B20>0, Achievement_to_date_ongoing!E18, "") -> 1S2 | F20: =IF($B20>0, Achievement_to_date_ongoing!F18, "") -> All | G20: 0 | H20: 0 | I20: 0 | J20: 1 | L20: =IF($B20>0,Achievement_to_date_ongoing!$K18*Achievement_to_date_ongoing!M18,"") -> 0 | M20: =IF($B20>0,Achievement_to_date_ongoing!$K18*Achievement_to_date_ongoing!N18,"") -> 0 | N20: =IF($B20>0,Achievement_to_date_ongoing!$K18*Achievement_to_date_ongoing!O18,"") -> 0 | O20: =IF($B20>0,Achievement_to_date_ongoing!$K18*Achievement_to_date_ongoing!P18,"") -> 1
B21: =Achievement_to_date_ongoing!B19 -> 128862 | C21: =IF($B21>0, Achievement_to_date_ongoing!C19, "") -> 1 | D21: =IF($B21>0, Achievement_to_date_ongoing!D19, "") -> 1 | E21: =IF($B21>0, Achievement_to_date_ongoing!E19, "") -> 1S2 | F21: =IF($B21>0, Achievement_to_date_ongoing!F19, "") -> All | G21: 0 | H21: 0 | I21: 1 | J21: 1 | L21: =IF($B21>0,Achievement_to_date_ongoing!$K19*Achievement_to_date_ongoing!M19,"") -> 0 | M21: =IF($B21>0,Achievement_to_date_ongoing!$K19*Achievement_to_date_ongoing!N19,"") -> 0 | N21: =IF($B21>0,Achievement_to_date_ongoing!$K19*Achievement_to_date_ongoing!O19,"") -> 1 | O21: =IF($B21>0,Achievement_to_date_ongoing!$K19*Achievement_to_date_ongoing!P19,"") -> 1
B22: =Achievement_to_date_ongoing!B20 -> 128730 | C22: =IF($B22>0, Achievement_to_date_ongoing!C20, "") -> 1 | D22: =IF($B22>0, Achievement_to_date_ongoing!D20, "") -> 1 | E22: =IF($B22>0, Achievement_to_date_ongoing!E20, "") -> 1S2 | F22: =IF($B22>0, Achievement_to_date_ongoing!F20, "") -> All | G22: 0 | H22: 0 | I22: 0 | J22: 1 | L22: =IF($B22>0,Achievement_to_date_ongoing!$K20*Achievement_to_date_ongoing!M20,"") -> 0 | M22: =IF($B22>0,Achievement_to_date_ongoing!$K20*Achievement_to_date_ongoing!N20,"") -> 0 | N22: =IF($B22>0,Achievement_to_date_ongoing!$K20*Achievement_to_date_ongoing!O20,"") -> 0 | O22: =IF($B22>0,Achievement_to_date_ongoing!$K20*Achievement_to_date_ongoing!P20,"") -> 1
B23: =Achievement_to_date_ongoing!B21 -> 128309 | C23: =IF($B23>0, Achievement_to_date_ongoing!C21, "") -> 1 | D23: =IF($B23>0, Achievement_to_date_ongoing!D21, "") -> 1 | E23: =IF($B23>0, Achievement_to_date_ongoing!E21, "") -> 1S2 | F23: =IF($B23>0, Achievement_to_date_ongoing!F21, "") -> All | G23: 0 | H23: 1 | I23: 1 | J23: 1 | L23: =IF($B23>0,Achievement_to_date_ongoing!$K21*Achievement_to_date_ongoing!M21,"") -> 0 | M23: =IF($B23>0,Achievement_to_date_ongoing!$K21*Achievement_to_date_ongoing!N21,"") -> 1 | N23: =IF($B23>0,Achievement_to_date_ongoing!$K21*Achievement_to_date_ongoing!O21,"") -> 1 | O23: =IF($B23>0,Achievement_to_date_ongoing!$K21*Achievement_to_date_ongoing!P21,"") -> 1
B24: =Achievement_to_date_ongoing!B22 -> 127057 | C24: =IF($B24>0, Achievement_to_date_ongoing!C22, "") -> 1 | D24: =IF($B24>0, Achievement_to_date_ongoing!D22, "") -> 1 | E24: =IF($B24>0, Achievement_to_date_ongoing!E22, "") -> 1S2 | F24: =IF($B24>0, Achievement_to_date_ongoing!F22, "") -> All | G24: 0 | H24: 0 | I24: 1 | J24: 1 | L24: =IF($B24>0,Achievement_to_date_ongoing!$K22*Achievement_to_date_ongoing!M22,"") -> 0 | M24: =IF($B24>0,Achievement_to_date_ongoing!$K22*Achievement_to_date_ongoing!N22,"") -> 0 | N24: =IF($B24>0,Achievement_to_date_ongoing!$K22*Achievement_to_date_ongoing!O22,"") -> 1 | O24: =IF($B24>0,Achievement_to_date_ongoing!$K22*Achievement_to_date_ongoing!P22,"") -> 1
B25: =Achievement_to_date_ongoing!B23 -> 128043 | C25: =IF($B25>0, Achievement_to_date_ongoing!C23, "") -> 1 | D25: =IF($B25>0, Achievement_to_date_ongoing!D23, "") -> 1 | E25: =IF($B25>0, Achievement_to_date_ongoing!E23, "") -> 1S2 | F25: =IF($B25>0, Achievement_to_date_ongoing!F23, "") -> All | G25: 0 | H25: 0 | I25: 0 | J25: 1 | L25: =IF($B25>0,Achievement_to_date_ongoing!$K23*Achievement_to_date_ongoing!M23,"") -> 0 | M25: =IF($B25>0,Achievement_to_date_ongoing!$K23*Achievement_to_date_ongoing!N23,"") -> 0 | N25: =IF($B25>0,Achievement_to_date_ongoing!$K23*Achievement_to_date_ongoing!O23,"") -> 0 | O25: =IF($B25>0,Achievement_to_date_ongoing!$K23*Achievement_to_date_ongoing!P23,"") -> 1
B26: =Achievement_to_date_ongoing!B24 -> 128795 | C26: =IF($B26>0, Achievement_to_date_ongoing!C24, "") -> 1 | D26: =IF($B26>0, Achievement_to_date_ongoing!D24, "") -> 1 | E26: =IF($B26>0, Achievement_to_date_ongoing!E24, "") -> 1S2 | F26: =IF($B26>0, Achievement_to_date_ongoing!F24, "") -> All | G26: 0 | H26: 0 | I26: 1 | J26: 1 | L26: =IF($B26>0,Achievement_to_date_ongoing!$K24*Achievement_to_date_ongoing!M24,"") -> 0 | M26: =IF($B26>0,Achievement_to_date_ongoing!$K24*Achievement_to_date_ongoing!N24,"") -> 0 | N26: =IF($B26>0,Achievement_to_date_ongoing!$K24*Achievement_to_date_ongoing!O24,"") -> 1 | O26: =IF($B26>0,Achievement_to_date_ongoing!$K24*Achievement_to_date_ongoing!P24,"") -> 1
B27: =Achievement_to_date_ongoing!B25 -> 125978 | C27: =IF($B27>0, Achievement_to_date_ongoing!C25, "") -> 1 | D27: =IF($B27>0, Achievement_to_date_ongoing!D25, "") -> 1 | E27: =IF($B27>0, Achievement_to_date_ongoing!E25, "") -> CO02 | F27: =IF($B27>0, Achievement_to_date_ongoing!F25, "") -> All | G27: 0 | H27: 1 | I27: 1 | J27: 1 | L27: =IF($B27>0,Achievement_to_date_ongoing!$K25*Achievement_to_date_ongoing!M25,"") -> 0 | M27: =IF($B27>0,Achievement_to_date_ongoing!$K25*Achievement_to_date_ongoing!N25,"") -> 1 | N27: =IF($B27>0,Achievement_to_date_ongoing!$K25*Achievement_to_date_ongoing!O25,"") -> 1 | O27: =IF($B27>0,Achievement_to_date_ongoing!$K25*Achievement_to_date_ongoing!P25,"") -> 1
B28: =Achievement_to_date_ongoing!B26 -> 128789 | C28: =IF($B28>0, Achievement_to_date_ongoing!C26, "") -> 1 | D28: =IF($B28>0, Achievement_to_date_ongoing!D26, "") -> 1 | E28: =IF($B28>0, Achievement_to_date_ongoing!E26, "") -> CO02 | F28: =IF($B28>0, Achievement_to_date_ongoing!F26, "") -> All | G28: 0 | H28: 0 | I28: 1 | J28: 1 | L28: =IF($B28>0,Achievement_to_date_ongoing!$K26*Achievement_to_date_ongoing!M26,"") -> 0 | M28: =IF($B28>0,Achievement_to_date_ongoing!$K26*Achievement_to_date_ongoing!N26,"") -> 0 | N28: =IF($B28>0,Achievement_to_date_ongoing!$K26*Achievement_to_date_ongoing!O26,"") -> 1 | O28: =IF($B28>0,Achievement_to_date_ongoing!$K26*Achievement_to_date_ongoing!P26,"") -> 1
B29: =Achievement_to_date_ongoing!B27 -> 140830 | C29: =IF($B29>0, Achievement_to_date_ongoing!C27, "") -> 1 | D29: =IF($B29>0, Achievement_to_date_ongoing!D27, "") -> 1 | E29: =IF($B29>0, Achievement_to_date_ongoing!E27, "") -> CO02 | F29: =IF($B29>0, Achievement_to_date_ongoing!F27, "") -> All | G29: 0 | H29: 0 | I29: 0 | J29: 1 | L29: =IF($B29>0,Achievement_to_date_ongoing!$K27*Achievement_to_date_ongoing!M27,"") -> 0 | M29: =IF($B29>0,Achievement_to_date_ongoing!$K27*Achievement_to_date_ongoing!N27,"") -> 0 | N29: =IF($B29>0,Achievement_to_date_ongoing!$K27*Achievement_to_date_ongoing!O27,"") -> 0 | O29: =IF($B29>0,Achievement_to_date_ongoing!$K27*Achievement_to_date_ongoing!P27,"") -> 1
B30: =Achievement_to_date_ongoing!B28 -> 128862 | C30: =IF($B30>0, Achievement_to_date_ongoing!C28, "") -> 1 | D30: =IF($B30>0, Achievement_to_date_ongoing!D28, "") -> 1 | E30: =IF($B30>0, Achievement_to_date_ongoing!E28, "") -> CO02 | F30: =IF($B30>0, Achievement_to_date_ongoing!F28, "") -> All | G30: 0 | H30: 0 | I30: 1 | J30: 1 | L30: =IF($B30>0,Achievement_to_date_ongoing!$K28*Achievement_to_date_ongoing!M28,"") -> 0 | M30: =IF($B30>0,Achievement_to_date_ongoing!$K28*Achievement_to_date_ongoing!N28,"") -> 0 | N30: =IF($B30>0,Achievement_to_date_ongoing!$K28*Achievement_to_date_ongoing!O28,"") -> 1 | O30: =IF($B30>0,Achievement_to_date_ongoing!$K28*Achievement_to_date_ongoing!P28,"") -> 1
B31: =Achievement_to_date_ongoing!B29 -> 128309 | C31: =IF($B31>0, Achievement_to_date_ongoing!C29, "") -> 1 | D31: =IF($B31>0, Achievement_to_date_ongoing!D29, "") -> 1 | E31: =IF($B31>0, Achievement_to_date_ongoing!E29, "") -> CO02 | F31: =IF($B31>0, Achievement_to_date_ongoing!F29, "") -> All | G31: 0 | H31: 1 | I31: 1 | J31: 1 | L31: =IF($B31>0,Achievement_to_date_ongoing!$K29*Achievement_to_date_ongoing!M29,"") -> 0 | M31: =IF($B31>0,Achievement_to_date_ongoing!$K29*Achievement_to_date_ongoing!N29,"") -> 1 | N31: =IF($B31>0,Achievement_to_date_ongoing!$K29*Achievement_to_date_ongoing!O29,"") -> 1 | O31: =IF($B31>0,Achievement_to_date_ongoing!$K29*Achievement_to_date_ongoing!P29,"") -> 1
B32: =Achievement_to_date_ongoing!B30 -> 127057 | C32: =IF($B32>0, Achievement_to_date_ongoing!C30, "") -> 1 | D32: =IF($B32>0, Achievement_to_date_ongoing!D30, "") -> 1 | E32: =IF($B32>0, Achievement_to_date_ongoing!E30, "") -> CO02 | F32: =IF($B32>0, Achievement_to_date_ongoing!F30, "") -> All | G32: 0 | H32: 0 | I32: 1 | J32: 1 | L32: =IF($B32>0,Achievement_to_date_ongoing!$K30*Achievement_to_date_ongoing!M30,"") -> 0 | M32: =IF($B32>0,Achievement_to_date_ongoing!$K30*Achievement_to_date_ongoing!N30,"") -> 0 | N32: =IF($B32>0,Achievement_to_date_ongoing!$K30*Achievement_to_date_ongoing!O30,"") -> 1 | O32: =IF($B32>0,Achievement_to_date_ongoing!$K30*Achievement_to_date_ongoing!P30,"") -> 1
B33: =Achievement_to_date_ongoing!B31 -> 128043 | C33: =IF($B33>0, Achievement_to_date_ongoing!C31, "") -> 1 | D33: =IF($B33>0, Achievement_to_date_ongoing!D31, "") -> 1 | E33: =IF($B33>0, Achievement_to_date_ongoing!E31, "") -> CO02 | F33: =IF($B33>0, Achievement_to_date_ongoing!F31, "") -> All | G33: 0 | H33: 0 | I33: 0 | J33: 1 | L33: =IF($B33>0,Achievement_to_date_ongoing!$K31*Achievement_to_date_ongoing!M31,"") -> 0 | M33: =IF($B33>0,Achievement_to_date_ongoing!$K31*Achievement_to_date_ongoing!N31,"") -> 0 | N33: =IF($B33>0,Achievement_to_date_ongoing!$K31*Achievement_to_date_ongoing!O31,"") -> 0 | O33: =IF($B33>0,Achievement_to_date_ongoing!$K31*Achievement_to_date_ongoing!P31,"") -> 1
B34: =Achievement_to_date_ongoing!B32 -> 128795 | C34: =IF($B34>0, Achievement_to_date_ongoing!C32, "") -> 1 | D34: =IF($B34>0, Achievement_to_date_ongoing!D32, "") -> 1 | E34: =IF($B34>0, Achievement_to_date_ongoing!E32, "") -> CO02 | F34: =IF($B34>0, Achievement_to_date_ongoing!F32, "") -> All | G34: 0 | H34: 0 | I34: 1 | J34: 1 | L34: =IF($B34>0,Achievement_to_date_ongoing!$K32*Achievement_to_date_ongoing!M32,"") -> 0 | M34: =IF($B34>0,Achievement_to_date_ongoing!$K32*Achievement_to_date_ongoing!N32,"") -> 0 | N34: =IF($B34>0,Achievement_to_date_ongoing!$K32*Achievement_to_date_ongoing!O32,"") -> 1 | O34: =IF($B34>0,Achievement_to_date_ongoing!$K32*Achievement_to_date_ongoing!P32,"") -> 1
B35: =Achievement_to_date_ongoing!B33 -> 110110 | C35: =IF($B35>0, Achievement_to_date_ongoing!C33, "") -> 2 | D35: =IF($B35>0, Achievement_to_date_ongoing!D33, "") -> 2 | E35: =IF($B35>0, Achievement_to_date_ongoing!E33, "") -> 1F | F35: =IF($B35>0, Achievement_to_date_ongoing!F33, "") -> All | G35: 1794332.094 | H35: 3703045.67 | I35: 3703045.67 | J35: 3703045.67 | L35: =IF($B35>0,Achievement_to_date_ongoing!$K33*Achievement_to_date_ongoing!M33,"") -> 1794332.094 | M35: =IF($B35>0,Achievement_to_date_ongoing!$K33*Achievement_to_date_ongoing!N33,"") -> 3703045.67 | N35: =IF($B35>0,Achievement_to_date_ongoing!$K33*Achievement_to_date_ongoing!O33,"") -> 3703045.67 | O35: =IF($B35>0,Achievement_to_date_ongoing!$K33*Achievement_to_date_ongoing!P33,"") -> 3703045.67
B36: =Achievement_to_date_ongoing!B34 -> 111087 | C36: =IF($B36>0, Achievement_to_date_ongoing!C34, "") -> 2 | D36: =IF($B36>0, Achievement_to_date_ongoing!D34, "") -> 2 | E36: =IF($B36>0, Achievement_to_date_ongoing!E34, "") -> 1F | F36: =IF($B36>0, Achievement_to_date_ongoing!F34, "") -> All | G36: 3081900.54 | H36: 4177790.284 | I36: 4267280.129 | J36: 4267280.129 | L36: =IF($B36>0,Achievement_to_date_ongoing!$K34*Achievement_to_date_ongoing!M34,"") -> 3081900.54 | M36: =IF($B36>0,Achievement_to_date_ongoing!$K34*Achievement_to_date_ongoing!N34,"") -> 4177790.284 | N36: =IF($B36>0,Achievement_to_date_ongoing!$K34*Achievement_to_date_ongoing!O34,"") -> 4267280.129 | O36: =IF($B36>0,Achievement_to_date_ongoing!$K34*Achievement_to_date_ongoing!P34,"") -> 4267280.129
B37: =Achievement_to_date_ongoing!B35 -> 115112 | C37: =IF($B37>0, Achievement_to_date_ongoing!C35, "") -> 2 | D37: =IF($B37>0, Achievement_to_date_ongoing!D35, "") -> 2 | E37: =IF($B37>0, Achievement_to_date_ongoing!E35, "") -> 1F | F37: =IF($B37>0, Achievement_to_date_ongoing!F35, "") -> All | G37: 3120461.072 | H37: 3134955.06 | I37: 3134955.06 | J37: 3134955.06 | L37: =IF($B37>0,Achievement_to_date_ongoing!$K35*Achievement_to_date_ongoing!M35,"") -> 3120461.072 | M37: =IF($B37>0,Achievement_to_date_ongoing!$K35*Achievement_to_date_ongoing!N35,"") -> 3134955.06 | N37: =IF($B37>0,Achievement_to_date_ongoing!$K35*Achievement_to_date_ongoing!O35,"") -> 3134955.06 | O37: =IF($B37>0,Achievement_to_date_ongoing!$K35*Achievement_to_date_ongoing!P35,"") -> 3134955.06
B38: =Achievement_to_date_ongoing!B36 -> 110217 | C38: =IF($B38>0, Achievement_to_date_ongoing!C36, "") -> 2 | D38: =IF($B38>0, Achievement_to_date_ongoing!D36, "") -> 2 | E38: =IF($B38>0, Achievement_to_date_ongoing!E36, "") -> 1F | F38: =IF($B38>0, Achievement_to_date_ongoing!F36, "") -> All | G38: 132654.5472 | H38: 3084293.84 | I38: 3380892.119 | J38: 3585535.453 | L38: =IF($B38>0,Achievement_to_date_ongoing!$K36*Achievement_to_date_ongoing!M36,"") -> 132654.5472 | M38: =IF($B38>0,Achievement_to_date_ongoing!$K36*Achievement_to_date_ongoing!N36,"") -> 3084293.84 | N38: =IF($B38>0,Achievement_to_date_ongoing!$K36*Achievement_to_date_ongoing!O36,"") -> 3380892.119 | O38: =IF($B38>0,Achievement_to_date_ongoing!$K36*Achievement_to_date_ongoing!P36,"") -> 3585535.453
B39: =Achievement_to_date_ongoing!B37 -> 113386 | C39: =IF($B39>0, Achievement_to_date_ongoing!C37, "") -> 2 | D39: =IF($B39>0, Achievement_to_date_ongoing!D37, "") -> 2 | E39: =IF($B39>0, Achievement_to_date_ongoing!E37, "") -> 1F | F39: =IF($B39>0, Achievement_to_date_ongoing!F37, "") -> All | G39: 382971.2493 | H39: 1375698.863 | I39: 1400595.235 | J39: 1400595.235 | L39: =IF($B39>0,Achievement_to_date_ongoing!$K37*Achievement_to_date_ongoing!M37,"") -> 382971.2493 | M39: =IF($B39>0,Achievement_to_date_ongoing!$K37*Achievement_to_date_ongoing!N37,"") -> 1375698.863 | N39: =IF($B39>0,Achievement_to_date_ongoing!$K37*Achievement_to_date_ongoing!O37,"") -> 1400595.235 | O39: =IF($B39>0,Achievement_to_date_ongoing!$K37*Achievement_to_date_ongoing!P37,"") -> 1400595.235
B40: =Achievement_to_date_ongoing!B38 -> 116851 | C40: =IF($B40>0, Achievement_to_date_ongoing!C38, "") -> 2 | D40: =IF($B40>0, Achievement_to_date_ongoing!D38, "") -> 2 | E40: =IF($B40>0, Achievement_to_date_ongoing!E38, "") -> 1F | F40: =IF($B40>0, Achievement_to_date_ongoing!F38, "") -> All | G40: 1333253.35 | H40: 1449335.334 | I40: 1449335.334 | J40: 1449335.334 | L40: =IF($B40>0,Achievement_to_date_ongoing!$K38*Achievement_to_date_ongoing!M38,"") -> 1333253.35 | M40: =IF($B40>0,Achievement_to_date_ongoing!$K38*Achievement_to_date_ongoing!N38,"") -> 1449335.334 | N40: =IF($B40>0,Achievement_to_date_ongoing!$K38*Achievement_to_date_ongoing!O38,"") -> 1449335.334 | O40: =IF($B40>0,Achievement_to_date_ongoing!$K38*Achievement_to_date_ongoing!P38,"") -> 1449335.334
B41: =Achievement_to_date_ongoing!B39 -> 115416 | C41: =IF($B41>0, Achievement_to_date_ongoing!C39, "") -> 2 | D41: =IF($B41>0, Achievement_to_date_ongoing!D39, "") -> 2 | E41: =IF($B41>0, Achievement_to_date_ongoing!E39, "") -> 1F | F41: =IF($B41>0, Achievement_to_date_ongoing!F39, "") -> All | G41: 0 | H41: 2272382.777 | I41: 2272382.777 | J41: 2272382.777 | L41: =IF($B41>0,Achievement_to_date_ongoing!$K39*Achievement_to_date_ongoing!M39,"") -> 0 | M41: =IF($B41>0,Achievement_to_date_ongoing!$K39*Achievement_to_date_ongoing!N39,"") -> 2272382.777 | N41: =IF($B41>0,Achievement_to_date_ongoing!$K39*Achievement_to_date_ongoing!O39,"") -> 2272382.777 | O41: =IF($B41>0,Achievement_to_date_ongoing!$K39*Achievement_to_date_ongoing!P39,"") -> 2272382.777
B42: =Achievement_to_date_ongoing!B40 -> 110567 | C42: =IF($B42>0, Achievement_to_date_ongoing!C40, "") -> 2 | D42: =IF($B42>0, Achievement_to_date_ongoing!D40, "") -> 2 | E42: =IF($B42>0, Achievement_to_date_ongoing!E40, "") -> 1F | F42: =IF($B42>0, Achievement_to_date_ongoing!F40, "") -> All | G42: 889721.0048 | H42: 991589.7124 | I42: 991589.7124 | J42: 991589.7124 | L42: =IF($B42>0,Achievement_to_date_ongoing!$K40*Achievement_to_date_ongoing!M40,"") -> 889721.0048 | M42: =IF($B42>0,Achievement_to_date_ongoing!$K40*Achievement_to_date_ongoing!N40,"") -> 991589.7124 | N42: =IF($B42>0,Achievement_to_date_ongoing!$K40*Achievement_to_date_ongoing!O40,"") -> 991589.7124 | O42: =IF($B42>0,Achievement_to_date_ongoing!$K40*Achievement_to_date_ongoing!P40,"") -> 991589.7124
B43: =Achievement_to_date_ongoing!B41 -> 110753 | C43: =IF($B43>0, Achievement_to_date_ongoing!C41, "") -> 2 | D43: =IF($B43>0, Achievement_to_date_ongoing!D41, "") -> 2 | E43: =IF($B43>0, Achievement_to_date_ongoing!E41, "") -> 1F | F43: =IF($B43>0, Achievement_to_date_ongoing!F41, "") -> All | G43: 1460243.017 | H43: 3482190.758 | I43: 3482190.758 | J43: 3482190.758 | L43: =IF($B43>0,Achievement_to_date_ongoing!$K41*Achievement_to_date_ongoing!M41,"") -> 1460243.017 | M43: =IF($B43>0,Achievement_to_date_ongoing!$K41*Achievement_to_date_ongoing!N41,"") -> 3482190.758 | N43: =IF($B43>0,Achievement_to_date_ongoing!$K41*Achievement_to_date_ongoing!O41,"") -> 3482190.758 | O43: =IF($B43>0,Achievement_to_date_ongoing!$K41*Achievement_to_date_ongoing!P41,"") -> 3482190.758
B44: =Achievement_to_date_ongoing!B42 -> 114807 | C44: =IF($B44>0, Achievement_to_date_ongoing!C42, "") -> 2 | D44: =IF($B44>0, Achievement_to_date_ongoing!D42, "") -> 2 | E44: =IF($B44>0, Achievement_to_date_ongoing!E42, "") -> 1F | F44: =IF($B44>0, Achievement_to_date_ongoing!F42, "") -> All | G44: 1968667.652 | H44: 2154572.569 | I44: 2154572.569 | J44: 2154572.569 | L44: =IF($B44>0,Achievement_to_date_ongoing!$K42*Achievement_to_date_ongoing!M42,"") -> 1968667.652 | M44: =IF($B44>0,Achievement_to_date_ongoing!$K42*Achievement_to_date_ongoing!N42,"") -> 2154572.569 | N44: =IF($B44>0,Achievement_to_date_ongoing!$K42*Achievement_to_date_ongoing!O42,"") -> 2154572.569 | O44: =IF($B44>0,Achievement_to_date_ongoing!$K42*Achievement_to_date_ongoing!P42,"") -> 2154572.569
B45: =Achievement_to_date_ongoing!B43 -> 111416 | C45: =IF($B45>0, Achievement_to_date_ongoing!C43, "") -> 2 | D45: =IF($B45>0, Achievement_to_date_ongoing!D43, "") -> 2 | E45: =IF($B45>0, Achievement_to_date_ongoing!E43, "") -> 1F | F45: =IF($B45>0, Achievement_to_date_ongoing!F43, "") -> All | G45: 525768.6189 | H45: 3966650.28 | I45: 3966650.28 | J45: 3966650.28 | L45: =IF($B45>0,Achievement_to_date_ongoing!$K43*Achievement_to_date_ongoing!M43,"") -> 525768.6189 | M45: =IF($B45>0,Achievement_to_date_ongoing!$K43*Achievement_to_date_ongoing!N43,"") -> 3966650.28 | N45: =IF($B45>0,Achievement_to_date_ongoing!$K43*Achievement_to_date_ongoing!O43,"") -> 3966650.28 | O45: =IF($B45>0,Achievement_to_date_ongoing!$K43*Achievement_to_date_ongoing!P43,"") -> 3966650.28
B46: =Achievement_to_date_ongoing!B44 -> 113070 | C46: =IF($B46>0, Achievement_to_date_ongoing!C44, "") -> 2 | D46: =IF($B46>0, Achievement_to_date_ongoing!D44, "") -> 2 | E46: =IF($B46>0, Achievement_to_date_ongoing!E44, "") -> 1F | F46: =IF($B46>0, Achievement_to_date_ongoing!F44, "") -> All | G46: 1310309.218 | H46: 4214875.787 | I46: 4291153.466 | J46: 4291153.466 | L46: =IF($B46>0,Achievement_to_date_ongoing!$K44*Achievement_to_date_ongoing!M44,"") -> 1310309.218 | M46: =IF($B46>0,Achievement_to_date_ongoing!$K44*Achievement_to_date_ongoing!N44,"") -> 4214875.787 | N46: =IF($B46>0,Achievement_to_date_ongoing!$K44*Achievement_to_date_ongoing!O44,"") -> 4291153.466 | O46: =IF($B46>0,Achievement_to_date_ongoing!$K44*Achievement_to_date_ongoing!P44,"") -> 4291153.466
B47: =Achievement_to_date_ongoing!B45 -> 114570 | C47: =IF($B47>0, Achievement_to_date_ongoing!C45, "") -> 2 | D47: =IF($B47>0, Achievement_to_date_ongoing!D45, "") -> 2 | E47: =IF($B47>0, Achievement_to_date_ongoing!E45, "") -> 1F | F47: =IF($B47>0, Achievement_to_date_ongoing!F45, "") -> All | G47: 866317.6602 | H47: 993100.2175 | I47: 993100.2175 | J47: 993100.2175 | L47: =IF($B47>0,Achievement_to_date_ongoing!$K45*Achievement_to_date_ongoing!M45,"") -> 866317.6602 | M47: =IF($B47>0,Achievement_to_date_ongoing!$K45*Achievement_to_date_ongoing!N45,"") -> 993100.2175 | N47: =IF($B47>0,Achievement_to_date_ongoing!$K45*Achievement_to_date_ongoing!O45,"") -> 993100.2175 | O47: =IF($B47>0,Achievement_to_date_ongoing!$K45*Achievement_to_date_ongoing!P45,"") -> 993100.2175
B48: =Achievement_to_date_ongoing!B46 -> 114535 | C48: =IF($B48>0, Achievement_to_date_ongoing!C46, "") -> 2 | D48: =IF($B48>0, Achievement_to_date_ongoing!D46, "") -> 2 | E48: =IF($B48>0, Achievement_to_date_ongoing!E46, "") -> 1F | F48: =IF($B48>0, Achievement_to_date_ongoing!F46, "") -> All | G48: 4208778.645 | H48: 4413992.05 | I48: 4413992.05 | J48: 4413992.05 | L48: =IF($B48>0,Achievement_to_date_ongoing!$K46*Achievement_to_date_ongoing!M46,"") -> 4208778.645 | M48: =IF($B48>0,Achievement_to_date_ongoing!$K46*Achievement_to_date_ongoing!N46,"") -> 4413992.05 | N48: =IF($B48>0,Achievement_to_date_ongoing!$K46*Achievement_to_date_ongoing!O46,"") -> 4413992.05 | O48: =IF($B48>0,Achievement_to_date_ongoing!$K46*Achievement_to_date_ongoing!P46,"") -> 4413992.05
B49: =Achievement_to_date_ongoing!B47 -> 114887 | C49: =IF($B49>0, Achievement_to_date_ongoing!C47, "") -> 2 | D49: =IF($B49>0, Achievement_to_date_ongoing!D47, "") -> 2 | E49: =IF($B49>0, Achievement_to_date_ongoing!E47, "") -> 1F | F49: =IF($B49>0, Achievement_to_date_ongoing!F47, "") -> All | G49: 956132.7033 | H49: 3208237.725 | I49: 3477706.513 | J49: 3657702.521 | L49: =IF($B49>0,Achievement_to_date_ongoing!$K47*Achievement_to_date_ongoing!M47,"") -> 956132.7033 | M49: =IF($B49>0,Achievement_to_date_ongoing!$K47*Achievement_to_date_ongoing!N47,"") -> 3208237.725 | N49: =IF($B49>0,Achievement_to_date_ongoing!$K47*Achievement_to_date_ongoing!O47,"") -> 3477706.513 | O49: =IF($B49>0,Achievement_to_date_ongoing!$K47*Achievement_to_date_ongoing!P47,"") -> 3657702.521
B50: =Achievement_to_date_ongoing!B48 -> 111960 | C50: =IF($B50>0, Achievement_to_date_ongoing!C48, "") -> 2 | D50: =IF($B50>0, Achievement_to_date_ongoing!D48, "") -> 2 | E50: =IF($B50>0, Achievement_to_date_ongoing!E48, "") -> 1F | F50: =IF($B50>0, Achievement_to_date_ongoing!F48, "") -> All | G50: 40622.17703 | H50: 4156711.8 | I50: 4156711.8 | J50: 4156711.8 | L50: =IF($B50>0,Achievement_to_date_ongoing!$K48*Achievement_to_date_ongoing!M48,"") -> 40622.17703 | M50: =IF($B50>0,Achievement_to_date_ongoing!$K48*Achievement_to_date_ongoing!N48,"") -> 4156711.8 | N50: =IF($B50>0,Achievement_to_date_ongoing!$K48*Achievement_to_date_ongoing!O48,"") -> 4156711.8 | O50: =IF($B50>0,Achievement_to_date_ongoing!$K48*Achievement_to_date_ongoing!P48,"") -> 4156711.8
B51: =Achievement_to_date_ongoing!B49 -> 117084 | C51: =IF($B51>0, Achievement_to_date_ongoing!C49, "") -> 2 | D51: =IF($B51>0, Achievement_to_date_ongoing!D49, "") -> 2 | E51: =IF($B51>0, Achievement_to_date_ongoing!E49, "") -> 1F | F51: =IF($B51>0, Achievement_to_date_ongoing!F49, "") -> All | G51: 2820573.209 | H51: 4290016.683 | I51: 4290016.683 | J51: 4290016.683 | L51: =IF($B51>0,Achievement_to_date_ongoing!$K49*Achievement_to_date_ongoing!M49,"") -> 2820573.209 | M51: =IF($B51>0,Achievement_to_date_ongoing!$K49*Achievement_to_date_ongoing!N49,"") -> 4290016.683 | N51: =IF($B51>0,Achievement_to_date_ongoing!$K49*Achievement_to_date_ongoing!O49,"") -> 4290016.683 | O51: =IF($B51>0,Achievement_to_date_ongoing!$K49*Achievement_to_date_ongoing!P49,"") -> 4290016.683
B52: =Achievement_to_date_ongoing!B50 -> 115669 | C52: =IF($B52>0, Achievement_to_date_ongoing!C50, "") -> 2 | D52: =IF($B52>0, Achievement_to_date_ongoing!D50, "") -> 2 | E52: =IF($B52>0, Achievement_to_date_ongoing!E50, "") -> 1F | F52: =IF($B52>0, Achievement_to_date_ongoing!F50, "") -> All | G52: 1062423.591 | H52: 2544373.943 | I52: 2544373.943 | J52: 2544373.943 | L52: =IF($B52>0,Achievement_to_date_ongoing!$K50*Achievement_to_date_ongoing!M50,"") -> 1062423.591 | M52: =IF($B52>0,Achievement_to_date_ongoing!$K50*Achievement_to_date_ongoing!N50,"") -> 2544373.943 | N52: =IF($B52>0,Achievement_to_date_ongoing!$K50*Achievement_to_date_ongoing!O50,"") -> 2544373.943 | O52: =IF($B52>0,Achievement_to_date_ongoing!$K50*Achievement_to_date_ongoing!P50,"") -> 2544373.943
B53: =Achievement_to_date_ongoing!B51 -> 115036 | C53: =IF($B53>0, Achievement_to_date_ongoing!C51, "") -> 2 | D53: =IF($B53>0, Achievement_to_date_ongoing!D51, "") -> 2 | E53: =IF($B53>0, Achievement_to_date_ongoing!E51, "") -> 1F | F53: =IF($B53>0, Achievement_to_date_ongoing!F51, "") -> All | G53: 4258484.261 | H53: 4385251.39 | I53: 4385251.39 | J53: 4385251.39 | L53: =IF($B53>0,Achievement_to_date_ongoing!$K51*Achievement_to_date_ongoing!M51,"") -> 4258484.261 | M53: =IF($B53>0,Achievement_to_date_ongoing!$K51*Achievement_to_date_ongoing!N51,"") -> 4385251.39 | N53: =IF($B53>0,Achievement_to_date_ongoing!$K51*Achievement_to_date_ongoing!O51,"") -> 4385251.39 | O53: =IF($B53>0,Achievement_to_date_ongoing!$K51*Achievement_to_date_ongoing!P51,"") -> 4385251.39
B54: =Achievement_to_date_ongoing!B52 -> 111922 | C54: =IF($B54>0, Achievement_to_date_ongoing!C52, "") -> 2 | D54: =IF($B54>0, Achievement_to_date_ongoing!D52, "") -> 2 | E54: =IF($B54>0, Achievement_to_date_ongoing!E52, "") -> 1F | F54: =IF($B54>0, Achievement_to_date_ongoing!F52, "") -> All | G54: 1417759.87 | H54: 1538419.17 | I54: 1538419.17 | J54: 1538419.17 | L54: =IF($B54>0,Achievement_to_date_ongoing!$K52*Achievement_to_date_ongoing!M52,"") -> 1417759.87 | M54: =IF($B54>0,Achievement_to_date_ongoing!$K52*Achievement_to_date_ongoing!N52,"") -> 1538419.17 | N54: =IF($B54>0,Achievement_to_date_ongoing!$K52*Achievement_to_date_ongoing!O52,"") -> 1538419.17 | O54: =IF($B54>0,Achievement_to_date_ongoing!$K52*Achievement_to_date_ongoing!P52,"") -> 1538419.17
B55: =Achievement_to_date_ongoing!B53 -> 116091 | C55: =IF($B55>0, Achievement_to_date_ongoing!C53, "") -> 2 | D55: =IF($B55>0, Achievement_to_date_ongoing!D53, "") -> 2 | E55: =IF($B55>0, Achievement_to_date_ongoing!E53, "") -> 1F | F55: =IF($B55>0, Achievement_to_date_ongoing!F53, "") -> All | G55: 793027.7398 | H55: 1988388.833 | I55: 2117870.404 | J55: 2117870.404 | L55: =IF($B55>0,Achievement_to_date_ongoing!$K53*Achievement_to_date_ongoing!M53,"") -> 793027.7398 | M55: =IF($B55>0,Achievement_to_date_ongoing!$K53*Achievement_to_date_ongoing!N53,"") -> 1988388.833 | N55: =IF($B55>0,Achievement_to_date_ongoing!$K53*Achievement_to_date_ongoing!O53,"") -> 2117870.404 | O55: =IF($B55>0,Achievement_to_date_ongoing!$K53*Achievement_to_date_ongoing!P53,"") -> 2117870.404
B56: =Achievement_to_date_ongoing!B54 -> 114620 | C56: =IF($B56>0, Achievement_to_date_ongoing!C54, "") -> 2 | D56: =IF($B56>0, Achievement_to_date_ongoing!D54, "") -> 2 | E56: =IF($B56>0, Achievement_to_date_ongoing!E54, "") -> 1F | F56: =IF($B56>0, Achievement_to_date_ongoing!F54, "") -> All | G56: 2083534.199 | H56: 3973467.959 | I56: 3973467.959 | J56: 3973467.959 | L56: =IF($B56>0,Achievement_to_date_ongoing!$K54*Achievement_to_date_ongoing!M54,"") -> 2083534.199 | M56: =IF($B56>0,Achievement_to_date_ongoing!$K54*Achievement_to_date_ongoing!N54,"") -> 3973467.959 | N56: =IF($B56>0,Achievement_to_date_ongoing!$K54*Achievement_to_date_ongoing!O54,"") -> 3973467.959 | O56: =IF($B56>0,Achievement_to_date_ongoing!$K54*Achievement_to_date_ongoing!P54,"") -> 3973467.959
B57: =Achievement_to_date_ongoing!B55 -> 114744 | C57: =IF($B57>0, Achievement_to_date_ongoing!C55, "") -> 2 | D57: =IF($B57>0, Achievement_to_date_ongoing!D55, "") -> 2 | E57: =IF($B57>0, Achievement_to_date_ongoing!E55, "") -> 1F | F57: =IF($B57>0, Achievement_to_date_ongoing!F55, "") -> All | G57: 513315.8649 | H57: 1809787.842 | I57: 1809787.842 | J57: 1809787.842 | L57: =IF($B57>0,Achievement_to_date_ongoing!$K55*Achievement_to_date_ongoing!M55,"") -> 513315.8649 | M57: =IF($B57>0,Achievement_to_date_ongoing!$K55*Achievement_to_date_ongoing!N55,"") -> 1809787.842 | N57: =IF($B57>0,Achievement_to_date_ongoing!$K55*Achievement_to_date_ongoing!O55,"") -> 1809787.842 | O57: =IF($B57>0,Achievement_to_date_ongoing!$K55*Achievement_to_date_ongoing!P55,"") -> 1809787.842
B58: =Achievement_to_date_ongoing!B56 -> 110996 | C58: =IF($B58>0, Achievement_to_date_ongoing!C56, "") -> 2 | D58: =IF($B58>0, Achievement_to_date_ongoing!D56, "") -> 2 | E58: =IF($B58>0, Achievement_to_date_ongoing!E56, "") -> 1F | F58: =IF($B58>0, Achievement_to_date_ongoing!F56, "") -> All | G58: 1618069.812 | H58: 2188985.705 | I58: 2188985.705 | J58: 2188985.705 | L58: =IF($B58>0,Achievement_to_date_ongoing!$K56*Achievement_to_date_ongoing!M56,"") -> 1618069.812 | M58: =IF($B58>0,Achievement_to_date_ongoing!$K56*Achievement_to_date_ongoing!N56,"") -> 2188985.705 | N58: =IF($B58>0,Achievement_to_date_ongoing!$K56*Achievement_to_date_ongoing!O56,"") -> 2188985.705 | O58: =IF($B58>0,Achievement_to_date_ongoing!$K56*Achievement_to_date_ongoing!P56,"") -> 2188985.705
B59: =Achievement_to_date_ongoing!B57 -> 111704 | C59: =IF($B59>0, Achievement_to_date_ongoing!C57, "") -> 2 | D59: =IF($B59>0, Achievement_to_date_ongoing!D57, "") -> 2 | E59: =IF($B59>0, Achievement_to_date_ongoing!E57, "") -> 1F | F59: =IF($B59>0, Achievement_to_date_ongoing!F57, "") -> All | G59: 3369755.467 | H59: 4278913.431 | I59: 4278913.431 | J59: 4278913.431 | L59: =IF($B59>0,Achievement_to_date_ongoing!$K57*Achievement_to_date_ongoing!M57,"") -> 3369755.467 | M59: =IF($B59>0,Achievement_to_date_ongoing!$K57*Achievement_to_date_ongoing!N57,"") -> 4278913.431 | N59: =IF($B59>0,Achievement_to_date_ongoing!$K57*Achievement_to_date_ongoing!O57,"") -> 4278913.431 | O59: =IF($B59>0,Achievement_to_date_ongoing!$K57*Achievement_to_date_ongoing!P57,"") -> 4278913.431
B60: =Achievement_to_date_ongoing!B58 -> 112245 | C60: =IF($B60>0, Achievement_to_date_ongoing!C58, "") -> 2 | D60: =IF($B60>0, Achievement_to_date_ongoing!D58, "") -> 2 | E60: =IF($B60>0, Achievement_to_date_ongoing!E58, "") -> 1F | F60: =IF($B60>0, Achievement_to_date_ongoing!F58, "") -> All | G60: 3892444.208 | H60: 4196938.304 | I60: 4301187.458 | J60: 4301187.458 | L60: =IF($B60>0,Achievement_to_date_ongoing!$K58*Achievement_to_date_ongoing!M58,"") -> 3892444.208 | M60: =IF($B60>0,Achievement_to_date_ongoing!$K58*Achievement_to_date_ongoing!N58,"") -> 4196938.304 | N60: =IF($B60>0,Achievement_to_date_ongoing!$K58*Achievement_to_date_ongoing!O58,"") -> 4301187.458 | O60: =IF($B60>0,Achievement_to_date_ongoing!$K58*Achievement_to_date_ongoing!P58,"") -> 4301187.458
B61: =Achievement_to_date_ongoing!B59 -> 113390 | C61: =IF($B61>0, Achievement_to_date_ongoing!C59, "") -> 2 | D61: =IF($B61>0, Achievement_to_date_ongoing!D59, "") -> 2 | E61: =IF($B61>0, Achievement_to_date_ongoing!E59, "") -> 1F | F61: =IF($B61>0, Achievement_to_date_ongoing!F59, "") -> All | G61: 953364.8532 | H61: 4020577.565 | I61: 4264439.472 | J61: 4301418.146 | L61: =IF($B61>0,Achievement_to_date_ongoing!$K59*Achievement_to_date_ongoing!M59,"") -> 953364.8532 | M61: =IF($B61>0,Achievement_to_date_ongoing!$K59*Achievement_to_date_ongoing!N59,"") -> 4020577.565 | N61: =IF($B61>0,Achievement_to_date_ongoing!$K59*Achievement_to_date_ongoing!O59,"") -> 4264439.472 | O61: =IF($B61>0,Achievement_to_date_ongoing!$K59*Achievement_to_date_ongoing!P59,"") -> 4301418.146
B62: =Achievement_to_date_ongoing!B60 -> 111670 | C62: =IF($B62>0, Achievement_to_date_ongoing!C60, "") -> 2 | D62: =IF($B62>0, Achievement_to_date_ongoing!D60, "") -> 2 | E62: =IF($B62>0, Achievement_to_date_ongoing!E60, "") -> 1F | F62: =IF($B62>0, Achievement_to_date_ongoing!F60, "") -> All | G62: 4301215.568 | H62: 4407618.41 | I62: 4407618.41 | J62: 4407618.41 | L62: =IF($B62>0,Achievement_to_date_ongoing!$K60*Achievement_to_date_ongoing!M60,"") -> 4301215.568 | M62: =IF($B62>0,Achievement_to_date_ongoing!$K60*Achievement_to_date_ongoing!N60,"") -> 4407618.41 | N62: =IF($B62>0,Achievement_to_date_ongoing!$K60*Achievement_to_date_ongoing!O60,"") -> 4407618.41 | O62: =IF($B62>0,Achievement_to_date_ongoing!$K60*Achievement_to_date_ongoing!P60,"") -> 4407618.41
B63: =Achievement_to_date_ongoing!B61 -> 115687 | C63: =IF($B63>0, Achievement_to_date_ongoing!C61, "") -> 2 | D63: =IF($B63>0, Achievement_to_date_ongoing!D61, "") -> 2 | E63: =IF($B63>0, Achievement_to_date_ongoing!E61, "") -> 1F | F63: =IF($B63>0, Achievement_to_date_ongoing!F61, "") -> All | G63: 1059314.233 | H63: 1330748.62 | I63: 1330748.62 | J63: 1330748.62 | L63: =IF($B63>0,Achievement_to_date_ongoing!$K61*Achievement_to_date_ongoing!M61,"") -> 1059314.233 | M63: =IF($B63>0,Achievement_to_date_ongoing!$K61*Achievement_to_date_ongoing!N61,"") -> 1330748.62 | N63: =IF($B63>0,Achievement_to_date_ongoing!$K61*Achievement_to_date_ongoing!O61,"") -> 1330748.62 | O63: =IF($B63>0,Achievement_to_date_ongoing!$K61*Achievement_to_date_ongoing!P61,"") -> 1330748.62
B64: =Achievement_to_date_ongoing!B62 -> 115318 | C64: =IF($B64>0, Achievement_to_date_ongoing!C62, "") -> 2 | D64: =IF($B64>0, Achievement_to_date_ongoing!D62, "") -> 2 | E64: =IF($B64>0, Achievement_to_date_ongoing!E62, "") -> 1F | F64: =IF($B64>0, Achievement_to_date_ongoing!F62, "") -> All | G64: 770710.129 | H64: 1087078.148 | I64: 1087078.148 | J64: 1087078.148 | L64: =IF($B64>0,Achievement_to_date_ongoing!$K62*Achievement_to_date_ongoing!M62,"") -> 770710.129 | M64: =IF($B64>0,Achievement_to_date_ongoing!$K62*Achievement_to_date_ongoing!N62,"") -> 1087078.148 | N64: =IF($B64>0,Achievement_to_date_ongoing!$K62*Achievement_to_date_ongoing!O62,"") -> 1087078.148 | O64: =IF($B64>0,Achievement_to_date_ongoing!$K62*Achievement_to_date_ongoing!P62,"") -> 1087078.148
B65: =Achievement_to_date_ongoing!B63 -> 111415 | C65: =IF($B65>0, Achievement_to_date_ongoing!C63, "") -> 2 | D65: =IF($B65>0, Achievement_to_date_ongoing!D63, "") -> 2 | E65: =IF($B65>0, Achievement_to_date_ongoing!E63, "") -> 1F | F65: =IF($B65>0, Achievement_to_date_ongoing!F63, "") -> All | G65: 3233865.876 | H65: 4175428.149 | I65: 4175428.149 | J65: 4175428.149 | L65: =IF($B65>0,Achievement_to_date_ongoing!$K63*Achievement_to_date_ongoing!M63,"") -> 3233865.876 | M65: =IF($B65>0,Achievement_to_date_ongoing!$K63*Achievement_to_date_ongoing!N63,"") -> 4175428.149 | N65: =IF($B65>0,Achievement_to_date_ongoing!$K63*Achievement_to_date_ongoing!O63,"") -> 4175428.149 | O65: =IF($B65>0,Achievement_to_date_ongoing!$K63*Achievement_to_date_ongoing!P63,"") -> 4175428.149
B66: =Achievement_to_date_ongoing!B64 -> 112212 | C66: =IF($B66>0, Achievement_to_date_ongoing!C64, "") -> 2 | D66: =IF($B66>0, Achievement_to_date_ongoing!D64, "") -> 2 | E66: =IF($B66>0, Achievement_to_date_ongoing!E64, "") -> 1F | F66: =IF($B66>0, Achievement_to_date_ongoing!F64, "") -> All | G66: 1612587.132 | H66: 4277314.092 | I66: 4277314.092 | J66: 4277314.092 | L66: =IF($B66>0,Achievement_to_date_ongoing!$K64*Achievement_to_date_ongoing!M64,"") -> 1612587.132 | M66: =IF($B66>0,Achievement_to_date_ongoing!$K64*Achievement_to_date_ongoing!N64,"") -> 4277314.092 | N66: =IF($B66>0,Achievement_to_date_ongoing!$K64*Achievement_to_date_ongoing!O64,"") -> 4277314.092 | O66: =IF($B66>0,Achievement_to_date_ongoing!$K64*Achievement_to_date_ongoing!P64,"") -> 4277314.092
B67: =Achievement_to_date_ongoing!B65 -> 114557 | C67: =IF($B67>0, Achievement_to_date_ongoing!C65, "") -> 2 | D67: =IF($B67>0, Achievement_to_date_ongoing!D65, "") -> 2 | E67: =IF($B67>0, Achievement_to_date_ongoing!E65, "") -> 1F | F67: =IF($B67>0, Achievement_to_date_ongoing!F65, "") -> All | G67: 1041721.84 | H67: 1201613.957 | I67: 1201613.957 | J67: 1201613.957 | L67: =IF($B67>0,Achievement_to_date_ongoing!$K65*Achievement_to_date_ongoing!M65,"") -> 1041721.84 | M67: =IF($B67>0,Achievement_to_date_ongoing!$K65*Achievement_to_date_ongoing!N65,"") -> 1201613.957 | N67: =IF($B67>0,Achievement_to_date_ongoing!$K65*Achievement_to_date_ongoing!O65,"") -> 1201613.957 | O67: =IF($B67>0,Achievement_to_date_ongoing!$K65*Achievement_to_date_ongoing!P65,"") -> 1201613.957
B68: =Achievement_to_date_ongoing!B66 -> 117020 | C68: =IF($B68>0, Achievement_to_date_ongoing!C66, "") -> 2 | D68: =IF($B68>0, Achievement_to_date_ongoing!D66, "") -> 2 | E68: =IF($B68>0, Achievement_to_date_ongoing!E66, "") -> 1F | F68: =IF($B68>0, Achievement_to_date_ongoing!F66, "") -> All | G68: 70442.81625 | H68: 3883710.028 | I68: 4255976.441 | J68: 4255976.441 | L68: =IF($B68>0,Achievement_to_date_ongoing!$K66*Achievement_to_date_ongoing!M66,"") -> 70442.81625 | M68: =IF($B68>0,Achievement_to_date_ongoing!$K66*Achievement_to_date_ongoing!N66,"") -> 3883710.028 | N68: =IF($B68>0,Achievement_to_date_ongoing!$K66*Achievement_to_date_ongoing!O66,"") -> 4255976.441 | O68: =IF($B68>0,Achievement_to_date_ongoing!$K66*Achievement_to_date_ongoing!P66,"") -> 4255976.441
B69: =Achievement_to_date_ongoing!B67 -> 111891 | C69: =IF($B69>0, Achievement_to_date_ongoing!C67, "") -> 2 | D69: =IF($B69>0, Achievement_to_date_ongoing!D67, "") -> 2 | E69: =IF($B69>0, Achievement_to_date_ongoing!E67, "") -> 1F | F69: =IF($B69>0, Achievement_to_date_ongoing!F67, "") -> All | G69: 478946.5131 | H69: 1968511.8 | I69: 2031461.501 | J69: 2031461.501 | L69: =IF($B69>0,Achievement_to_date_ongoing!$K67*Achievement_to_date_ongoing!M67,"") -> 478946.5131 | M69: =IF($B69>0,Achievement_to_date_ongoing!$K67*Achievement_to_date_ongoing!N67,"") -> 1968511.8 | N69: =IF($B69>0,Achievement_to_date_ongoing!$K67*Achievement_to_date_ongoing!O67,"") -> 2031461.501 | O69: =IF($B69>0,Achievement_to_date_ongoing!$K67*Achievement_to_date_ongoing!P67,"") -> 2031461.501
B70: =Achievement_to_date_ongoing!B68 -> 113378 | C70: =IF($B70>0, Achievement_to_date_ongoing!C68, "") -> 2 | D70: =IF($B70>0, Achievement_to_date_ongoing!D68, "") -> 2 | E70: =IF($B70>0, Achievement_to_date_ongoing!E68, "") -> 1F | F70: =IF($B70>0, Achievement_to_date_ongoing!F68, "") -> All | G70: 1430275.183 | H70: 1462528.43 | I70: 1462528.43 | J70: 1462528.43 | L70: =IF($B70>0,Achievement_to_date_ongoing!$K68*Achievement_to_date_ongoing!M68,"") -> 1430275.183 | M70: =IF($B70>0,Achievement_to_date_ongoing!$K68*Achievement_to_date_ongoing!N68,"") -> 1462528.43 | N70: =IF($B70>0,Achievement_to_date_ongoing!$K68*Achievement_to_date_ongoing!O68,"") -> 1462528.43 | O70: =IF($B70>0,Achievement_to_date_ongoing!$K68*Achievement_to_date_ongoing!P68,"") -> 1462528.43
B71: =Achievement_to_date_ongoing!B69 -> 114197 | C71: =IF($B71>0, Achievement_to_date_ongoing!C69, "") -> 2 | D71: =IF($B71>0, Achievement_to_date_ongoing!D69, "") -> 2 | E71: =IF($B71>0, Achievement_to_date_ongoing!E69, "") -> 1F | F71: =IF($B71>0, Achievement_to_date_ongoing!F69, "") -> All | G71: 2318592.037 | H71: 3970545.868 | I71: 4287255.756 | J71: 4287255.756 | L71: =IF($B71>0,Achievement_to_date_ongoing!$K69*Achievement_to_date_ongoing!M69,"") -> 2318592.037 | M71: =IF($B71>0,Achievement_to_date_ongoing!$K69*Achievement_to_date_ongoing!N69,"") -> 3970545.868 | N71: =IF($B71>0,Achievement_to_date_ongoing!$K69*Achievement_to_date_ongoing!O69,"") -> 4287255.756 | O71: =IF($B71>0,Achievement_to_date_ongoing!$K69*Achievement_to_date_ongoing!P69,"") -> 4287255.756
B72: =Achievement_to_date_ongoing!B70 -> 116329 | C72: =IF($B72>0, Achievement_to_date_ongoing!C70, "") -> 2 | D72: =IF($B72>0, Achievement_to_date_ongoing!D70, "") -> 2 | E72: =IF($B72>0, Achievement_to_date_ongoing!E70, "") -> 1F | F72: =IF($B72>0, Achievement_to_date_ongoing!F70, "") -> All | G72: 4475541.978 | H72: 4485696.24 | I72: 4485696.24 | J72: 4485696.24 | L72: =IF($B72>0,Achievement_to_date_ongoing!$K70*Achievement_to_date_ongoing!M70,"") -> 4475541.978 | M72: =IF($B72>0,Achievement_to_date_ongoing!$K70*Achievement_to_date_ongoing!N70,"") -> 4485696.24 | N72: =IF($B72>0,Achievement_to_date_ongoing!$K70*Achievement_to_date_ongoing!O70,"") -> 4485696.24 | O72: =IF($B72>0,Achievement_to_date_ongoing!$K70*Achievement_to_date_ongoing!P70,"") -> 4485696.24
B73: =Achievement_to_date_ongoing!B71 -> 113047 | C73: =IF($B73>0, Achievement_to_date_ongoing!C71, "") -> 2 | D73: =IF($B73>0, Achievement_to_date_ongoing!D71, "") -> 2 | E73: =IF($B73>0, Achievement_to_date_ongoing!E71, "") -> 1F | F73: =IF($B73>0, Achievement_to_date_ongoing!F71, "") -> All | G73: 2584642.8 | H73: 3413958.58 | I73: 3413958.58 | J73: 3413958.58 | L73: =IF($B73>0,Achievement_to_date_ongoing!$K71*Achievement_to_date_ongoing!M71,"") -> 2584642.8 | M73: =IF($B73>0,Achievement_to_date_ongoing!$K71*Achievement_to_date_ongoing!N71,"") -> 3413958.58 | N73: =IF($B73>0,Achievement_to_date_ongoing!$K71*Achievement_to_date_ongoing!O71,"") -> 3413958.58 | O73: =IF($B73>0,Achievement_to_date_ongoing!$K71*Achievement_to_date_ongoing!P71,"") -> 3413958.58
B74: =Achievement_to_date_ongoing!B72 -> 116373 | C74: =IF($B74>0, Achievement_to_date_ongoing!C72, "") -> 2 | D74: =IF($B74>0, Achievement_to_date_ongoing!D72, "") -> 2 | E74: =IF($B74>0, Achievement_to_date_ongoing!E72, "") -> 1F | F74: =IF($B74>0, Achievement_to_date_ongoing!F72, "") -> All | G74: 3828115.892 | H74: 4001096.46 | I74: 4001096.46 | J74: 4001096.46 | L74: =IF($B74>0,Achievement_to_date_ongoing!$K72*Achievement_to_date_ongoing!M72,"") -> 3828115.892 | M74: =IF($B74>0,Achievement_to_date_ongoing!$K72*Achievement_to_date_ongoing!N72,"") -> 4001096.46 | N74: =IF($B74>0,Achievement_to_date_ongoing!$K72*Achievement_to_date_ongoing!O72,"") -> 4001096.46 | O74: =IF($B74>0,Achievement_to_date_ongoing!$K72*Achievement_to_date_ongoing!P72,"") -> 4001096.46
B75: =Achievement_to_date_ongoing!B73 -> 113741 | C75: =IF($B75>0, Achievement_to_date_ongoing!C73, "") -> 2 | D75: =IF($B75>0, Achievement_to_date_ongoing!D73, "") -> 2 | E75: =IF($B75>0, Achievement_to_date_ongoing!E73, "") -> 1F | F75: =IF($B75>0, Achievement_to_date_ongoing!F73, "") -> All | G75: 2855028.252 | H75: 3325755.536 | I75: 3325755.536 | J75: 3325755.536 | L75: =IF($B75>0,Achievement_to_date_ongoing!$K73*Achievement_to_date_ongoing!M73,"") -> 2855028.252 | M75: =IF($B75>0,Achievement_to_date_ongoing!$K73*Achievement_to_date_ongoing!N73,"") -> 3325755.536 | N75: =IF($B75>0,Achievement_to_date_ongoing!$K73*Achievement_to_date_ongoing!O73,"") -> 3325755.536 | O75: =IF($B75>0,Achievement_to_date_ongoing!$K73*Achievement_to_date_ongoing!P73,"") -> 3325755.536
B76: =Achievement_to_date_ongoing!B74 -> 114843 | C76: =IF($B76>0, Achievement_to_date_ongoing!C74, "") -> 2 | D76: =IF($B76>0, Achievement_to_date_ongoing!D74, "") -> 2 | E76: =IF($B76>0, Achievement_to_date_ongoing!E74, "") -> 1F | F76: =IF($B76>0, Achievement_to_date_ongoing!F74, "") -> All | G76: 1648979.546 | H76: 4299231.061 | I76: 4299231.061 | J76: 4299231.061 | L76: =IF($B76>0,Achievement_to_date_ongoing!$K74*Achievement_to_date_ongoing!M74,"") -> 1648979.546 | M76: =IF($B76>0,Achievement_to_date_ongoing!$K74*Achievement_to_date_ongoing!N74,"") -> 4299231.061 | N76: =IF($B76>0,Achievement_to_date_ongoing!$K74*Achievement_to_date_ongoing!O74,"") -> 4299231.061 | O76: =IF($B76>0,Achievement_to_date_ongoing!$K74*Achievement_to_date_ongoing!P74,"") -> 4299231.061
B77: =Achievement_to_date_ongoing!B75 -> 111549 | C77: =IF($B77>0, Achievement_to_date_ongoing!C75, "") -> 2 | D77: =IF($B77>0, Achievement_to_date_ongoing!D75, "") -> 2 | E77: =IF($B77>0, Achievement_to_date_ongoing!E75, "") -> 1F | F77: =IF($B77>0, Achievement_to_date_ongoing!F75, "") -> All | G77: 1457879.932 | H77: 2414196.416 | I77: 2414196.416 | J77: 2414196.416 | L77: =IF($B77>0,Achievement_to_date_ongoing!$K75*Achievement_to_date_ongoing!M75,"") -> 1457879.932 | M77: =IF($B77>0,Achievement_to_date_ongoing!$K75*Achievement_to_date_ongoing!N75,"") -> 2414196.416 | N77: =IF($B77>0,Achievement_to_date_ongoing!$K75*Achievement_to_date_ongoing!O75,"") -> 2414196.416 | O77: =IF($B77>0,Achievement_to_date_ongoing!$K75*Achievement_to_date_ongoing!P75,"") -> 2414196.416
B78: =Achievement_to_date_ongoing!B76 -> 112298 | C78: =IF($B78>0, Achievement_to_date_ongoing!C76, "") -> 2 | D78: =IF($B78>0, Achievement_to_date_ongoing!D76, "") -> 2 | E78: =IF($B78>0, Achievement_to_date_ongoing!E76, "") -> 1F | F78: =IF($B78>0, Achievement_to_date_ongoing!F76, "") -> All | G78: 3995704.561 | H78: 4445319.55 | I78: 4445319.55 | J78: 4445319.55 | L78: =IF($B78>0,Achievement_to_date_ongoing!$K76*Achievement_to_date_ongoing!M76,"") -> 3995704.561 | M78: =IF($B78>0,Achievement_to_date_ongoing!$K76*Achievement_to_date_ongoing!N76,"") -> 4445319.55 | N78: =IF($B78>0,Achievement_to_date_ongoing!$K76*Achievement_to_date_ongoing!O76,"") -> 4445319.55 | O78: =IF($B78>0,Achievement_to_date_ongoing!$K76*Achievement_to_date_ongoing!P76,"") -> 4445319.55
B79: =Achievement_to_date_ongoing!B77 -> 116876 | C79: =IF($B79>0, Achievement_to_date_ongoing!C77, "") -> 2 | D79: =IF($B79>0, Achievement_to_date_ongoing!D77, "") -> 2 | E79: =IF($B79>0, Achievement_to_date_ongoing!E77, "") -> 1F | F79: =IF($B79>0, Achievement_to_date_ongoing!F77, "") -> All | G79: 486081.0281 | H79: 1728234.442 | I79: 1728234.442 | J79: 1728234.442 | L79: =IF($B79>0,Achievement_to_date_ongoing!$K77*Achievement_to_date_ongoing!M77,"") -> 486081.0281 | M79: =IF($B79>0,Achievement_to_date_ongoing!$K77*Achievement_to_date_ongoing!N77,"") -> 1728234.442 | N79: =IF($B79>0,Achievement_to_date_ongoing!$K77*Achievement_to_date_ongoing!O77,"") -> 1728234.442 | O79: =IF($B79>0,Achievement_to_date_ongoing!$K77*Achievement_to_date_ongoing!P77,"") -> 1728234.442
B80: =Achievement_to_date_ongoing!B78 -> 114891 | C80: =IF($B80>0, Achievement_to_date_ongoing!C78, "") -> 2 | D80: =IF($B80>0, Achievement_to_date_ongoing!D78, "") -> 2 | E80: =IF($B80>0, Achievement_to_date_ongoing!E78, "") -> 1F | F80: =IF($B80>0, Achievement_to_date_ongoing!F78, "") -> All | G80: 592088.7508 | H80: 4152746.65 | I80: 4301022.608 | J80: 4301022.608 | L80: =IF($B80>0,Achievement_to_date_ongoing!$K78*Achievement_to_date_ongoing!M78,"") -> 592088.7508 | M80: =IF($B80>0,Achievement_to_date_ongoing!$K78*Achievement_to_date_ongoing!N78,"") -> 4152746.65 | N80: =IF($B80>0,Achievement_to_date_ongoing!$K78*Achievement_to_date_ongoing!O78,"") -> 4301022.608 | O80: =IF($B80>0,Achievement_to_date_ongoing!$K78*Achievement_to_date_ongoing!P78,"") -> 4301022.608
B81: =Achievement_to_date_ongoing!B79 -> 116765 | C81: =IF($B81>0, Achievement_to_date_ongoing!C79, "") -> 2 | D81: =IF($B81>0, Achievement_to_date_ongoing!D79, "") -> 2 | E81: =IF($B81>0, Achievement_to_date_ongoing!E79, "") -> 1F | F81: =IF($B81>0, Achievement_to_date_ongoing!F79, "") -> All | G81: 2970775.001 | H81: 4005963 | I81: 4005963 | J81: 4005963 | L81: =IF($B81>0,Achievement_to_date_ongoing!$K79*Achievement_to_date_ongoing!M79,"") -> 2970775.001 | M81: =IF($B81>0,Achievement_to_date_ongoing!$K79*Achievement_to_date_ongoing!N79,"") -> 4005963 | N81: =IF($B81>0,Achievement_to_date_ongoing!$K79*Achievement_to_date_ongoing!O79,"") -> 4005963 | O81: =IF($B81>0,Achievement_to_date_ongoing!$K79*Achievement_to_date_ongoing!P79,"") -> 4005963
B82: =Achievement_to_date_ongoing!B80 -> 116769 | C82: =IF($B82>0, Achievement_to_date_ongoing!C80, "") -> 2 | D82: =IF($B82>0, Achievement_to_date_ongoing!D80, "") -> 2 | E82: =IF($B82>0, Achievement_to_date_ongoing!E80, "") -> 1F | F82: =IF($B82>0, Achievement_to_date_ongoing!F80, "") -> All | G82: 3074438.819 | H82: 3572071.772 | I82: 3572071.772 | J82: 3572071.772 | L82: =IF($B82>0,Achievement_to_date_ongoing!$K80*Achievement_to_date_ongoing!M80,"") -> 3074438.819 | M82: =IF($B82>0,Achievement_to_date_ongoing!$K80*Achievement_to_date_ongoing!N80,"") -> 3572071.772 | N82: =IF($B82>0,Achievement_to_date_ongoing!$K80*Achievement_to_date_ongoing!O80,"") -> 3572071.772 | O82: =IF($B82>0,Achievement_to_date_ongoing!$K80*Achievement_to_date_ongoing!P80,"") -> 3572071.772
B83: =Achievement_to_date_ongoing!B81 -> 110465 | C83: =IF($B83>0, Achievement_to_date_ongoing!C81, "") -> 2 | D83: =IF($B83>0, Achievement_to_date_ongoing!D81, "") -> 2 | E83: =IF($B83>0, Achievement_to_date_ongoing!E81, "") -> 1F | F83: =IF($B83>0, Achievement_to_date_ongoing!F81, "") -> All | G83: 2698367.665 | H83: 2953173.251 | I83: 2953173.251 | J83: 2953173.251 | L83: =IF($B83>0,Achievement_to_date_ongoing!$K81*Achievement_to_date_ongoing!M81,"") -> 2698367.665 | M83: =IF($B83>0,Achievement_to_date_ongoing!$K81*Achievement_to_date_ongoing!N81,"") -> 2953173.251 | N83: =IF($B83>0,Achievement_to_date_ongoing!$K81*Achievement_to_date_ongoing!O81,"") -> 2953173.251 | O83: =IF($B83>0,Achievement_to_date_ongoing!$K81*Achievement_to_date_ongoing!P81,"") -> 2953173.251
B84: =Achievement_to_date_ongoing!B82 -> 110848 | C84: =IF($B84>0, Achievement_to_date_ongoing!C82, "") -> 2 | D84: =IF($B84>0, Achievement_to_date_ongoing!D82, "") -> 2 | E84: =IF($B84>0, Achievement_to_date_ongoing!E82, "") -> 1F | F84: =IF($B84>0, Achievement_to_date_ongoing!F82, "") -> All | G84: 4036170.251 | H84: 4300858.815 | I84: 4300858.815 | J84: 4300858.815 | L84: =IF($B84>0,Achievement_to_date_ongoing!$K82*Achievement_to_date_ongoing!M82,"") -> 4036170.251 | M84: =IF($B84>0,Achievement_to_date_ongoing!$K82*Achievement_to_date_ongoing!N82,"") -> 4300858.815 | N84: =IF($B84>0,Achievement_to_date_ongoing!$K82*Achievement_to_date_ongoing!O82,"") -> 4300858.815 | O84: =IF($B84>0,Achievement_to_date_ongoing!$K82*Achievement_to_date_ongoing!P82,"") -> 4300858.815
B85: =Achievement_to_date_ongoing!B83 -> 111587 | C85: =IF($B85>0, Achievement_to_date_ongoing!C83, "") -> 2 | D85: =IF($B85>0, Achievement_to_date_ongoing!D83, "") -> 2 | E85: =IF($B85>0, Achievement_to_date_ongoing!E83, "") -> 1F | F85: =IF($B85>0, Achievement_to_date_ongoing!F83, "") -> All | G85: 1028.409545 | H85: 4261181.337 | I85: 4298131.758 | J85: 4298131.758 | L85: =IF($B85>0,Achievement_to_date_ongoing!$K83*Achievement_to_date_ongoing!M83,"") -> 1028.409545 | M85: =IF($B85>0,Achievement_to_date_ongoing!$K83*Achievement_to_date_ongoing!N83,"") -> 4261181.337 | N85: =IF($B85>0,Achievement_to_date_ongoing!$K83*Achievement_to_date_ongoing!O83,"") -> 4298131.758 | O85: =IF($B85>0,Achievement_to_date_ongoing!$K83*Achievement_to_date_ongoing!P83,"") -> 4298131.758
B86: =Achievement_to_date_ongoing!B84 -> 116893 | C86: =IF($B86>0, Achievement_to_date_ongoing!C84, "") -> 2 | D86: =IF($B86>0, Achievement_to_date_ongoing!D84, "") -> 2 | E86: =IF($B86>0, Achievement_to_date_ongoing!E84, "") -> 1F | F86: =IF($B86>0, Achievement_to_date_ongoing!F84, "") -> All | G86: 2927542.587 | H86: 2997582.48 | I86: 2997582.48 | J86: 2997582.48 | L86: =IF($B86>0,Achievement_to_date_ongoing!$K84*Achievement_to_date_ongoing!M84,"") -> 2927542.587 | M86: =IF($B86>0,Achievement_to_date_ongoing!$K84*Achievement_to_date_ongoing!N84,"") -> 2997582.48 | N86: =IF($B86>0,Achievement_to_date_ongoing!$K84*Achievement_to_date_ongoing!O84,"") -> 2997582.48 | O86: =IF($B86>0,Achievement_to_date_ongoing!$K84*Achievement_to_date_ongoing!P84,"") -> 2997582.48
B87: =Achievement_to_date_ongoing!B85 -> 114206 | C87: =IF($B87>0, Achievement_to_date_ongoing!C85, "") -> 2 | D87: =IF($B87>0, Achievement_to_date_ongoing!D85, "") -> 2 | E87: =IF($B87>0, Achievement_to_date_ongoing!E85, "") -> 1F | F87: =IF($B87>0, Achievement_to_date_ongoing!F85, "") -> All | G87: 1088734.811 | H87: 1253101.681 | I87: 1253101.681 | J87: 1253101.681 | L87: =IF($B87>0,Achievement_to_date_ongoing!$K85*Achievement_to_date_ongoing!M85,"") -> 1088734.811 | M87: =IF($B87>0,Achievement_to_date_ongoing!$K85*Achievement_to_date_ongoing!N85,"") -> 1253101.681 | N87: =IF($B87>0,Achievement_to_date_ongoing!$K85*Achievement_to_date_ongoing!O85,"") -> 1253101.681 | O87: =IF($B87>0,Achievement_to_date_ongoing!$K85*Achievement_to_date_ongoing!P85,"") -> 1253101.681
B88: =Achievement_to_date_ongoing!B86 -> 122500 | C88: =IF($B88>0, Achievement_to_date_ongoing!C86, "") -> 2 | D88: =IF($B88>0, Achievement_to_date_ongoing!D86, "") -> 2 | E88: =IF($B88>0, Achievement_to_date_ongoing!E86, "") -> 1F | F88: =IF($B88>0, Achievement_to_date_ongoing!F86, "") -> All | G88: 1997384.417 | H88: 3943577.112 | I88: 3943577.112 | J88: 3943577.112 | L88: =IF($B88>0,Achievement_to_date_ongoing!$K86*Achievement_to_date_ongoing!M86,"") -> 1997384.417 | M88: =IF($B88>0,Achievement_to_date_ongoing!$K86*Achievement_to_date_ongoing!N86,"") -> 3943577.112 | N88: =IF($B88>0,Achievement_to_date_ongoing!$K86*Achievement_to_date_ongoing!O86,"") -> 3943577.112 | O88: =IF($B88>0,Achievement_to_date_ongoing!$K86*Achievement_to_date_ongoing!P86,"") -> 3943577.112
B89: =Achievement_to_date_ongoing!B87 -> 114761 | C89: =IF($B89>0, Achievement_to_date_ongoing!C87, "") -> 2 | D89: =IF($B89>0, Achievement_to_date_ongoing!D87, "") -> 2 | E89: =IF($B89>0, Achievement_to_date_ongoing!E87, "") -> 1F | F89: =IF($B89>0, Achievement_to_date_ongoing!F87, "") -> All | G89: 85013.47505 | H89: 3797491.898 | I89: 3797491.898 | J89: 3797491.898 | L89: =IF($B89>0,Achievement_to_date_ongoing!$K87*Achievement_to_date_ongoing!M87,"") -> 85013.47505 | M89: =IF($B89>0,Achievement_to_date_ongoing!$K87*Achievement_to_date_ongoing!N87,"") -> 3797491.898 | N89: =IF($B89>0,Achievement_to_date_ongoing!$K87*Achievement_to_date_ongoing!O87,"") -> 3797491.898 | O89: =IF($B89>0,Achievement_to_date_ongoing!$K87*Achievement_to_date_ongoing!P87,"") -> 3797491.898
B90: =Achievement_to_date_ongoing!B88 -> 122905 | C90: =IF($B90>0, Achievement_to_date_ongoing!C88, "") -> 2 | D90: =IF($B90>0, Achievement_to_date_ongoing!D88, "") -> 2 | E90: =IF($B90>0, Achievement_to_date_ongoing!E88, "") -> 1F | F90: =IF($B90>0, Achievement_to_date_ongoing!F88, "") -> All | G90: 3990518.987 | H90: 4522277.48 | I90: 4522277.48 | J90: 4522277.48 | L90: =IF($B90>0,Achievement_to_date_ongoing!$K88*Achievement_to_date_ongoing!M88,"") -> 3990518.987 | M90: =IF($B90>0,Achievement_to_date_ongoing!$K88*Achievement_to_date_ongoing!N88,"") -> 4522277.48 | N90: =IF($B90>0,Achievement_to_date_ongoing!$K88*Achievement_to_date_ongoing!O88,"") -> 4522277.48 | O90: =IF($B90>0,Achievement_to_date_ongoing!$K88*Achievement_to_date_ongoing!P88,"") -> 4522277.48
B91: =Achievement_to_date_ongoing!B89 -> 122912 | C91: =IF($B91>0, Achievement_to_date_ongoing!C89, "") -> 2 | D91: =IF($B91>0, Achievement_to_date_ongoing!D89, "") -> 2 | E91: =IF($B91>0, Achievement_to_date_ongoing!E89, "") -> 1F | F91: =IF($B91>0, Achievement_to_date_ongoing!F89, "") -> All | G91: 3825887.866 | H91: 4001721 | I91: 4001721 | J91: 4001721 | L91: =IF($B91>0,Achievement_to_date_ongoing!$K89*Achievement_to_date_ongoing!M89,"") -> 3825887.866 | M91: =IF($B91>0,Achievement_to_date_ongoing!$K89*Achievement_to_date_ongoing!N89,"") -> 4001721 | N91: =IF($B91>0,Achievement_to_date_ongoing!$K89*Achievement_to_date_ongoing!O89,"") -> 4001721 | O91: =IF($B91>0,Achievement_to_date_ongoing!$K89*Achievement_to_date_ongoing!P89,"") -> 4001721
B92: =Achievement_to_date_ongoing!B90 -> 122924 | C92: =IF($B92>0, Achievement_to_date_ongoing!C90, "") -> 2 | D92: =IF($B92>0, Achievement_to_date_ongoing!D90, "") -> 2 | E92: =IF($B92>0, Achievement_to_date_ongoing!E90, "") -> 1F | F92: =IF($B92>0, Achievement_to_date_ongoing!F90, "") -> All | G92: 0 | H92: 4333144.996 | I92: 4425962.598 | J92: 4425962.598 | L92: =IF($B92>0,Achievement_to_date_ongoing!$K90*Achievement_to_date_ongoing!M90,"") -> 0 | M92: =IF($B92>0,Achievement_to_date_ongoing!$K90*Achievement_to_date_ongoing!N90,"") -> 4333144.996 | N92: =IF($B92>0,Achievement_to_date_ongoing!$K90*Achievement_to_date_ongoing!O90,"") -> 4425962.598 | O92: =IF($B92>0,Achievement_to_date_ongoing!$K90*Achievement_to_date_ongoing!P90,"") -> 4425962.598
B93: =Achievement_to_date_ongoing!B91 -> 123829 | C93: =IF($B93>0, Achievement_to_date_ongoing!C91, "") -> 2 | D93: =IF($B93>0, Achievement_to_date_ongoing!D91, "") -> 2 | E93: =IF($B93>0, Achievement_to_date_ongoing!E91, "") -> 1F | F93: =IF($B93>0, Achievement_to_date_ongoing!F91, "") -> All | G93: 107125.9943 | H93: 4177475.14 | I93: 4393689.145 | J93: 4393689.145 | L93: =IF($B93>0,Achievement_to_date_ongoing!$K91*Achievement_to_date_ongoing!M91,"") -> 107125.9943 | M93: =IF($B93>0,Achievement_to_date_ongoing!$K91*Achievement_to_date_ongoing!N91,"") -> 4177475.14 | N93: =IF($B93>0,Achievement_to_date_ongoing!$K91*Achievement_to_date_ongoing!O91,"") -> 4393689.145 | O93: =IF($B93>0,Achievement_to_date_ongoing!$K91*Achievement_to_date_ongoing!P91,"") -> 4393689.145
B94: =Achievement_to_date_ongoing!B92 -> 117112 | C94: =IF($B94>0, Achievement_to_date_ongoing!C92, "") -> 2 | D94: =IF($B94>0, Achievement_to_date_ongoing!D92, "") -> 2 | E94: =IF($B94>0, Achievement_to_date_ongoing!E92, "") -> 1F | F94: =IF($B94>0, Achievement_to_date_ongoing!F92, "") -> All | G94: 3185264.07 | H94: 4258996.08 | I94: 4258996.08 | J94: 4258996.08 | L94: =IF($B94>0,Achievement_to_date_ongoing!$K92*Achievement_to_date_ongoing!M92,"") -> 3185264.07 | M94: =IF($B94>0,Achievement_to_date_ongoing!$K92*Achievement_to_date_ongoing!N92,"") -> 4258996.08 | N94: =IF($B94>0,Achievement_to_date_ongoing!$K92*Achievement_to_date_ongoing!O92,"") -> 4258996.08 | O94: =IF($B94>0,Achievement_to_date_ongoing!$K92*Achievement_to_date_ongoing!P92,"") -> 4258996.08
B95: =Achievement_to_date_ongoing!B93 -> 124148 | C95: =IF($B95>0, Achievement_to_date_ongoing!C93, "") -> 2 | D95: =IF($B95>0, Achievement_to_date_ongoing!D93, "") -> 2 | E95: =IF($B95>0, Achievement_to_date_ongoing!E93, "") -> 1F | F95: =IF($B95>0, Achievement_to_date_ongoing!F93, "") -> All | G95: 0 | H95: 4366205.49 | I95: 4366205.49 | J95: 4366205.49 | L95: =IF($B95>0,Achievement_to_date_ongoing!$K93*Achievement_to_date_ongoing!M93,"") -> 0 | M95: =IF($B95>0,Achievement_to_date_ongoing!$K93*Achievement_to_date_ongoing!N93,"") -> 4366205.49 | N95: =IF($B95>0,Achievement_to_date_ongoing!$K93*Achievement_to_date_ongoing!O93,"") -> 4366205.49 | O95: =IF($B95>0,Achievement_to_date_ongoing!$K93*Achievement_to_date_ongoing!P93,"") -> 4366205.49
B96: =Achievement_to_date_ongoing!B94 -> 125669 | C96: =IF($B96>0, Achievement_to_date_ongoing!C94, "") -> 2 | D96: =IF($B96>0, Achievement_to_date_ongoing!D94, "") -> 2 | E96: =IF($B96>0, Achievement_to_date_ongoing!E94, "") -> 1F | F96: =IF($B96>0, Achievement_to_date_ongoing!F94, "") -> All | G96: 0 | H96: 4193668.58 | I96: 4428837.603 | J96: 4428837.603 | L96: =IF($B96>0,Achievement_to_date_ongoing!$K94*Achievement_to_date_ongoing!M94,"") -> 0 | M96: =IF($B96>0,Achievement_to_date_ongoing!$K94*Achievement_to_date_ongoing!N94,"") -> 4193668.58 | N96: =IF($B96>0,Achievement_to_date_ongoing!$K94*Achievement_to_date_ongoing!O94,"") -> 4428837.603 | O96: =IF($B96>0,Achievement_to_date_ongoing!$K94*Achievement_to_date_ongoing!P94,"") -> 4428837.603
B97: =Achievement_to_date_ongoing!B95 -> 125809 | C97: =IF($B97>0, Achievement_to_date_ongoing!C95, "") -> 2 | D97: =IF($B97>0, Achievement_to_date_ongoing!D95, "") -> 2 | E97: =IF($B97>0, Achievement_to_date_ongoing!E95, "") -> 1F | F97: =IF($B97>0, Achievement_to_date_ongoing!F95, "") -> All | G97: 48849.45339 | H97: 1542789.159 | I97: 1672597.874 | J97: 1682132.975 | L97: =IF($B97>0,Achievement_to_date_ongoing!$K95*Achievement_to_date_ongoing!M95,"") -> 48849.45339 | M97: =IF($B97>0,Achievement_to_date_ongoing!$K95*Achievement_to_date_ongoing!N95,"") -> 1542789.159 | N97: =IF($B97>0,Achievement_to_date_ongoing!$K95*Achievement_to_date_ongoing!O95,"") -> 1672597.874 | O97: =IF($B97>0,Achievement_to_date_ongoing!$K95*Achievement_to_date_ongoing!P95,"") -> 1682132.975
B98: =Achievement_to_date_ongoing!B96 -> 125969 | C98: =IF($B98>0, Achievement_to_date_ongoing!C96, "") -> 2 | D98: =IF($B98>0, Achievement_to_date_ongoing!D96, "") -> 2 | E98: =IF($B98>0, Achievement_to_date_ongoing!E96, "") -> 1F | F98: =IF($B98>0, Achievement_to_date_ongoing!F96, "") -> All | G98: 0 | H98: 3775878.472 | I98: 3896624.722 | J98: 3896624.722 | L98: =IF($B98>0,Achievement_to_date_ongoing!$K96*Achievement_to_date_ongoing!M96,"") -> 0 | M98: =IF($B98>0,Achievement_to_date_ongoing!$K96*Achievement_to_date_ongoing!N96,"") -> 3775878.472 | N98: =IF($B98>0,Achievement_to_date_ongoing!$K96*Achievement_to_date_ongoing!O96,"") -> 3896624.722 | O98: =IF($B98>0,Achievement_to_date_ongoing!$K96*Achievement_to_date_ongoing!P96,"") -> 3896624.722
B99: =Achievement_to_date_ongoing!B97 -> 111143 | C99: =IF($B99>0, Achievement_to_date_ongoing!C97, "") -> 2 | D99: =IF($B99>0, Achievement_to_date_ongoing!D97, "") -> 2 | E99: =IF($B99>0, Achievement_to_date_ongoing!E97, "") -> 1F | F99: =IF($B99>0, Achievement_to_date_ongoing!F97, "") -> All | G99: 4072321.456 | H99: 4293994.781 | I99: 4293994.781 | J99: 4293994.781 | L99: =IF($B99>0,Achievement_to_date_ongoing!$K97*Achievement_to_date_ongoing!M97,"") -> 4072321.456 | M99: =IF($B99>0,Achievement_to_date_ongoing!$K97*Achievement_to_date_ongoing!N97,"") -> 4293994.781 | N99: =IF($B99>0,Achievement_to_date_ongoing!$K97*Achievement_to_date_ongoing!O97,"") -> 4293994.781 | O99: =IF($B99>0,Achievement_to_date_ongoing!$K97*Achievement_to_date_ongoing!P97,"") -> 4293994.781
B100: =Achievement_to_date_ongoing!B98 -> 112440 | C100: =IF($B100>0, Achievement_to_date_ongoing!C98, "") -> 2 | D100: =IF($B100>0, Achievement_to_date_ongoing!D98, "") -> 2 | E100: =IF($B100>0, Achievement_to_date_ongoing!E98, "") -> 1F | F100: =IF($B100>0, Achievement_to_date_ongoing!F98, "") -> All | G100: 1363267.349 | H100: 1557162.104 | I100: 1557162.104 | J100: 1557162.104 | L100: =IF($B100>0,Achievement_to_date_ongoing!$K98*Achievement_to_date_ongoing!M98,"") -> 1363267.349 | M100: =IF($B100>0,Achievement_to_date_ongoing!$K98*Achievement_to_date_ongoing!N98,"") -> 1557162.104 | N100: =IF($B100>0,Achievement_to_date_ongoing!$K98*Achievement_to_date_ongoing!O98,"") -> 1557162.104 | O100: =IF($B100>0,Achievement_to_date_ongoing!$K98*Achievement_to_date_ongoing!P98,"") -> 1557162.104
B101: =Achievement_to_date_ongoing!B99 -> 122921 | C101: =IF($B101>0, Achievement_to_date_ongoing!C99, "") -> 2 | D101: =IF($B101>0, Achievement_to_date_ongoing!D99, "") -> 2 | E101: =IF($B101>0, Achievement_to_date_ongoing!E99, "") -> 1F | F101: =IF($B101>0, Achievement_to_date_ongoing!F99, "") -> All | G101: 0 | H101: 4095772.204 | I101: 4422470.748 | J101: 4422470.748 | L101: =IF($B101>0,Achievement_to_date_ongoing!$K99*Achievement_to_date_ongoing!M99,"") -> 0 | M101: =IF($B101>0,Achievement_to_date_ongoing!$K99*Achievement_to_date_ongoing!N99,"") -> 4095772.204 | N101: =IF($B101>0,Achievement_to_date_ongoing!$K99*Achievement_to_date_ongoing!O99,"") -> 4422470.748 | O101: =IF($B101>0,Achievement_to_date_ongoing!$K99*Achievement_to_date_ongoing!P99,"") -> 4422470.748
B102: =Achievement_to_date_ongoing!B100 -> 123355 | C102: =IF($B102>0, Achievement_to_date_ongoing!C100, "") -> 2 | D102: =IF($B102>0, Achievement_to_date_ongoing!D100, "") -> 2 | E102: =IF($B102>0, Achievement_to_date_ongoing!E100, "") -> 1F | F102: =IF($B102>0, Achievement_to_date_ongoing!F100, "") -> All | G102: 4553815.17 | H102: 4599863.04 | I102: 4599863.04 | J102: 4599863.04 | L102: =IF($B102>0,Achievement_to_date_ongoing!$K100*Achievement_to_date_ongoing!M100,"") -> 4553815.17 | M102: =IF($B102>0,Achievement_to_date_ongoing!$K100*Achievement_to_date_ongoing!N100,"") -> 4599863.04 | N102: =IF($B102>0,Achievement_to_date_ongoing!$K100*Achievement_to_date_ongoing!O100,"") -> 4599863.04 | O102: =IF($B102>0,Achievement_to_date_ongoing!$K100*Achievement_to_date_ongoing!P100,"") -> 4599863.04
B103: =Achievement_to_date_ongoing!B101 -> 113928 | C103: =IF($B103>0, Achievement_to_date_ongoing!C101, "") -> 2 | D103: =IF($B103>0, Achievement_to_date_ongoing!D101, "") -> 2 | E103: =IF($B103>0, Achievement_to_date_ongoing!E101, "") -> 1F | F103: =IF($B103>0, Achievement_to_date_ongoing!F101, "") -> All | G103: 2830528.84 | H103: 3261647.68 | I103: 3261647.68 | J103: 3261647.68 | L103: =IF($B103>0,Achievement_to_date_ongoing!$K101*Achievement_to_date_ongoing!M101,"") -> 2830528.84 | M103: =IF($B103>0,Achievement_to_date_ongoing!$K101*Achievement_to_date_ongoing!N101,"") -> 3261647.68 | N103: =IF($B103>0,Achievement_to_date_ongoing!$K101*Achievement_to_date_ongoing!O101,"") -> 3261647.68 | O103: =IF($B103>0,Achievement_to_date_ongoing!$K101*Achievement_to_date_ongoing!P101,"") -> 3261647.68
B104: =Achievement_to_date_ongoing!B102 -> 114191 | C104: =IF($B104>0, Achievement_to_date_ongoing!C102, "") -> 2 | D104: =IF($B104>0, Achievement_to_date_ongoing!D102, "") -> 2 | E104: =IF($B104>0, Achievement_to_date_ongoing!E102, "") -> 1F | F104: =IF($B104>0, Achievement_to_date_ongoing!F102, "") -> All | G104: 3744431.726 | H104: 4197932.873 | I104: 4197932.873 | J104: 4197932.873 | L104: =IF($B104>0,Achievement_to_date_ongoing!$K102*Achievement_to_date_ongoing!M102,"") -> 3744431.726 | M104: =IF($B104>0,Achievement_to_date_ongoing!$K102*Achievement_to_date_ongoing!N102,"") -> 4197932.873 | N104: =IF($B104>0,Achievement_to_date_ongoing!$K102*Achievement_to_date_ongoing!O102,"") -> 4197932.873 | O104: =IF($B104>0,Achievement_to_date_ongoing!$K102*Achievement_to_date_ongoing!P102,"") -> 4197932.873
B105: =Achievement_to_date_ongoing!B103 -> 123779 | C105: =IF($B105>0, Achievement_to_date_ongoing!C103, "") -> 2 | D105: =IF($B105>0, Achievement_to_date_ongoing!D103, "") -> 2 | E105: =IF($B105>0, Achievement_to_date_ongoing!E103, "") -> 1F | F105: =IF($B105>0, Achievement_to_date_ongoing!F103, "") -> All | G105: 0 | H105: 1502722.002 | I105: 1525062.595 | J105: 1525062.595 | L105: =IF($B105>0,Achievement_to_date_ongoing!$K103*Achievement_to_date_ongoing!M103,"") -> 0 | M105: =IF($B105>0,Achievement_to_date_ongoing!$K103*Achievement_to_date_ongoing!N103,"") -> 1502722.002 | N105: =IF($B105>0,Achievement_to_date_ongoing!$K103*Achievement_to_date_ongoing!O103,"") -> 1525062.595 | O105: =IF($B105>0,Achievement_to_date_ongoing!$K103*Achievement_to_date_ongoing!P103,"") -> 1525062.595
B106: =Achievement_to_date_ongoing!B104 -> 125343 | C106: =IF($B106>0, Achievement_to_date_ongoing!C104, "") -> 2 | D106: =IF($B106>0, Achievement_to_date_ongoing!D104, "") -> 2 | E106: =IF($B106>0, Achievement_to_date_ongoing!E104, "") -> 1F | F106: =IF($B106>0, Achievement_to_date_ongoing!F104, "") -> All | G106: 47906.74937 | H106: 1063468.017 | I106: 1063468.017 | J106: 1063468.017 | L106: =IF($B106>0,Achievement_to_date_ongoing!$K104*Achievement_to_date_ongoing!M104,"") -> 47906.74937 | M106: =IF($B106>0,Achievement_to_date_ongoing!$K104*Achievement_to_date_ongoing!N104,"") -> 1063468.017 | N106: =IF($B106>0,Achievement_to_date_ongoing!$K104*Achievement_to_date_ongoing!O104,"") -> 1063468.017 | O106: =IF($B106>0,Achievement_to_date_ongoing!$K104*Achievement_to_date_ongoing!P104,"") -> 1063468.017
B107: =Achievement_to_date_ongoing!B105 -> 116402 | C107: =IF($B107>0, Achievement_to_date_ongoing!C105, "") -> 2 | D107: =IF($B107>0, Achievement_to_date_ongoing!D105, "") -> 2 | E107: =IF($B107>0, Achievement_to_date_ongoing!E105, "") -> 1F | F107: =IF($B107>0, Achievement_to_date_ongoing!F105, "") -> All | G107: 560026.5025 | H107: 4216339.843 | I107: 4216339.843 | J107: 4216339.843 | L107: =IF($B107>0,Achievement_to_date_ongoing!$K105*Achievement_to_date_ongoing!M105,"") -> 560026.5025 | M107: =IF($B107>0,Achievement_to_date_ongoing!$K105*Achievement_to_date_ongoing!N105,"") -> 4216339.843 | N107: =IF($B107>0,Achievement_to_date_ongoing!$K105*Achievement_to_date_ongoing!O105,"") -> 4216339.843 | O107: =IF($B107>0,Achievement_to_date_ongoing!$K105*Achievement_to_date_ongoing!P105,"") -> 4216339.843
B108: =Achievement_to_date_ongoing!B106 -> 114128 | C108: =IF($B108>0, Achievement_to_date_ongoing!C106, "") -> 2 | D108: =IF($B108>0, Achievement_to_date_ongoing!D106, "") -> 2 | E108: =IF($B108>0, Achievement_to_date_ongoing!E106, "") -> 1F | F108: =IF($B108>0, Achievement_to_date_ongoing!F106, "") -> All | G108: 3515634.801 | H108: 3524753.41 | I108: 3524753.41 | J108: 3524753.41 | L108: =IF($B108>0,Achievement_to_date_ongoing!$K106*Achievement_to_date_ongoing!M106,"") -> 3515634.801 | M108: =IF($B108>0,Achievement_to_date_ongoing!$K106*Achievement_to_date_ongoing!N106,"") -> 3524753.41 | N108: =IF($B108>0,Achievement_to_date_ongoing!$K106*Achievement_to_date_ongoing!O106,"") -> 3524753.41 | O108: =IF($B108>0,Achievement_to_date_ongoing!$K106*Achievement_to_date_ongoing!P106,"") -> 3524753.41
B109: =Achievement_to_date_ongoing!B107 -> 114413 | C109: =IF($B109>0, Achievement_to_date_ongoing!C107, "") -> 2 | D109: =IF($B109>0, Achievement_to_date_ongoing!D107, "") -> 2 | E109: =IF($B109>0, Achievement_to_date_ongoing!E107, "") -> 1F | F109: =IF($B109>0, Achievement_to_date_ongoing!F107, "") -> All | G109: 1921793.626 | H109: 1993138.38 | I109: 1993138.38 | J109: 1993138.38 | L109: =IF($B109>0,Achievement_to_date_ongoing!$K107*Achievement_to_date_ongoing!M107,"") -> 1921793.626 | M109: =IF($B109>0,Achievement_to_date_ongoing!$K107*Achievement_to_date_ongoing!N107,"") -> 1993138.38 | N109: =IF($B109>0,Achievement_to_date_ongoing!$K107*Achievement_to_date_ongoing!O107,"") -> 1993138.38 | O109: =IF($B109>0,Achievement_to_date_ongoing!$K107*Achievement_to_date_ongoing!P107,"") -> 1993138.38
B110: =Achievement_to_date_ongoing!B108 -> 125494 | C110: =IF($B110>0, Achievement_to_date_ongoing!C108, "") -> 2 | D110: =IF($B110>0, Achievement_to_date_ongoing!D108, "") -> 2 | E110: =IF($B110>0, Achievement_to_date_ongoing!E108, "") -> 1F | F110: =IF($B110>0, Achievement_to_date_ongoing!F108, "") -> All | G110: 0 | H110: 4134903.357 | I110: 4134903.357 | J110: 4134903.357 | L110: =IF($B110>0,Achievement_to_date_ongoing!$K108*Achievement_to_date_ongoing!M108,"") -> 0 | M110: =IF($B110>0,Achievement_to_date_ongoing!$K108*Achievement_to_date_ongoing!N108,"") -> 4134903.357 | N110: =IF($B110>0,Achievement_to_date_ongoing!$K108*Achievement_to_date_ongoing!O108,"") -> 4134903.357 | O110: =IF($B110>0,Achievement_to_date_ongoing!$K108*Achievement_to_date_ongoing!P108,"") -> 4134903.357
B111: =Achievement_to_date_ongoing!B109 -> 115129 | C111: =IF($B111>0, Achievement_to_date_ongoing!C109, "") -> 2 | D111: =IF($B111>0, Achievement_to_date_ongoing!D109, "") -> 2 | E111: =IF($B111>0, Achievement_to_date_ongoing!E109, "") -> 1F | F111: =IF($B111>0, Achievement_to_date_ongoing!F109, "") -> All | G111: 605914.5153 | H111: 4301227.699 | I111: 4301227.699 | J111: 4301227.699 | L111: =IF($B111>0,Achievement_to_date_ongoing!$K109*Achievement_to_date_ongoing!M109,"") -> 605914.5153 | M111: =IF($B111>0,Achievement_to_date_ongoing!$K109*Achievement_to_date_ongoing!N109,"") -> 4301227.699 | N111: =IF($B111>0,Achievement_to_date_ongoing!$K109*Achievement_to_date_ongoing!O109,"") -> 4301227.699 | O111: =IF($B111>0,Achievement_to_date_ongoing!$K109*Achievement_to_date_ongoing!P109,"") -> 4301227.699
B112: =Achievement_to_date_ongoing!B110 -> 110727 | C112: =IF($B112>0, Achievement_to_date_ongoing!C110, "") -> 2 | D112: =IF($B112>0, Achievement_to_date_ongoing!D110, "") -> 2 | E112: =IF($B112>0, Achievement_to_date_ongoing!E110, "") -> 1F | F112: =IF($B112>0, Achievement_to_date_ongoing!F110, "") -> All | G112: 1641403.758 | H112: 3211429.341 | I112: 3211429.341 | J112: 3211429.341 | L112: =IF($B112>0,Achievement_to_date_ongoing!$K110*Achievement_to_date_ongoing!M110,"") -> 1641403.758 | M112: =IF($B112>0,Achievement_to_date_ongoing!$K110*Achievement_to_date_ongoing!N110,"") -> 3211429.341 | N112: =IF($B112>0,Achievement_to_date_ongoing!$K110*Achievement_to_date_ongoing!O110,"") -> 3211429.341 | O112: =IF($B112>0,Achievement_to_date_ongoing!$K110*Achievement_to_date_ongoing!P110,"") -> 3211429.341
B113: =Achievement_to_date_ongoing!B111 -> 114738 | C113: =IF($B113>0, Achievement_to_date_ongoing!C111, "") -> 2 | D113: =IF($B113>0, Achievement_to_date_ongoing!D111, "") -> 2 | E113: =IF($B113>0, Achievement_to_date_ongoing!E111, "") -> 1F | F113: =IF($B113>0, Achievement_to_date_ongoing!F111, "") -> All | G113: 1388799.635 | H113: 1505517.948 | I113: 1505517.948 | J113: 1505517.948 | L113: =IF($B113>0,Achievement_to_date_ongoing!$K111*Achievement_to_date_ongoing!M111,"") -> 1388799.635 | M113: =IF($B113>0,Achievement_to_date_ongoing!$K111*Achievement_to_date_ongoing!N111,"") -> 1505517.948 | N113: =IF($B113>0,Achievement_to_date_ongoing!$K111*Achievement_to_date_ongoing!O111,"") -> 1505517.948 | O113: =IF($B113>0,Achievement_to_date_ongoing!$K111*Achievement_to_date_ongoing!P111,"") -> 1505517.948
B114: =Achievement_to_date_ongoing!B112 -> 114632 | C114: =IF($B114>0, Achievement_to_date_ongoing!C112, "") -> 2 | D114: =IF($B114>0, Achievement_to_date_ongoing!D112, "") -> 2 | E114: =IF($B114>0, Achievement_to_date_ongoing!E112, "") -> 1F | F114: =IF($B114>0, Achievement_to_date_ongoing!F112, "") -> All | G114: 1136350.678 | H114: 1215441.923 | I114: 1215441.923 | J114: 1215441.923 | L114: =IF($B114>0,Achievement_to_date_ongoing!$K112*Achievement_to_date_ongoing!M112,"") -> 1136350.678 | M114: =IF($B114>0,Achievement_to_date_ongoing!$K112*Achievement_to_date_ongoing!N112,"") -> 1215441.923 | N114: =IF($B114>0,Achievement_to_date_ongoing!$K112*Achievement_to_date_ongoing!O112,"") -> 1215441.923 | O114: =IF($B114>0,Achievement_to_date_ongoing!$K112*Achievement_to_date_ongoing!P112,"") -> 1215441.923
B115: =Achievement_to_date_ongoing!B113 -> 114903 | C115: =IF($B115>0, Achievement_to_date_ongoing!C113, "") -> 2 | D115: =IF($B115>0, Achievement_to_date_ongoing!D113, "") -> 2 | E115: =IF($B115>0, Achievement_to_date_ongoing!E113, "") -> 1F | F115: =IF($B115>0, Achievement_to_date_ongoing!F113, "") -> All | G115: 1545649.897 | H115: 4001955.167 | I115: 4281494.958 | J115: 4281494.958 | L115: =IF($B115>0,Achievement_to_date_ongoing!$K113*Achievement_to_date_ongoing!M113,"") -> 1545649.897 | M115: =IF($B115>0,Achievement_to_date_ongoing!$K113*Achievement_to_date_ongoing!N113,"") -> 4001955.167 | N115: =IF($B115>0,Achievement_to_date_ongoing!$K113*Achievement_to_date_ongoing!O113,"") -> 4281494.958 | O115: =IF($B115>0,Achievement_to_date_ongoing!$K113*Achievement_to_date_ongoing!P113,"") -> 4281494.958
B116: =Achievement_to_date_ongoing!B114 -> 115313 | C116: =IF($B116>0, Achievement_to_date_ongoing!C114, "") -> 2 | D116: =IF($B116>0, Achievement_to_date_ongoing!D114, "") -> 2 | E116: =IF($B116>0, Achievement_to_date_ongoing!E114, "") -> 1F | F116: =IF($B116>0, Achievement_to_date_ongoing!F114, "") -> All | G116: 416691.5508 | H116: 1810621.064 | I116: 1810621.064 | J116: 1810621.064 | L116: =IF($B116>0,Achievement_to_date_ongoing!$K114*Achievement_to_date_ongoing!M114,"") -> 416691.5508 | M116: =IF($B116>0,Achievement_to_date_ongoing!$K114*Achievement_to_date_ongoing!N114,"") -> 1810621.064 | N116: =IF($B116>0,Achievement_to_date_ongoing!$K114*Achievement_to_date_ongoing!O114,"") -> 1810621.064 | O116: =IF($B116>0,Achievement_to_date_ongoing!$K114*Achievement_to_date_ongoing!P114,"") -> 1810621.064
B117: =Achievement_to_date_ongoing!B115 -> 116832 | C117: =IF($B117>0, Achievement_to_date_ongoing!C115, "") -> 2 | D117: =IF($B117>0, Achievement_to_date_ongoing!D115, "") -> 2 | E117: =IF($B117>0, Achievement_to_date_ongoing!E115, "") -> 1F | F117: =IF($B117>0, Achievement_to_date_ongoing!F115, "") -> All | G117: 1929738.856 | H117: 3970120.21 | I117: 4142798.438 | J117: 4142798.438 | L117: =IF($B117>0,Achievement_to_date_ongoing!$K115*Achievement_to_date_ongoing!M115,"") -> 1929738.856 | M117: =IF($B117>0,Achievement_to_date_ongoing!$K115*Achievement_to_date_ongoing!N115,"") -> 3970120.21 | N117: =IF($B117>0,Achievement_to_date_ongoing!$K115*Achievement_to_date_ongoing!O115,"") -> 4142798.438 | O117: =IF($B117>0,Achievement_to_date_ongoing!$K115*Achievement_to_date_ongoing!P115,"") -> 4142798.438
B118: =Achievement_to_date_ongoing!B116 -> 116430 | C118: =IF($B118>0, Achievement_to_date_ongoing!C116, "") -> 2 | D118: =IF($B118>0, Achievement_to_date_ongoing!D116, "") -> 2 | E118: =IF($B118>0, Achievement_to_date_ongoing!E116, "") -> 1F | F118: =IF($B118>0, Achievement_to_date_ongoing!F116, "") -> All | G118: 2864497.752 | H118: 4285402.229 | I118: 4285402.229 | J118: 4285402.229 | L118: =IF($B118>0,Achievement_to_date_ongoing!$K116*Achievement_to_date_ongoing!M116,"") -> 2864497.752 | M118: =IF($B118>0,Achievement_to_date_ongoing!$K116*Achievement_to_date_ongoing!N116,"") -> 4285402.229 | N118: =IF($B118>0,Achievement_to_date_ongoing!$K116*Achievement_to_date_ongoing!O116,"") -> 4285402.229 | O118: =IF($B118>0,Achievement_to_date_ongoing!$K116*Achievement_to_date_ongoing!P116,"") -> 4285402.229
B119: =Achievement_to_date_ongoing!B117 -> 112294 | C119: =IF($B119>0, Achievement_to_date_ongoing!C117, "") -> 2 | D119: =IF($B119>0, Achievement_to_date_ongoing!D117, "") -> 2 | E119: =IF($B119>0, Achievement_to_date_ongoing!E117, "") -> 1F | F119: =IF($B119>0, Achievement_to_date_ongoing!F117, "") -> All | G119: 3584281.612 | H119: 4296752.775 | I119: 4296752.775 | J119: 4296752.775 | L119: =IF($B119>0,Achievement_to_date_ongoing!$K117*Achievement_to_date_ongoing!M117,"") -> 3584281.612 | M119: =IF($B119>0,Achievement_to_date_ongoing!$K117*Achievement_to_date_ongoing!N117,"") -> 4296752.775 | N119: =IF($B119>0,Achievement_to_date_ongoing!$K117*Achievement_to_date_ongoing!O117,"") -> 4296752.775 | O119: =IF($B119>0,Achievement_to_date_ongoing!$K117*Achievement_to_date_ongoing!P117,"") -> 4296752.775
B120: =Achievement_to_date_ongoing!B118 -> 109508 | C120: =IF($B120>0, Achievement_to_date_ongoing!C118, "") -> 2 | D120: =IF($B120>0, Achievement_to_date_ongoing!D118, "") -> 1 | E120: =IF($B120>0, Achievement_to_date_ongoing!E118, "") -> 1F | F120: =IF($B120>0, Achievement_to_date_ongoing!F118, "") -> All | G120: 0 | H120: 806045.7953 | I120: 806045.7953 | J120: 806045.7953 | L120: =IF($B120>0,Achievement_to_date_ongoing!$K118*Achievement_to_date_ongoing!M118,"") -> 0 | M120: =IF($B120>0,Achievement_to_date_ongoing!$K118*Achievement_to_date_ongoing!N118,"") -> 806045.7953 | N120: =IF($B120>0,Achievement_to_date_ongoing!$K118*Achievement_to_date_ongoing!O118,"") -> 806045.7953 | O120: =IF($B120>0,Achievement_to_date_ongoing!$K118*Achievement_to_date_ongoing!P118,"") -> 806045.7953
B121: =Achievement_to_date_ongoing!B119 -> 111211 | C121: =IF($B121>0, Achievement_to_date_ongoing!C119, "") -> 2 | D121: =IF($B121>0, Achievement_to_date_ongoing!D119, "") -> 2 | E121: =IF($B121>0, Achievement_to_date_ongoing!E119, "") -> 1F | F121: =IF($B121>0, Achievement_to_date_ongoing!F119, "") -> All | G121: 933698.2134 | H121: 955971.42 | I121: 955971.42 | J121: 955971.42 | L121: =IF($B121>0,Achievement_to_date_ongoing!$K119*Achievement_to_date_ongoing!M119,"") -> 933698.2134 | M121: =IF($B121>0,Achievement_to_date_ongoing!$K119*Achievement_to_date_ongoing!N119,"") -> 955971.42 | N121: =IF($B121>0,Achievement_to_date_ongoing!$K119*Achievement_to_date_ongoing!O119,"") -> 955971.42 | O121: =IF($B121>0,Achievement_to_date_ongoing!$K119*Achievement_to_date_ongoing!P119,"") -> 955971.42
B122: =Achievement_to_date_ongoing!B120 -> 110023 | C122: =IF($B122>0, Achievement_to_date_ongoing!C120, "") -> 2 | D122: =IF($B122>0, Achievement_to_date_ongoing!D120, "") -> 1 | E122: =IF($B122>0, Achievement_to_date_ongoing!E120, "") -> 1F | F122: =IF($B122>0, Achievement_to_date_ongoing!F120, "") -> All | G122: 503154.3977 | H122: 731674.9879 | I122: 731674.9879 | J122: 731674.9879 | L122: =IF($B122>0,Achievement_to_date_ongoing!$K120*Achievement_to_date_ongoing!M120,"") -> 503154.3977 | M122: =IF($B122>0,Achievement_to_date_ongoing!$K120*Achievement_to_date_ongoing!N120,"") -> 731674.9879 | N122: =IF($B122>0,Achievement_to_date_ongoing!$K120*Achievement_to_date_ongoing!O120,"") -> 731674.9879 | O122: =IF($B122>0,Achievement_to_date_ongoing!$K120*Achievement_to_date_ongoing!P120,"") -> 731674.9879
B123: =Achievement_to_date_ongoing!B121 -> 114046 | C123: =IF($B123>0, Achievement_to_date_ongoing!C121, "") -> 2 | D123: =IF($B123>0, Achievement_to_date_ongoing!D121, "") -> 2 | E123: =IF($B123>0, Achievement_to_date_ongoing!E121, "") -> 1F | F123: =IF($B123>0, Achievement_to_date_ongoing!F121, "") -> All | G123: 501932.6091 | H123: 990030.6911 | I123: 990030.6911 | J123: 990030.6911 | L123: =IF($B123>0,Achievement_to_date_ongoing!$K121*Achievement_to_date_ongoing!M121,"") -> 501932.6091 | M123: =IF($B123>0,Achievement_to_date_ongoing!$K121*Achievement_to_date_ongoing!N121,"") -> 990030.6911 | N123: =IF($B123>0,Achievement_to_date_ongoing!$K121*Achievement_to_date_ongoing!O121,"") -> 990030.6911 | O123: =IF($B123>0,Achievement_to_date_ongoing!$K121*Achievement_to_date_ongoing!P121,"") -> 990030.6911
B124: =Achievement_to_date_ongoing!B122 -> 111540 | C124: =IF($B124>0, Achievement_to_date_ongoing!C122, "") -> 2 | D124: =IF($B124>0, Achievement_to_date_ongoing!D122, "") -> 1 | E124: =IF($B124>0, Achievement_to_date_ongoing!E122, "") -> 1F | F124: =IF($B124>0, Achievement_to_date_ongoing!F122, "") -> All | G124: 5600.404146 | H124: 848099.5565 | I124: 848099.5565 | J124: 848099.5565 | L124: =IF($B124>0,Achievement_to_date_ongoing!$K122*Achievement_to_date_ongoing!M122,"") -> 5600.404146 | M124: =IF($B124>0,Achievement_to_date_ongoing!$K122*Achievement_to_date_ongoing!N122,"") -> 848099.5565 | N124: =IF($B124>0,Achievement_to_date_ongoing!$K122*Achievement_to_date_ongoing!O122,"") -> 848099.5565 | O124: =IF($B124>0,Achievement_to_date_ongoing!$K122*Achievement_to_date_ongoing!P122,"") -> 848099.5565
B125: =Achievement_to_date_ongoing!B123 -> 112346 | C125: =IF($B125>0, Achievement_to_date_ongoing!C123, "") -> 2 | D125: =IF($B125>0, Achievement_to_date_ongoing!D123, "") -> 1 | E125: =IF($B125>0, Achievement_to_date_ongoing!E123, "") -> 1F | F125: =IF($B125>0, Achievement_to_date_ongoing!F123, "") -> All | G125: 529038.7708 | H125: 775242.8932 | I125: 779662.377 | J125: 779662.377 | L125: =IF($B125>0,Achievement_to_date_ongoing!$K123*Achievement_to_date_ongoing!M123,"") -> 529038.7708 | M125: =IF($B125>0,Achievement_to_date_ongoing!$K123*Achievement_to_date_ongoing!N123,"") -> 775242.8932 | N125: =IF($B125>0,Achievement_to_date_ongoing!$K123*Achievement_to_date_ongoing!O123,"") -> 779662.377 | O125: =IF($B125>0,Achievement_to_date_ongoing!$K123*Achievement_to_date_ongoing!P123,"") -> 779662.377
B126: =Achievement_to_date_ongoing!B124 -> 111518 | C126: =IF($B126>0, Achievement_to_date_ongoing!C124, "") -> 2 | D126: =IF($B126>0, Achievement_to_date_ongoing!D124, "") -> 2 | E126: =IF($B126>0, Achievement_to_date_ongoing!E124, "") -> 1F | F126: =IF($B126>0, Achievement_to_date_ongoing!F124, "") -> All | G126: 217466.7587 | H126: 4291321.83 | I126: 4291321.83 | J126: 4291321.83 | L126: =IF($B126>0,Achievement_to_date_ongoing!$K124*Achievement_to_date_ongoing!M124,"") -> 217466.7587 | M126: =IF($B126>0,Achievement_to_date_ongoing!$K124*Achievement_to_date_ongoing!N124,"") -> 4291321.83 | N126: =IF($B126>0,Achievement_to_date_ongoing!$K124*Achievement_to_date_ongoing!O124,"") -> 4291321.83 | O126: =IF($B126>0,Achievement_to_date_ongoing!$K124*Achievement_to_date_ongoing!P124,"") -> 4291321.83
B127: =Achievement_to_date_ongoing!B125 -> 114048 | C127: =IF($B127>0, Achievement_to_date_ongoing!C125, "") -> 2 | D127: =IF($B127>0, Achievement_to_date_ongoing!D125, "") -> 2 | E127: =IF($B127>0, Achievement_to_date_ongoing!E125, "") -> 1F | F127: =IF($B127>0, Achievement_to_date_ongoing!F125, "") -> All | G127: 864593.4381 | H127: 893018.7 | I127: 893018.7 | J127: 893018.7 | L127: =IF($B127>0,Achievement_to_date_ongoing!$K125*Achievement_to_date_ongoing!M125,"") -> 864593.4381 | M127: =IF($B127>0,Achievement_to_date_ongoing!$K125*Achievement_to_date_ongoing!N125,"") -> 893018.7 | N127: =IF($B127>0,Achievement_to_date_ongoing!$K125*Achievement_to_date_ongoing!O125,"") -> 893018.7 | O127: =IF($B127>0,Achievement_to_date_ongoing!$K125*Achievement_to_date_ongoing!P125,"") -> 893018.7
B128: =Achievement_to_date_ongoing!B126 -> 114107 | C128: =IF($B128>0, Achievement_to_date_ongoing!C126, "") -> 2 | D128: =IF($B128>0, Achievement_to_date_ongoing!D126, "") -> 2 | E128: =IF($B128>0, Achievement_to_date_ongoing!E126, "") -> 1F | F128: =IF($B128>0, Achievement_to_date_ongoing!F126, "") -> All | G128: 3874813.037 | H128: 4172980.87 | I128: 4172980.87 | J128: 4172980.87 | L128: =IF($B128>0,Achievement_to_date_ongoing!$K126*Achievement_to_date_ongoing!M126,"") -> 3874813.037 | M128: =IF($B128>0,Achievement_to_date_ongoing!$K126*Achievement_to_date_ongoing!N126,"") -> 4172980.87 | N128: =IF($B128>0,Achievement_to_date_ongoing!$K126*Achievement_to_date_ongoing!O126,"") -> 4172980.87 | O128: =IF($B128>0,Achievement_to_date_ongoing!$K126*Achievement_to_date_ongoing!P126,"") -> 4172980.87
B129: =Achievement_to_date_ongoing!B127 -> 114819 | C129: =IF($B129>0, Achievement_to_date_ongoing!C127, "") -> 2 | D129: =IF($B129>0, Achievement_to_date_ongoing!D127, "") -> 2 | E129: =IF($B129>0, Achievement_to_date_ongoing!E127, "") -> 1F | F129: =IF($B129>0, Achievement_to_date_ongoing!F127, "") -> All | G129: 1292828.716 | H129: 1308633.2 | I129: 1308633.2 | J129: 1308633.2 | L129: =IF($B129>0,Achievement_to_date_ongoing!$K127*Achievement_to_date_ongoing!M127,"") -> 1292828.716 | M129: =IF($B129>0,Achievement_to_date_ongoing!$K127*Achievement_to_date_ongoing!N127,"") -> 1308633.2 | N129: =IF($B129>0,Achievement_to_date_ongoing!$K127*Achievement_to_date_ongoing!O127,"") -> 1308633.2 | O129: =IF($B129>0,Achievement_to_date_ongoing!$K127*Achievement_to_date_ongoing!P127,"") -> 1308633.2
B130: =Achievement_to_date_ongoing!B128 -> 113062 | C130: =IF($B130>0, Achievement_to_date_ongoing!C128, "") -> 2 | D130: =IF($B130>0, Achievement_to_date_ongoing!D128, "") -> 2 | E130: =IF($B130>0, Achievement_to_date_ongoing!E128, "") -> 1F | F130: =IF($B130>0, Achievement_to_date_ongoing!F128, "") -> All | G130: 2115306.027 | H130: 2265626.206 | I130: 2278542.027 | J130: 2278542.027 | L130: =IF($B130>0,Achievement_to_date_ongoing!$K128*Achievement_to_date_ongoing!M128,"") -> 2115306.027 | M130: =IF($B130>0,Achievement_to_date_ongoing!$K128*Achievement_to_date_ongoing!N128,"") -> 2265626.206 | N130: =IF($B130>0,Achievement_to_date_ongoing!$K128*Achievement_to_date_ongoing!O128,"") -> 2278542.027 | O130: =IF($B130>0,Achievement_to_date_ongoing!$K128*Achievement_to_date_ongoing!P128,"") -> 2278542.027
B131: =Achievement_to_date_ongoing!B129 -> 115215 | C131: =IF($B131>0, Achievement_to_date_ongoing!C129, "") -> 2 | D131: =IF($B131>0, Achievement_to_date_ongoing!D129, "") -> 2 | E131: =IF($B131>0, Achievement_to_date_ongoing!E129, "") -> 1F | F131: =IF($B131>0, Achievement_to_date_ongoing!F129, "") -> All | G131: 829890.061 | H131: 876457.7777 | I131: 884057.8963 | J131: 884057.8963 | L131: =IF($B131>0,Achievement_to_date_ongoing!$K129*Achievement_to_date_ongoing!M129,"") -> 829890.061 | M131: =IF($B131>0,Achievement_to_date_ongoing!$K129*Achievement_to_date_ongoing!N129,"") -> 876457.7777 | N131: =IF($B131>0,Achievement_to_date_ongoing!$K129*Achievement_to_date_ongoing!O129,"") -> 884057.8963 | O131: =IF($B131>0,Achievement_to_date_ongoing!$K129*Achievement_to_date_ongoing!P129,"") -> 884057.8963
B132: =Achievement_to_date_ongoing!B130 -> 102666 | C132: =IF($B132>0, Achievement_to_date_ongoing!C130, "") -> 2 | D132: =IF($B132>0, Achievement_to_date_ongoing!D130, "") -> 1 | E132: =IF($B132>0, Achievement_to_date_ongoing!E130, "") -> 1F | F132: =IF($B132>0, Achievement_to_date_ongoing!F130, "") -> All | G132: 715696.7602 | H132: 814052.773 | I132: 814052.773 | J132: 814052.773 | L132: =IF($B132>0,Achievement_to_date_ongoing!$K130*Achievement_to_date_ongoing!M130,"") -> 715696.7602 | M132: =IF($B132>0,Achievement_to_date_ongoing!$K130*Achievement_to_date_ongoing!N130,"") -> 814052.773 | N132: =IF($B132>0,Achievement_to_date_ongoing!$K130*Achievement_to_date_ongoing!O130,"") -> 814052.773 | O132: =IF($B132>0,Achievement_to_date_ongoing!$K130*Achievement_to_date_ongoing!P130,"") -> 814052.773
B133: =Achievement_to_date_ongoing!B131 -> 105305 | C133: =IF($B133>0, Achievement_to_date_ongoing!C131, "") -> 2 | D133: =IF($B133>0, Achievement_to_date_ongoing!D131, "") -> 1 | E133: =IF($B133>0, Achievement_to_date_ongoing!E131, "") -> 1F | F133: =IF($B133>0, Achievement_to_date_ongoing!F131, "") -> All | G133: 229799.2365 | H133: 785618.994 | I133: 790097.6296 | J133: 790097.6296 | L133: =IF($B133>0,Achievement_to_date_ongoing!$K131*Achievement_to_date_ongoing!M131,"") -> 229799.2365 | M133: =IF($B133>0,Achievement_to_date_ongoing!$K131*Achievement_to_date_ongoing!N131,"") -> 785618.994 | N133: =IF($B133>0,Achievement_to_date_ongoing!$K131*Achievement_to_date_ongoing!O131,"") -> 790097.6296 | O133: =IF($B133>0,Achievement_to_date_ongoing!$K131*Achievement_to_date_ongoing!P131,"") -> 790097.6296
B134: =Achievement_to_date_ongoing!B132 -> 114624 | C134: =IF($B134>0, Achievement_to_date_ongoing!C132, "") -> 2 | D134: =IF($B134>0, Achievement_to_date_ongoing!D132, "") -> 2 | E134: =IF($B134>0, Achievement_to_date_ongoing!E132, "") -> 1F | F134: =IF($B134>0, Achievement_to_date_ongoing!F132, "") -> All | G134: 2570024.363 | H134: 3026217.029 | I134: 3026217.029 | J134: 3026217.029 | L134: =IF($B134>0,Achievement_to_date_ongoing!$K132*Achievement_to_date_ongoing!M132,"") -> 2570024.363 | M134: =IF($B134>0,Achievement_to_date_ongoing!$K132*Achievement_to_date_ongoing!N132,"") -> 3026217.029 | N134: =IF($B134>0,Achievement_to_date_ongoing!$K132*Achievement_to_date_ongoing!O132,"") -> 3026217.029 | O134: =IF($B134>0,Achievement_to_date_ongoing!$K132*Achievement_to_date_ongoing!P132,"") -> 3026217.029
B135: =Achievement_to_date_ongoing!B133 -> 115360 | C135: =IF($B135>0, Achievement_to_date_ongoing!C133, "") -> 2 | D135: =IF($B135>0, Achievement_to_date_ongoing!D133, "") -> 2 | E135: =IF($B135>0, Achievement_to_date_ongoing!E133, "") -> 1F | F135: =IF($B135>0, Achievement_to_date_ongoing!F133, "") -> All | G135: 1066227.03 | H135: 4281422.293 | I135: 4281422.293 | J135: 4281422.293 | L135: =IF($B135>0,Achievement_to_date_ongoing!$K133*Achievement_to_date_ongoing!M133,"") -> 1066227.03 | M135: =IF($B135>0,Achievement_to_date_ongoing!$K133*Achievement_to_date_ongoing!N133,"") -> 4281422.293 | N135: =IF($B135>0,Achievement_to_date_ongoing!$K133*Achievement_to_date_ongoing!O133,"") -> 4281422.293 | O135: =IF($B135>0,Achievement_to_date_ongoing!$K133*Achievement_to_date_ongoing!P133,"") -> 4281422.293
B136: =Achievement_to_date_ongoing!B134 -> 102793 | C136: =IF($B136>0, Achievement_to_date_ongoing!C134, "") -> 2 | D136: =IF($B136>0, Achievement_to_date_ongoing!D134, "") -> 1 | E136: =IF($B136>0, Achievement_to_date_ongoing!E134, "") -> 1F | F136: =IF($B136>0, Achievement_to_date_ongoing!F134, "") -> All | G136: 409635.2997 | H136: 851710.112 | I136: 851710.112 | J136: 851710.112 | L136: =IF($B136>0,Achievement_to_date_ongoing!$K134*Achievement_to_date_ongoing!M134,"") -> 409635.2997 | M136: =IF($B136>0,Achievement_to_date_ongoing!$K134*Achievement_to_date_ongoing!N134,"") -> 851710.112 | N136: =IF($B136>0,Achievement_to_date_ongoing!$K134*Achievement_to_date_ongoing!O134,"") -> 851710.112 | O136: =IF($B136>0,Achievement_to_date_ongoing!$K134*Achievement_to_date_ongoing!P134,"") -> 851710.112
B137: =Achievement_to_date_ongoing!B135 -> 114106 | C137: =IF($B137>0, Achievement_to_date_ongoing!C135, "") -> 2 | D137: =IF($B137>0, Achievement_to_date_ongoing!D135, "") -> 2 | E137: =IF($B137>0, Achievement_to_date_ongoing!E135, "") -> 1F | F137: =IF($B137>0, Achievement_to_date_ongoing!F135, "") -> All | G137: 298410.3506 | H137: 2820439.135 | I137: 2853510.996 | J137: 2853510.996 | L137: =IF($B137>0,Achievement_to_date_ongoing!$K135*Achievement_to_date_ongoing!M135,"") -> 298410.3506 | M137: =IF($B137>0,Achievement_to_date_ongoing!$K135*Achievement_to_date_ongoing!N135,"") -> 2820439.135 | N137: =IF($B137>0,Achievement_to_date_ongoing!$K135*Achievement_to_date_ongoing!O135,"") -> 2853510.996 | O137: =IF($B137>0,Achievement_to_date_ongoing!$K135*Achievement_to_date_ongoing!P135,"") -> 2853510.996
B138: =Achievement_to_date_ongoing!B136 -> 109523 | C138: =IF($B138>0, Achievement_to_date_ongoing!C136, "") -> 2 | D138: =IF($B138>0, Achievement_to_date_ongoing!D136, "") -> 1 | E138: =IF($B138>0, Achievement_to_date_ongoing!E136, "") -> 1F | F138: =IF($B138>0, Achievement_to_date_ongoing!F136, "") -> All | G138: 725969.286 | H138: 851294.5679 | I138: 851294.5679 | J138: 851294.5679 | L138: =IF($B138>0,Achievement_to_date_ongoing!$K136*Achievement_to_date_ongoing!M136,"") -> 725969.286 | M138: =IF($B138>0,Achievement_to_date_ongoing!$K136*Achievement_to_date_ongoing!N136,"") -> 851294.5679 | N138: =IF($B138>0,Achievement_to_date_ongoing!$K136*Achievement_to_date_ongoing!O136,"") -> 851294.5679 | O138: =IF($B138>0,Achievement_to_date_ongoing!$K136*Achievement_to_date_ongoing!P136,"") -> 851294.5679
B139: =Achievement_to_date_ongoing!B137 -> 119374 | C139: =IF($B139>0, Achievement_to_date_ongoing!C137, "") -> 2 | D139: =IF($B139>0, Achievement_to_date_ongoing!D137, "") -> 1 | E139: =IF($B139>0, Achievement_to_date_ongoing!E137, "") -> 1F | F139: =IF($B139>0, Achievement_to_date_ongoing!F137, "") -> All | G139: 0 | H139: 835216.9749 | I139: 835216.9749 | J139: 835216.9749 | L139: =IF($B139>0,Achievement_to_date_ongoing!$K137*Achievement_to_date_ongoing!M137,"") -> 0 | M139: =IF($B139>0,Achievement_to_date_ongoing!$K137*Achievement_to_date_ongoing!N137,"") -> 835216.9749 | N139: =IF($B139>0,Achievement_to_date_ongoing!$K137*Achievement_to_date_ongoing!O137,"") -> 835216.9749 | O139: =IF($B139>0,Achievement_to_date_ongoing!$K137*Achievement_to_date_ongoing!P137,"") -> 835216.9749
B140: =Achievement_to_date_ongoing!B138 -> 123278 | C140: =IF($B140>0, Achievement_to_date_ongoing!C138, "") -> 2 | D140: =IF($B140>0, Achievement_to_date_ongoing!D138, "") -> 1 | E140: =IF($B140>0, Achievement_to_date_ongoing!E138, "") -> 1F | F140: =IF($B140>0, Achievement_to_date_ongoing!F138, "") -> All | G140: 2383598.347 | H140: 14352363.94 | I140: 14708867.1 | J140: 14708867.1 | L140: =IF($B140>0,Achievement_to_date_ongoing!$K138*Achievement_to_date_ongoing!M138,"") -> 2383598.347 | M140: =IF($B140>0,Achievement_to_date_ongoing!$K138*Achievement_to_date_ongoing!N138,"") -> 14352363.94 | N140: =IF($B140>0,Achievement_to_date_ongoing!$K138*Achievement_to_date_ongoing!O138,"") -> 14708867.1 | O140: =IF($B140>0,Achievement_to_date_ongoing!$K138*Achievement_to_date_ongoing!P138,"") -> 14708867.1
B141: =Achievement_to_date_ongoing!B139 -> 117165 | C141: =IF($B141>0, Achievement_to_date_ongoing!C139, "") -> 2 | D141: =IF($B141>0, Achievement_to_date_ongoing!D139, "") -> 2 | E141: =IF($B141>0, Achievement_to_date_ongoing!E139, "") -> 1F | F141: =IF($B141>0, Achievement_to_date_ongoing!F139, "") -> All | G141: 3416575.449 | H141: 4271080.816 | I141: 4271080.816 | J141: 4271080.816 | L141: =IF($B141>0,Achievement_to_date_ongoing!$K139*Achievement_to_date_ongoing!M139,"") -> 3416575.449 | M141: =IF($B141>0,Achievement_to_date_ongoing!$K139*Achievement_to_date_ongoing!N139,"") -> 4271080.816 | N141: =IF($B141>0,Achievement_to_date_ongoing!$K139*Achievement_to_date_ongoing!O139,"") -> 4271080.816 | O141: =IF($B141>0,Achievement_to_date_ongoing!$K139*Achievement_to_date_ongoing!P139,"") -> 4271080.816
B142: =Achievement_to_date_ongoing!B140 -> 125843 | C142: =IF($B142>0, Achievement_to_date_ongoing!C140, "") -> 2 | D142: =IF($B142>0, Achievement_to_date_ongoing!D140, "") -> 2 | E142: =IF($B142>0, Achievement_to_date_ongoing!E140, "") -> 1F | F142: =IF($B142>0, Achievement_to_date_ongoing!F140, "") -> All | G142: 0 | H142: 3684088.462 | I142: 3815630.738 | J142: 3815630.738 | L142: =IF($B142>0,Achievement_to_date_ongoing!$K140*Achievement_to_date_ongoing!M140,"") -> 0 | M142: =IF($B142>0,Achievement_to_date_ongoing!$K140*Achievement_to_date_ongoing!N140,"") -> 3684088.462 | N142: =IF($B142>0,Achievement_to_date_ongoing!$K140*Achievement_to_date_ongoing!O140,"") -> 3815630.738 | O142: =IF($B142>0,Achievement_to_date_ongoing!$K140*Achievement_to_date_ongoing!P140,"") -> 3815630.738
B143: =Achievement_to_date_ongoing!B141 -> 125852 | C143: =IF($B143>0, Achievement_to_date_ongoing!C141, "") -> 2 | D143: =IF($B143>0, Achievement_to_date_ongoing!D141, "") -> 2 | E143: =IF($B143>0, Achievement_to_date_ongoing!E141, "") -> 1F | F143: =IF($B143>0, Achievement_to_date_ongoing!F141, "") -> All | G143: 578108.8562 | H143: 4175463.596 | I143: 4428201.855 | J143: 4428201.855 | L143: =IF($B143>0,Achievement_to_date_ongoing!$K141*Achievement_to_date_ongoing!M141,"") -> 578108.8562 | M143: =IF($B143>0,Achievement_to_date_ongoing!$K141*Achievement_to_date_ongoing!N141,"") -> 4175463.596 | N143: =IF($B143>0,Achievement_to_date_ongoing!$K141*Achievement_to_date_ongoing!O141,"") -> 4428201.855 | O143: =IF($B143>0,Achievement_to_date_ongoing!$K141*Achievement_to_date_ongoing!P141,"") -> 4428201.855
B144: =Achievement_to_date_ongoing!B142 -> 110915 | C144: =IF($B144>0, Achievement_to_date_ongoing!C142, "") -> 2 | D144: =IF($B144>0, Achievement_to_date_ongoing!D142, "") -> 2 | E144: =IF($B144>0, Achievement_to_date_ongoing!E142, "") -> 1F | F144: =IF($B144>0, Achievement_to_date_ongoing!F142, "") -> All | G144: 4095212.97 | H144: 4192440.81 | I144: 4192440.81 | J144: 4192440.81 | L144: =IF($B144>0,Achievement_to_date_ongoing!$K142*Achievement_to_date_ongoing!M142,"") -> 4095212.97 | M144: =IF($B144>0,Achievement_to_date_ongoing!$K142*Achievement_to_date_ongoing!N142,"") -> 4192440.81 | N144: =IF($B144>0,Achievement_to_date_ongoing!$K142*Achievement_to_date_ongoing!O142,"") -> 4192440.81 | O144: =IF($B144>0,Achievement_to_date_ongoing!$K142*Achievement_to_date_ongoing!P142,"") -> 4192440.81
B145: =Achievement_to_date_ongoing!B143 -> 116022 | C145: =IF($B145>0, Achievement_to_date_ongoing!C143, "") -> 2 | D145: =IF($B145>0, Achievement_to_date_ongoing!D143, "") -> 2 | E145: =IF($B145>0, Achievement_to_date_ongoing!E143, "") -> 1F | F145: =IF($B145>0, Achievement_to_date_ongoing!F143, "") -> All | G145: 3781924.558 | H145: 4272494.556 | I145: 4272494.556 | J145: 4272494.556 | L145: =IF($B145>0,Achievement_to_date_ongoing!$K143*Achievement_to_date_ongoing!M143,"") -> 3781924.558 | M145: =IF($B145>0,Achievement_to_date_ongoing!$K143*Achievement_to_date_ongoing!N143,"") -> 4272494.556 | N145: =IF($B145>0,Achievement_to_date_ongoing!$K143*Achievement_to_date_ongoing!O143,"") -> 4272494.556 | O145: =IF($B145>0,Achievement_to_date_ongoing!$K143*Achievement_to_date_ongoing!P143,"") -> 4272494.556
B146: =Achievement_to_date_ongoing!B144 -> 110303 | C146: =IF($B146>0, Achievement_to_date_ongoing!C144, "") -> 2 | D146: =IF($B146>0, Achievement_to_date_ongoing!D144, "") -> 2 | E146: =IF($B146>0, Achievement_to_date_ongoing!E144, "") -> 1F | F146: =IF($B146>0, Achievement_to_date_ongoing!F144, "") -> All | G146: 3240492.471 | H146: 3650966.553 | I146: 3650966.553 | J146: 3650966.553 | L146: =IF($B146>0,Achievement_to_date_ongoing!$K144*Achievement_to_date_ongoing!M144,"") -> 3240492.471 | M146: =IF($B146>0,Achievement_to_date_ongoing!$K144*Achievement_to_date_ongoing!N144,"") -> 3650966.553 | N146: =IF($B146>0,Achievement_to_date_ongoing!$K144*Achievement_to_date_ongoing!O144,"") -> 3650966.553 | O146: =IF($B146>0,Achievement_to_date_ongoing!$K144*Achievement_to_date_ongoing!P144,"") -> 3650966.553
B147: =Achievement_to_date_ongoing!B145 -> 110671 | C147: =IF($B147>0, Achievement_to_date_ongoing!C145, "") -> 2 | D147: =IF($B147>0, Achievement_to_date_ongoing!D145, "") -> 2 | E147: =IF($B147>0, Achievement_to_date_ongoing!E145, "") -> 1F | F147: =IF($B147>0, Achievement_to_date_ongoing!F145, "") -> All | G147: 4375959.777 | H147: 4445815.32 | I147: 4445815.32 | J147: 4445815.32 | L147: =IF($B147>0,Achievement_to_date_ongoing!$K145*Achievement_to_date_ongoing!M145,"") -> 4375959.777 | M147: =IF($B147>0,Achievement_to_date_ongoing!$K145*Achievement_to_date_ongoing!N145,"") -> 4445815.32 | N147: =IF($B147>0,Achievement_to_date_ongoing!$K145*Achievement_to_date_ongoing!O145,"") -> 4445815.32 | O147: =IF($B147>0,Achievement_to_date_ongoing!$K145*Achievement_to_date_ongoing!P145,"") -> 4445815.32
B148: =Achievement_to_date_ongoing!B146 -> 114905 | C148: =IF($B148>0, Achievement_to_date_ongoing!C146, "") -> 2 | D148: =IF($B148>0, Achievement_to_date_ongoing!D146, "") -> 2 | E148: =IF($B148>0, Achievement_to_date_ongoing!E146, "") -> 1F | F148: =IF($B148>0, Achievement_to_date_ongoing!F146, "") -> All | G148: 1751692.54 | H148: 3976560.891 | I148: 3976560.891 | J148: 3976560.891 | L148: =IF($B148>0,Achievement_to_date_ongoing!$K146*Achievement_to_date_ongoing!M146,"") -> 1751692.54 | M148: =IF($B148>0,Achievement_to_date_ongoing!$K146*Achievement_to_date_ongoing!N146,"") -> 3976560.891 | N148: =IF($B148>0,Achievement_to_date_ongoing!$K146*Achievement_to_date_ongoing!O146,"") -> 3976560.891 | O148: =IF($B148>0,Achievement_to_date_ongoing!$K146*Achievement_to_date_ongoing!P146,"") -> 3976560.891
B149: =Achievement_to_date_ongoing!B147 -> 114453 | C149: =IF($B149>0, Achievement_to_date_ongoing!C147, "") -> 2 | D149: =IF($B149>0, Achievement_to_date_ongoing!D147, "") -> 2 | E149: =IF($B149>0, Achievement_to_date_ongoing!E147, "") -> 1F | F149: =IF($B149>0, Achievement_to_date_ongoing!F147, "") -> All | G149: 374557.8879 | H149: 1842256.103 | I149: 1842256.103 | J149: 1842256.103 | L149: =IF($B149>0,Achievement_to_date_ongoing!$K147*Achievement_to_date_ongoing!M147,"") -> 374557.8879 | M149: =IF($B149>0,Achievement_to_date_ongoing!$K147*Achievement_to_date_ongoing!N147,"") -> 1842256.103 | N149: =IF($B149>0,Achievement_to_date_ongoing!$K147*Achievement_to_date_ongoing!O147,"") -> 1842256.103 | O149: =IF($B149>0,Achievement_to_date_ongoing!$K147*Achievement_to_date_ongoing!P147,"") -> 1842256.103
B150: =Achievement_to_date_ongoing!B148 -> 115984 | C150: =IF($B150>0, Achievement_to_date_ongoing!C148, "") -> 2 | D150: =IF($B150>0, Achievement_to_date_ongoing!D148, "") -> 2 | E150: =IF($B150>0, Achievement_to_date_ongoing!E148, "") -> 1F | F150: =IF($B150>0, Achievement_to_date_ongoing!F148, "") -> All | G150: 0 | H150: 4137679.367 | I150: 4285417.34 | J150: 4285417.34 | L150: =IF($B150>0,Achievement_to_date_ongoing!$K148*Achievement_to_date_ongoing!M148,"") -> 0 | M150: =IF($B150>0,Achievement_to_date_ongoing!$K148*Achievement_to_date_ongoing!N148,"") -> 4137679.367 | N150: =IF($B150>0,Achievement_to_date_ongoing!$K148*Achievement_to_date_ongoing!O148,"") -> 4285417.34 | O150: =IF($B150>0,Achievement_to_date_ongoing!$K148*Achievement_to_date_ongoing!P148,"") -> 4285417.34
B151: =Achievement_to_date_ongoing!B149 -> 115437 | C151: =IF($B151>0, Achievement_to_date_ongoing!C149, "") -> 2 | D151: =IF($B151>0, Achievement_to_date_ongoing!D149, "") -> 2 | E151: =IF($B151>0, Achievement_to_date_ongoing!E149, "") -> 1F | F151: =IF($B151>0, Achievement_to_date_ongoing!F149, "") -> All | G151: 1093661.483 | H151: 2743327.464 | I151: 2743327.464 | J151: 2743327.464 | L151: =IF($B151>0,Achievement_to_date_ongoing!$K149*Achievement_to_date_ongoing!M149,"") -> 1093661.483 | M151: =IF($B151>0,Achievement_to_date_ongoing!$K149*Achievement_to_date_ongoing!N149,"") -> 2743327.464 | N151: =IF($B151>0,Achievement_to_date_ongoing!$K149*Achievement_to_date_ongoing!O149,"") -> 2743327.464 | O151: =IF($B151>0,Achievement_to_date_ongoing!$K149*Achievement_to_date_ongoing!P149,"") -> 2743327.464
B152: =Achievement_to_date_ongoing!B150 -> 115814 | C152: =IF($B152>0, Achievement_to_date_ongoing!C150, "") -> 2 | D152: =IF($B152>0, Achievement_to_date_ongoing!D150, "") -> 2 | E152: =IF($B152>0, Achievement_to_date_ongoing!E150, "") -> 1F | F152: =IF($B152>0, Achievement_to_date_ongoing!F150, "") -> All | G152: 185193.7055 | H152: 4300345.238 | I152: 4300345.238 | J152: 4300345.238 | L152: =IF($B152>0,Achievement_to_date_ongoing!$K150*Achievement_to_date_ongoing!M150,"") -> 185193.7055 | M152: =IF($B152>0,Achievement_to_date_ongoing!$K150*Achievement_to_date_ongoing!N150,"") -> 4300345.238 | N152: =IF($B152>0,Achievement_to_date_ongoing!$K150*Achievement_to_date_ongoing!O150,"") -> 4300345.238 | O152: =IF($B152>0,Achievement_to_date_ongoing!$K150*Achievement_to_date_ongoing!P150,"") -> 4300345.238
B153: =Achievement_to_date_ongoing!B151 -> 116379 | C153: =IF($B153>0, Achievement_to_date_ongoing!C151, "") -> 2 | D153: =IF($B153>0, Achievement_to_date_ongoing!D151, "") -> 2 | E153: =IF($B153>0, Achievement_to_date_ongoing!E151, "") -> 1F | F153: =IF($B153>0, Achievement_to_date_ongoing!F151, "") -> All | G153: 2352319.756 | H153: 2716039.833 | I153: 2739591.709 | J153: 2739591.709 | L153: =IF($B153>0,Achievement_to_date_ongoing!$K151*Achievement_to_date_ongoing!M151,"") -> 2352319.756 | M153: =IF($B153>0,Achievement_to_date_ongoing!$K151*Achievement_to_date_ongoing!N151,"") -> 2716039.833 | N153: =IF($B153>0,Achievement_to_date_ongoing!$K151*Achievement_to_date_ongoing!O151,"") -> 2739591.709 | O153: =IF($B153>0,Achievement_to_date_ongoing!$K151*Achievement_to_date_ongoing!P151,"") -> 2739591.709
B154: =Achievement_to_date_ongoing!B152 -> 116797 | C154: =IF($B154>0, Achievement_to_date_ongoing!C152, "") -> 2 | D154: =IF($B154>0, Achievement_to_date_ongoing!D152, "") -> 2 | E154: =IF($B154>0, Achievement_to_date_ongoing!E152, "") -> 1F | F154: =IF($B154>0, Achievement_to_date_ongoing!F152, "") -> All | G154: 1033533.405 | H154: 1895076.341 | I154: 1895076.341 | J154: 1895076.341 | L154: =IF($B154>0,Achievement_to_date_ongoing!$K152*Achievement_to_date_ongoing!M152,"") -> 1033533.405 | M154: =IF($B154>0,Achievement_to_date_ongoing!$K152*Achievement_to_date_ongoing!N152,"") -> 1895076.341 | N154: =IF($B154>0,Achievement_to_date_ongoing!$K152*Achievement_to_date_ongoing!O152,"") -> 1895076.341 | O154: =IF($B154>0,Achievement_to_date_ongoing!$K152*Achievement_to_date_ongoing!P152,"") -> 1895076.341
B155: =Achievement_to_date_ongoing!B153 -> 122911 | C155: =IF($B155>0, Achievement_to_date_ongoing!C153, "") -> 2 | D155: =IF($B155>0, Achievement_to_date_ongoing!D153, "") -> 2 | E155: =IF($B155>0, Achievement_to_date_ongoing!E153, "") -> 1F | F155: =IF($B155>0, Achievement_to_date_ongoing!F153, "") -> All | G155: 2521016.983 | H155: 2674470.26 | I155: 2674470.26 | J155: 2674470.26 | L155: =IF($B155>0,Achievement_to_date_ongoing!$K153*Achievement_to_date_ongoing!M153,"") -> 2521016.983 | M155: =IF($B155>0,Achievement_to_date_ongoing!$K153*Achievement_to_date_ongoing!N153,"") -> 2674470.26 | N155: =IF($B155>0,Achievement_to_date_ongoing!$K153*Achievement_to_date_ongoing!O153,"") -> 2674470.26 | O155: =IF($B155>0,Achievement_to_date_ongoing!$K153*Achievement_to_date_ongoing!P153,"") -> 2674470.26
B156: =Achievement_to_date_ongoing!B154 -> 123719 | C156: =IF($B156>0, Achievement_to_date_ongoing!C154, "") -> 2 | D156: =IF($B156>0, Achievement_to_date_ongoing!D154, "") -> 2 | E156: =IF($B156>0, Achievement_to_date_ongoing!E154, "") -> 1F | F156: =IF($B156>0, Achievement_to_date_ongoing!F154, "") -> All | G156: 4344163.496 | H156: 4495447.54 | I156: 4495447.54 | J156: 4495447.54 | L156: =IF($B156>0,Achievement_to_date_ongoing!$K154*Achievement_to_date_ongoing!M154,"") -> 4344163.496 | M156: =IF($B156>0,Achievement_to_date_ongoing!$K154*Achievement_to_date_ongoing!N154,"") -> 4495447.54 | N156: =IF($B156>0,Achievement_to_date_ongoing!$K154*Achievement_to_date_ongoing!O154,"") -> 4495447.54 | O156: =IF($B156>0,Achievement_to_date_ongoing!$K154*Achievement_to_date_ongoing!P154,"") -> 4495447.54
B157: =Achievement_to_date_ongoing!B155 -> 124460 | C157: =IF($B157>0, Achievement_to_date_ongoing!C155, "") -> 2 | D157: =IF($B157>0, Achievement_to_date_ongoing!D155, "") -> 2 | E157: =IF($B157>0, Achievement_to_date_ongoing!E155, "") -> 1F | F157: =IF($B157>0, Achievement_to_date_ongoing!F155, "") -> All | G157: 0 | H157: 4408297.502 | I157: 4408297.502 | J157: 4408297.502 | L157: =IF($B157>0,Achievement_to_date_ongoing!$K155*Achievement_to_date_ongoing!M155,"") -> 0 | M157: =IF($B157>0,Achievement_to_date_ongoing!$K155*Achievement_to_date_ongoing!N155,"") -> 4408297.502 | N157: =IF($B157>0,Achievement_to_date_ongoing!$K155*Achievement_to_date_ongoing!O155,"") -> 4408297.502 | O157: =IF($B157>0,Achievement_to_date_ongoing!$K155*Achievement_to_date_ongoing!P155,"") -> 4408297.502
B158: =Achievement_to_date_ongoing!B156 -> 125304 | C158: =IF($B158>0, Achievement_to_date_ongoing!C156, "") -> 2 | D158: =IF($B158>0, Achievement_to_date_ongoing!D156, "") -> 2 | E158: =IF($B158>0, Achievement_to_date_ongoing!E156, "") -> 1F | F158: =IF($B158>0, Achievement_to_date_ongoing!F156, "") -> All | G158: 1838629.322 | H158: 4277064.115 | I158: 4429778.892 | J158: 4429778.892 | L158: =IF($B158>0,Achievement_to_date_ongoing!$K156*Achievement_to_date_ongoing!M156,"") -> 1838629.322 | M158: =IF($B158>0,Achievement_to_date_ongoing!$K156*Achievement_to_date_ongoing!N156,"") -> 4277064.115 | N158: =IF($B158>0,Achievement_to_date_ongoing!$K156*Achievement_to_date_ongoing!O156,"") -> 4429778.892 | O158: =IF($B158>0,Achievement_to_date_ongoing!$K156*Achievement_to_date_ongoing!P156,"") -> 4429778.892
